Workbook

Sheet Notes
A2: Maternity Friends and Family Test (FFT) Data - February 2025

Sheet Summary
B7: FFT | C7: Number of organisations submitting | D7: Total responses to date | E7: Responses | G7: Percentage Positive | I7: Percentage Negative
C8: 2024-12-01 | D8: 2024-12-01 | E8: 2024-12-01 | F8: 2024-01-26 | G8: 2024-12-01 | H8: 2024-01-26 | I8: 2024-12-01 | J8: 2024-01-26
B9: Maternity Total | C9: NA | D9: 3562048 | E9: 16596 | F9: 18270 | G9: 0.9228729814 | H9: 0.9227695676 | I9: 0.04398650277 | J9: 0.04384236453
B10: Maternity NHS Total | C10: NA | D10: 3558645 | E10: 16596 | F10: 18270 | G10: 0.9228729814 | H10: 0.9227695676 | I10: 0.04398650277 | J10: 0.04384236453
B11: Maternity IS Total | C11: NA | D11: 3403 | E11: 0 | F11: 0 | G11: NA | H11: NA | I11: NA | J11: NA
B12: Antenatal Total | C12: 111 | D12: 777266 | E12: 4783 | F12: 5471 | G12: 0.9184612168 | H12: 0.9206726375 | I12: 0.05080493414 | J12: 0.04807165052
B13: Antenatal NHS | C13: 111 | D13: 776082 | E13: 4783 | F13: 5471 | G13: 0.9184612168 | H13: 0.9206726375 | I13: 0.05080493414 | J13: 0.04807165052
B14: Antenatal IS | C14: 0 | D14: 1184 | E14: 0 | F14: 0 | G14: NA | H14: NA | I14: NA | J14: NA
B15: Birth Total | C15: 119 | D15: 1098337 | E15: 4894 | F15: 5151 | G15: 0.9252145484 | H15: 0.910696952 | I15: 0.04495300368 | J15: 0.05552319938
B16: Birth NHS | C16: 119 | D16: 1097913 | E16: 4894 | F16: 5151 | G16: 0.9252145484 | H16: 0.910696952 | I16: 0.04495300368 | J16: 0.05552319938
B17: Birth IS | C17: 0 | D17: 424 | E17: 0 | F17: 0 | G17: NA | H17: NA | I17: NA | J17: NA
B18: Postnatal Ward Total | C18: 114 | D18: 1210744 | E18: 5415 | F18: 6125 | G18: 0.9216989843 | H18: 0.9319183673 | I18: 0.03988919668 | J18: 0.03379591837
B19: Postnatal Ward Total NHS | C19: 114 | D19: 1210744 | E19: 5415 | F19: 6125 | G19: 0.9216989843 | H19: 0.9319183673 | I19: 0.03988919668 | J19: 0.03379591837
B20: Postnatal Ward Total IS | C20: NA | D20: NA | E20: NA | F20: NA | G20: NA | H20: NA | I20: NA | J20: NA
B21: Postnatal Community Total | C21: 119 | D21: 475701 | E21: 1504 | F21: 1523 | G21: 0.9335106383 | H21: 0.9343401182 | I21: 0.03390957447 | J21: 0.02954694682
B22: Postnatal Community NHS | C22: 119 | D22: 473906 | E22: 1504 | F22: 1523 | G22: 0.9335106383 | H22: 0.9343401182 | I22: 0.03390957447 | J22: 0.02954694682
B23: Postnatal Community IS | C23: 0 | D23: 1795 | E23: 0 | F23: 0 | G23: NA | H23: NA | I23: NA | J23: NA

Sheet ICB Q1
B6: Sort data by:
A9: ICB Code | B9: ICB Name | C9: Total Responses | D9: Percentage Positive | E9: Percentage Negative | F9: Breakdown of Responses
F10: Very Good | G10: Good | H10: Neither Good nor Poor | I10: Poor | J10: Very Poor | K10: Don't Know
B11: England (including Independent Sector providers) | C11: 4783 | D11: 0.9184612168 | E11: 0.05080493414 | F11: 3588 | G11: 805 | H11: 130 | I11: 111 | J11: 132 | K11: 17
B12: England (excluding Independent Sector providers) | C12: 4783 | D12: 0.9184612168 | E12: 0.05080493414 | F12: 3588 | G12: 805 | H12: 130 | I12: 111 | J12: 132 | K12: 17
B13: Selection (excluding suppressed data) | C13: =SUBTOTAL(9,C14:C55) -> 4783 | D13: =IFERROR((F13+G13)/SUM(F13:K13), "-") -> 0.9184612168 | E13: =IFERROR((I13+J13)/SUM(F13:K13), "-") -> 0.05080493414 | F13: =SUBTOTAL(9,F14:F55) -> 3588 | G13: 805 | H13: 130 | I13: 111 | J13: 132 | K13: 17
A14: QE1 | B14: LANCASHIRE AND SOUTH CUMBRIA ICB | C14: 196 | D14: 0.9132653061 | E14: 0.05612244898 | F14: 138 | G14: 41 | H14: 5 | I14: 4 | J14: 7 | K14: 1
A15: QF7 | B15: SOUTH YORKSHIRE ICB | C15: 122 | D15: 0.9262295082 | E15: 0.04098360656 | F15: 89 | G15: 24 | H15: 4 | I15: 3 | J15: 2 | K15: 0
A16: QGH | B16: HEREFORDSHIRE AND WORCESTERSHIRE ICB | C16: 41 | D16: 0.8780487805 | E16: 0.07317073171 | F16: 29 | G16: 7 | H16: 2 | I16: 1 | J16: 2 | K16: 0
A17: QH8 | B17: MID AND SOUTH ESSEX ICB | C17: 5 | D17: 0.8 | E17: 0.2 | F17: 3 | G17: 1 | H17: 0 | I17: 0 | J17: 1 | K17: 0
A18: QHG | B18: BEDFORDSHIRE, LUTON AND MILTON KEYNES ICB | C18: 484 | D18: 0.8904958678 | E18: 0.04338842975 | F18: 297 | G18: 134 | H18: 28 | I18: 11 | J18: 10 | K18: 4
A19: QHL | B19: BIRMINGHAM AND SOLIHULL ICB | C19: 173 | D19: 0.8728323699 | E19: 0.09826589595 | F19: 139 | G19: 12 | H19: 5 | I19: 4 | J19: 13 | K19: 0
A20: QHM | B20: NORTH EAST AND NORTH CUMBRIA ICB | C20: 248 | D20: 0.9435483871 | E20: 0.02419354839 | F20: 191 | G20: 43 | H20: 8 | I20: 3 | J20: 3 | K20: 0
A21: QJ2 | B21: DERBY AND DERBYSHIRE ICB | C21: 76 | D21: 0.8026315789 | E21: 0.1315789474 | F21: 32 | G21: 29 | H21: 5 | I21: 9 | J21: 1 | K21: 0
A22: QJG | B22: SUFFOLK AND NORTH EAST ESSEX ICB | C22: 53 | D22: 0.9811320755 | E22: 0.01886792453 | F22: 44 | G22: 8 | H22: 0 | I22: 0 | J22: 1 | K22: 0
A23: QJK | B23: DEVON ICB | C23: 10 | D23: 1 | E23: 0 | F23: 8 | G23: 2 | H23: 0 | I23: 0 | J23: 0 | K23: 0
A24: QJM | B24: LINCOLNSHIRE ICB | C24: 0 | D24: NA | E24: NA | F24: 0 | G24: 0 | H24: 0 | I24: 0 | J24: 0 | K24: 0
A25: QK1 | B25: LEICESTER, LEICESTERSHIRE AND RUTLAND ICB | C25: 53 | D25: 0.8679245283 | E25: 0.09433962264 | F25: 39 | G25: 7 | H25: 2 | I25: 1 | J25: 4 | K25: 0
A26: QKK | B26: SOUTH EAST LONDON ICB | C26: 38 | D26: 0.9210526316 | E26: 0.05263157895 | F26: 27 | G26: 8 | H26: 1 | I26: 2 | J26: 0 | K26: 0
A27: QKS | B27: KENT AND MEDWAY ICB | C27: 228 | D27: 0.9342105263 | E27: 0.03947368421 | F27: 183 | G27: 30 | H27: 4 | I27: 6 | J27: 3 | K27: 2
A28: QM7 | B28: HERTFORDSHIRE AND WEST ESSEX ICB | C28: 101 | D28: 0.9504950495 | E28: 0.0297029703 | F28: 73 | G28: 23 | H28: 2 | I28: 3 | J28: 0 | K28: 0
A29: QMF | B29: NORTH EAST LONDON ICB | C29: 171 | D29: 0.8771929825 | E29: 0.1052631579 | F29: 136 | G29: 14 | H29: 3 | I29: 6 | J29: 12 | K29: 0
A30: QMJ | B30: NORTH CENTRAL LONDON ICB | C30: 80 | D30: 0.7875 | E30: 0.15 | F30: 48 | G30: 15 | H30: 4 | I30: 5 | J30: 7 | K30: 1
A31: QMM | B31: NORFOLK AND WAVENEY ICB | C31: 182 | D31: 0.978021978 | E31: 0 | F31: 163 | G31: 15 | H31: 4 | I31: 0 | J31: 0 | K31: 0
A32: QNC | B32: STAFFORDSHIRE AND STOKE-ON-TRENT ICB | C32: 23 | D32: 0.9130434783 | E32: 0.08695652174 | F32: 16 | G32: 5 | H32: 0 | I32: 2 | J32: 0 | K32: 0
A33: QNQ | B33: FRIMLEY ICB | C33: 14 | D33: 0.9285714286 | E33: 0 | F33: 9 | G33: 4 | H33: 0 | I33: 0 | J33: 0 | K33: 1
A34: QNX | B34: SUSSEX ICB | C34: 0 | D34: NA | E34: NA | F34: 0 | G34: 0 | H34: 0 | I34: 0 | J34: 0 | K34: 0
A35: QOC | B35: SHROPSHIRE, TELFORD AND WREKIN ICB | C35: 26 | D35: 1 | E35: 0 | F35: 24 | G35: 2 | H35: 0 | I35: 0 | J35: 0 | K35: 0
A36: QOP | B36: GREATER MANCHESTER ICB | C36: 456 | D36: 0.9736842105 | E36: 0.01973684211 | F36: 385 | G36: 59 | H36: 3 | I36: 2 | J36: 7 | K36: 0
A37: QOQ | B37: HUMBER AND NORTH YORKSHIRE ICB | C37: 11 | D37: 0.8181818182 | E37: 0.1818181818 | F37: 7 | G37: 2 | H37: 0 | I37: 1 | J37: 1 | K37: 0
A38: QOX | B38: BATH AND NORTH EAST SOMERSET, SWINDON AND WILTSHIRE ICB | C38: 105 | D38: 0.8952380952 | E38: 0.07619047619 | F38: 83 | G38: 11 | H38: 3 | I38: 4 | J38: 4 | K38: 0
A39: QPM | B39: NORTHAMPTONSHIRE ICB | C39: 116 | D39: 0.974137931 | E39: 0.01724137931 | F39: 101 | G39: 12 | H39: 0 | I39: 1 | J39: 1 | K39: 1
A40: QR1 | B40: GLOUCESTERSHIRE ICB | C40: 0 | D40: NA | E40: NA | F40: 0 | G40: 0 | H40: 0 | I40: 0 | J40: 0 | K40: 0
A41: QRL | B41: HAMPSHIRE AND ISLE OF WIGHT ICB | C41: 185 | D41: 0.9405405405 | E41: 0.02702702703 | F41: 139 | G41: 35 | H41: 6 | I41: 4 | J41: 1 | K41: 0
A42: QRV | B42: NORTH WEST LONDON ICB | C42: 118 | D42: 0.9237288136 | E42: 0.02542372881 | F42: 85 | G42: 24 | H42: 6 | I42: 0 | J42: 3 | K42: 0
A43: QSL | B43: SOMERSET ICB | C43: 7 | D43: 1 | E43: 0 | F43: 7 | G43: 0 | H43: 0 | I43: 0 | J43: 0 | K43: 0
A44: QT1 | B44: NOTTINGHAM AND NOTTINGHAMSHIRE ICB | C44: 222 | D44: 0.9594594595 | E44: 0.02252252252 | F44: 180 | G44: 33 | H44: 3 | I44: 2 | J44: 3 | K44: 1
A45: QT6 | B45: CORNWALL AND THE ISLES OF SCILLY ICB | C45: 40 | D45: 0.85 | E45: 0.075 | F45: 28 | G45: 6 | H45: 3 | I45: 2 | J45: 1 | K45: 0
A46: QU9 | B46: BUCKINGHAMSHIRE, OXFORDSHIRE AND BERKSHIRE WEST ICB | C46: 92 | D46: 0.7934782609 | E46: 0.1956521739 | F46: 63 | G46: 10 | H46: 1 | I46: 5 | J46: 13 | K46: 0
A47: QUA | B47: BLACK COUNTRY ICB | C47: 223 | D47: 0.9372197309 | E47: 0.03587443946 | F47: 114 | G47: 95 | H47: 5 | I47: 5 | J47: 3 | K47: 1
A48: QUE | B48: CAMBRIDGESHIRE AND PETERBOROUGH ICB | C48: 98 | D48: 0.9285714286 | E48: 0.05102040816 | F48: 78 | G48: 13 | H48: 2 | I48: 4 | J48: 1 | K48: 0
A49: QUY | B49: BRISTOL, NORTH SOMERSET AND SOUTH GLOUCESTERSHIRE ICB | C49: 25 | D49: 1 | E49: 0 | F49: 24 | G49: 1 | H49: 0 | I49: 0 | J49: 0 | K49: 0
A50: QVV | B50: DORSET ICB | C50: 48 | D50: 0.8333333333 | E50: 0.08333333333 | F50: 34 | G50: 6 | H50: 4 | I50: 2 | J50: 2 | K50: 0
A51: QWE | B51: SOUTH WEST LONDON ICB | C51: 108 | D51: 0.8796296296 | E51: 0.06481481481 | F51: 84 | G51: 11 | H51: 5 | I51: 5 | J51: 2 | K51: 1
A52: QWO | B52: WEST YORKSHIRE ICB | C52: 380 | D52: 0.9131578947 | E52: 0.05526315789 | F52: 316 | G52: 31 | H52: 9 | I52: 10 | J52: 11 | K52: 3
A53: QWU | B53: COVENTRY AND WARWICKSHIRE ICB | C53: 97 | D53: 0.8762886598 | E53: 0.1134020619 | F53: 77 | G53: 8 | H53: 1 | I53: 0 | J53: 11 | K53: 0
A54: QXU | B54: SURREY HEARTLANDS ICB | C54: 17 | D54: 0.9411764706 | E54: 0 | F54: 11 | G54: 5 | H54: 0 | I54: 0 | J54: 0 | K54: 1
A55: QYG | B55: CHESHIRE AND MERSEYSIDE ICB | C55: 111 | D55: 0.9279279279 | E55: 0.05405405405 | F55: 84 | G55: 19 | H55: 2 | I55: 4 | J55: 2 | K55: 0

Sheet Trusts Q1
B6: Sort data by:
A9: ICB Code | B9: Trust Code | C9: Trust Name | D9: Total Responses | E9: Percentage Positive | F9: Percentage Negative | G9: Breakdown of Responses | M9: Mode of Collection
G10: Very Good | H10: Good | I10: Neither Good nor Poor | J10: Poor | K10: Very Poor | L10: Don't Know | M10: Mode SMS | N10: Mode Electronic Discharge | O10: Mode Electronic Home | P10: Mode Paper Discharge | Q10: Mode Paper Home | R10: Mode Telephone | S10: Mode Online | T10: Mode Other
C11: England (including Independent Sector providers) | D11: 4783 | E11: 0.9184612168 | F11: 0.05080493414 | G11: 3588 | H11: 805 | I11: 130 | J11: 111 | K11: 132 | L11: 17 | M11: 1346 | N11: 717 | O11: 82 | P11: 1450 | Q11: 33 | R11: 0 | S11: 1146 | T11: 9
C12: England (excluding Independent Sector providers) | D12: 4783 | E12: 0.9184612168 | F12: 0.05080493414 | G12: 3588 | H12: 805 | I12: 130 | J12: 111 | K12: 132 | L12: 17 | M12: 1346 | N12: 717 | O12: 82 | P12: 1450 | Q12: 33 | R12: 0 | S12: 1146 | T12: 9
C13: Selection (excluding suppressed data) | D13: =SUBTOTAL(9,D14:D298) -> 4783 | E13: =IFERROR((G13+H13)/SUM(G13:L13), "-") -> 0.9201042119 | F13: =IFERROR((J13+K13)/SUM(G13:L13), "-") -> 0.05015197568 | G13: =SUBTOTAL(9,G14:G298) -> 3463 | H13: 775 | I13: 121 | J13: 105 | K13: 126 | L13: 16 | M13: 1320 | N13: 691 | O13: 77 | P13: 1418 | Q13: 25 | R13: 0 | S13: 1067 | T13: =SUBTOTAL(9,T14:T298) -> 8
A14: QE1 | B14: RTX | C14: UNIVERSITY HOSPITALS OF MORECAMBE BAY NHS FOUNDATION TRUST | D14: 2 | E14: * | F14: * | G14: * | H14: * | I14: * | J14: * | K14: * | L14: * | M14: * | N14: * | O14: * | P14: * | Q14: * | R14: * | S14: * | T14: *
A15: QE1 | B15: RXN | C15: LANCASHIRE TEACHING HOSPITALS NHS FOUNDATION TRUST | D15: 17 | E15: 0.8823529412 | F15: 0.05882352941 | G15: * | H15: * | I15: * | J15: * | K15: * | L15: * | M15: * | N15: * | O15: * | P15: * | Q15: * | R15: * | S15: * | T15: *
A16: QE1 | B16: RXL | C16: BLACKPOOL TEACHING HOSPITALS NHS FOUNDATION TRUST | D16: 50 | E16: 0.94 | F16: 0.04 | G16: 35 | H16: 12 | I16: 1 | J16: 1 | K16: 1 | L16: 0 | M16: 16 | N16: 0 | O16: 0 | P16: 0 | Q16: 0 | R16: 0 | S16: 34 | T16: 0
A17: QE1 | B17: RXR | C17: EAST LANCASHIRE HOSPITALS NHS TRUST | D17: 127 | E17: 0.905511811 | F17: 0.06299212598 | G17: 91 | H17: 24 | I17: 3 | J17: 3 | K17: 5 | L17: 1 | M17: 58 | N17: 0 | O17: 0 | P17: 68 | Q17: 0 | R17: 0 | S17: 1 | T17: 0
A18: QF7 | B18: RFF | C18: BARNSLEY HOSPITAL NHS FOUNDATION TRUST | D18: 6 | E18: 1 | F18: 0 | G18: 5 | H18: 1 | I18: 0 | J18: 0 | K18: 0 | L18: 0 | M18: 1 | N18: 5 | O18: 0 | P18: 0 | Q18: 0 | R18: 0 | S18: 0 | T18: 0
A19: QF7 | B19: RFR | C19: THE ROTHERHAM NHS FOUNDATION TRUST | D19: 8 | E19: 0.875 | F19: 0.125 | G19: 4 | H19: 3 | I19: 0 | J19: 0 | K19: 1 | L19: 0 | M19: 0 | N19: 0 | O19: 0 | P19: 4 | Q19: 0 | R19: 0 | S19: 4 | T19: 0
A20: QF7 | B20: RP5 | C20: DONCASTER AND BASSETLAW TEACHING HOSPITALS NHS FOUNDATION TRUST | D20: 24 | E20: 1 | F20: 0 | G20: 22 | H20: 2 | I20: 0 | J20: 0 | K20: 0 | L20: 0 | M20: 0 | N20: 0 | O20: 0 | P20: 11 | Q20: 0 | R20: 0 | S20: 13 | T20: 0
A21: QF7 | B21: RHQ | C21: SHEFFIELD TEACHING HOSPITALS NHS FOUNDATION TRUST | D21: 84 | E21: 0.9047619048 | F21: 0.04761904762 | G21: 58 | H21: 18 | I21: 4 | J21: 3 | K21: 1 | L21: 0 | M21: 65 | N21: 0 | O21: 0 | P21: 18 | Q21: 0 | R21: 0 | S21: 1 | T21: 0
A22: QGH | B22: RLQ | C22: WYE VALLEY NHS TRUST | D22: 10 | E22: 0.9 | F22: 0.1 | G22: 8 | H22: 1 | I22: 0 | J22: 0 | K22: 1 | L22: 0 | M22: 10 | N22: 0 | O22: 0 | P22: 0 | Q22: 0 | R22: 0 | S22: 0 | T22: 0
A23: QGH | B23: RWP | C23: WORCESTERSHIRE ACUTE HOSPITALS NHS TRUST | D23: 31 | E23: 0.8709677419 | F23: 0.06451612903 | G23: 21 | H23: 6 | I23: 2 | J23: 1 | K23: 1 | L23: 0 | M23: 0 | N23: 31 | O23: 0 | P23: 0 | Q23: 0 | R23: 0 | S23: 0 | T23: 0
A24: QH8 | B24: RAJ | C24: MID AND SOUTH ESSEX NHS FOUNDATION TRUST | D24: 5 | E24: 0.8 | F24: 0.2 | G24: 3 | H24: 1 | I24: 0 | J24: 0 | K24: 1 | L24: 0 | M24: 0 | N24: 0 | O24: 0 | P24: 0 | Q24: 0 | R24: 0 | S24: 5 | T24: 0
A25: QHG | B25: RC9 | C25: BEDFORDSHIRE HOSPITALS NHS FOUNDATION TRUST | D25: 122 | E25: 0.9344262295 | F25: 0.02459016393 | G25: 73 | H25: 41 | I25: 5 | J25: 2 | K25: 1 | L25: 0 | M25: 0 | N25: 106 | O25: 0 | P25: 0 | Q25: 0 | R25: 0 | S25: 16 | T25: 0
A26: QHG | B26: RD8 | C26: MILTON KEYNES UNIVERSITY HOSPITAL NHS FOUNDATION TRUST | D26: 362 | E26: 0.8756906077 | F26: 0.04972375691 | G26: 224 | H26: 93 | I26: 23 | J26: 9 | K26: 9 | L26: 4 | M26: 328 | N26: 0 | O26: 0 | P26: 22 | Q26: 0 | R26: 0 | S26: 12 | T26: 0
A27: QHL | B27: RRK | C27: UNIVERSITY HOSPITALS BIRMINGHAM NHS FOUNDATION TRUST | D27: 8 | E27: 0.5 | F27: 0.375 | G27: 4 | H27: 0 | I27: 1 | J27: 0 | K27: 3 | L27: 0 | M27: 0 | N27: 8 | O27: 0 | P27: 0 | Q27: 0 | R27: 0 | S27: 0 | T27: 0
A28: QHL | B28: RXK | C28: SANDWELL AND WEST BIRMINGHAM HOSPITALS NHS TRUST | D28: 40 | E28: 0.7 | F28: 0.225 | G28: 24 | H28: 4 | I28: 3 | J28: 3 | K28: 6 | L28: 0 | M28: 40 | N28: 0 | O28: 0 | P28: 0 | Q28: 0 | R28: 0 | S28: 0 | T28: 0
A29: QHL | B29: RQ3 | C29: BIRMINGHAM WOMEN'S AND CHILDREN'S NHS FOUNDATION TRUST | D29: 125 | E29: 0.952 | F29: 0.04 | G29: 111 | H29: 8 | I29: 1 | J29: 1 | K29: 4 | L29: 0 | M29: 0 | N29: 0 | O29: 0 | P29: 0 | Q29: 0 | R29: 0 | S29: 125 | T29: 0
A30: QHM | B30: RTF | C30: NORTHUMBRIA HEALTHCARE NHS FOUNDATION TRUST | D30: 0 | E30: NA | F30: NA | G30: 0 | H30: 0 | I30: 0 | J30: 0 | K30: 0 | L30: 0 | M30: 0 | N30: 0 | O30: 0 | P30: 0 | Q30: 0 | R30: 0 | S30: 0 | T30: 0
A31: QHM | B31: RNN | C31: NORTH CUMBRIA INTEGRATED CARE NHS FOUNDATION TRUST | D31: 1 | E31: * | F31: * | G31: * | H31: * | I31: * | J31: * | K31: * | L31: * | M31: * | N31: * | O31: * | P31: * | Q31: * | R31: * | S31: * | T31: *
A32: QHM | B32: RVW | C32: NORTH TEES AND HARTLEPOOL NHS FOUNDATION TRUST | D32: 6 | E32: 1 | F32: 0 | G32: * | H32: * | I32: * | J32: * | K32: * | L32: * | M32: * | N32: * | O32: * | P32: * | Q32: * | R32: * | S32: * | T32: *
A33: QHM | B33: R0B | C33: SOUTH TYNESIDE AND SUNDERLAND NHS FOUNDATION TRUST | D33: 7 | E33: 1 | F33: 0 | G33: 7 | H33: 0 | I33: 0 | J33: 0 | K33: 0 | L33: 0 | M33: 0 | N33: 0 | O33: 0 | P33: 0 | Q33: 0 | R33: 0 | S33: 7 | T33: 0
A34: QHM | B34: RR7 | C34: GATESHEAD HEALTH NHS FOUNDATION TRUST | D34: 14 | E34: 1 | F34: 0 | G34: 14 | H34: 0 | I34: 0 | J34: 0 | K34: 0 | L34: 0 | M34: 13 | N34: 0 | O34: 0 | P34: 1 | Q34: 0 | R34: 0 | S34: 0 | T34: 0
A35: QHM | B35: RXP | C35: COUNTY DURHAM AND DARLINGTON NHS FOUNDATION TRUST | D35: 14 | E35: 1 | F35: 0 | G35: 13 | H35: 1 | I35: 0 | J35: 0 | K35: 0 | L35: 0 | M35: 0 | N35: 0 | O35: 0 | P35: 14 | Q35: 0 | R35: 0 | S35: 0 | T35: 0
A36: QHM | B36: RTD | C36: THE NEWCASTLE UPON TYNE HOSPITALS NHS FOUNDATION TRUST | D36: 59 | E36: 0.9152542373 | F36: 0.03389830508 | G36: 39 | H36: 15 | I36: 3 | J36: 0 | K36: 2 | L36: 0 | M36: 59 | N36: 0 | O36: 0 | P36: 0 | Q36: 0 | R36: 0 | S36: 0 | T36: 0
A37: QHM | B37: RTR | C37: SOUTH TEES HOSPITALS NHS FOUNDATION TRUST | D37: 147 | E37: 0.9387755102 | F37: 0.02721088435 | G37: 112 | H37: 26 | I37: 5 | J37: 3 | K37: 1 | L37: 0 | M37: 120 | N37: 27 | O37: 0 | P37: 0 | Q37: 0 | R37: 0 | S37: 0 | T37: 0
A38: QJ2 | B38: RFS | C38: CHESTERFIELD ROYAL HOSPITAL NHS FOUNDATION TRUST | D38: 25 | E38: 0.76 | F38: 0.16 | G38: 13 | H38: 6 | I38: 2 | J38: 4 | K38: 0 | L38: 0 | M38: 25 | N38: 0 | O38: 0 | P38: 0 | Q38: 0 | R38: 0 | S38: 0 | T38: 0
A39: QJ2 | B39: RTG | C39: UNIVERSITY HOSPITALS OF DERBY AND BURTON NHS FOUNDATION TRUST | D39: 51 | E39: 0.8235294118 | F39: 0.1176470588 | G39: 19 | H39: 23 | I39: 3 | J39: 5 | K39: 1 | L39: 0 | M39: 50 | N39: 0 | O39: 0 | P39: 0 | Q39: 0 | R39: 0 | S39: 1 | T39: 0
A40: QJG | B40: RDE | C40: EAST SUFFOLK AND NORTH ESSEX NHS FOUNDATION TRUST | D40: 21 | E40: 0.9523809524 | F40: 0.04761904762 | G40: 18 | H40: 2 | I40: 0 | J40: 0 | K40: 1 | L40: 0 | M40: 0 | N40: 0 | O40: 0 | P40: 0 | Q40: 0 | R40: 0 | S40: 21 | T40: 0
A41: QJG | B41: RGR | C41: WEST SUFFOLK NHS FOUNDATION TRUST | D41: 32 | E41: 1 | F41: 0 | G41: 26 | H41: 6 | I41: 0 | J41: 0 | K41: 0 | L41: 0 | M41: 0 | N41: 0 | O41: 0 | P41: 1 | Q41: 0 | R41: 0 | S41: 31 | T41: 0
A42: QJK | B42: RA9 | C42: TORBAY AND SOUTH DEVON NHS FOUNDATION TRUST | D42: 1 | E42: * | F42: * | G42: * | H42: * | I42: * | J42: * | K42: * | L42: * | M42: * | N42: * | O42: * | P42: * | Q42: * | R42: * | S42: * | T42: *
A43: QJK | B43: RK9 | C43: UNIVERSITY HOSPITALS PLYMOUTH NHS TRUST | D43: 3 | E43: * | F43: * | G43: * | H43: * | I43: * | J43: * | K43: * | L43: * | M43: * | N43: * | O43: * | P43: * | Q43: * | R43: * | S43: * | T43: *
A44: QJK | B44: RH8 | C44: ROYAL DEVON UNIVERSITY HEALTHCARE NHS FOUNDATION TRUST | D44: 6 | E44: 1 | F44: 0 | G44: 4 | H44: 2 | I44: 0 | J44: 0 | K44: 0 | L44: 0 | M44: 0 | N44: 0 | O44: 0 | P44: 2 | Q44: 0 | R44: 0 | S44: 4 | T44: 0
A45: QJM | B45: RWD | C45: UNITED LINCOLNSHIRE TEACHING HOSPITALS NHS TRUST | D45: 0 | E45: NA | F45: NA | G45: 0 | H45: 0 | I45: 0 | J45: 0 | K45: 0 | L45: 0 | M45: 0 | N45: 0 | O45: 0 | P45: 0 | Q45: 0 | R45: 0 | S45: 0 | T45: 0
A46: QK1 | B46: RWE | C46: UNIVERSITY HOSPITALS OF LEICESTER NHS TRUST | D46: 53 | E46: 0.8679245283 | F46: 0.09433962264 | G46: 39 | H46: 7 | I46: 2 | J46: 1 | K46: 4 | L46: 0 | M46: 46 | N46: 5 | O46: 0 | P46: 2 | Q46: 0 | R46: 0 | S46: 0 | T46: 0
A47: QKK | B47: RJ1 | C47: GUY'S AND ST THOMAS' NHS FOUNDATION TRUST | D47: 8 | E47: 1 | F47: 0 | G47: 7 | H47: 1 | I47: 0 | J47: 0 | K47: 0 | L47: 0 | M47: 0 | N47: 0 | O47: 0 | P47: 0 | Q47: 0 | R47: 0 | S47: 8 | T47: 0
A48: QKK | B48: RJ2 | C48: LEWISHAM AND GREENWICH NHS TRUST | D48: 30 | E48: 0.9 | F48: 0.06666666667 | G48: 20 | H48: 7 | I48: 1 | J48: 2 | K48: 0 | L48: 0 | M48: 0 | N48: 0 | O48: 0 | P48: 17 | Q48: 0 | R48: 0 | S48: 13 | T48: 0
A49: QKS | B49: RVV | C49: EAST KENT HOSPITALS UNIVERSITY NHS FOUNDATION TRUST | D49: 18 | E49: 0.8888888889 | F49: 0.05555555556 | G49: 13 | H49: 3 | I49: 1 | J49: 1 | K49: 0 | L49: 0 | M49: 18 | N49: 0 | O49: 0 | P49: 0 | Q49: 0 | R49: 0 | S49: 0 | T49: 0
A50: QKS | B50: RPA | C50: MEDWAY NHS FOUNDATION TRUST | D50: 19 | E50: 0.9473684211 | F50: 0.05263157895 | G50: 17 | H50: 1 | I50: 0 | J50: 0 | K50: 1 | L50: 0 | M50: 0 | N50: 0 | O50: 0 | P50: 0 | Q50: 0 | R50: 0 | S50: 19 | T50: 0
A51: QKS | B51: RWF | C51: MAIDSTONE AND TUNBRIDGE WELLS NHS TRUST | D51: 31 | E51: 0.9032258065 | F51: 0.06451612903 | G51: 25 | H51: 3 | I51: 1 | J51: 1 | K51: 1 | L51: 0 | M51: 20 | N51: 0 | O51: 0 | P51: 0 | Q51: 4 | R51: 0 | S51: 7 | T51: 0
A52: QKS | B52: RN7 | C52: DARTFORD AND GRAVESHAM NHS TRUST | D52: 160 | E52: 0.94375 | F52: 0.03125 | G52: 128 | H52: 23 | I52: 2 | J52: 4 | K52: 1 | L52: 2 | M52: 0 | N52: 0 | O52: 0 | P52: 0 | Q52: 0 | R52: 0 | S52: 160 | T52: 0
A53: QM7 | B53: RQW | C53: THE PRINCESS ALEXANDRA HOSPITAL NHS TRUST | D53: 0 | E53: NA | F53: NA | G53: 0 | H53: 0 | I53: 0 | J53: 0 | K53: 0 | L53: 0 | M53: 0 | N53: 0 | O53: 0 | P53: 0 | Q53: 0 | R53: 0 | S53: 0 | T53: 0
A54: QM7 | B54: RWG | C54: WEST HERTFORDSHIRE TEACHING HOSPITALS NHS TRUST | D54: 0 | E54: NA | F54: NA | G54: 0 | H54: 0 | I54: 0 | J54: 0 | K54: 0 | L54: 0 | M54: 0 | N54: 0 | O54: 0 | P54: 0 | Q54: 0 | R54: 0 | S54: 0 | T54: 0
A55: QM7 | B55: RWH | C55: EAST AND NORTH HERTFORDSHIRE NHS TRUST | D55: 101 | E55: 0.9504950495 | F55: 0.0297029703 | G55: 73 | H55: 23 | I55: 2 | J55: 3 | K55: 0 | L55: 0 | M55: 0 | N55: 9 | O55: 77 | P55: 11 | Q55: 0 | R55: 0 | S55: 0 | T55: 4
A56: QMF | B56: RQX | C56: HOMERTON HEALTHCARE NHS FOUNDATION TRUST | D56: 2 | E56: * | F56: * | G56: * | H56: * | I56: * | J56: * | K56: * | L56: * | M56: * | N56: * | O56: * | P56: * | Q56: * | R56: * | S56: * | T56: *
A57: QMF | B57: RF4 | C57: BARKING, HAVERING AND REDBRIDGE UNIVERSITY HOSPITALS NHS TRUST | D57: 9 | E57: 0.8888888889 | F57: 0.1111111111 | G57: * | H57: * | I57: * | J57: * | K57: * | L57: * | M57: * | N57: * | O57: * | P57: * | Q57: * | R57: * | S57: * | T57: *
A58: QMF | B58: R1H | C58: BARTS HEALTH NHS TRUST | D58: 160 | E58: 0.88125 | F58: 0.1 | G58: 130 | H58: 11 | I58: 3 | J58: 5 | K58: 11 | L58: 0 | M58: 0 | N58: 0 | O58: 0 | P58: 102 | Q58: 0 | R58: 0 | S58: 58 | T58: 0
A59: QMJ | B59: RRV | C59: UNIVERSITY COLLEGE LONDON HOSPITALS NHS FOUNDATION TRUST | D59: 0 | E59: NA | F59: NA | G59: 0 | H59: 0 | I59: 0 | J59: 0 | K59: 0 | L59: 0 | M59: 0 | N59: 0 | O59: 0 | P59: 0 | Q59: 0 | R59: 0 | S59: 0 | T59: 0
A60: QMJ | B60: RKE | C60: WHITTINGTON HEALTH NHS TRUST | D60: 14 | E60: 1 | F60: 0 | G60: 14 | H60: 0 | I60: 0 | J60: 0 | K60: 0 | L60: 0 | M60: 0 | N60: 0 | O60: 0 | P60: 14 | Q60: 0 | R60: 0 | S60: 0 | T60: 0
A61: QMJ | B61: RAL | C61: ROYAL FREE LONDON NHS FOUNDATION TRUST | D61: 66 | E61: 0.7424242424 | F61: 0.1818181818 | G61: 34 | H61: 15 | I61: 4 | J61: 5 | K61: 7 | L61: 1 | M61: 32 | N61: 34 | O61: 0 | P61: 0 | Q61: 0 | R61: 0 | S61: 0 | T61: 0
A62: QMM | B62: RGP | C62: JAMES PAGET UNIVERSITY HOSPITALS NHS FOUNDATION TRUST | D62: 0 | E62: NA | F62: NA | G62: 0 | H62: 0 | I62: 0 | J62: 0 | K62: 0 | L62: 0 | M62: 0 | N62: 0 | O62: 0 | P62: 0 | Q62: 0 | R62: 0 | S62: 0 | T62: 0
A63: QMM | B63: RCX | C63: THE QUEEN ELIZABETH HOSPITAL, KING'S LYNN, NHS FOUNDATION TRUST | D63: 90 | E63: 0.9666666667 | F63: 0 | G63: 78 | H63: 9 | I63: 3 | J63: 0 | K63: 0 | L63: 0 | M63: 0 | N63: 0 | O63: 0 | P63: 90 | Q63: 0 | R63: 0 | S63: 0 | T63: 0
A64: QMM | B64: RM1 | C64: NORFOLK AND NORWICH UNIVERSITY HOSPITALS NHS FOUNDATION TRUST | D64: 92 | E64: 0.9891304348 | F64: 0 | G64: 85 | H64: 6 | I64: 1 | J64: 0 | K64: 0 | L64: 0 | M64: 0 | N64: 0 | O64: 0 | P64: 85 | Q64: 0 | R64: 0 | S64: 7 | T64: 0
A65: QNC | B65: RJE | C65: UNIVERSITY HOSPITALS OF NORTH MIDLANDS NHS TRUST | D65: 23 | E65: 0.9130434783 | F65: 0.08695652174 | G65: 16 | H65: 5 | I65: 0 | J65: 2 | K65: 0 | L65: 0 | M65: 20 | N65: 0 | O65: 0 | P65: 3 | Q65: 0 | R65: 0 | S65: 0 | T65: 0
A66: QNQ | B66: RDU | C66: FRIMLEY HEALTH NHS FOUNDATION TRUST | D66: 14 | E66: 0.9285714286 | F66: 0 | G66: 9 | H66: 4 | I66: 0 | J66: 0 | K66: 0 | L66: 1 | M66: 0 | N66: 0 | O66: 0 | P66: 12 | Q66: 0 | R66: 0 | S66: 2 | T66: 0
A67: QOC | B67: RXW | C67: THE SHREWSBURY AND TELFORD HOSPITAL NHS TRUST | D67: 26 | E67: 1 | F67: 0 | G67: 24 | H67: 2 | I67: 0 | J67: 0 | K67: 0 | L67: 0 | M67: 0 | N67: 0 | O67: 0 | P67: 25 | Q67: 0 | R67: 0 | S67: 1 | T67: 0
A68: QOP | B68: RWJ | C68: STOCKPORT NHS FOUNDATION TRUST | D68: 0 | E68: NA | F68: NA | G68: 0 | H68: 0 | I68: 0 | J68: 0 | K68: 0 | L68: 0 | M68: 0 | N68: 0 | O68: 0 | P68: 0 | Q68: 0 | R68: 0 | S68: 0 | T68: 0
A69: QOP | B69: RRF | C69: WRIGHTINGTON, WIGAN AND LEIGH NHS FOUNDATION TRUST | D69: 4 | E69: * | F69: * | G69: * | H69: * | I69: * | J69: * | K69: * | L69: * | M69: * | N69: * | O69: * | P69: * | Q69: * | R69: * | S69: * | T69: *
A70: QOP | B70: RMP | C70: TAMESIDE AND GLOSSOP INTEGRATED CARE NHS FOUNDATION TRUST | D70: 28 | E70: 0.9642857143 | F70: 0.03571428571 | G70: * | H70: * | I70: * | J70: * | K70: * | L70: * | M70: * | N70: * | O70: * | P70: * | Q70: * | R70: * | S70: * | T70: *
A71: QOP | B71: RMC | C71: BOLTON NHS FOUNDATION TRUST | D71: 58 | E71: 1 | F71: 0 | G71: 58 | H71: 0 | I71: 0 | J71: 0 | K71: 0 | L71: 0 | M71: 0 | N71: 0 | O71: 0 | P71: 58 | Q71: 0 | R71: 0 | S71: 0 | T71: 0
A72: QOP | B72: R0A | C72: MANCHESTER UNIVERSITY NHS FOUNDATION TRUST | D72: 366 | E72: 0.9726775956 | F72: 0.01912568306 | G72: 299 | H72: 57 | I72: 3 | J72: 2 | K72: 5 | L72: 0 | M72: 0 | N72: 189 | O72: 0 | P72: 145 | Q72: 0 | R72: 0 | S72: 32 | T72: 0
A73: QOQ | B73: RCD | C73: HARROGATE AND DISTRICT NHS FOUNDATION TRUST | D73: 1 | E73: * | F73: * | G73: * | H73: * | I73: * | J73: * | K73: * | L73: * | M73: * | N73: * | O73: * | P73: * | Q73: * | R73: * | S73: * | T73: *
A74: QOQ | B74: RWA | C74: HULL UNIVERSITY TEACHING HOSPITALS NHS TRUST | D74: 1 | E74: * | F74: * | G74: * | H74: * | I74: * | J74: * | K74: * | L74: * | M74: * | N74: * | O74: * | P74: * | Q74: * | R74: * | S74: * | T74: *
A75: QOQ | B75: RJL | C75: NORTHERN LINCOLNSHIRE AND GOOLE NHS FOUNDATION TRUST | D75: 9 | E75: 0.7777777778 | F75: 0.2222222222 | G75: 5 | H75: 2 | I75: 0 | J75: 1 | K75: 1 | L75: 0 | M75: 9 | N75: 0 | O75: 0 | P75: 0 | Q75: 0 | R75: 0 | S75: 0 | T75: 0
A76: QOX | B76: RD1 | C76: ROYAL UNITED HOSPITALS BATH NHS FOUNDATION TRUST | D76: 16 | E76: 0.75 | F76: 0.25 | G76: 9 | H76: 3 | I76: 0 | J76: 2 | K76: 2 | L76: 0 | M76: 16 | N76: 0 | O76: 0 | P76: 0 | Q76: 0 | R76: 0 | S76: 0 | T76: 0
A77: QOX | B77: RN3 | C77: GREAT WESTERN HOSPITALS NHS FOUNDATION TRUST | D77: 40 | E77: 0.925 | F77: 0.025 | G77: 36 | H77: 1 | I77: 2 | J77: 0 | K77: 1 | L77: 0 | M77: 0 | N77: 34 | O77: 0 | P77: 2 | Q77: 0 | R77: 0 | S77: 4 | T77: 0
A78: QOX | B78: RNZ | C78: SALISBURY NHS FOUNDATION TRUST | D78: 49 | E78: 0.9183673469 | F78: 0.0612244898 | G78: 38 | H78: 7 | I78: 1 | J78: 2 | K78: 1 | L78: 0 | M78: 49 | N78: 0 | O78: 0 | P78: 0 | Q78: 0 | R78: 0 | S78: 0 | T78: 0
A79: QPM | B79: RNQ | C79: KETTERING GENERAL HOSPITAL NHS FOUNDATION TRUST | D79: 16 | E79: 0.875 | F79: 0.0625 | G79: 11 | H79: 3 | I79: 0 | J79: 1 | K79: 0 | L79: 1 | M79: 0 | N79: 0 | O79: 0 | P79: 0 | Q79: 0 | R79: 0 | S79: 16 | T79: 0
A80: QPM | B80: RNS | C80: NORTHAMPTON GENERAL HOSPITAL NHS TRUST | D80: 100 | E80: 0.99 | F80: 0.01 | G80: 90 | H80: 9 | I80: 0 | J80: 0 | K80: 1 | L80: 0 | M80: 4 | N80: 0 | O80: 0 | P80: 86 | Q80: 0 | R80: 0 | S80: 10 | T80: 0
A81: QRL | B81: RHU | C81: PORTSMOUTH HOSPITALS UNIVERSITY NATIONAL HEALTH SERVICE TRUST | D81: 2 | E81: * | F81: * | G81: * | H81: * | I81: * | J81: * | K81: * | L81: * | M81: * | N81: * | O81: * | P81: * | Q81: * | R81: * | S81: * | T81: *
A82: QRL | B82: R1F | C82: ISLE OF WIGHT NHS TRUST | D82: 8 | E82: 1 | F82: 0 | G82: * | H82: * | I82: * | J82: * | K82: * | L82: * | M82: * | N82: * | O82: * | P82: * | Q82: * | R82: * | S82: * | T82: *
A83: QRL | B83: RN5 | C83: HAMPSHIRE HOSPITALS NHS FOUNDATION TRUST | D83: 61 | E83: 0.9180327869 | F83: 0.03278688525 | G83: 56 | H83: 0 | I83: 3 | J83: 2 | K83: 0 | L83: 0 | M83: 0 | N83: 0 | O83: 0 | P83: 53 | Q83: 0 | R83: 0 | S83: 8 | T83: 0
A84: QRL | B84: RHM | C84: UNIVERSITY HOSPITAL SOUTHAMPTON NHS FOUNDATION TRUST | D84: 114 | E84: 0.9473684211 | F84: 0.02631578947 | G84: 73 | H84: 35 | I84: 3 | J84: 2 | K84: 1 | L84: 0 | M84: 0 | N84: 0 | O84: 0 | P84: 0 | Q84: 0 | R84: 0 | S84: 114 | T84: 0
A85: QRV | B85: R1K | C85: LONDON NORTH WEST UNIVERSITY HEALTHCARE NHS TRUST | D85: 7 | E85: 1 | F85: 0 | G85: 7 | H85: 0 | I85: 0 | J85: 0 | K85: 0 | L85: 0 | M85: 0 | N85: 0 | O85: 0 | P85: 5 | Q85: 0 | R85: 0 | S85: 2 | T85: 0
A86: QRV | B86: RQM | C86: CHELSEA AND WESTMINSTER HOSPITAL NHS FOUNDATION TRUST | D86: 24 | E86: 0.7916666667 | F86: 0.08333333333 | G86: 17 | H86: 2 | I86: 3 | J86: 0 | K86: 2 | L86: 0 | M86: 0 | N86: 0 | O86: 0 | P86: 0 | Q86: 0 | R86: 0 | S86: 24 | T86: 0
A87: QRV | B87: RYJ | C87: IMPERIAL COLLEGE HEALTHCARE NHS TRUST | D87: 38 | E87: 0.9736842105 | F87: 0.02631578947 | G87: 29 | H87: 8 | I87: 0 | J87: 0 | K87: 1 | L87: 0 | M87: 0 | N87: 0 | O87: 0 | P87: 0 | Q87: 0 | R87: 0 | S87: 38 | T87: 0
A88: QRV | B88: RAS | C88: THE HILLINGDON HOSPITALS NHS FOUNDATION TRUST | D88: 49 | E88: 0.9387755102 | F88: 0 | G88: 32 | H88: 14 | I88: 3 | J88: 0 | K88: 0 | L88: 0 | M88: 0 | N88: 0 | O88: 0 | P88: 0 | Q88: 0 | R88: 0 | S88: 49 | T88: 0
A89: QSL | B89: RH5 | C89: SOMERSET NHS FOUNDATION TRUST | D89: 7 | E89: 1 | F89: 0 | G89: 7 | H89: 0 | I89: 0 | J89: 0 | K89: 0 | L89: 0 | M89: 4 | N89: 0 | O89: 0 | P89: 0 | Q89: 3 | R89: 0 | S89: 0 | T89: 0
A90: QT1 | B90: RK5 | C90: SHERWOOD FOREST HOSPITALS NHS FOUNDATION TRUST | D90: 8 | E90: 0.875 | F90: 0.125 | G90: 7 | H90: 0 | I90: 0 | J90: 0 | K90: 1 | L90: 0 | M90: 0 | N90: 0 | O90: 0 | P90: 0 | Q90: 0 | R90: 0 | S90: 8 | T90: 0
A91: QT1 | B91: RX1 | C91: NOTTINGHAM UNIVERSITY HOSPITALS NHS TRUST | D91: 214 | E91: 0.9626168224 | F91: 0.01869158879 | G91: 173 | H91: 33 | I91: 3 | J91: 2 | K91: 2 | L91: 1 | M91: 0 | N91: 20 | O91: 0 | P91: 193 | Q91: 0 | R91: 0 | S91: 1 | T91: 0
A92: QT6 | B92: REF | C92: ROYAL CORNWALL HOSPITALS NHS TRUST | D92: 40 | E92: 0.85 | F92: 0.075 | G92: 28 | H92: 6 | I92: 3 | J92: 2 | K92: 1 | L92: 0 | M92: 0 | N92: 8 | O92: 0 | P92: 0 | Q92: 0 | R92: 0 | S92: 32 | T92: 0
A93: QU9 | B93: RTH | C93: OXFORD UNIVERSITY HOSPITALS NHS FOUNDATION TRUST | D93: 5 | E93: 0 | F93: 1 | G93: 0 | H93: 0 | I93: 0 | J93: 1 | K93: 4 | L93: 0 | M93: 0 | N93: 0 | O93: 0 | P93: 0 | Q93: 0 | R93: 0 | S93: 5 | T93: 0
A94: QU9 | B94: RHW | C94: ROYAL BERKSHIRE NHS FOUNDATION TRUST | D94: 36 | E94: 0.9722222222 | F94: 0.02777777778 | G94: 31 | H94: 4 | I94: 0 | J94: 0 | K94: 1 | L94: 0 | M94: 13 | N94: 0 | O94: 0 | P94: 21 | Q94: 0 | R94: 0 | S94: 2 | T94: 0
A95: QU9 | B95: RXQ | C95: BUCKINGHAMSHIRE HEALTHCARE NHS TRUST | D95: 51 | E95: 0.7450980392 | F95: 0.2352941176 | G95: 32 | H95: 6 | I95: 1 | J95: 4 | K95: 8 | L95: 0 | M95: 49 | N95: 0 | O95: 0 | P95: 0 | Q95: 0 | R95: 0 | S95: 2 | T95: 0
A96: QUA | B96: RNA | C96: THE DUDLEY GROUP NHS FOUNDATION TRUST | D96: 6 | E96: 1 | F96: 0 | G96: 6 | H96: 0 | I96: 0 | J96: 0 | K96: 0 | L96: 0 | M96: 5 | N96: 0 | O96: 0 | P96: 1 | Q96: 0 | R96: 0 | S96: 0 | T96: 0
A97: QUA | B97: RL4 | C97: THE ROYAL WOLVERHAMPTON NHS TRUST | D97: 22 | E97: 0.8181818182 | F97: 0.1363636364 | G97: 16 | H97: 2 | I97: 1 | J97: 3 | K97: 0 | L97: 0 | M97: 22 | N97: 0 | O97: 0 | P97: 0 | Q97: 0 | R97: 0 | S97: 0 | T97: 0
A98: QUA | B98: RBK | C98: WALSALL HEALTHCARE NHS TRUST | D98: 195 | E98: 0.9487179487 | F98: 0.02564102564 | G98: 92 | H98: 93 | I98: 4 | J98: 2 | K98: 3 | L98: 1 | M98: 54 | N98: 141 | O98: 0 | P98: 0 | Q98: 0 | R98: 0 | S98: 0 | T98: 0
A99: QUE | B99: RGT | C99: CAMBRIDGE UNIVERSITY HOSPITALS NHS FOUNDATION TRUST | D99: 12 | E99: 0.5833333333 | F99: 0.25 | G99: 3 | H99: 4 | I99: 2 | J99: 3 | K99: 0 | L99: 0 | M99: 0 | N99: 5 | O99: 0 | P99: 0 | Q99: 0 | R99: 0 | S99: 7 | T99: 0
A100: QUE | B100: RGN | C100: NORTH WEST ANGLIA NHS FOUNDATION TRUST | D100: 86 | E100: 0.976744186 | F100: 0.02325581395 | G100: 75 | H100: 9 | I100: 0 | J100: 1 | K100: 1 | L100: 0 | M100: 0 | N100: 0 | O100: 0 | P100: 85 | Q100: 0 | R100: 0 | S100: 1 | T100: 0
A101: QUY | B101: RVJ | C101: NORTH BRISTOL NHS TRUST | D101: 0 | E101: NA | F101: NA | G101: 0 | H101: 0 | I101: 0 | J101: 0 | K101: 0 | L101: 0 | M101: 0 | N101: 0 | O101: 0 | P101: 0 | Q101: 0 | R101: 0 | S101: 0 | T101: 0
A102: QUY | B102: RA7 | C102: UNIVERSITY HOSPITALS BRISTOL AND WESTON NHS FOUNDATION TRUST | D102: 25 | E102: 1 | F102: 0 | G102: 24 | H102: 1 | I102: 0 | J102: 0 | K102: 0 | L102: 0 | M102: 0 | N102: 0 | O102: 0 | P102: 25 | Q102: 0 | R102: 0 | S102: 0 | T102: 0
A103: QVV | B103: RBD | C103: DORSET COUNTY HOSPITAL NHS FOUNDATION TRUST | D103: 2 | E103: * | F103: * | G103: * | H103: * | I103: * | J103: * | K103: * | L103: * | M103: * | N103: * | O103: * | P103: * | Q103: * | R103: * | S103: * | T103: *
A104: QVV | B104: R0D | C104: UNIVERSITY HOSPITALS DORSET NHS FOUNDATION TRUST | D104: 46 | E104: 0.8260869565 | F104: 0.08695652174 | G104: * | H104: * | I104: * | J104: * | K104: * | L104: * | M104: * | N104: * | O104: * | P104: * | Q104: * | R104: * | S104: * | T104: *
A105: QWE | B105: RVR | C105: EPSOM AND ST HELIER UNIVERSITY HOSPITALS NHS TRUST | D105: 3 | E105: * | F105: * | G105: * | H105: * | I105: * | J105: * | K105: * | L105: * | M105: * | N105: * | O105: * | P105: * | Q105: * | R105: * | S105: * | T105: *
A106: QWE | B106: RJ7 | C106: ST GEORGE'S UNIVERSITY HOSPITALS NHS FOUNDATION TRUST | D106: 24 | E106: 0.75 | F106: 0.125 | G106: * | H106: * | I106: * | J106: * | K106: * | L106: * | M106: * | N106: * | O106: * | P106: * | Q106: * | R106: * | S106: * | T106: *
A107: QWE | B107: RAX | C107: KINGSTON AND RICHMOND NHS FOUNDATION TRUST | D107: 81 | E107: 0.9259259259 | F107: 0.04938271605 | G107: 72 | H107: 3 | I107: 1 | J107: 2 | K107: 2 | L107: 1 | M107: 0 | N107: 15 | O107: 0 | P107: 0 | Q107: 0 | R107: 0 | S107: 66 | T107: 0
A108: QWO | B108: RWY | C108: CALDERDALE AND HUDDERSFIELD NHS FOUNDATION TRUST | D108: 11 | E108: 1 | F108: 0 | G108: 11 | H108: 0 | I108: 0 | J108: 0 | K108: 0 | L108: 0 | M108: 0 | N108: 0 | O108: 0 | P108: 0 | Q108: 0 | R108: 0 | S108: 11 | T108: 0
A109: QWO | B109: RAE | C109: BRADFORD TEACHING HOSPITALS NHS FOUNDATION TRUST | D109: 48 | E109: 0.75 | F109: 0.1666666667 | G109: 28 | H109: 8 | I109: 4 | J109: 4 | K109: 4 | L109: 0 | M109: 0 | N109: 0 | O109: 0 | P109: 0 | Q109: 0 | R109: 0 | S109: 48 | T109: 0
A110: QWO | B110: RR8 | C110: LEEDS TEACHING HOSPITALS NHS TRUST | D110: 80 | E110: 0.9375 | F110: 0.025 | G110: 67 | H110: 8 | I110: 2 | J110: 2 | K110: 0 | L110: 1 | M110: 71 | N110: 8 | O110: 0 | P110: 0 | Q110: 0 | R110: 0 | S110: 1 | T110: 0
A111: QWO | B111: RXF | C111: MID YORKSHIRE TEACHING NHS TRUST | D111: 241 | E111: 0.9336099585 | F111: 0.04564315353 | G111: 210 | H111: 15 | I111: 3 | J111: 4 | K111: 7 | L111: 2 | M111: 19 | N111: 0 | O111: 0 | P111: 218 | Q111: 0 | R111: 0 | S111: 4 | T111: 0
A112: QWU | B112: RJC | C112: SOUTH WARWICKSHIRE UNIVERSITY NHS FOUNDATION TRUST | D112: 0 | E112: NA | F112: NA | G112: 0 | H112: 0 | I112: 0 | J112: 0 | K112: 0 | L112: 0 | M112: 0 | N112: 0 | O112: 0 | P112: 0 | Q112: 0 | R112: 0 | S112: 0 | T112: 0
A113: QWU | B113: RLT | C113: GEORGE ELIOT HOSPITAL NHS TRUST | D113: 0 | E113: NA | F113: NA | G113: 0 | H113: 0 | I113: 0 | J113: 0 | K113: 0 | L113: 0 | M113: 0 | N113: 0 | O113: 0 | P113: 0 | Q113: 0 | R113: 0 | S113: 0 | T113: 0
A114: QWU | B114: RKB | C114: UNIVERSITY HOSPITALS COVENTRY AND WARWICKSHIRE NHS TRUST | D114: 97 | E114: 0.8762886598 | F114: 0.1134020619 | G114: 77 | H114: 8 | I114: 1 | J114: 0 | K114: 11 | L114: 0 | M114: 45 | N114: 42 | O114: 0 | P114: 0 | Q114: 0 | R114: 0 | S114: 10 | T114: 0
A115: QXU | B115: RTK | C115: ASHFORD AND ST PETER'S HOSPITALS NHS FOUNDATION TRUST | D115: 0 | E115: NA | F115: NA | G115: 0 | H115: 0 | I115: 0 | J115: 0 | K115: 0 | L115: 0 | M115: 0 | N115: 0 | O115: 0 | P115: 0 | Q115: 0 | R115: 0 | S115: 0 | T115: 0
A116: QXU | B116: RA2 | C116: ROYAL SURREY COUNTY HOSPITAL NHS FOUNDATION TRUST | D116: 3 | E116: * | F116: * | G116: * | H116: * | I116: * | J116: * | K116: * | L116: * | M116: * | N116: * | O116: * | P116: * | Q116: * | R116: * | S116: * | T116: *
A117: QXU | B117: RTP | C117: SURREY AND SUSSEX HEALTHCARE NHS TRUST | D117: 14 | E117: 1 | F117: 0 | G117: * | H117: * | I117: * | J117: * | K117: * | L117: * | M117: * | N117: * | O117: * | P117: * | Q117: * | R117: * | S117: * | T117: *
A118: QYG | B118: RWW | C118: WARRINGTON AND HALTON TEACHING HOSPITALS NHS FOUNDATION TRUST | D118: 0 | E118: NA | F118: NA | G118: 0 | H118: 0 | I118: 0 | J118: 0 | K118: 0 | L118: 0 | M118: 0 | N118: 0 | O118: 0 | P118: 0 | Q118: 0 | R118: 0 | S118: 0 | T118: 0
A119: QYG | B119: RBT | C119: MID CHESHIRE HOSPITALS NHS FOUNDATION TRUST | D119: 10 | E119: 1 | F119: 0 | G119: 9 | H119: 1 | I119: 0 | J119: 0 | K119: 0 | L119: 0 | M119: 10 | N119: 0 | O119: 0 | P119: 0 | Q119: 0 | R119: 0 | S119: 0 | T119: 0
A120: QYG | B120: RJN | C120: EAST CHESHIRE NHS TRUST | D120: 10 | E120: 1 | F120: 0 | G120: 9 | H120: 1 | I120: 0 | J120: 0 | K120: 0 | L120: 0 | M120: 10 | N120: 0 | O120: 0 | P120: 0 | Q120: 0 | R120: 0 | S120: 0 | T120: 0
A121: QYG | B121: REP | C121: LIVERPOOL WOMEN'S NHS FOUNDATION TRUST | D121: 17 | E121: 0.9411764706 | F121: 0.05882352941 | G121: 15 | H121: 1 | I121: 0 | J121: 0 | K121: 1 | L121: 0 | M121: 13 | N121: 0 | O121: 0 | P121: 0 | Q121: 0 | R121: 0 | S121: 0 | T121: 4
A122: QYG | B122: RBN | C122: MERSEY AND WEST LANCASHIRE TEACHING HOSPITALS NHS TRUST | D122: 22 | E122: 1 | F122: 0 | G122: 15 | H122: 7 | I122: 0 | J122: 0 | K122: 0 | L122: 0 | M122: 0 | N122: 0 | O122: 0 | P122: 0 | Q122: 0 | R122: 0 | S122: 22 | T122: 0
A123: QYG | B123: RJR | C123: COUNTESS OF CHESTER HOSPITAL NHS FOUNDATION TRUST | D123: 24 | E123: 0.9166666667 | F123: 0.08333333333 | G123: 19 | H123: 3 | I123: 0 | J123: 2 | K123: 0 | L123: 0 | M123: 6 | N123: 0 | O123: 0 | P123: 0 | Q123: 18 | R123: 0 | S123: 0 | T123: 0
A124: QYG | B124: RBL | C124: WIRRAL UNIVERSITY TEACHING HOSPITAL NHS FOUNDATION TRUST | D124: 28 | E124: 0.8214285714 | F124: 0.1071428571 | G124: 17 | H124: 6 | I124: 2 | J124: 2 | K124: 1 | L124: 0 | M124: 0 | N124: 4 | O124: 0 | P124: 24 | Q124: 0 | R124: 0 | S124: 0 | T124: 0

Sheet Sites Q1
B6: Sort data by:
A9: ICB Code | B9: Trust Code | C9: Trust Name | D9: Site Code | E9: Site Name | F9: Total Responses | G9: Percentage Positive | H9: Percentage Negative | I9: Breakdown of Responses
I10: Very Good | J10: Good | K10: Neither Good nor Poor | L10: Poor | M10: Very Poor | N10: Don't Know
E11: England (including Independent Sector providers) | F11: 4783 | G11: 0.9184612168 | H11: 0.05080493414 | I11: 3588 | J11: 805 | K11: 130 | L11: 111 | M11: 132 | N11: 17
E12: England (excluding Independent Sector providers) | F12: 4783 | G12: 0.9184612168 | H12: 0.05080493414 | I12: 3588 | J12: 805 | K12: 130 | L12: 111 | M12: 132 | N12: 17
E13: Selection (excluding suppressed data) | F13: =SUBTOTAL(9,F14:F297) -> 4783 | G13: =IFERROR((I13+J13)/SUM(I13:N13), "-") -> 0.9230245232 | H13: =IFERROR((L13+M13)/SUM(I13:N13), "-") -> 0.04768392371 | I13: =SUBTOTAL(9,I14:I297) -> 3317 | J13: 748 | K13: 113 | L13: 97 | M13: 113 | N13: 16
A14: QE1 | B14: RXL | C14: BLACKPOOL TEACHING HOSPITALS NHS FOUNDATION TRUST | D14: RXL01 | E14: Blackpool Victoria Hospital | F14: 50 | G14: 0.94 | H14: 0.04 | I14: 35 | J14: 12 | K14: 1 | L14: 1 | M14: 1 | N14: 0
A15: QE1 | B15: RXR | C15: EAST LANCASHIRE HOSPITALS NHS TRUST | D15: RXR20 | E15: Royal Blackburn Hospital | F15: 127 | G15: 0.905511811 | H15: 0.06299212598 | I15: 91 | J15: 24 | K15: 3 | L15: 3 | M15: 5 | N15: 1
A16: QE1 | B16: RXN | C16: LANCASHIRE TEACHING HOSPITALS NHS FOUNDATION TRUST | D16: RXN01 | E16: Chorley and South Ribble Hospital | F16: 0 | G16: NA | H16: NA | I16: 0 | J16: 0 | K16: 0 | L16: 0 | M16: 0 | N16: 0
A17: QE1 | B17: RXN | C17: LANCASHIRE TEACHING HOSPITALS NHS FOUNDATION TRUST | D17: RXN02 | E17: Royal Preston Hospital | F17: 17 | G17: 0.8823529412 | H17: 0.05882352941 | I17: * | J17: * | K17: * | L17: * | M17: * | N17: *
A18: QE1 | B18: RTX | C18: UNIVERSITY HOSPITALS OF MORECAMBE BAY NHS FOUNDATION TRUST | D18: RTXBU | E18: Furness General Hospital | F18: 1 | G18: * | H18: * | I18: * | J18: * | K18: * | L18: * | M18: * | N18: *
A19: QE1 | B19: RTX | C19: UNIVERSITY HOSPITALS OF MORECAMBE BAY NHS FOUNDATION TRUST | D19: RTX02 | E19: Royal Lancaster Infirmary | F19: 1 | G19: * | H19: * | I19: * | J19: * | K19: * | L19: * | M19: * | N19: *
A20: QE1 | B20: RTX | C20: UNIVERSITY HOSPITALS OF MORECAMBE BAY NHS FOUNDATION TRUST | D20: RTXBW | E20: Westmorland General Hospital | F20: 0 | G20: NA | H20: NA | I20: 0 | J20: 0 | K20: 0 | L20: 0 | M20: 0 | N20: 0
A21: QF7 | B21: RFF | C21: BARNSLEY HOSPITAL NHS FOUNDATION TRUST | D21: RFFAA | E21: Barnsley Hospital NHS Foundation Trust HQ | F21: 6 | G21: 1 | H21: 0 | I21: 5 | J21: 1 | K21: 0 | L21: 0 | M21: 0 | N21: 0
A22: QF7 | B22: RP5 | C22: DONCASTER AND BASSETLAW TEACHING HOSPITALS NHS FOUNDATION TRUST | D22: RP5BA | E22: Bassetlaw Hospital | F22: 0 | G22: NA | H22: NA | I22: 0 | J22: 0 | K22: 0 | L22: 0 | M22: 0 | N22: 0
A23: QF7 | B23: RP5 | C23: DONCASTER AND BASSETLAW TEACHING HOSPITALS NHS FOUNDATION TRUST | D23: RP5DR | E23: Doncaster Royal Infirmary | F23: 1 | G23: * | H23: * | I23: * | J23: * | K23: * | L23: * | M23: * | N23: *
A24: QF7 | B24: RP5 | C24: DONCASTER AND BASSETLAW TEACHING HOSPITALS NHS FOUNDATION TRUST | D24: RP5XXX | E24: Non-hospital site | F24: 23 | G24: 1 | H24: 0 | I24: * | J24: * | K24: * | L24: * | M24: * | N24: *
A25: QF7 | B25: RHQ | C25: SHEFFIELD TEACHING HOSPITALS NHS FOUNDATION TRUST | D25: RHQHH | E25: Royal Hallamshire Hospital | F25: 84 | G25: 0.9047619048 | H25: 0.04761904762 | I25: 58 | J25: 18 | K25: 4 | L25: 3 | M25: 1 | N25: 0
A26: QF7 | B26: RFR | C26: THE ROTHERHAM NHS FOUNDATION TRUST | D26: RFRPA | E26: Rotherham District General Hospital | F26: 8 | G26: 0.875 | H26: 0.125 | I26: 4 | J26: 3 | K26: 0 | L26: 0 | M26: 1 | N26: 0
A27: QGH | B27: RWP | C27: WORCESTERSHIRE ACUTE HOSPITALS NHS TRUST | D27: RWP01 | E27: Alexandra Hospital | F27: 0 | G27: NA | H27: NA | I27: 0 | J27: 0 | K27: 0 | L27: 0 | M27: 0 | N27: 0
A28: QGH | B28: RWP | C28: WORCESTERSHIRE ACUTE HOSPITALS NHS TRUST | D28: RWP31 | E28: Kidderminster Hospital | F28: 0 | G28: NA | H28: NA | I28: 0 | J28: 0 | K28: 0 | L28: 0 | M28: 0 | N28: 0
A29: QGH | B29: RWP | C29: WORCESTERSHIRE ACUTE HOSPITALS NHS TRUST | D29: RWP50 | E29: Worcestershire Royal Hospital | F29: 31 | G29: 0.8709677419 | H29: 0.06451612903 | I29: 21 | J29: 6 | K29: 2 | L29: 1 | M29: 1 | N29: 0
A30: QGH | B30: RLQ | C30: WYE VALLEY NHS TRUST | D30: RLQ01 | E30: Hereford County Hospital | F30: 10 | G30: 0.9 | H30: 0.1 | I30: 8 | J30: 1 | K30: 0 | L30: 0 | M30: 1 | N30: 0
A31: QH8 | B31: RAJ | C31: MID AND SOUTH ESSEX NHS FOUNDATION TRUST | D31: RAJ12 | E31: BASILDON HOSPITAL | F31: 1 | G31: * | H31: * | I31: * | J31: * | K31: * | L31: * | M31: * | N31: *
A32: QH8 | B32: RAJ | C32: MID AND SOUTH ESSEX NHS FOUNDATION TRUST | D32: RAJ32 | E32: MID ESSEX HOSPITAL | F32: 0 | G32: NA | H32: NA | I32: 0 | J32: 0 | K32: 0 | L32: 0 | M32: 0 | N32: 0
A33: QH8 | B33: RAJ | C33: MID AND SOUTH ESSEX NHS FOUNDATION TRUST | D33: RAJ01 | E33: Southend Hospital | F33: 4 | G33: * | H33: * | I33: * | J33: * | K33: * | L33: * | M33: * | N33: *
A34: QHG | B34: RC9 | C34: BEDFORDSHIRE HOSPITALS NHS FOUNDATION TRUST | D34: RC979 | E34: BEDFORD HOSPITAL SOUTH WING | F34: 5 | G34: 0.8 | H34: 0.2 | I34: 3 | J34: 1 | K34: 0 | L34: 0 | M34: 1 | N34: 0
A35: QHG | B35: RC9 | C35: BEDFORDSHIRE HOSPITALS NHS FOUNDATION TRUST | D35: RC971 | E35: Luton and Dunstable Hospital | F35: 117 | G35: 0.9401709402 | H35: 0.01709401709 | I35: 70 | J35: 40 | K35: 5 | L35: 2 | M35: 0 | N35: 0
A36: QHG | B36: RD8 | C36: MILTON KEYNES UNIVERSITY HOSPITAL NHS FOUNDATION TRUST | D36: RD816 | E36: Milton Keynes Hospital | F36: 362 | G36: 0.8756906077 | H36: 0.04972375691 | I36: 224 | J36: 93 | K36: 23 | L36: 9 | M36: 9 | N36: 4
A37: QHL | B37: RQ3 | C37: BIRMINGHAM WOMEN'S AND CHILDREN'S NHS FOUNDATION TRUST | D37: RQ370 | E37: Birmingham Women's Hospital | F37: 125 | G37: 0.952 | H37: 0.04 | I37: 111 | J37: 8 | K37: 1 | L37: 1 | M37: 4 | N37: 0
A38: QHL | B38: RXK | C38: SANDWELL AND WEST BIRMINGHAM HOSPITALS NHS TRUST | D38: RXK02 | E38: City Hospital | F38: 3 | G38: * | H38: * | I38: * | J38: * | K38: * | L38: * | M38: * | N38: *
A39: QHL | B39: RXK | C39: SANDWELL AND WEST BIRMINGHAM HOSPITALS NHS TRUST | D39: RXK01 | E39: Sandwell General Hospital | F39: 37 | G39: 0.7027027027 | H39: 0.2162162162 | I39: * | J39: * | K39: * | L39: * | M39: * | N39: *
A40: QHL | B40: RRK | C40: UNIVERSITY HOSPITALS BIRMINGHAM NHS FOUNDATION TRUST | D40: RRK98 | E40: Good Hope Hospital | F40: 2 | G40: * | H40: * | I40: * | J40: * | K40: * | L40: * | M40: * | N40: *
A41: QHL | B41: RRK | C41: UNIVERSITY HOSPITALS BIRMINGHAM NHS FOUNDATION TRUST | D41: RRK97 | E41: Heartlands Hospital | F41: 6 | G41: 0.5 | H41: 0.3333333333 | I41: * | J41: * | K41: * | L41: * | M41: * | N41: *
A42: QHL | B42: RRK | C42: UNIVERSITY HOSPITALS BIRMINGHAM NHS FOUNDATION TRUST | D42: RRK99 | E42: Solihull Hospital | F42: 0 | G42: NA | H42: NA | I42: 0 | J42: 0 | K42: 0 | L42: 0 | M42: 0 | N42: 0
A43: QHM | B43: RXP | C43: COUNTY DURHAM AND DARLINGTON NHS FOUNDATION TRUST | D43: RXPCP | E43: University Hospital Of North Durham | F43: 14 | G43: 1 | H43: 0 | I43: 13 | J43: 1 | K43: 0 | L43: 0 | M43: 0 | N43: 0
A44: QHM | B44: RR7 | C44: GATESHEAD HEALTH NHS FOUNDATION TRUST | D44: RR7EN | E44: Queen Elizabeth Hospital | F44: 14 | G44: 1 | H44: 0 | I44: 14 | J44: 0 | K44: 0 | L44: 0 | M44: 0 | N44: 0
A45: QHM | B45: RNN | C45: NORTH CUMBRIA INTEGRATED CARE NHS FOUNDATION TRUST | D45: RNN62 | E45: Cumberland Infirmary | F45: 1 | G45: * | H45: * | I45: * | J45: * | K45: * | L45: * | M45: * | N45: *
A46: QHM | B46: RVW | C46: NORTH TEES AND HARTLEPOOL NHS FOUNDATION TRUST | D46: RVWXXX | E46: Non-hospital site | F46: 1 | G46: * | H46: * | I46: * | J46: * | K46: * | L46: * | M46: * | N46: *
A47: QHM | B47: RVW | C47: NORTH TEES AND HARTLEPOOL NHS FOUNDATION TRUST | D47: RVWAE | E47: University Hospital Of North Tees | F47: 5 | G47: 1 | H47: 0 | I47: * | J47: * | K47: * | L47: * | M47: * | N47: *
A48: QHM | B48: RTF | C48: NORTHUMBRIA HEALTHCARE NHS FOUNDATION TRUST | D48: RTFXXX | E48: Non-hospital site | F48: 0 | G48: NA | H48: NA | I48: 0 | J48: 0 | K48: 0 | L48: 0 | M48: 0 | N48: 0
A49: QHM | B49: RTR | C49: SOUTH TEES HOSPITALS NHS FOUNDATION TRUST | D49: RTR45 | E49: Friarage Hospital Site | F49: 11 | G49: 0.9090909091 | H49: 0 | I49: 8 | J49: 2 | K49: 1 | L49: 0 | M49: 0 | N49: 0
A50: QHM | B50: RTR | C50: SOUTH TEES HOSPITALS NHS FOUNDATION TRUST | D50: RTRAT | E50: The James Cook University Hospital | F50: 136 | G50: 0.9411764706 | H50: 0.02941176471 | I50: 104 | J50: 24 | K50: 4 | L50: 3 | M50: 1 | N50: 0
A51: QHM | B51: R0B | C51: SOUTH TYNESIDE AND SUNDERLAND NHS FOUNDATION TRUST | D51: R0BXXX | E51: Non-hospital site | F51: 5 | G51: 1 | H51: 0 | I51: 5 | J51: 0 | K51: 0 | L51: 0 | M51: 0 | N51: 0
A52: QHM | B52: R0B | C52: SOUTH TYNESIDE AND SUNDERLAND NHS FOUNDATION TRUST | D52: R0B0Q | E52: South Tyneside District Hospital | F52: 1 | G52: * | H52: * | I52: * | J52: * | K52: * | L52: * | M52: * | N52: *
A53: QHM | B53: R0B | C53: SOUTH TYNESIDE AND SUNDERLAND NHS FOUNDATION TRUST | D53: R0B01 | E53: Sunderland Royal Hospital | F53: 1 | G53: * | H53: * | I53: * | J53: * | K53: * | L53: * | M53: * | N53: *
A54: QHM | B54: RTD | C54: THE NEWCASTLE UPON TYNE HOSPITALS NHS FOUNDATION TRUST | D54: RTD02 | E54: The Royal Victoria Infirmary | F54: 59 | G54: 0.9152542373 | H54: 0.03389830508 | I54: 39 | J54: 15 | K54: 3 | L54: 0 | M54: 2 | N54: 0
A55: QJ2 | B55: RFS | C55: CHESTERFIELD ROYAL HOSPITAL NHS FOUNDATION TRUST | D55: RFSDA | E55: Chesterfield Royal Hospital | F55: 25 | G55: 0.76 | H55: 0.16 | I55: 13 | J55: 6 | K55: 2 | L55: 4 | M55: 0 | N55: 0
A56: QJ2 | B56: RTG | C56: UNIVERSITY HOSPITALS OF DERBY AND BURTON NHS FOUNDATION TRUST | D56: RTG02 | E56: Queens Hospital, Burton Upon Trent | F56: 14 | G56: 0.8571428571 | H56: 0.07142857143 | I56: 7 | J56: 5 | K56: 1 | L56: 1 | M56: 0 | N56: 0
A57: QJ2 | B57: RTG | C57: UNIVERSITY HOSPITALS OF DERBY AND BURTON NHS FOUNDATION TRUST | D57: RTGFG | E57: Royal Derby Hospital | F57: 37 | G57: 0.8108108108 | H57: 0.1351351351 | I57: 12 | J57: 18 | K57: 2 | L57: 4 | M57: 1 | N57: 0
A58: QJG | B58: RDE | C58: EAST SUFFOLK AND NORTH ESSEX NHS FOUNDATION TRUST | D58: RDEE4 | E58: Colchester General Hospital | F58: 5 | G58: 1 | H58: 0 | I58: 5 | J58: 0 | K58: 0 | L58: 0 | M58: 0 | N58: 0
A59: QJG | B59: RDE | C59: EAST SUFFOLK AND NORTH ESSEX NHS FOUNDATION TRUST | D59: RDE03 | E59: Ipswich Hospital | F59: 16 | G59: 0.9375 | H59: 0.0625 | I59: 13 | J59: 2 | K59: 0 | L59: 0 | M59: 1 | N59: 0
A60: QJG | B60: RGR | C60: WEST SUFFOLK NHS FOUNDATION TRUST | D60: RGR50 | E60: West Suffolk Hospital | F60: 32 | G60: 1 | H60: 0 | I60: 26 | J60: 6 | K60: 0 | L60: 0 | M60: 0 | N60: 0
A61: QJK | B61: RH8 | C61: ROYAL DEVON UNIVERSITY HEALTHCARE NHS FOUNDATION TRUST | D61: RH880 | E61: North Devon District Hospital | F61: 4 | G61: * | H61: * | I61: * | J61: * | K61: * | L61: * | M61: * | N61: *
A62: QJK | B62: RH8 | C62: ROYAL DEVON UNIVERSITY HEALTHCARE NHS FOUNDATION TRUST | D62: RH801 | E62: Royal Devon and Exeter Hospital (Wonford) | F62: 2 | G62: * | H62: * | I62: * | J62: * | K62: * | L62: * | M62: * | N62: *
A63: QJK | B63: RA9 | C63: TORBAY AND SOUTH DEVON NHS FOUNDATION TRUST | D63: RA901 | E63: Torbay Hospital | F63: 1 | G63: * | H63: * | I63: * | J63: * | K63: * | L63: * | M63: * | N63: *
A64: QJK | B64: RK9 | C64: UNIVERSITY HOSPITALS PLYMOUTH NHS TRUST | D64: RK9XXX | E64: Non-hospital site | F64: 3 | G64: * | H64: * | I64: * | J64: * | K64: * | L64: * | M64: * | N64: *
A65: QJM | B65: RWD | C65: UNITED LINCOLNSHIRE TEACHING HOSPITALS NHS TRUST | D65: RWDLP | E65: Grantham and District Hospital | F65: 0 | G65: NA | H65: NA | I65: 0 | J65: 0 | K65: 0 | L65: 0 | M65: 0 | N65: 0
A66: QJM | B66: RWD | C66: UNITED LINCOLNSHIRE TEACHING HOSPITALS NHS TRUST | D66: RWDDA | E66: Lincoln County Hospital | F66: 0 | G66: NA | H66: NA | I66: 0 | J66: 0 | K66: 0 | L66: 0 | M66: 0 | N66: 0
A67: QJM | B67: RWD | C67: UNITED LINCOLNSHIRE TEACHING HOSPITALS NHS TRUST | D67: RWDLA | E67: Pilgrim Hospital | F67: 0 | G67: NA | H67: NA | I67: 0 | J67: 0 | K67: 0 | L67: 0 | M67: 0 | N67: 0
A68: QK1 | B68: RWE | C68: UNIVERSITY HOSPITALS OF LEICESTER NHS TRUST | D68: RWEAK | E68: Leicester General Hospital | F68: 3 | G68: * | H68: * | I68: * | J68: * | K68: * | L68: * | M68: * | N68: *
A69: QK1 | B69: RWE | C69: UNIVERSITY HOSPITALS OF LEICESTER NHS TRUST | D69: RWEAA | E69: Leicester Royal Infirmary | F69: 3 | G69: * | H69: * | I69: * | J69: * | K69: * | L69: * | M69: * | N69: *
A70: QK1 | B70: RWE | C70: UNIVERSITY HOSPITALS OF LEICESTER NHS TRUST | D70: RWEXXX | E70: Non-hospital site | F70: 42 | G70: 0.880952381 | H70: 0.07142857143 | I70: 30 | J70: 7 | K70: 2 | L70: 0 | M70: 3 | N70: 0
A71: QK1 | B71: RWE | C71: UNIVERSITY HOSPITALS OF LEICESTER NHS TRUST | D71: RWE10 | E71: St Mary's Hospital | F71: 5 | G71: 0.8 | H71: 0.2 | I71: 4 | J71: 0 | K71: 0 | L71: 1 | M71: 0 | N71: 0
A72: QKK | B72: RJ1 | C72: GUY'S AND ST THOMAS' NHS FOUNDATION TRUST | D72: RJ122 | E72: St Thomas' Hospital | F72: 8 | G72: 1 | H72: 0 | I72: 7 | J72: 1 | K72: 0 | L72: 0 | M72: 0 | N72: 0
A73: QKK | B73: RJ2 | C73: LEWISHAM AND GREENWICH NHS TRUST | D73: RJ2XXX | E73: Non-hospital site | F73: 0 | G73: NA | H73: NA | I73: 0 | J73: 0 | K73: 0 | L73: 0 | M73: 0 | N73: 0
A74: QKK | B74: RJ2 | C74: LEWISHAM AND GREENWICH NHS TRUST | D74: RJ231 | E74: Queen Elizabeth Hospital | F74: 11 | G74: 0.8181818182 | H74: 0.1818181818 | I74: 6 | J74: 3 | K74: 0 | L74: 2 | M74: 0 | N74: 0
A75: QKK | B75: RJ2 | C75: LEWISHAM AND GREENWICH NHS TRUST | D75: RJ224 | E75: University Hospital Lewisham | F75: 19 | G75: 0.9473684211 | H75: 0 | I75: 14 | J75: 4 | K75: 1 | L75: 0 | M75: 0 | N75: 0
A76: QKS | B76: RN7 | C76: DARTFORD AND GRAVESHAM NHS TRUST | D76: RN707 | E76: Darent Valley Hospital | F76: 160 | G76: 0.94375 | H76: 0.03125 | I76: 128 | J76: 23 | K76: 2 | L76: 4 | M76: 1 | N76: 2
A77: QKS | B77: RVV | C77: EAST KENT HOSPITALS UNIVERSITY NHS FOUNDATION TRUST | D77: RVV02 | E77: Buckland Hospital | F77: 2 | G77: * | H77: * | I77: * | J77: * | K77: * | L77: * | M77: * | N77: *
A78: QKS | B78: RVV | C78: EAST KENT HOSPITALS UNIVERSITY NHS FOUNDATION TRUST | D78: RVVKC | E78: Kent and Canterbury Hospital | F78: 1 | G78: * | H78: * | I78: * | J78: * | K78: * | L78: * | M78: * | N78: *
A79: QKS | B79: RVV | C79: EAST KENT HOSPITALS UNIVERSITY NHS FOUNDATION TRUST | D79: RVVXXX | E79: Non-hospital site | F79: 5 | G79: 1 | H79: 0 | I79: 5 | J79: 0 | K79: 0 | L79: 0 | M79: 0 | N79: 0
A80: QKS | B80: RVV | C80: EAST KENT HOSPITALS UNIVERSITY NHS FOUNDATION TRUST | D80: RVV09 | E80: Queen Elizabeth The Queen Mother Hospital | F80: 6 | G80: 0.8333333333 | H80: 0.1666666667 | I80: 4 | J80: 1 | K80: 0 | L80: 1 | M80: 0 | N80: 0
A81: QKS | B81: RVV | C81: EAST KENT HOSPITALS UNIVERSITY NHS FOUNDATION TRUST | D81: RVV01 | E81: William Harvey Hospital (Ashford) | F81: 4 | G81: * | H81: * | I81: * | J81: * | K81: * | L81: * | M81: * | N81: *
A82: QKS | B82: RWF | C82: MAIDSTONE AND TUNBRIDGE WELLS NHS TRUST | D82: RWF03 | E82: Maidstone District General Hospital | F82: 20 | G82: 0.85 | H82: 0.1 | I82: 14 | J82: 3 | K82: 1 | L82: 1 | M82: 1 | N82: 0
A83: QKS | B83: RWF | C83: MAIDSTONE AND TUNBRIDGE WELLS NHS TRUST | D83: RWFXXX | E83: Non-hospital site | F83: 0 | G83: NA | H83: NA | I83: 0 | J83: 0 | K83: 0 | L83: 0 | M83: 0 | N83: 0
A84: QKS | B84: RWF | C84: MAIDSTONE AND TUNBRIDGE WELLS NHS TRUST | D84: RWFTW | E84: The Tunbridge Wells Hospital | F84: 11 | G84: 1 | H84: 0 | I84: 11 | J84: 0 | K84: 0 | L84: 0 | M84: 0 | N84: 0
A85: QKS | B85: RPA | C85: MEDWAY NHS FOUNDATION TRUST | D85: RPA02 | E85: Medway Maritime Hospital | F85: 19 | G85: 0.9473684211 | H85: 0.05263157895 | I85: 17 | J85: 1 | K85: 0 | L85: 0 | M85: 1 | N85: 0
A86: QM7 | B86: RWH | C86: EAST AND NORTH HERTFORDSHIRE NHS TRUST | D86: RWH23 | E86: Hertford County Hospital | F86: 10 | G86: 1 | H86: 0 | I86: * | J86: * | K86: * | L86: * | M86: * | N86: *
A87: QM7 | B87: RWH | C87: EAST AND NORTH HERTFORDSHIRE NHS TRUST | D87: RWH01 | E87: Lister Hospital | F87: 72 | G87: 0.9444444444 | H87: 0.04166666667 | I87: 47 | J87: 21 | K87: 1 | L87: 3 | M87: 0 | N87: 0
A88: QM7 | B88: RWH | C88: EAST AND NORTH HERTFORDSHIRE NHS TRUST | D88: RWHXXX | E88: Non-hospital site | F88: 1 | G88: * | H88: * | I88: * | J88: * | K88: * | L88: * | M88: * | N88: *
A89: QM7 | B89: RWH | C89: EAST AND NORTH HERTFORDSHIRE NHS TRUST | D89: RWH20 | E89: Queen Elizabeth I I Hospital | F89: 18 | G89: 1 | H89: 0 | I89: 16 | J89: 2 | K89: 0 | L89: 0 | M89: 0 | N89: 0
A90: QM7 | B90: RQW | C90: THE PRINCESS ALEXANDRA HOSPITAL NHS TRUST | D90: RQWG0 | E90: Princess Alexandra Hospital | F90: 0 | G90: NA | H90: NA | I90: 0 | J90: 0 | K90: 0 | L90: 0 | M90: 0 | N90: 0
A91: QM7 | B91: RWG | C91: WEST HERTFORDSHIRE TEACHING HOSPITALS NHS TRUST | D91: RWG02 | E91: Watford General Hospital | F91: 0 | G91: NA | H91: NA | I91: 0 | J91: 0 | K91: 0 | L91: 0 | M91: 0 | N91: 0
A92: QMF | B92: RF4 | C92: BARKING, HAVERING AND REDBRIDGE UNIVERSITY HOSPITALS NHS TRUST | D92: RF4XXX | E92: Non-hospital site | F92: 9 | G92: 0.8888888889 | H92: 0.1111111111 | I92: * | J92: * | K92: * | L92: * | M92: * | N92: *
A93: QMF | B93: R1H | C93: BARTS HEALTH NHS TRUST | D93: R1HNH | E93: Newham General Hospital | F93: 117 | G93: 0.9145299145 | H93: 0.06837606838 | I93: 101 | J93: 6 | K93: 2 | L93: 3 | M93: 5 | N93: 0
A94: QMF | B94: R1H | C94: BARTS HEALTH NHS TRUST | D94: R1H12 | E94: The Royal London Hospital | F94: 19 | G94: 0.6842105263 | H94: 0.2631578947 | I94: 10 | J94: 3 | K94: 1 | L94: 2 | M94: 3 | N94: 0
A95: QMF | B95: R1H | C95: BARTS HEALTH NHS TRUST | D95: R1HKH | E95: Whipps Cross University Hospital | F95: 24 | G95: 0.875 | H95: 0.125 | I95: 19 | J95: 2 | K95: 0 | L95: 0 | M95: 3 | N95: 0
A96: QMF | B96: RQX | C96: HOMERTON HEALTHCARE NHS FOUNDATION TRUST | D96: RQXM1 | E96: Homerton University Hospital | F96: 2 | G96: * | H96: * | I96: * | J96: * | K96: * | L96: * | M96: * | N96: *
A97: QMJ | B97: RAL | C97: ROYAL FREE LONDON NHS FOUNDATION TRUST | D97: RAL26 | E97: Barnet Hospital | F97: 16 | G97: 0.75 | H97: 0.1875 | I97: 8 | J97: 4 | K97: 0 | L97: 0 | M97: 3 | N97: 1
A98: QMJ | B98: RAL | C98: ROYAL FREE LONDON NHS FOUNDATION TRUST | D98: RALC7 | E98: Chase Farm Hospital | F98: 4 | G98: * | H98: * | I98: * | J98: * | K98: * | L98: * | M98: * | N98: *
A99: QMJ | B99: RAL | C99: ROYAL FREE LONDON NHS FOUNDATION TRUST | D99: RAL22 | E99: Finchley Memorial Hospital | F99: 2 | G99: * | H99: * | I99: * | J99: * | K99: * | L99: * | M99: * | N99: *
A100: QMJ | B100: RAL | C100: ROYAL FREE LONDON NHS FOUNDATION TRUST | D100: E3M3C | E100: NORTH MIDDLESEX HOSPITAL DSU - ELECTIVE SURGICAL HUB | F100: 32 | G100: 0.625 | H100: 0.28125 | I100: 16 | J100: 4 | K100: 3 | L100: 5 | M100: 4 | N100: 0
A101: QMJ | B101: RAL | C101: ROYAL FREE LONDON NHS FOUNDATION TRUST | D101: RAL01 | E101: Royal Free Hospital | F101: 12 | G101: 1 | H101: 0 | I101: 6 | J101: 6 | K101: 0 | L101: 0 | M101: 0 | N101: 0
A102: QMJ | B102: RRV | C102: UNIVERSITY COLLEGE LONDON HOSPITALS NHS FOUNDATION TRUST | D102: RRV11 | E102: University College Hospital Elizabeth Garrett Anderson Wing | F102: 0 | G102: NA | H102: NA | I102: 0 | J102: 0 | K102: 0 | L102: 0 | M102: 0 | N102: 0
A103: QMJ | B103: RKE | C103: WHITTINGTON HEALTH NHS TRUST | D103: RKEXXX | E103: Non-hospital site | F103: 6 | G103: 1 | H103: 0 | I103: 6 | J103: 0 | K103: 0 | L103: 0 | M103: 0 | N103: 0
A104: QMJ | B104: RKE | C104: WHITTINGTON HEALTH NHS TRUST | D104: RKEQ4 | E104: The Whittington Hospital | F104: 8 | G104: 1 | H104: 0 | I104: 8 | J104: 0 | K104: 0 | L104: 0 | M104: 0 | N104: 0
A105: QMM | B105: RGP | C105: JAMES PAGET UNIVERSITY HOSPITALS NHS FOUNDATION TRUST | D105: RGP75 | E105: James Paget University Hospital | F105: 0 | G105: NA | H105: NA | I105: 0 | J105: 0 | K105: 0 | L105: 0 | M105: 0 | N105: 0
A106: QMM | B106: RM1 | C106: NORFOLK AND NORWICH UNIVERSITY HOSPITALS NHS FOUNDATION TRUST | D106: RM102 | E106: Norfolk and Norwich University Hospital | F106: 92 | G106: 0.9891304348 | H106: 0 | I106: 85 | J106: 6 | K106: 1 | L106: 0 | M106: 0 | N106: 0
A107: QMM | B107: RCX | C107: THE QUEEN ELIZABETH HOSPITAL, KING'S LYNN, NHS FOUNDATION TRUST | D107: RCXXXX | E107: Non-hospital site | F107: 41 | G107: 0.9756097561 | H107: 0 | I107: 36 | J107: 4 | K107: 1 | L107: 0 | M107: 0 | N107: 0
A108: QMM | B108: RCX | C108: THE QUEEN ELIZABETH HOSPITAL, KING'S LYNN, NHS FOUNDATION TRUST | D108: RCX66 | E108: North Cambridgeshire Hospital | F108: 0 | G108: NA | H108: NA | I108: 0 | J108: 0 | K108: 0 | L108: 0 | M108: 0 | N108: 0
A109: QMM | B109: RCX | C109: THE QUEEN ELIZABETH HOSPITAL, KING'S LYNN, NHS FOUNDATION TRUST | D109: RCX70 | E109: The Queen Elizabeth Hospital | F109: 49 | G109: 0.9591836735 | H109: 0 | I109: 42 | J109: 5 | K109: 2 | L109: 0 | M109: 0 | N109: 0
A110: QNC | B110: RJE | C110: UNIVERSITY HOSPITALS OF NORTH MIDLANDS NHS TRUST | D110: RJEXXX | E110: Non-hospital site | F110: 3 | G110: * | H110: * | I110: * | J110: * | K110: * | L110: * | M110: * | N110: *
A111: QNC | B111: RJE | C111: UNIVERSITY HOSPITALS OF NORTH MIDLANDS NHS TRUST | D111: RJE01 | E111: Royal Stoke University Hospital | F111: 20 | G111: 0.9 | H111: 0.1 | I111: * | J111: * | K111: * | L111: * | M111: * | N111: *
A112: QNQ | B112: RDU | C112: FRIMLEY HEALTH NHS FOUNDATION TRUST | D112: RDU01 | E112: Frimley Park Hospital | F112: 14 | G112: 0.9285714286 | H112: 0 | I112: 9 | J112: 4 | K112: 0 | L112: 0 | M112: 0 | N112: 1
A113: QOC | B113: RXW | C113: THE SHREWSBURY AND TELFORD HOSPITAL NHS TRUST | D113: RXWAS | E113: Royal Shrewsbury Hospital | F113: 19 | G113: 1 | H113: 0 | I113: 18 | J113: 1 | K113: 0 | L113: 0 | M113: 0 | N113: 0
A114: QOC | B114: RXW | C114: THE SHREWSBURY AND TELFORD HOSPITAL NHS TRUST | D114: RXWAT | E114: The Princess Royal Hospital | F114: 7 | G114: 1 | H114: 0 | I114: 6 | J114: 1 | K114: 0 | L114: 0 | M114: 0 | N114: 0
A115: QOP | B115: RMC | C115: BOLTON NHS FOUNDATION TRUST | D115: RMC01 | E115: Royal Bolton Hospital | F115: 58 | G115: 1 | H115: 0 | I115: 58 | J115: 0 | K115: 0 | L115: 0 | M115: 0 | N115: 0
A116: QOP | B116: R0A | C116: MANCHESTER UNIVERSITY NHS FOUNDATION TRUST | D116: R0A05 | E116: St Mary's Hospital | F116: 366 | G116: 0.9726775956 | H116: 0.01912568306 | I116: 299 | J116: 57 | K116: 3 | L116: 2 | M116: 5 | N116: 0
A117: QOP | B117: RWJ | C117: STOCKPORT NHS FOUNDATION TRUST | D117: RWJ09 | E117: Stepping Hill Hospital | F117: 0 | G117: NA | H117: NA | I117: 0 | J117: 0 | K117: 0 | L117: 0 | M117: 0 | N117: 0
A118: QOP | B118: RMP | C118: TAMESIDE AND GLOSSOP INTEGRATED CARE NHS FOUNDATION TRUST | D118: RMP01 | E118: Tameside General Hospital | F118: 28 | G118: 0.9642857143 | H118: 0.03571428571 | I118: * | J118: * | K118: * | L118: * | M118: * | N118: *
A119: QOP | B119: RRF | C119: WRIGHTINGTON, WIGAN AND LEIGH NHS FOUNDATION TRUST | D119: RRF02 | E119: Royal Albert Edward Infirmary | F119: 3 | G119: * | H119: * | I119: * | J119: * | K119: * | L119: * | M119: * | N119: *
A120: QOP | B120: RRF | C120: WRIGHTINGTON, WIGAN AND LEIGH NHS FOUNDATION TRUST | D120: RRF54 | E120: Thomas Linacre Outpatient Centre | F120: 1 | G120: * | H120: * | I120: * | J120: * | K120: * | L120: * | M120: * | N120: *
A121: QOQ | B121: RCD | C121: HARROGATE AND DISTRICT NHS FOUNDATION TRUST | D121: RCD01 | E121: Harrogate District Hospital | F121: 1 | G121: * | H121: * | I121: * | J121: * | K121: * | L121: * | M121: * | N121: *
A122: QOQ | B122: RWA | C122: HULL UNIVERSITY TEACHING HOSPITALS NHS TRUST | D122: RWA01 | E122: Hull Royal Infirmary | F122: 1 | G122: * | H122: * | I122: * | J122: * | K122: * | L122: * | M122: * | N122: *
A123: QOQ | B123: RJL | C123: NORTHERN LINCOLNSHIRE AND GOOLE NHS FOUNDATION TRUST | D123: RJL30 | E123: Diana, Princess Of Wales Hospital | F123: 4 | G123: * | H123: * | I123: * | J123: * | K123: * | L123: * | M123: * | N123: *
A124: QOQ | B124: RJL | C124: NORTHERN LINCOLNSHIRE AND GOOLE NHS FOUNDATION TRUST | D124: RJL31 | E124: Goole and District Hospital (Acute) | F124: 0 | G124: NA | H124: NA | I124: 0 | J124: 0 | K124: 0 | L124: 0 | M124: 0 | N124: 0
A125: QOQ | B125: RJL | C125: NORTHERN LINCOLNSHIRE AND GOOLE NHS FOUNDATION TRUST | D125: RJL32 | E125: Scunthorpe General Hospital | F125: 5 | G125: 0.6 | H125: 0.4 | I125: * | J125: * | K125: * | L125: * | M125: * | N125: *
A126: QOX | B126: RN3 | C126: GREAT WESTERN HOSPITALS NHS FOUNDATION TRUST | D126: RN325 | E126: The Great Western Hospital | F126: 40 | G126: 0.925 | H126: 0.025 | I126: 36 | J126: 1 | K126: 2 | L126: 0 | M126: 1 | N126: 0
A127: QOX | B127: RD1 | C127: ROYAL UNITED HOSPITALS BATH NHS FOUNDATION TRUST | D127: RD102 | E127: Chippenham Community Hospital | F127: 6 | G127: 0.6666666667 | H127: 0.3333333333 | I127: 3 | J127: 1 | K127: 0 | L127: 1 | M127: 1 | N127: 0
A128: QOX | B128: RD1 | C128: ROYAL UNITED HOSPITALS BATH NHS FOUNDATION TRUST | D128: RD121 | E128: Frome Community Hospital | F128: 5 | G128: 0.8 | H128: 0.2 | I128: 3 | J128: 1 | K128: 0 | L128: 1 | M128: 0 | N128: 0
A129: QOX | B129: RD1 | C129: ROYAL UNITED HOSPITALS BATH NHS FOUNDATION TRUST | D129: RD129 | E129: Paulton Memorial Hospital | F129: 2 | G129: * | H129: * | I129: * | J129: * | K129: * | L129: * | M129: * | N129: *
A130: QOX | B130: RD1 | C130: ROYAL UNITED HOSPITALS BATH NHS FOUNDATION TRUST | D130: RD108 | E130: Trowbridge Community Hospital | F130: 3 | G130: * | H130: * | I130: * | J130: * | K130: * | L130: * | M130: * | N130: *
A131: QOX | B131: RNZ | C131: SALISBURY NHS FOUNDATION TRUST | D131: RNZ02 | E131: Salisbury District Hospital | F131: 49 | G131: 0.9183673469 | H131: 0.0612244898 | I131: 38 | J131: 7 | K131: 1 | L131: 2 | M131: 1 | N131: 0
A132: QPM | B132: RNQ | C132: KETTERING GENERAL HOSPITAL NHS FOUNDATION TRUST | D132: RNQ51 | E132: Kettering General Hospital | F132: 16 | G132: 0.875 | H132: 0.0625 | I132: 11 | J132: 3 | K132: 0 | L132: 1 | M132: 0 | N132: 1
A133: QPM | B133: RNS | C133: NORTHAMPTON GENERAL HOSPITAL NHS TRUST | D133: RNS01 | E133: Northampton General Hospital (Acute) | F133: 100 | G133: 0.99 | H133: 0.01 | I133: 90 | J133: 9 | K133: 0 | L133: 0 | M133: 1 | N133: 0
A134: QRL | B134: RN5 | C134: HAMPSHIRE HOSPITALS NHS FOUNDATION TRUST | D134: RN542 | E134: Andover War Memorial Hospital | F134: 30 | G134: 0.9666666667 | H134: 0 | I134: 29 | J134: 0 | K134: 1 | L134: 0 | M134: 0 | N134: 0
A135: QRL | B135: RN5 | C135: HAMPSHIRE HOSPITALS NHS FOUNDATION TRUST | D135: RN506 | E135: Basingstoke and North Hampshire Hospital | F135: 6 | G135: 0.8333333333 | H135: 0.1666666667 | I135: * | J135: * | K135: * | L135: * | M135: * | N135: *
A136: QRL | B136: RN5 | C136: HAMPSHIRE HOSPITALS NHS FOUNDATION TRUST | D136: RN5XXX | E136: Non-hospital site | F136: 1 | G136: * | H136: * | I136: * | J136: * | K136: * | L136: * | M136: * | N136: *
A137: QRL | B137: RN5 | C137: HAMPSHIRE HOSPITALS NHS FOUNDATION TRUST | D137: RN541 | E137: Royal Hampshire County Hospital | F137: 24 | G137: 0.9166666667 | H137: 0.04166666667 | I137: 22 | J137: 0 | K137: 1 | L137: 1 | M137: 0 | N137: 0
A138: QRL | B138: R1F | C138: ISLE OF WIGHT NHS TRUST | D138: R1F01 | E138: St Mary's Hospital | F138: 8 | G138: 1 | H138: 0 | I138: * | J138: * | K138: * | L138: * | M138: * | N138: *
A139: QRL | B139: RHU | C139: PORTSMOUTH HOSPITALS UNIVERSITY NATIONAL HEALTH SERVICE TRUST | D139: RHU03 | E139: Queen Alexandra Hospital | F139: 2 | G139: * | H139: * | I139: * | J139: * | K139: * | L139: * | M139: * | N139: *
A140: QRL | B140: RHM | C140: UNIVERSITY HOSPITAL SOUTHAMPTON NHS FOUNDATION TRUST | D140: RHM12 | E140: Princess Anne Hospital | F140: 114 | G140: 0.9473684211 | H140: 0.02631578947 | I140: 73 | J140: 35 | K140: 3 | L140: 2 | M140: 1 | N140: 0
A141: QRV | B141: RQM | C141: CHELSEA AND WESTMINSTER HOSPITAL NHS FOUNDATION TRUST | D141: RQM01 | E141: Chelsea and Westminster Hospital | F141: 15 | G141: 0.8666666667 | H141: 0.1333333333 | I141: 12 | J141: 1 | K141: 0 | L141: 0 | M141: 2 | N141: 0
A142: QRV | B142: RQM | C142: CHELSEA AND WESTMINSTER HOSPITAL NHS FOUNDATION TRUST | D142: RQM91 | E142: West Middlesex University Hospital | F142: 9 | G142: 0.6666666667 | H142: 0 | I142: 5 | J142: 1 | K142: 3 | L142: 0 | M142: 0 | N142: 0
A143: QRV | B143: RYJ | C143: IMPERIAL COLLEGE HEALTHCARE NHS TRUST | D143: RYJ04 | E143: Queen Charlotte's Hospital | F143: 21 | G143: 0.9523809524 | H143: 0.04761904762 | I143: 16 | J143: 4 | K143: 0 | L143: 0 | M143: 1 | N143: 0
A144: QRV | B144: RYJ | C144: IMPERIAL COLLEGE HEALTHCARE NHS TRUST | D144: RYJ01 | E144: St Mary's Hospital (HQ) | F144: 17 | G144: 1 | H144: 0 | I144: 13 | J144: 4 | K144: 0 | L144: 0 | M144: 0 | N144: 0
A145: QRV | B145: R1K | C145: LONDON NORTH WEST UNIVERSITY HEALTHCARE NHS TRUST | D145: R1K01 | E145: Northwick Park Hospital | F145: 7 | G145: 1 | H145: 0 | I145: 7 | J145: 0 | K145: 0 | L145: 0 | M145: 0 | N145: 0
A146: QRV | B146: RAS | C146: THE HILLINGDON HOSPITALS NHS FOUNDATION TRUST | D146: RAS01 | E146: Hillingdon Hospital | F146: 49 | G146: 0.9387755102 | H146: 0 | I146: 32 | J146: 14 | K146: 3 | L146: 0 | M146: 0 | N146: 0
A147: QSL | B147: RH5 | C147: SOMERSET NHS FOUNDATION TRUST | D147: RH5K6 | E147: Bridgwater Hospital | F147: 1 | G147: * | H147: * | I147: * | J147: * | K147: * | L147: * | M147: * | N147: *
A148: QSL | B148: RH5 | C148: SOMERSET NHS FOUNDATION TRUST | D148: RH5A8 | E148: MUSGROVE PARK HOSPITAL | F148: 2 | G148: * | H148: * | I148: * | J148: * | K148: * | L148: * | M148: * | N148: *
A149: QSL | B149: RH5 | C149: SOMERSET NHS FOUNDATION TRUST | D149: RH5XXXX | E149: Non-hospital site home/in-transit births | F149: 0 | G149: NA | H149: NA | I149: 0 | J149: 0 | K149: 0 | L149: 0 | M149: 0 | N149: 0
A150: QSL | B150: RH5 | C150: SOMERSET NHS FOUNDATION TRUST | D150: RH5O4 | E150: Yeovil District Hospital | F150: 4 | G150: * | H150: * | I150: * | J150: * | K150: * | L150: * | M150: * | N150: *
A151: QT1 | B151: RX1 | C151: NOTTINGHAM UNIVERSITY HOSPITALS NHS TRUST | D151: RX1XXX | E151: Non-hospital site | F151: 5 | G151: 1 | H151: 0 | I151: 5 | J151: 0 | K151: 0 | L151: 0 | M151: 0 | N151: 0
A152: QT1 | B152: RX1 | C152: NOTTINGHAM UNIVERSITY HOSPITALS NHS TRUST | D152: RX1CC | E152: Nottingham University Hospitals NHS Trust - City Campus | F152: 132 | G152: 0.9621212121 | H152: 0.01515151515 | I152: 108 | J152: 19 | K152: 2 | L152: 1 | M152: 1 | N152: 1
A153: QT1 | B153: RX1 | C153: NOTTINGHAM UNIVERSITY HOSPITALS NHS TRUST | D153: RX1RA | E153: Nottingham University Hospitals NHS Trust - Queen's Medical Centre Campus | F153: 77 | G153: 0.961038961 | H153: 0.02597402597 | I153: 60 | J153: 14 | K153: 1 | L153: 1 | M153: 1 | N153: 0
A154: QT1 | B154: RK5 | C154: SHERWOOD FOREST HOSPITALS NHS FOUNDATION TRUST | D154: RK5BC | E154: King's Mill Hospital | F154: 8 | G154: 0.875 | H154: 0.125 | I154: 7 | J154: 0 | K154: 0 | L154: 0 | M154: 1 | N154: 0
A155: QT6 | B155: REF | C155: ROYAL CORNWALL HOSPITALS NHS TRUST | D155: REFXXX | E155: Non-hospital site | F155: 7 | G155: 1 | H155: 0 | I155: 6 | J155: 1 | K155: 0 | L155: 0 | M155: 0 | N155: 0
A156: QT6 | B156: REF | C156: ROYAL CORNWALL HOSPITALS NHS TRUST | D156: REF12 | E156: Royal Cornwall Hospital (Treliske) | F156: 33 | G156: 0.8181818182 | H156: 0.09090909091 | I156: 22 | J156: 5 | K156: 3 | L156: 2 | M156: 1 | N156: 0
A157: QU9 | B157: RXQ | C157: BUCKINGHAMSHIRE HEALTHCARE NHS TRUST | D157: RXQ02 | E157: Stoke Mandeville Hospital | F157: 34 | G157: 0.7941176471 | H157: 0.1764705882 | I157: 23 | J157: 4 | K157: 1 | L157: 2 | M157: 4 | N157: 0
A158: QU9 | B158: RXQ | C158: BUCKINGHAMSHIRE HEALTHCARE NHS TRUST | D158: RXQ50 | E158: Wycombe Hospital | F158: 17 | G158: 0.6470588235 | H158: 0.3529411765 | I158: 9 | J158: 2 | K158: 0 | L158: 2 | M158: 4 | N158: 0
A159: QU9 | B159: RTH | C159: OXFORD UNIVERSITY HOSPITALS NHS FOUNDATION TRUST | D159: RTH08 | E159: John Radcliffe Hospital | F159: 5 | G159: 0 | H159: 1 | I159: 0 | J159: 0 | K159: 0 | L159: 1 | M159: 4 | N159: 0
A160: QU9 | B160: RHW | C160: ROYAL BERKSHIRE NHS FOUNDATION TRUST | D160: RHW01 | E160: Royal Berkshire Hospital | F160: 36 | G160: 0.9722222222 | H160: 0.02777777778 | I160: 31 | J160: 4 | K160: 0 | L160: 0 | M160: 1 | N160: 0
A161: QUA | B161: RNA | C161: THE DUDLEY GROUP NHS FOUNDATION TRUST | D161: RNA01 | E161: Russells Hall Hospital | F161: 6 | G161: 1 | H161: 0 | I161: 6 | J161: 0 | K161: 0 | L161: 0 | M161: 0 | N161: 0
A162: QUA | B162: RL4 | C162: THE ROYAL WOLVERHAMPTON NHS TRUST | D162: RL403 | E162: New Cross Hospital | F162: 22 | G162: 0.8181818182 | H162: 0.1363636364 | I162: 16 | J162: 2 | K162: 1 | L162: 3 | M162: 0 | N162: 0
A163: QUA | B163: RBK | C163: WALSALL HEALTHCARE NHS TRUST | D163: RBK02 | E163: Manor Hospital | F163: 195 | G163: 0.9487179487 | H163: 0.02564102564 | I163: 92 | J163: 93 | K163: 4 | L163: 2 | M163: 3 | N163: 1
A164: QUE | B164: RGT | C164: CAMBRIDGE UNIVERSITY HOSPITALS NHS FOUNDATION TRUST | D164: RGT32 | E164: Rosie Hospital | F164: 12 | G164: 0.5833333333 | H164: 0.25 | I164: 3 | J164: 4 | K164: 2 | L164: 3 | M164: 0 | N164: 0
A165: QUE | B165: RGN | C165: NORTH WEST ANGLIA NHS FOUNDATION TRUST | D165: RGN90 | E165: Hinchingbrooke Hospital | F165: 23 | G165: 1 | H165: 0 | I165: 23 | J165: 0 | K165: 0 | L165: 0 | M165: 0 | N165: 0
A166: QUE | B166: RGN | C166: NORTH WEST ANGLIA NHS FOUNDATION TRUST | D166: RGN80 | E166: Peterborough City Hospital | F166: 63 | G166: 0.9682539683 | H166: 0.03174603175 | I166: 52 | J166: 9 | K166: 0 | L166: 1 | M166: 1 | N166: 0
A167: QUY | B167: RVJ | C167: NORTH BRISTOL NHS TRUST | D167: RVJ01 | E167: Southmead Hospital | F167: 0 | G167: NA | H167: NA | I167: 0 | J167: 0 | K167: 0 | L167: 0 | M167: 0 | N167: 0
A168: QUY | B168: RA7 | C168: UNIVERSITY HOSPITALS BRISTOL AND WESTON NHS FOUNDATION TRUST | D168: RA707 | E168: ST MICHAEL'S HOSPITAL | F168: 25 | G168: 1 | H168: 0 | I168: 24 | J168: 1 | K168: 0 | L168: 0 | M168: 0 | N168: 0
A169: QVV | B169: RBD | C169: DORSET COUNTY HOSPITAL NHS FOUNDATION TRUST | D169: RBD01 | E169: Dorset County Hospital | F169: 2 | G169: * | H169: * | I169: * | J169: * | K169: * | L169: * | M169: * | N169: *
A170: QVV | B170: R0D | C170: UNIVERSITY HOSPITALS DORSET NHS FOUNDATION TRUST | D170: R0D01 | E170: Poole Hospital | F170: 46 | G170: 0.8260869565 | H170: 0.08695652174 | I170: * | J170: * | K170: * | L170: * | M170: * | N170: *
A171: QVV | B171: R0D | C171: UNIVERSITY HOSPITALS DORSET NHS FOUNDATION TRUST | D171: R0D02 | E171: Royal Bournemouth Hospital | F171: 0 | G171: NA | H171: NA | I171: 0 | J171: 0 | K171: 0 | L171: 0 | M171: 0 | N171: 0
A172: QWE | B172: RVR | C172: EPSOM AND ST HELIER UNIVERSITY HOSPITALS NHS TRUST | D172: RVR50 | E172: Epsom Hospital | F172: 0 | G172: NA | H172: NA | I172: 0 | J172: 0 | K172: 0 | L172: 0 | M172: 0 | N172: 0
A173: QWE | B173: RVR | C173: EPSOM AND ST HELIER UNIVERSITY HOSPITALS NHS TRUST | D173: RVRXXX | E173: Non-hospital site | F173: 0 | G173: NA | H173: NA | I173: 0 | J173: 0 | K173: 0 | L173: 0 | M173: 0 | N173: 0
A174: QWE | B174: RVR | C174: EPSOM AND ST HELIER UNIVERSITY HOSPITALS NHS TRUST | D174: RVR05 | E174: St Helier Hospital | F174: 3 | G174: * | H174: * | I174: * | J174: * | K174: * | L174: * | M174: * | N174: *
A175: QWE | B175: RAX | C175: KINGSTON AND RICHMOND NHS FOUNDATION TRUST | D175: RAX01 | E175: Kingston Hospital | F175: 81 | G175: 0.9259259259 | H175: 0.04938271605 | I175: 72 | J175: 3 | K175: 1 | L175: 2 | M175: 2 | N175: 1
A176: QWE | B176: RJ7 | C176: ST GEORGE'S UNIVERSITY HOSPITALS NHS FOUNDATION TRUST | D176: RJ701 | E176: St George's Hospital (Tooting) | F176: 24 | G176: 0.75 | H176: 0.125 | I176: * | J176: * | K176: * | L176: * | M176: * | N176: *
A177: QWO | B177: RAE | C177: BRADFORD TEACHING HOSPITALS NHS FOUNDATION TRUST | D177: RAE01 | E177: Bradford Royal Infirmary | F177: 48 | G177: 0.75 | H177: 0.1666666667 | I177: 28 | J177: 8 | K177: 4 | L177: 4 | M177: 4 | N177: 0
A178: QWO | B178: RWY | C178: CALDERDALE AND HUDDERSFIELD NHS FOUNDATION TRUST | D178: RWY02 | E178: Calderdale Royal Hospital | F178: 5 | G178: 1 | H178: 0 | I178: * | J178: * | K178: * | L178: * | M178: * | N178: *
A179: QWO | B179: RWY | C179: CALDERDALE AND HUDDERSFIELD NHS FOUNDATION TRUST | D179: RWY01 | E179: Huddersfield Royal Infirmary | F179: 1 | G179: * | H179: * | I179: * | J179: * | K179: * | L179: * | M179: * | N179: *
A180: QWO | B180: RWY | C180: CALDERDALE AND HUDDERSFIELD NHS FOUNDATION TRUST | D180: RWYXXX | E180: Non-hospital site | F180: 5 | G180: 1 | H180: 0 | I180: 5 | J180: 0 | K180: 0 | L180: 0 | M180: 0 | N180: 0
A181: QWO | B181: RR8 | C181: LEEDS TEACHING HOSPITALS NHS TRUST | D181: RR801 | E181: Leeds General Infirmary | F181: 5 | G181: 0.8 | H181: 0.2 | I181: * | J181: * | K181: * | L181: * | M181: * | N181: *
A182: QWO | B182: RR8 | C182: LEEDS TEACHING HOSPITALS NHS TRUST | D182: RR8XXX | E182: Non-hospital site | F182: 72 | G182: 0.9444444444 | H182: 0.01388888889 | I182: 60 | J182: 8 | K182: 2 | L182: 1 | M182: 0 | N182: 1
A183: QWO | B183: RR8 | C183: LEEDS TEACHING HOSPITALS NHS TRUST | D183: RR813 | E183: St James's University Hospital | F183: 3 | G183: * | H183: * | I183: * | J183: * | K183: * | L183: * | M183: * | N183: *
A184: QWO | B184: RXF | C184: MID YORKSHIRE TEACHING NHS TRUST | D184: RXF10 | E184: Dewsbury and District Hospital | F184: 28 | G184: 0.9285714286 | H184: 0.07142857143 | I184: 24 | J184: 2 | K184: 0 | L184: 1 | M184: 1 | N184: 0
A185: QWO | B185: RXF | C185: MID YORKSHIRE TEACHING NHS TRUST | D185: RXF05 | E185: Pinderfields General Hospital | F185: 123 | G185: 0.9430894309 | H185: 0.0406504065 | I185: 106 | J185: 10 | K185: 1 | L185: 1 | M185: 4 | N185: 1
A186: QWO | B186: RXF | C186: MID YORKSHIRE TEACHING NHS TRUST | D186: RXF03 | E186: Pontefract General Infirmary | F186: 90 | G186: 0.9222222222 | H186: 0.04444444444 | I186: 80 | J186: 3 | K186: 2 | L186: 2 | M186: 2 | N186: 1
A187: QWU | B187: RLT | C187: GEORGE ELIOT HOSPITAL NHS TRUST | D187: RLT01 | E187: George Eliot Hospital - Acute Services | F187: 0 | G187: NA | H187: NA | I187: 0 | J187: 0 | K187: 0 | L187: 0 | M187: 0 | N187: 0
A188: QWU | B188: RJC | C188: SOUTH WARWICKSHIRE UNIVERSITY NHS FOUNDATION TRUST | D188: RJCXXX | E188: Non-hospital site | F188: 0 | G188: NA | H188: NA | I188: 0 | J188: 0 | K188: 0 | L188: 0 | M188: 0 | N188: 0
A189: QWU | B189: RJC | C189: SOUTH WARWICKSHIRE UNIVERSITY NHS FOUNDATION TRUST | D189: RJC02 | E189: Warwick Hospital | F189: 0 | G189: NA | H189: NA | I189: 0 | J189: 0 | K189: 0 | L189: 0 | M189: 0 | N189: 0
A190: QWU | B190: RKB | C190: UNIVERSITY HOSPITALS COVENTRY AND WARWICKSHIRE NHS TRUST | D190: RKB03 | E190: Hospital Of St Cross | F190: 0 | G190: NA | H190: NA | I190: 0 | J190: 0 | K190: 0 | L190: 0 | M190: 0 | N190: 0
A191: QWU | B191: RKB | C191: UNIVERSITY HOSPITALS COVENTRY AND WARWICKSHIRE NHS TRUST | D191: RKBXXX | E191: Non-hospital site | F191: 42 | G191: 0.8571428571 | H191: 0.119047619 | I191: 31 | J191: 5 | K191: 1 | L191: 0 | M191: 5 | N191: 0
A192: QWU | B192: RKB | C192: UNIVERSITY HOSPITALS COVENTRY AND WARWICKSHIRE NHS TRUST | D192: RKB01 | E192: University Hospital (Coventry) | F192: 55 | G192: 0.8909090909 | H192: 0.1090909091 | I192: 46 | J192: 3 | K192: 0 | L192: 0 | M192: 6 | N192: 0
A193: QXU | B193: RTK | C193: ASHFORD AND ST PETER'S HOSPITALS NHS FOUNDATION TRUST | D193: RTK02 | E193: Ashford Hospital | F193: 0 | G193: NA | H193: NA | I193: 0 | J193: 0 | K193: 0 | L193: 0 | M193: 0 | N193: 0
A194: QXU | B194: RA2 | C194: ROYAL SURREY COUNTY HOSPITAL NHS FOUNDATION TRUST | D194: RA201 | E194: Royal Surrey County Hospital | F194: 3 | G194: * | H194: * | I194: * | J194: * | K194: * | L194: * | M194: * | N194: *
A195: QXU | B195: RTP | C195: SURREY AND SUSSEX HEALTHCARE NHS TRUST | D195: RTP04 | E195: East Surrey Hospital | F195: 14 | G195: 1 | H195: 0 | I195: * | J195: * | K195: * | L195: * | M195: * | N195: *
A196: QYG | B196: RJR | C196: COUNTESS OF CHESTER HOSPITAL NHS FOUNDATION TRUST | D196: RJR05 | E196: Countess Of Chester Hospital | F196: 24 | G196: 0.9166666667 | H196: 0.08333333333 | I196: 19 | J196: 3 | K196: 0 | L196: 2 | M196: 0 | N196: 0
A197: QYG | B197: RJN | C197: EAST CHESHIRE NHS TRUST | D197: RJN71 | E197: Macclesfield District General Hospital | F197: 10 | G197: 1 | H197: 0 | I197: 9 | J197: 1 | K197: 0 | L197: 0 | M197: 0 | N197: 0
A198: QYG | B198: REP | C198: LIVERPOOL WOMEN'S NHS FOUNDATION TRUST | D198: REP01 | E198: Liverpool Womens Hospital | F198: 17 | G198: 0.9411764706 | H198: 0.05882352941 | I198: 15 | J198: 1 | K198: 0 | L198: 0 | M198: 1 | N198: 0
A199: QYG | B199: RBN | C199: MERSEY AND WEST LANCASHIRE TEACHING HOSPITALS NHS TRUST | D199: RBN52 | E199: Ormskirk and District General Hospital | F199: 1 | G199: * | H199: * | I199: * | J199: * | K199: * | L199: * | M199: * | N199: *
A200: QYG | B200: RBN | C200: MERSEY AND WEST LANCASHIRE TEACHING HOSPITALS NHS TRUST | D200: RBN01 | E200: Whiston Hospital | F200: 21 | G200: 1 | H200: 0 | I200: * | J200: * | K200: * | L200: * | M200: * | N200: *
A201: QYG | B201: RBT | C201: MID CHESHIRE HOSPITALS NHS FOUNDATION TRUST | D201: RBT20 | E201: Leighton Hospital | F201: 10 | G201: 1 | H201: 0 | I201: 9 | J201: 1 | K201: 0 | L201: 0 | M201: 0 | N201: 0
A202: QYG | B202: RWW | C202: WARRINGTON AND HALTON TEACHING HOSPITALS NHS FOUNDATION TRUST | D202: RWWWH | E202: Warrington Hospital | F202: 0 | G202: NA | H202: NA | I202: 0 | J202: 0 | K202: 0 | L202: 0 | M202: 0 | N202: 0
A203: QYG | B203: RBL | C203: WIRRAL UNIVERSITY TEACHING HOSPITAL NHS FOUNDATION TRUST | D203: RBL14 | E203: Arrowe Park Hospital | F203: 28 | G203: 0.8214285714 | H203: 0.1071428571 | I203: 17 | J203: 6 | K203: 2 | L203: 2 | M203: 1 | N203: 0

Sheet ICB Q2
B6: Sort data by:
A9: ICB Code | B9: ICB Name | C9: Total Responses | D9: Total Eligible | E9: Percentage Positive | F9: Percentage Negative | G9: Breakdown of Responses
G10: Very Good | H10: Good | I10: Neither Good nor Poor | J10: Poor | K10: Very Poor | L10: Don't Know
B11: England (including Independent Sector providers) | C11: 4894 | D11: 38134 | E11: 0.9252145484 | F11: 0.04495300368 | G11: 3866 | H11: 662 | I11: 113 | J11: 85 | K11: 135 | L11: 33
B12: England (excluding Independent Sector providers) | C12: 4894 | D12: 38134 | E12: 0.9252145484 | F12: 0.04495300368 | G12: 3866 | H12: 662 | I12: 113 | J12: 85 | K12: 135 | L12: 33
B13: Selection (excluding suppressed data) | C13: =SUBTOTAL(9,C14:C55) -> 4894 | D13: =SUBTOTAL(9,D14:D55) -> 38134 | E13: =IFERROR((G13+H13)/SUM(G13:L13), "-") -> 0.9249384742 | F13: =IFERROR((J13+K13)/SUM(G13:L13), "-") -> 0.04511894996 | G13: =SUBTOTAL(9,G14:G55) -> 3851 | H13: 659 | I13: 113 | J13: 85 | K13: 135 | L13: 33
A14: QE1 | B14: LANCASHIRE AND SOUTH CUMBRIA ICB | C14: 138 | D14: 1030 | E14: 0.9130434783 | F14: 0.03623188406 | G14: 110 | H14: 16 | I14: 6 | J14: 1 | K14: 4 | L14: 1
A15: QF7 | B15: SOUTH YORKSHIRE ICB | C15: 81 | D15: 1075 | E15: 0.9135802469 | F15: 0.03703703704 | G15: 64 | H15: 10 | I15: 4 | J15: 1 | K15: 2 | L15: 0
A16: QGH | B16: HEREFORDSHIRE AND WORCESTERSHIRE ICB | C16: 131 | D16: 235 | E16: 0.9770992366 | F16: 0 | G16: 118 | H16: 10 | I16: 3 | J16: 0 | K16: 0 | L16: 0
A17: QH8 | B17: MID AND SOUTH ESSEX ICB | C17: 182 | D17: 557 | E17: 0.8901098901 | F17: 0.07692307692 | G17: 139 | H17: 23 | I17: 5 | J17: 3 | K17: 11 | L17: 1
A18: QHG | B18: BEDFORDSHIRE, LUTON AND MILTON KEYNES ICB | C18: 69 | D18: 598 | E18: 0.9710144928 | F18: 0.01449275362 | G18: 55 | H18: 12 | I18: 1 | J18: 0 | K18: 1 | L18: 0
A19: QHL | B19: BIRMINGHAM AND SOLIHULL ICB | C19: 130 | D19: 1752 | E19: 0.7769230769 | F19: 0.1538461538 | G19: 82 | H19: 19 | I19: 7 | J19: 9 | K19: 11 | L19: 2
A20: QHM | B20: NORTH EAST AND NORTH CUMBRIA ICB | C20: 236 | D20: 1812 | E20: 0.9237288136 | F20: 0.02966101695 | G20: 183 | H20: 35 | I20: 11 | J20: 5 | K20: 2 | L20: 0
A21: QJ2 | B21: DERBY AND DERBYSHIRE ICB | C21: 118 | D21: 789 | E21: 0.9661016949 | F21: 0.02542372881 | G21: 96 | H21: 18 | I21: 1 | J21: 1 | K21: 2 | L21: 0
A22: QJG | B22: SUFFOLK AND NORTH EAST ESSEX ICB | C22: 15 | D22: 509 | E22: 1 | F22: 0 | G22: 15 | H22: 0 | I22: 0 | J22: 0 | K22: 0 | L22: 0
A23: QJK | B23: DEVON ICB | C23: 21 | D23: 506 | E23: 0.9523809524 | F23: 0 | G23: 18 | H23: 2 | I23: 0 | J23: 0 | K23: 0 | L23: 1
A24: QJM | B24: LINCOLNSHIRE ICB | C24: 0 | D24: 354 | E24: NA | F24: NA | G24: 0 | H24: 0 | I24: 0 | J24: 0 | K24: 0 | L24: 0
A25: QK1 | B25: LEICESTER, LEICESTERSHIRE AND RUTLAND ICB | C25: 149 | D25: 698 | E25: 0.9395973154 | F25: 0.01342281879 | G25: 109 | H25: 31 | I25: 6 | J25: 2 | K25: 0 | L25: 1
A26: QKK | B26: SOUTH EAST LONDON ICB | C26: 282 | D26: 1378 | E26: 0.9609929078 | F26: 0.01063829787 | G26: 195 | H26: 76 | I26: 8 | J26: 1 | K26: 2 | L26: 0
A27: QKS | B27: KENT AND MEDWAY ICB | C27: 147 | D27: 1492 | E27: 0.9727891156 | F27: 0.01360544218 | G27: 123 | H27: 20 | I27: 2 | J27: 2 | K27: 0 | L27: 0
A28: QM7 | B28: HERTFORDSHIRE AND WEST ESSEX ICB | C28: 36 | D28: 625 | E28: 0.9444444444 | F28: 0.05555555556 | G28: 31 | H28: 3 | I28: 0 | J28: 0 | K28: 2 | L28: 0
A29: QMF | B29: NORTH EAST LONDON ICB | C29: 119 | D29: 2035 | E29: 0.9243697479 | F29: 0.01680672269 | G29: 88 | H29: 22 | I29: 1 | J29: 1 | K29: 1 | L29: 6
A30: QMJ | B30: NORTH CENTRAL LONDON ICB | C30: 120 | D30: 1359 | E30: 0.95 | F30: 0.03333333333 | G30: 93 | H30: 21 | I30: 2 | J30: 3 | K30: 1 | L30: 0
A31: QMM | B31: NORFOLK AND WAVENEY ICB | C31: 37 | D31: 593 | E31: 1 | F31: 0 | G31: 36 | H31: 1 | I31: 0 | J31: 0 | K31: 0 | L31: 0
A32: QNC | B32: STAFFORDSHIRE AND STOKE-ON-TRENT ICB | C32: 37 | D32: 437 | E32: 0.9459459459 | F32: 0.05405405405 | G32: 29 | H32: 6 | I32: 0 | J32: 0 | K32: 2 | L32: 0
A33: QNQ | B33: FRIMLEY ICB | C33: 91 | D33: 0 | E33: 0.989010989 | F33: 0 | G33: 76 | H33: 14 | I33: 1 | J33: 0 | K33: 0 | L33: 0
A34: QNX | B34: SUSSEX ICB | C34: 144 | D34: 840 | E34: 0.9513888889 | F34: 0.01388888889 | G34: 123 | H34: 14 | I34: 5 | J34: 1 | K34: 1 | L34: 0
A35: QOC | B35: SHROPSHIRE, TELFORD AND WREKIN ICB | C35: 17 | D35: 0 | E35: 1 | F35: 0 | G35: 16 | H35: 1 | I35: 0 | J35: 0 | K35: 0 | L35: 0
A36: QOP | B36: GREATER MANCHESTER ICB | C36: 441 | D36: 4595 | E36: 0.8775510204 | F36: 0.09977324263 | G36: 316 | H36: 71 | I36: 6 | J36: 14 | K36: 30 | L36: 4
A37: QOQ | B37: HUMBER AND NORTH YORKSHIRE ICB | C37: 37 | D37: 864 | E37: 0.972972973 | F37: 0 | G37: 34 | H37: 2 | I37: 1 | J37: 0 | K37: 0 | L37: 0
A38: QOX | B38: BATH AND NORTH EAST SOMERSET, SWINDON AND WILTSHIRE ICB | C38: 69 | D38: 422 | E38: 0.8985507246 | F38: 0.04347826087 | G38: 48 | H38: 14 | I38: 4 | J38: 2 | K38: 1 | L38: 0
A39: QPM | B39: NORTHAMPTONSHIRE ICB | C39: 51 | D39: 517 | E39: 0.9215686275 | F39: 0.05882352941 | G39: 44 | H39: 3 | I39: 1 | J39: 0 | K39: 3 | L39: 0
A40: QR1 | B40: GLOUCESTERSHIRE ICB | C40: 68 | D40: 241 | E40: 0.8823529412 | F40: 0.05882352941 | G40: 44 | H40: 16 | I40: 3 | J40: 2 | K40: 2 | L40: 1
A41: QRL | B41: HAMPSHIRE AND ISLE OF WIGHT ICB | C41: 309 | D41: 1160 | E41: 0.9708737864 | F41: 0.01618122977 | G41: 266 | H41: 34 | I41: 3 | J41: 3 | K41: 2 | L41: 1
A42: QRV | B42: NORTH WEST LONDON ICB | C42: 277 | D42: 1355 | E42: 0.9458483755 | F42: 0.03610108303 | G42: 225 | H42: 37 | I42: 5 | J42: 4 | K42: 6 | L42: 0
A43: QSL | B43: SOMERSET ICB | C43: 4 | D43: 323 | E43: * | F43: * | G43: * | H43: * | I43: * | J43: * | K43: * | L43: *
A44: QT1 | B44: NOTTINGHAM AND NOTTINGHAMSHIRE ICB | C44: 37 | D44: 611 | E44: 0.8918918919 | F44: 0.1081081081 | G44: 27 | H44: 6 | I44: 0 | J44: 1 | K44: 3 | L44: 0
A45: QT6 | B45: CORNWALL AND THE ISLES OF SCILLY ICB | C45: 14 | D45: 283 | E45: 1 | F45: 0 | G45: * | H45: * | I45: * | J45: * | K45: * | L45: *
A46: QU9 | B46: BUCKINGHAMSHIRE, OXFORDSHIRE AND BERKSHIRE WEST ICB | C46: 58 | D46: 967 | E46: 0.6724137931 | F46: 0.2586206897 | G46: 34 | H46: 5 | I46: 3 | J46: 7 | K46: 8 | L46: 1
A47: QUA | B47: BLACK COUNTRY ICB | C47: 139 | D47: 916 | E47: 0.9208633094 | F47: 0.02877697842 | G47: 119 | H47: 9 | I47: 4 | J47: 1 | K47: 3 | L47: 3
A48: QUE | B48: CAMBRIDGESHIRE AND PETERBOROUGH ICB | C48: 54 | D48: 798 | E48: 0.8518518519 | F48: 0.09259259259 | G48: 41 | H48: 5 | I48: 1 | J48: 3 | K48: 2 | L48: 2
A49: QUY | B49: BRISTOL, NORTH SOMERSET AND SOUTH GLOUCESTERSHIRE ICB | C49: 147 | D49: 709 | E49: 0.9319727891 | F49: 0.04761904762 | G49: 121 | H49: 16 | I49: 2 | J49: 2 | K49: 5 | L49: 1
A50: QVV | B50: DORSET ICB | C50: 24 | D50: 350 | E50: 0.9583333333 | F50: 0.04166666667 | G50: 20 | H50: 3 | I50: 0 | J50: 0 | K50: 1 | L50: 0
A51: QWE | B51: SOUTH WEST LONDON ICB | C51: 69 | D51: 970 | E51: 0.9275362319 | F51: 0.07246376812 | G51: 59 | H51: 5 | I51: 0 | J51: 2 | K51: 3 | L51: 0
A52: QWO | B52: WEST YORKSHIRE ICB | C52: 336 | D52: 1424 | E52: 0.9642857143 | F52: 0.02976190476 | G52: 301 | H52: 23 | I52: 2 | J52: 5 | K52: 5 | L52: 0
A53: QWU | B53: COVENTRY AND WARWICKSHIRE ICB | C53: 77 | D53: 931 | E53: 0.8961038961 | F53: 0.05194805195 | G53: 67 | H53: 2 | I53: 4 | J53: 1 | K53: 3 | L53: 0
A54: QXU | B54: SURREY HEARTLANDS ICB | C54: 175 | D54: 481 | E54: 0.8457142857 | F54: 0.07428571429 | G54: 126 | H54: 22 | I54: 7 | J54: 2 | K54: 11 | L54: 7
A55: QYG | B55: CHESHIRE AND MERSEYSIDE ICB | C55: 208 | D55: 1543 | E55: 0.9230769231 | F55: 0.05288461538 | G55: 160 | H55: 32 | I55: 4 | J55: 6 | K55: 5 | L55: 1

Sheet Trusts Q2
B6: Sort data by:
A9: ICB Code | B9: Trust Code | C9: Trust Name | D9: Total Responses | E9: Total Eligible | F9: Percentage Positive | G9: Percentage Negative | H9: Breakdown of Responses | N9: Mode of Collection
H10: Very Good | I10: Good | J10: Neither Good nor Poor | K10: Poor | L10: Very Poor | M10: Don't Know | N10: Mode SMS | O10: Mode Electronic Discharge | P10: Mode Electronic Home | Q10: Mode Paper Discharge | R10: Mode Paper Home | S10: Mode Telephone | T10: Mode Online | U10: Mode Other
C11: England (including Independent Sector providers) | D11: 4894 | E11: 38134 | F11: 0.9252145484 | G11: 0.04495300368 | H11: 3866 | I11: 662 | J11: 113 | K11: 85 | L11: 135 | M11: 33 | N11: 1972 | O11: 890 | P11: 48 | Q11: 1002 | R11: 29 | S11: 0 | T11: 877 | U11: 76
C12: England (excluding Independent Sector providers) | D12: 4894 | E12: 38134 | F12: 0.9252145484 | G12: 0.04495300368 | H12: 3866 | I12: 662 | J12: 113 | K12: 85 | L12: 135 | M12: 33 | N12: 1972 | O12: 890 | P12: 48 | Q12: 1002 | R12: 29 | S12: 0 | T12: 877 | U12: 76
C13: Selection (excluding suppressed data) | D13: =SUBTOTAL(9,D14:D299) -> 4894 | E13: =SUBTOTAL(9,E14:E299) -> 38134 | F13: =IFERROR((H13+I13)/SUM(H13:M13), "-") -> 0.9250793651 | G13: =IFERROR((K13+L13)/SUM(H13:M13), "-") -> 0.04465608466 | H13: =SUBTOTAL(9,H14:H299) -> 3732 | I13: =SUBTOTAL(9,I14:I299) -> 639 | J13: 110 | K13: 81 | L13: 130 | M13: 33 | N13: 1926 | O13: 866 | P13: 46 | Q13: 963 | R13: 27 | S13: 0 | T13: 821 | U13: 76
A14: QE1 | B14: RXL | C14: BLACKPOOL TEACHING HOSPITALS NHS FOUNDATION TRUST | D14: 20 | E14: 173 | F14: 0.95 | G14: 0.05 | H14: 17 | I14: 2 | J14: 0 | K14: 1 | L14: 0 | M14: 0 | N14: 17 | O14: 0 | P14: 0 | Q14: 0 | R14: 0 | S14: 0 | T14: 3 | U14: 0
A15: QE1 | B15: RXR | C15: EAST LANCASHIRE HOSPITALS NHS TRUST | D15: 75 | E15: 436 | F15: 0.8666666667 | G15: 0.05333333333 | H15: 58 | I15: 7 | J15: 5 | K15: 0 | L15: 4 | M15: 1 | N15: 57 | O15: 18 | P15: 0 | Q15: 0 | R15: 0 | S15: 0 | T15: 0 | U15: 0
A16: QE1 | B16: RXN | C16: LANCASHIRE TEACHING HOSPITALS NHS FOUNDATION TRUST | D16: 13 | E16: 236 | F16: 0.9230769231 | G16: 0 | H16: 9 | I16: 3 | J16: 1 | K16: 0 | L16: 0 | M16: 0 | N16: 13 | O16: 0 | P16: 0 | Q16: 0 | R16: 0 | S16: 0 | T16: 0 | U16: 0
A17: QE1 | B17: RTX | C17: UNIVERSITY HOSPITALS OF MORECAMBE BAY NHS FOUNDATION TRUST | D17: 30 | E17: 185 | F17: 1 | G17: 0 | H17: 26 | I17: 4 | J17: 0 | K17: 0 | L17: 0 | M17: 0 | N17: 23 | O17: 0 | P17: 0 | Q17: 0 | R17: 0 | S17: 0 | T17: 7 | U17: 0
A18: QF7 | B18: RFF | C18: BARNSLEY HOSPITAL NHS FOUNDATION TRUST | D18: 19 | E18: 183 | F18: 1 | G18: 0 | H18: 19 | I18: 0 | J18: 0 | K18: 0 | L18: 0 | M18: 0 | N18: 7 | O18: 12 | P18: 0 | Q18: 0 | R18: 0 | S18: 0 | T18: 0 | U18: 0
A19: QF7 | B19: RP5 | C19: DONCASTER AND BASSETLAW TEACHING HOSPITALS NHS FOUNDATION TRUST | D19: 18 | E19: 318 | F19: 0.7777777778 | G19: 0.1111111111 | H19: 11 | I19: 3 | J19: 2 | K19: 1 | L19: 1 | M19: 0 | N19: 0 | O19: 0 | P19: 0 | Q19: 0 | R19: 0 | S19: 0 | T19: 18 | U19: 0
A20: QF7 | B20: RHQ | C20: SHEFFIELD TEACHING HOSPITALS NHS FOUNDATION TRUST | D20: 39 | E20: 426 | F20: 0.9230769231 | G20: 0.02564102564 | H20: 29 | I20: 7 | J20: 2 | K20: 0 | L20: 1 | M20: 0 | N20: 33 | O20: 0 | P20: 0 | Q20: 5 | R20: 0 | S20: 0 | T20: 1 | U20: 0
A21: QF7 | B21: RFR | C21: THE ROTHERHAM NHS FOUNDATION TRUST | D21: 5 | E21: 148 | F21: 1 | G21: 0 | H21: 5 | I21: 0 | J21: 0 | K21: 0 | L21: 0 | M21: 0 | N21: 0 | O21: 0 | P21: 0 | Q21: 5 | R21: 0 | S21: 0 | T21: 0 | U21: 0
A22: QGH | B22: RWP | C22: WORCESTERSHIRE ACUTE HOSPITALS NHS TRUST | D22: 97 | E22: 127 | F22: 0.9896907216 | G22: 0 | H22: 90 | I22: 6 | J22: 1 | K22: 0 | L22: 0 | M22: 0 | N22: 0 | O22: 97 | P22: 0 | Q22: 0 | R22: 0 | S22: 0 | T22: 0 | U22: 0
A23: QGH | B23: RLQ | C23: WYE VALLEY NHS TRUST | D23: 34 | E23: 108 | F23: 0.9411764706 | G23: 0 | H23: 28 | I23: 4 | J23: 2 | K23: 0 | L23: 0 | M23: 0 | N23: 34 | O23: 0 | P23: 0 | Q23: 0 | R23: 0 | S23: 0 | T23: 0 | U23: 0
A24: QH8 | B24: RAJ | C24: MID AND SOUTH ESSEX NHS FOUNDATION TRUST | D24: 182 | E24: 557 | F24: 0.8901098901 | G24: 0.07692307692 | H24: 139 | I24: 23 | J24: 5 | K24: 3 | L24: 11 | M24: 1 | N24: 181 | O24: 0 | P24: 0 | Q24: 0 | R24: 0 | S24: 0 | T24: 1 | U24: 0
A25: QHG | B25: RC9 | C25: BEDFORDSHIRE HOSPITALS NHS FOUNDATION TRUST | D25: 37 | E25: 290 | F25: 1 | G25: 0 | H25: 30 | I25: 7 | J25: 0 | K25: 0 | L25: 0 | M25: 0 | N25: 0 | O25: 33 | P25: 0 | Q25: 0 | R25: 0 | S25: 0 | T25: 4 | U25: 0
A26: QHG | B26: RD8 | C26: MILTON KEYNES UNIVERSITY HOSPITAL NHS FOUNDATION TRUST | D26: 32 | E26: 308 | F26: 0.9375 | G26: 0.03125 | H26: 25 | I26: 5 | J26: 1 | K26: 0 | L26: 1 | M26: 0 | N26: 8 | O26: 0 | P26: 0 | Q26: 17 | R26: 0 | S26: 0 | T26: 7 | U26: 0
A27: QHL | B27: RQ3 | C27: BIRMINGHAM WOMEN'S AND CHILDREN'S NHS FOUNDATION TRUST | D27: 16 | E27: 586 | F27: 0.8125 | G27: 0.0625 | H27: 11 | I27: 2 | J27: 2 | K27: 1 | L27: 0 | M27: 0 | N27: 0 | O27: 0 | P27: 0 | Q27: 0 | R27: 0 | S27: 0 | T27: 16 | U27: 0
A28: QHL | B28: RXK | C28: SANDWELL AND WEST BIRMINGHAM HOSPITALS NHS TRUST | D28: 38 | E28: 402 | F28: 0.7894736842 | G28: 0.1842105263 | H28: 26 | I28: 4 | J28: 1 | K28: 1 | L28: 6 | M28: 0 | N28: 38 | O28: 0 | P28: 0 | Q28: 0 | R28: 0 | S28: 0 | T28: 0 | U28: 0
A29: QHL | B29: RRK | C29: UNIVERSITY HOSPITALS BIRMINGHAM NHS FOUNDATION TRUST | D29: 76 | E29: 764 | F29: 0.7631578947 | G29: 0.1578947368 | H29: 45 | I29: 13 | J29: 4 | K29: 7 | L29: 5 | M29: 2 | N29: 72 | O29: 4 | P29: 0 | Q29: 0 | R29: 0 | S29: 0 | T29: 0 | U29: 0
A30: QHM | B30: RXP | C30: COUNTY DURHAM AND DARLINGTON NHS FOUNDATION TRUST | D30: 76 | E30: 314 | F30: 0.9736842105 | G30: 0.01315789474 | H30: 60 | I30: 14 | J30: 1 | K30: 1 | L30: 0 | M30: 0 | N30: 0 | O30: 0 | P30: 0 | Q30: 76 | R30: 0 | S30: 0 | T30: 0 | U30: 0
A31: QHM | B31: RR7 | C31: GATESHEAD HEALTH NHS FOUNDATION TRUST | D31: 13 | E31: 151 | F31: 1 | G31: 0 | H31: 13 | I31: 0 | J31: 0 | K31: 0 | L31: 0 | M31: 0 | N31: 13 | O31: 0 | P31: 0 | Q31: 0 | R31: 0 | S31: 0 | T31: 0 | U31: 0
A32: QHM | B32: RNN | C32: NORTH CUMBRIA INTEGRATED CARE NHS FOUNDATION TRUST | D32: 17 | E32: 175 | F32: 1 | G32: 0 | H32: 15 | I32: 2 | J32: 0 | K32: 0 | L32: 0 | M32: 0 | N32: 0 | O32: 0 | P32: 0 | Q32: 16 | R32: 0 | S32: 0 | T32: 0 | U32: 1
A33: QHM | B33: RVW | C33: NORTH TEES AND HARTLEPOOL NHS FOUNDATION TRUST | D33: 1 | E33: 271 | F33: * | G33: * | H33: * | I33: * | J33: * | K33: * | L33: * | M33: * | N33: * | O33: * | P33: * | Q33: * | R33: * | S33: * | T33: * | U33: *
A34: QHM | B34: RTF | C34: NORTHUMBRIA HEALTHCARE NHS FOUNDATION TRUST | D34: 30 | E34: 261 | F34: 1 | G34: 0 | H34: 27 | I34: 3 | J34: 0 | K34: 0 | L34: 0 | M34: 0 | N34: 3 | O34: 0 | P34: 0 | Q34: 27 | R34: 0 | S34: 0 | T34: 0 | U34: 0
A35: QHM | B35: RTR | C35: SOUTH TEES HOSPITALS NHS FOUNDATION TRUST | D35: 37 | E35: 345 | F35: 0.9189189189 | G35: 0.02702702703 | H35: 30 | I35: 4 | J35: 2 | K35: 1 | L35: 0 | M35: 0 | N35: 34 | O35: 1 | P35: 0 | Q35: 0 | R35: 0 | S35: 0 | T35: 0 | U35: 2
A36: QHM | B36: R0B | C36: SOUTH TYNESIDE AND SUNDERLAND NHS FOUNDATION TRUST | D36: 3 | E36: 295 | F36: * | G36: * | H36: * | I36: * | J36: * | K36: * | L36: * | M36: * | N36: * | O36: * | P36: * | Q36: * | R36: * | S36: * | T36: * | U36: *
A37: QHM | B37: RTD | C37: THE NEWCASTLE UPON TYNE HOSPITALS NHS FOUNDATION TRUST | D37: 59 | E37: 0 | F37: 0.7796610169 | G37: 0.08474576271 | H37: 35 | I37: 11 | J37: 8 | K37: 3 | L37: 2 | M37: 0 | N37: 59 | O37: 0 | P37: 0 | Q37: 0 | R37: 0 | S37: 0 | T37: 0 | U37: 0
A38: QJ2 | B38: RFS | C38: CHESTERFIELD ROYAL HOSPITAL NHS FOUNDATION TRUST | D38: 68 | E38: 202 | F38: 0.9705882353 | G38: 0.01470588235 | H38: 59 | I38: 7 | J38: 1 | K38: 1 | L38: 0 | M38: 0 | N38: 68 | O38: 0 | P38: 0 | Q38: 0 | R38: 0 | S38: 0 | T38: 0 | U38: 0
A39: QJ2 | B39: RTG | C39: UNIVERSITY HOSPITALS OF DERBY AND BURTON NHS FOUNDATION TRUST | D39: 50 | E39: 587 | F39: 0.96 | G39: 0.04 | H39: 37 | I39: 11 | J39: 0 | K39: 0 | L39: 2 | M39: 0 | N39: 45 | O39: 0 | P39: 0 | Q39: 5 | R39: 0 | S39: 0 | T39: 0 | U39: 0
A40: QJG | B40: RDE | C40: EAST SUFFOLK AND NORTH ESSEX NHS FOUNDATION TRUST | D40: 9 | E40: 468 | F40: 1 | G40: 0 | H40: 9 | I40: 0 | J40: 0 | K40: 0 | L40: 0 | M40: 0 | N40: 0 | O40: 0 | P40: 0 | Q40: 0 | R40: 0 | S40: 0 | T40: 9 | U40: 0
A41: QJG | B41: RGR | C41: WEST SUFFOLK NHS FOUNDATION TRUST | D41: 6 | E41: 41 | F41: 1 | G41: 0 | H41: 6 | I41: 0 | J41: 0 | K41: 0 | L41: 0 | M41: 0 | N41: 0 | O41: 3 | P41: 0 | Q41: 0 | R41: 0 | S41: 0 | T41: 3 | U41: 0
A42: QJK | B42: RH8 | C42: ROYAL DEVON UNIVERSITY HEALTHCARE NHS FOUNDATION TRUST | D42: 6 | E42: 310 | F42: 1 | G42: 0 | H42: 5 | I42: 1 | J42: 0 | K42: 0 | L42: 0 | M42: 0 | N42: 0 | O42: 0 | P42: 0 | Q42: 2 | R42: 0 | S42: 0 | T42: 4 | U42: 0
A43: QJK | B43: RA9 | C43: TORBAY AND SOUTH DEVON NHS FOUNDATION TRUST | D43: 0 | E43: 135 | F43: NA | G43: NA | H43: 0 | I43: 0 | J43: 0 | K43: 0 | L43: 0 | M43: 0 | N43: 0 | O43: 0 | P43: 0 | Q43: 0 | R43: 0 | S43: 0 | T43: 0 | U43: 0
A44: QJK | B44: RK9 | C44: UNIVERSITY HOSPITALS PLYMOUTH NHS TRUST | D44: 15 | E44: 61 | F44: 0.9333333333 | G44: 0 | H44: 13 | I44: 1 | J44: 0 | K44: 0 | L44: 0 | M44: 1 | N44: 0 | O44: 0 | P44: 0 | Q44: 0 | R44: 0 | S44: 0 | T44: 15 | U44: 0
A45: QJM | B45: RWD | C45: UNITED LINCOLNSHIRE TEACHING HOSPITALS NHS TRUST | D45: 0 | E45: 354 | F45: NA | G45: NA | H45: 0 | I45: 0 | J45: 0 | K45: 0 | L45: 0 | M45: 0 | N45: 0 | O45: 0 | P45: 0 | Q45: 0 | R45: 0 | S45: 0 | T45: 0 | U45: 0
A46: QK1 | B46: RWE | C46: UNIVERSITY HOSPITALS OF LEICESTER NHS TRUST | D46: 149 | E46: 698 | F46: 0.9395973154 | G46: 0.01342281879 | H46: 109 | I46: 31 | J46: 6 | K46: 2 | L46: 0 | M46: 1 | N46: 0 | O46: 149 | P46: 0 | Q46: 0 | R46: 0 | S46: 0 | T46: 0 | U46: 0
A47: QKK | B47: RJ1 | C47: GUY'S AND ST THOMAS' NHS FOUNDATION TRUST | D47: 112 | E47: 453 | F47: 0.9464285714 | G47: 0.008928571429 | H47: 72 | I47: 34 | J47: 5 | K47: 0 | L47: 1 | M47: 0 | N47: 0 | O47: 0 | P47: 0 | Q47: 108 | R47: 0 | S47: 0 | T47: 4 | U47: 0
A48: QKK | B48: RJZ | C48: KING'S COLLEGE HOSPITAL NHS FOUNDATION TRUST | D48: 98 | E48: 463 | F48: 0.9795918367 | G48: 0.01020408163 | H48: 79 | I48: 17 | J48: 1 | K48: 0 | L48: 1 | M48: 0 | N48: 0 | O48: 98 | P48: 0 | Q48: 0 | R48: 0 | S48: 0 | T48: 0 | U48: 0
A49: QKK | B49: RJ2 | C49: LEWISHAM AND GREENWICH NHS TRUST | D49: 72 | E49: 462 | F49: 0.9583333333 | G49: 0.01388888889 | H49: 44 | I49: 25 | J49: 2 | K49: 1 | L49: 0 | M49: 0 | N49: 0 | O49: 0 | P49: 0 | Q49: 7 | R49: 0 | S49: 0 | T49: 65 | U49: 0
A50: QKS | B50: RN7 | C50: DARTFORD AND GRAVESHAM NHS TRUST | D50: 23 | E50: 338 | F50: 1 | G50: 0 | H50: 23 | I50: 0 | J50: 0 | K50: 0 | L50: 0 | M50: 0 | N50: 0 | O50: 9 | P50: 0 | Q50: 0 | R50: 0 | S50: 0 | T50: 14 | U50: 0
A51: QKS | B51: RVV | C51: EAST KENT HOSPITALS UNIVERSITY NHS FOUNDATION TRUST | D51: 45 | E51: 422 | F51: 0.9555555556 | G51: 0.04444444444 | H51: 32 | I51: 11 | J51: 0 | K51: 2 | L51: 0 | M51: 0 | N51: 45 | O51: 0 | P51: 0 | Q51: 0 | R51: 0 | S51: 0 | T51: 0 | U51: 0
A52: QKS | B52: RWF | C52: MAIDSTONE AND TUNBRIDGE WELLS NHS TRUST | D52: 33 | E52: 433 | F52: 1 | G52: 0 | H52: 29 | I52: 4 | J52: 0 | K52: 0 | L52: 0 | M52: 0 | N52: 12 | O52: 0 | P52: 0 | Q52: 1 | R52: 0 | S52: 0 | T52: 20 | U52: 0
A53: QKS | B53: RPA | C53: MEDWAY NHS FOUNDATION TRUST | D53: 46 | E53: 299 | F53: 0.9565217391 | G53: 0 | H53: 39 | I53: 5 | J53: 2 | K53: 0 | L53: 0 | M53: 0 | N53: 0 | O53: 0 | P53: 0 | Q53: 0 | R53: 0 | S53: 0 | T53: 45 | U53: 1
A54: QM7 | B54: RWH | C54: EAST AND NORTH HERTFORDSHIRE NHS TRUST | D54: 14 | E54: 336 | F54: 1 | G54: 0 | H54: * | I54: * | J54: * | K54: * | L54: * | M54: * | N54: * | O54: * | P54: * | Q54: * | R54: * | S54: * | T54: * | U54: *
A55: QM7 | B55: RQW | C55: THE PRINCESS ALEXANDRA HOSPITAL NHS TRUST | D55: 1 | E55: 0 | F55: * | G55: * | H55: * | I55: * | J55: * | K55: * | L55: * | M55: * | N55: * | O55: * | P55: * | Q55: * | R55: * | S55: * | T55: * | U55: *
A56: QM7 | B56: RWG | C56: WEST HERTFORDSHIRE TEACHING HOSPITALS NHS TRUST | D56: 21 | E56: 289 | F56: 0.9047619048 | G56: 0.09523809524 | H56: 16 | I56: 3 | J56: 0 | K56: 0 | L56: 2 | M56: 0 | N56: 0 | O56: 21 | P56: 0 | Q56: 0 | R56: 0 | S56: 0 | T56: 0 | U56: 0
A57: QMF | B57: RF4 | C57: BARKING, HAVERING AND REDBRIDGE UNIVERSITY HOSPITALS NHS TRUST | D57: 51 | E57: 559 | F57: 0.9215686275 | G57: 0 | H57: 40 | I57: 7 | J57: 0 | K57: 0 | L57: 0 | M57: 4 | N57: 2 | O57: 1 | P57: 46 | Q57: 0 | R57: 0 | S57: 0 | T57: 2 | U57: 0
A58: QMF | B58: R1H | C58: BARTS HEALTH NHS TRUST | D58: 61 | E58: 1041 | F58: 0.9344262295 | G58: 0.03278688525 | H58: 44 | I58: 13 | J58: 0 | K58: 1 | L58: 1 | M58: 2 | N58: 13 | O58: 0 | P58: 0 | Q58: 43 | R58: 0 | S58: 0 | T58: 5 | U58: 0
A59: QMF | B59: RQX | C59: HOMERTON HEALTHCARE NHS FOUNDATION TRUST | D59: 7 | E59: 435 | F59: 0.8571428571 | G59: 0 | H59: 4 | I59: 2 | J59: 1 | K59: 0 | L59: 0 | M59: 0 | N59: 7 | O59: 0 | P59: 0 | Q59: 0 | R59: 0 | S59: 0 | T59: 0 | U59: 0
A60: QMJ | B60: RAL | C60: ROYAL FREE LONDON NHS FOUNDATION TRUST | D60: 115 | E60: 750 | F60: 0.947826087 | G60: 0.0347826087 | H60: 88 | I60: 21 | J60: 2 | K60: 3 | L60: 1 | M60: 0 | N60: 20 | O60: 30 | P60: 0 | Q60: 65 | R60: 0 | S60: 0 | T60: 0 | U60: 0
A61: QMJ | B61: RRV | C61: UNIVERSITY COLLEGE LONDON HOSPITALS NHS FOUNDATION TRUST | D61: 1 | E61: 420 | F61: * | G61: * | H61: * | I61: * | J61: * | K61: * | L61: * | M61: * | N61: * | O61: * | P61: * | Q61: * | R61: * | S61: * | T61: * | U61: *
A62: QMJ | B62: RKE | C62: WHITTINGTON HEALTH NHS TRUST | D62: 4 | E62: 189 | F62: * | G62: * | H62: * | I62: * | J62: * | K62: * | L62: * | M62: * | N62: * | O62: * | P62: * | Q62: * | R62: * | S62: * | T62: * | U62: *
A63: QMM | B63: RGP | C63: JAMES PAGET UNIVERSITY HOSPITALS NHS FOUNDATION TRUST | D63: 21 | E63: 149 | F63: 1 | G63: 0 | H63: 20 | I63: 1 | J63: 0 | K63: 0 | L63: 0 | M63: 0 | N63: 0 | O63: 0 | P63: 0 | Q63: 21 | R63: 0 | S63: 0 | T63: 0 | U63: 0
A64: QMM | B64: RM1 | C64: NORFOLK AND NORWICH UNIVERSITY HOSPITALS NHS FOUNDATION TRUST | D64: 2 | E64: 332 | F64: * | G64: * | H64: * | I64: * | J64: * | K64: * | L64: * | M64: * | N64: * | O64: * | P64: * | Q64: * | R64: * | S64: * | T64: * | U64: *
A65: QMM | B65: RCX | C65: THE QUEEN ELIZABETH HOSPITAL, KING'S LYNN, NHS FOUNDATION TRUST | D65: 14 | E65: 112 | F65: 1 | G65: 0 | H65: * | I65: * | J65: * | K65: * | L65: * | M65: * | N65: * | O65: * | P65: * | Q65: * | R65: * | S65: * | T65: * | U65: *
A66: QNC | B66: RJE | C66: UNIVERSITY HOSPITALS OF NORTH MIDLANDS NHS TRUST | D66: 37 | E66: 437 | F66: 0.9459459459 | G66: 0.05405405405 | H66: 29 | I66: 6 | J66: 0 | K66: 0 | L66: 2 | M66: 0 | N66: 37 | O66: 0 | P66: 0 | Q66: 0 | R66: 0 | S66: 0 | T66: 0 | U66: 0
A67: QNQ | B67: RDU | C67: FRIMLEY HEALTH NHS FOUNDATION TRUST | D67: 91 | E67: 0 | F67: 0.989010989 | G67: 0 | H67: 76 | I67: 14 | J67: 1 | K67: 0 | L67: 0 | M67: 0 | N67: 0 | O67: 0 | P67: 0 | Q67: 1 | R67: 0 | S67: 0 | T67: 90 | U67: 0
A68: QNX | B68: RXC | C68: EAST SUSSEX HEALTHCARE NHS TRUST | D68: 42 | E68: 182 | F68: 0.9761904762 | G68: 0 | H68: 36 | I68: 5 | J68: 1 | K68: 0 | L68: 0 | M68: 0 | N68: 31 | O68: 0 | P68: 0 | Q68: 0 | R68: 0 | S68: 0 | T68: 11 | U68: 0
A69: QNX | B69: RYR | C69: UNIVERSITY HOSPITALS SUSSEX NHS FOUNDATION TRUST | D69: 102 | E69: 658 | F69: 0.9411764706 | G69: 0.01960784314 | H69: 87 | I69: 9 | J69: 4 | K69: 1 | L69: 1 | M69: 0 | N69: 102 | O69: 0 | P69: 0 | Q69: 0 | R69: 0 | S69: 0 | T69: 0 | U69: 0
A70: QOC | B70: RXW | C70: THE SHREWSBURY AND TELFORD HOSPITAL NHS TRUST | D70: 17 | E70: 0 | F70: 1 | G70: 0 | H70: 16 | I70: 1 | J70: 0 | K70: 0 | L70: 0 | M70: 0 | N70: 0 | O70: 0 | P70: 0 | Q70: 15 | R70: 0 | S70: 0 | T70: 2 | U70: 0
A71: QOP | B71: RMC | C71: BOLTON NHS FOUNDATION TRUST | D71: 167 | E71: 376 | F71: 0.8922155689 | G71: 0.07185628743 | H71: 133 | I71: 16 | J71: 3 | K71: 5 | L71: 7 | M71: 3 | N71: 112 | O71: 0 | P71: 0 | Q71: 55 | R71: 0 | S71: 0 | T71: 0 | U71: 0
A72: QOP | B72: R0A | C72: MANCHESTER UNIVERSITY NHS FOUNDATION TRUST | D72: 100 | E72: 3132 | F72: 0.94 | G72: 0.05 | H72: 69 | I72: 25 | J72: 1 | K72: 2 | L72: 3 | M72: 0 | N72: 0 | O72: 82 | P72: 0 | Q72: 0 | R72: 0 | S72: 0 | T72: 18 | U72: 0
A73: QOP | B73: RM3 | C73: NORTHERN CARE ALLIANCE NHS FOUNDATION TRUST | D73: 136 | E73: 492 | F73: 0.7941176471 | G73: 0.1911764706 | H73: 83 | I73: 25 | J73: 1 | K73: 6 | L73: 20 | M73: 1 | N73: 69 | O73: 0 | P73: 0 | Q73: 0 | R73: 0 | S73: 0 | T73: 67 | U73: 0
A74: QOP | B74: RWJ | C74: STOCKPORT NHS FOUNDATION TRUST | D74: 6 | E74: 216 | F74: 1 | G74: 0 | H74: 6 | I74: 0 | J74: 0 | K74: 0 | L74: 0 | M74: 0 | N74: 0 | O74: 0 | P74: 0 | Q74: 6 | R74: 0 | S74: 0 | T74: 0 | U74: 0
A75: QOP | B75: RMP | C75: TAMESIDE AND GLOSSOP INTEGRATED CARE NHS FOUNDATION TRUST | D75: 13 | E75: 182 | F75: 0.8461538462 | G75: 0.07692307692 | H75: 10 | I75: 1 | J75: 1 | K75: 1 | L75: 0 | M75: 0 | N75: 0 | O75: 10 | P75: 0 | Q75: 3 | R75: 0 | S75: 0 | T75: 0 | U75: 0
A76: QOP | B76: RRF | C76: WRIGHTINGTON, WIGAN AND LEIGH NHS FOUNDATION TRUST | D76: 19 | E76: 197 | F76: 1 | G76: 0 | H76: 15 | I76: 4 | J76: 0 | K76: 0 | L76: 0 | M76: 0 | N76: 0 | O76: 0 | P76: 0 | Q76: 17 | R76: 0 | S76: 0 | T76: 2 | U76: 0
A77: QOQ | B77: RCD | C77: HARROGATE AND DISTRICT NHS FOUNDATION TRUST | D77: 2 | E77: 2 | F77: * | G77: * | H77: * | I77: * | J77: * | K77: * | L77: * | M77: * | N77: * | O77: * | P77: * | Q77: * | R77: * | S77: * | T77: * | U77: *
A78: QOQ | B78: RWA | C78: HULL UNIVERSITY TEACHING HOSPITALS NHS TRUST | D78: 12 | E78: 326 | F78: 1 | G78: 0 | H78: * | I78: * | J78: * | K78: * | L78: * | M78: * | N78: * | O78: * | P78: * | Q78: * | R78: * | S78: * | T78: * | U78: *
A79: QOQ | B79: RJL | C79: NORTHERN LINCOLNSHIRE AND GOOLE NHS FOUNDATION TRUST | D79: 23 | E79: 259 | F79: 0.9565217391 | G79: 0 | H79: 20 | I79: 2 | J79: 1 | K79: 0 | L79: 0 | M79: 0 | N79: 19 | O79: 0 | P79: 0 | Q79: 4 | R79: 0 | S79: 0 | T79: 0 | U79: 0
A80: QOQ | B80: RCB | C80: YORK AND SCARBOROUGH TEACHING HOSPITALS NHS FOUNDATION TRUST | D80: 0 | E80: 277 | F80: NA | G80: NA | H80: 0 | I80: 0 | J80: 0 | K80: 0 | L80: 0 | M80: 0 | N80: 0 | O80: 0 | P80: 0 | Q80: 0 | R80: 0 | S80: 0 | T80: 0 | U80: 0
A81: QOX | B81: RN3 | C81: GREAT WESTERN HOSPITALS NHS FOUNDATION TRUST | D81: 4 | E81: 4 | F81: * | G81: * | H81: * | I81: * | J81: * | K81: * | L81: * | M81: * | N81: * | O81: * | P81: * | Q81: * | R81: * | S81: * | T81: * | U81: *
A82: QOX | B82: RD1 | C82: ROYAL UNITED HOSPITALS BATH NHS FOUNDATION TRUST | D82: 35 | E82: 307 | F82: 0.9428571429 | G82: 0.02857142857 | H82: 26 | I82: 7 | J82: 1 | K82: 1 | L82: 0 | M82: 0 | N82: 35 | O82: 0 | P82: 0 | Q82: 0 | R82: 0 | S82: 0 | T82: 0 | U82: 0
A83: QOX | B83: RNZ | C83: SALISBURY NHS FOUNDATION TRUST | D83: 30 | E83: 111 | F83: 0.9333333333 | G83: 0.03333333333 | H83: * | I83: * | J83: * | K83: * | L83: * | M83: * | N83: * | O83: * | P83: * | Q83: * | R83: * | S83: * | T83: * | U83: *
A84: QPM | B84: RNQ | C84: KETTERING GENERAL HOSPITAL NHS FOUNDATION TRUST | D84: 6 | E84: 230 | F84: 0.6666666667 | G84: 0.1666666667 | H84: 3 | I84: 1 | J84: 1 | K84: 0 | L84: 1 | M84: 0 | N84: 0 | O84: 0 | P84: 0 | Q84: 0 | R84: 0 | S84: 0 | T84: 6 | U84: 0
A85: QPM | B85: RNS | C85: NORTHAMPTON GENERAL HOSPITAL NHS TRUST | D85: 45 | E85: 287 | F85: 0.9555555556 | G85: 0.04444444444 | H85: 41 | I85: 2 | J85: 0 | K85: 0 | L85: 2 | M85: 0 | N85: 8 | O85: 0 | P85: 0 | Q85: 36 | R85: 0 | S85: 0 | T85: 1 | U85: 0
A86: QR1 | B86: RTE | C86: GLOUCESTERSHIRE HOSPITALS NHS FOUNDATION TRUST | D86: 68 | E86: 241 | F86: 0.8823529412 | G86: 0.05882352941 | H86: 44 | I86: 16 | J86: 3 | K86: 2 | L86: 2 | M86: 1 | N86: 66 | O86: 2 | P86: 0 | Q86: 0 | R86: 0 | S86: 0 | T86: 0 | U86: 0
A87: QRL | B87: RN5 | C87: HAMPSHIRE HOSPITALS NHS FOUNDATION TRUST | D87: 149 | E87: 341 | F87: 0.9798657718 | G87: 0.006711409396 | H87: 135 | I87: 11 | J87: 1 | K87: 1 | L87: 0 | M87: 1 | N87: 0 | O87: 0 | P87: 0 | Q87: 145 | R87: 0 | S87: 0 | T87: 4 | U87: 0
A88: QRL | B88: R1F | C88: ISLE OF WIGHT NHS TRUST | D88: 9 | E88: 67 | F88: 1 | G88: 0 | H88: 9 | I88: 0 | J88: 0 | K88: 0 | L88: 0 | M88: 0 | N88: 0 | O88: 0 | P88: 0 | Q88: 0 | R88: 9 | S88: 0 | T88: 0 | U88: 0
A89: QRL | B89: RHU | C89: PORTSMOUTH HOSPITALS UNIVERSITY NATIONAL HEALTH SERVICE TRUST | D89: 36 | E89: 383 | F89: 0.9722222222 | G89: 0.02777777778 | H89: 28 | I89: 7 | J89: 0 | K89: 1 | L89: 0 | M89: 0 | N89: 0 | O89: 0 | P89: 0 | Q89: 0 | R89: 0 | S89: 0 | T89: 36 | U89: 0
A90: QRL | B90: RHM | C90: UNIVERSITY HOSPITAL SOUTHAMPTON NHS FOUNDATION TRUST | D90: 115 | E90: 369 | F90: 0.9565217391 | G90: 0.02608695652 | H90: 94 | I90: 16 | J90: 2 | K90: 1 | L90: 2 | M90: 0 | N90: 0 | O90: 0 | P90: 0 | Q90: 0 | R90: 0 | S90: 0 | T90: 115 | U90: 0
A91: QRV | B91: RQM | C91: CHELSEA AND WESTMINSTER HOSPITAL NHS FOUNDATION TRUST | D91: 70 | E91: 117 | F91: 0.9571428571 | G91: 0.02857142857 | H91: 64 | I91: 3 | J91: 1 | K91: 2 | L91: 0 | M91: 0 | N91: 0 | O91: 0 | P91: 0 | Q91: 0 | R91: 0 | S91: 0 | T91: 70 | U91: 0
A92: QRV | B92: RYJ | C92: IMPERIAL COLLEGE HEALTHCARE NHS TRUST | D92: 83 | E92: 649 | F92: 0.9277108434 | G92: 0.06024096386 | H92: 69 | I92: 8 | J92: 1 | K92: 1 | L92: 4 | M92: 0 | N92: 0 | O92: 35 | P92: 0 | Q92: 4 | R92: 0 | S92: 0 | T92: 44 | U92: 0
A93: QRV | B93: R1K | C93: LONDON NORTH WEST UNIVERSITY HEALTHCARE NHS TRUST | D93: 83 | E93: 318 | F93: 0.9759036145 | G93: 0 | H93: 61 | I93: 20 | J93: 2 | K93: 0 | L93: 0 | M93: 0 | N93: 0 | O93: 0 | P93: 0 | Q93: 83 | R93: 0 | S93: 0 | T93: 0 | U93: 0
A94: QRV | B94: RAS | C94: THE HILLINGDON HOSPITALS NHS FOUNDATION TRUST | D94: 41 | E94: 271 | F94: 0.9024390244 | G94: 0.07317073171 | H94: 31 | I94: 6 | J94: 1 | K94: 1 | L94: 2 | M94: 0 | N94: 0 | O94: 0 | P94: 0 | Q94: 13 | R94: 0 | S94: 0 | T94: 28 | U94: 0
A95: QSL | B95: RH5 | C95: SOMERSET NHS FOUNDATION TRUST | D95: 4 | E95: 323 | F95: * | G95: * | H95: * | I95: * | J95: * | K95: * | L95: * | M95: * | N95: * | O95: * | P95: * | Q95: * | R95: * | S95: * | T95: * | U95: *
A96: QT1 | B96: RX1 | C96: NOTTINGHAM UNIVERSITY HOSPITALS NHS TRUST | D96: 3 | E96: 377 | F96: * | G96: * | H96: * | I96: * | J96: * | K96: * | L96: * | M96: * | N96: * | O96: * | P96: * | Q96: * | R96: * | S96: * | T96: * | U96: *
A97: QT1 | B97: RK5 | C97: SHERWOOD FOREST HOSPITALS NHS FOUNDATION TRUST | D97: 34 | E97: 234 | F97: 0.9117647059 | G97: 0.08823529412 | H97: * | I97: * | J97: * | K97: * | L97: * | M97: * | N97: * | O97: * | P97: * | Q97: * | R97: * | S97: * | T97: * | U97: *
A98: QT6 | B98: REF | C98: ROYAL CORNWALL HOSPITALS NHS TRUST | D98: 14 | E98: 283 | F98: 1 | G98: 0 | H98: * | I98: * | J98: * | K98: * | L98: * | M98: * | N98: * | O98: * | P98: * | Q98: * | R98: * | S98: * | T98: * | U98: *
A99: QU9 | B99: RXQ | C99: BUCKINGHAMSHIRE HEALTHCARE NHS TRUST | D99: 23 | E99: 256 | F99: 0.7826086957 | G99: 0.1304347826 | H99: 14 | I99: 4 | J99: 1 | K99: 2 | L99: 1 | M99: 1 | N99: 22 | O99: 0 | P99: 0 | Q99: 0 | R99: 0 | S99: 0 | T99: 1 | U99: 0
A100: QU9 | B100: RTH | C100: OXFORD UNIVERSITY HOSPITALS NHS FOUNDATION TRUST | D100: 29 | E100: 399 | F100: 0.5172413793 | G100: 0.4137931034 | H100: 14 | I100: 1 | J100: 2 | K100: 5 | L100: 7 | M100: 0 | N100: 0 | O100: 0 | P100: 0 | Q100: 0 | R100: 0 | S100: 0 | T100: 29 | U100: 0
A101: QU9 | B101: RHW | C101: ROYAL BERKSHIRE NHS FOUNDATION TRUST | D101: 6 | E101: 312 | F101: 1 | G101: 0 | H101: 6 | I101: 0 | J101: 0 | K101: 0 | L101: 0 | M101: 0 | N101: 0 | O101: 0 | P101: 0 | Q101: 6 | R101: 0 | S101: 0 | T101: 0 | U101: 0
A102: QUA | B102: RNA | C102: THE DUDLEY GROUP NHS FOUNDATION TRUST | D102: 45 | E102: 288 | F102: 0.9111111111 | G102: 0 | H102: 38 | I102: 3 | J102: 1 | K102: 0 | L102: 0 | M102: 3 | N102: 0 | O102: 0 | P102: 0 | Q102: 44 | R102: 0 | S102: 0 | T102: 1 | U102: 0
A103: QUA | B103: RL4 | C103: THE ROYAL WOLVERHAMPTON NHS TRUST | D103: 42 | E103: 361 | F103: 0.9523809524 | G103: 0.02380952381 | H103: 36 | I103: 4 | J103: 1 | K103: 0 | L103: 1 | M103: 0 | N103: 42 | O103: 0 | P103: 0 | Q103: 0 | R103: 0 | S103: 0 | T103: 0 | U103: 0
A104: QUA | B104: RBK | C104: WALSALL HEALTHCARE NHS TRUST | D104: 52 | E104: 267 | F104: 0.9038461538 | G104: 0.05769230769 | H104: 45 | I104: 2 | J104: 2 | K104: 1 | L104: 2 | M104: 0 | N104: 26 | O104: 26 | P104: 0 | Q104: 0 | R104: 0 | S104: 0 | T104: 0 | U104: 0
A105: QUE | B105: RGT | C105: CAMBRIDGE UNIVERSITY HOSPITALS NHS FOUNDATION TRUST | D105: 35 | E105: 388 | F105: 0.8 | G105: 0.1142857143 | H105: 23 | I105: 5 | J105: 1 | K105: 3 | L105: 1 | M105: 2 | N105: 0 | O105: 27 | P105: 0 | Q105: 3 | R105: 0 | S105: 0 | T105: 5 | U105: 0
A106: QUE | B106: RGN | C106: NORTH WEST ANGLIA NHS FOUNDATION TRUST | D106: 19 | E106: 410 | F106: 0.9473684211 | G106: 0.05263157895 | H106: 18 | I106: 0 | J106: 0 | K106: 0 | L106: 1 | M106: 0 | N106: 0 | O106: 0 | P106: 0 | Q106: 16 | R106: 0 | S106: 0 | T106: 3 | U106: 0
A107: QUY | B107: RVJ | C107: NORTH BRISTOL NHS TRUST | D107: 86 | E107: 384 | F107: 0.9186046512 | G107: 0.06976744186 | H107: 69 | I107: 10 | J107: 1 | K107: 1 | L107: 5 | M107: 0 | N107: 85 | O107: 0 | P107: 0 | Q107: 0 | R107: 0 | S107: 0 | T107: 1 | U107: 0
A108: QUY | B108: RA7 | C108: UNIVERSITY HOSPITALS BRISTOL AND WESTON NHS FOUNDATION TRUST | D108: 61 | E108: 325 | F108: 0.9508196721 | G108: 0.01639344262 | H108: 52 | I108: 6 | J108: 1 | K108: 1 | L108: 0 | M108: 1 | N108: 0 | O108: 0 | P108: 0 | Q108: 61 | R108: 0 | S108: 0 | T108: 0 | U108: 0
A109: QVV | B109: RBD | C109: DORSET COUNTY HOSPITAL NHS FOUNDATION TRUST | D109: 11 | E109: 85 | F109: 0.9090909091 | G109: 0.09090909091 | H109: 8 | I109: 2 | J109: 0 | K109: 0 | L109: 1 | M109: 0 | N109: 0 | O109: 0 | P109: 0 | Q109: 11 | R109: 0 | S109: 0 | T109: 0 | U109: 0
A110: QVV | B110: R0D | C110: UNIVERSITY HOSPITALS DORSET NHS FOUNDATION TRUST | D110: 13 | E110: 265 | F110: 1 | G110: 0 | H110: 12 | I110: 1 | J110: 0 | K110: 0 | L110: 0 | M110: 0 | N110: 0 | O110: 11 | P110: 0 | Q110: 0 | R110: 0 | S110: 0 | T110: 2 | U110: 0
A111: QWE | B111: RJ6 | C111: CROYDON HEALTH SERVICES NHS TRUST | D111: 13 | E111: 241 | F111: 0.7692307692 | G111: 0.2307692308 | H111: * | I111: * | J111: * | K111: * | L111: * | M111: * | N111: * | O111: * | P111: * | Q111: * | R111: * | S111: * | T111: * | U111: *
A112: QWE | B112: RVR | C112: EPSOM AND ST HELIER UNIVERSITY HOSPITALS NHS TRUST | D112: 2 | E112: 312 | F112: * | G112: * | H112: * | I112: * | J112: * | K112: * | L112: * | M112: * | N112: * | O112: * | P112: * | Q112: * | R112: * | S112: * | T112: * | U112: *
A113: QWE | B113: RAX | C113: KINGSTON AND RICHMOND NHS FOUNDATION TRUST | D113: 35 | E113: 340 | F113: 1 | G113: 0 | H113: 34 | I113: 1 | J113: 0 | K113: 0 | L113: 0 | M113: 0 | N113: 0 | O113: 23 | P113: 0 | Q113: 0 | R113: 0 | S113: 0 | T113: 12 | U113: 0
A114: QWE | B114: RJ7 | C114: ST GEORGE'S UNIVERSITY HOSPITALS NHS FOUNDATION TRUST | D114: 19 | E114: 77 | F114: 0.8947368421 | G114: 0.1052631579 | H114: 16 | I114: 1 | J114: 0 | K114: 0 | L114: 2 | M114: 0 | N114: 0 | O114: 12 | P114: 0 | Q114: 0 | R114: 6 | S114: 0 | T114: 1 | U114: 0
A115: QWO | B115: RCF | C115: AIREDALE NHS FOUNDATION TRUST | D115: 24 | E115: 118 | F115: 1 | G115: 0 | H115: 23 | I115: 1 | J115: 0 | K115: 0 | L115: 0 | M115: 0 | N115: 24 | O115: 0 | P115: 0 | Q115: 0 | R115: 0 | S115: 0 | T115: 0 | U115: 0
A116: QWO | B116: RAE | C116: BRADFORD TEACHING HOSPITALS NHS FOUNDATION TRUST | D116: 76 | E116: 69 | F116: 1 | G116: 0 | H116: 72 | I116: 4 | J116: 0 | K116: 0 | L116: 0 | M116: 0 | N116: 0 | O116: 0 | P116: 0 | Q116: 0 | R116: 0 | S116: 0 | T116: 6 | U116: 70
A117: QWO | B117: RWY | C117: CALDERDALE AND HUDDERSFIELD NHS FOUNDATION TRUST | D117: 9 | E117: 271 | F117: 1 | G117: 0 | H117: 8 | I117: 1 | J117: 0 | K117: 0 | L117: 0 | M117: 0 | N117: 0 | O117: 0 | P117: 0 | Q117: 0 | R117: 0 | S117: 0 | T117: 9 | U117: 0
A118: QWO | B118: RR8 | C118: LEEDS TEACHING HOSPITALS NHS TRUST | D118: 170 | E118: 562 | F118: 0.9529411765 | G118: 0.03529411765 | H118: 149 | I118: 13 | J118: 2 | K118: 3 | L118: 3 | M118: 0 | N118: 145 | O118: 17 | P118: 0 | Q118: 3 | R118: 0 | S118: 0 | T118: 5 | U118: 0
A119: QWO | B119: RXF | C119: MID YORKSHIRE TEACHING NHS TRUST | D119: 57 | E119: 404 | F119: 0.9298245614 | G119: 0.0701754386 | H119: 49 | I119: 4 | J119: 0 | K119: 2 | L119: 2 | M119: 0 | N119: 19 | O119: 0 | P119: 0 | Q119: 36 | R119: 0 | S119: 0 | T119: 2 | U119: 0
A120: QWU | B120: RLT | C120: GEORGE ELIOT HOSPITAL NHS TRUST | D120: 19 | E120: 232 | F120: 0.8947368421 | G120: 0.05263157895 | H120: 17 | I120: 0 | J120: 1 | K120: 1 | L120: 0 | M120: 0 | N120: 0 | O120: 19 | P120: 0 | Q120: 0 | R120: 0 | S120: 0 | T120: 0 | U120: 0
A121: QWU | B121: RJC | C121: SOUTH WARWICKSHIRE UNIVERSITY NHS FOUNDATION TRUST | D121: 0 | E121: 264 | F121: NA | G121: NA | H121: 0 | I121: 0 | J121: 0 | K121: 0 | L121: 0 | M121: 0 | N121: 0 | O121: 0 | P121: 0 | Q121: 0 | R121: 0 | S121: 0 | T121: 0 | U121: 0
A122: QWU | B122: RKB | C122: UNIVERSITY HOSPITALS COVENTRY AND WARWICKSHIRE NHS TRUST | D122: 58 | E122: 435 | F122: 0.8965517241 | G122: 0.05172413793 | H122: 50 | I122: 2 | J122: 3 | K122: 0 | L122: 3 | M122: 0 | N122: 53 | O122: 1 | P122: 0 | Q122: 0 | R122: 0 | S122: 0 | T122: 4 | U122: 0
A123: QXU | B123: RTK | C123: ASHFORD AND ST PETER'S HOSPITALS NHS FOUNDATION TRUST | D123: 125 | E123: 216 | F123: 0.792 | G123: 0.096 | H123: 80 | I123: 19 | J123: 7 | K123: 2 | L123: 10 | M123: 7 | N123: 0 | O123: 125 | P123: 0 | Q123: 0 | R123: 0 | S123: 0 | T123: 0 | U123: 0
A124: QXU | B124: RA2 | C124: ROYAL SURREY COUNTY HOSPITAL NHS FOUNDATION TRUST | D124: 45 | E124: 260 | F124: 1 | G124: 0 | H124: 43 | I124: 2 | J124: 0 | K124: 0 | L124: 0 | M124: 0 | N124: 43 | O124: 0 | P124: 0 | Q124: 0 | R124: 2 | S124: 0 | T124: 0 | U124: 0
A125: QXU | B125: RTP | C125: SURREY AND SUSSEX HEALTHCARE NHS TRUST | D125: 5 | E125: 5 | F125: 0.8 | G125: 0.2 | H125: 3 | I125: 1 | J125: 0 | K125: 0 | L125: 1 | M125: 0 | N125: 1 | O125: 0 | P125: 0 | Q125: 1 | R125: 0 | S125: 0 | T125: 2 | U125: 1
A126: QYG | B126: RJR | C126: COUNTESS OF CHESTER HOSPITAL NHS FOUNDATION TRUST | D126: 29 | E126: 128 | F126: 0.9310344828 | G126: 0.06896551724 | H126: 22 | I126: 5 | J126: 0 | K126: 1 | L126: 1 | M126: 0 | N126: 23 | O126: 0 | P126: 0 | Q126: 0 | R126: 6 | S126: 0 | T126: 0 | U126: 0
A127: QYG | B127: RJN | C127: EAST CHESHIRE NHS TRUST | D127: 14 | E127: 87 | F127: 0.8571428571 | G127: 0.1428571429 | H127: 9 | I127: 3 | J127: 0 | K127: 0 | L127: 2 | M127: 0 | N127: 14 | O127: 0 | P127: 0 | Q127: 0 | R127: 0 | S127: 0 | T127: 0 | U127: 0
A128: QYG | B128: REP | C128: LIVERPOOL WOMEN'S NHS FOUNDATION TRUST | D128: 63 | E128: 519 | F128: 0.9206349206 | G128: 0.01587301587 | H128: 51 | I128: 7 | J128: 3 | K128: 1 | L128: 0 | M128: 1 | N128: 62 | O128: 0 | P128: 0 | Q128: 0 | R128: 0 | S128: 0 | T128: 0 | U128: 1
A129: QYG | B129: RBN | C129: MERSEY AND WEST LANCASHIRE TEACHING HOSPITALS NHS TRUST | D129: 51 | E129: 374 | F129: 0.8823529412 | G129: 0.09803921569 | H129: 35 | I129: 10 | J129: 1 | K129: 4 | L129: 1 | M129: 0 | N129: 48 | O129: 0 | P129: 0 | Q129: 2 | R129: 0 | S129: 0 | T129: 1 | U129: 0
A130: QYG | B130: RBT | C130: MID CHESHIRE HOSPITALS NHS FOUNDATION TRUST | D130: 40 | E130: 232 | F130: 0.975 | G130: 0.025 | H130: 35 | I130: 4 | J130: 0 | K130: 0 | L130: 1 | M130: 0 | N130: 36 | O130: 0 | P130: 0 | Q130: 0 | R130: 4 | S130: 0 | T130: 0 | U130: 0
A131: QYG | B131: RWW | C131: WARRINGTON AND HALTON TEACHING HOSPITALS NHS FOUNDATION TRUST | D131: 1 | E131: 1 | F131: * | G131: * | H131: * | I131: * | J131: * | K131: * | L131: * | M131: * | N131: * | O131: * | P131: * | Q131: * | R131: * | S131: * | T131: * | U131: *
A132: QYG | B132: RBL | C132: WIRRAL UNIVERSITY TEACHING HOSPITAL NHS FOUNDATION TRUST | D132: 10 | E132: 202 | F132: 1 | G132: 0 | H132: * | I132: * | J132: * | K132: * | L132: * | M132: * | N132: * | O132: * | P132: * | Q132: * | R132: * | S132: * | T132: * | U132: *

Sheet Sites Q2
B6: Sort data by:
A9: ICB Code | B9: Trust Code | C9: Trust Name | D9: Site Code | E9: Site Name | F9: Total Responses | G9: Percentage Positive | H9: Percentage Negative | I9: Breakdown of Responses
I10: Very Good | J10: Good | K10: Neither Good nor Poor | L10: Poor | M10: Very Poor | N10: Don't Know
E11: England (including Independent Sector providers) | F11: 4894 | G11: 0.9252145484 | H11: 0.04495300368 | I11: 3866 | J11: 662 | K11: 113 | L11: 85 | M11: 135 | N11: 33
E12: England (excluding Independent Sector providers) | F12: 4894 | G12: 0.9252145484 | H12: 0.04495300368 | I12: 3866 | J12: 662 | K12: 113 | L12: 85 | M12: 135 | N12: 33
E13: Selection (excluding suppressed data) | F13: =SUBTOTAL(9,F14:F299) -> 4894 | G13: =IFERROR((I13+J13)/SUM(I13:N13), "-") -> 0.9266651195 | H13: =IFERROR((L13+M13)/SUM(I13:N13), "-") -> 0.04316546763 | I13: =SUBTOTAL(9,I14:I299) -> 3400 | J13: 593 | K13: 99 | L13: 74 | M13: 112 | N13: 31
A14: QE1 | B14: RXL | C14: BLACKPOOL TEACHING HOSPITALS NHS FOUNDATION TRUST | D14: RXL01 | E14: Blackpool Victoria Hospital | F14: 20 | G14: 0.95 | H14: 0.05 | I14: 17 | J14: 2 | K14: 0 | L14: 1 | M14: 0 | N14: 0
A15: QE1 | B15: RXR | C15: EAST LANCASHIRE HOSPITALS NHS TRUST | D15: RXR20 | E15: Royal Blackburn Hospital | F15: 75 | G15: 0.8666666667 | H15: 0.05333333333 | I15: 58 | J15: 7 | K15: 5 | L15: 0 | M15: 4 | N15: 1
A16: QE1 | B16: RXN | C16: LANCASHIRE TEACHING HOSPITALS NHS FOUNDATION TRUST | D16: RXN01 | E16: Chorley and South Ribble Hospital | F16: 0 | G16: NA | H16: NA | I16: 0 | J16: 0 | K16: 0 | L16: 0 | M16: 0 | N16: 0
A17: QE1 | B17: RXN | C17: LANCASHIRE TEACHING HOSPITALS NHS FOUNDATION TRUST | D17: RXN02 | E17: Royal Preston Hospital | F17: 13 | G17: 0.9230769231 | H17: 0 | I17: 9 | J17: 3 | K17: 1 | L17: 0 | M17: 0 | N17: 0
A18: QE1 | B18: RTX | C18: UNIVERSITY HOSPITALS OF MORECAMBE BAY NHS FOUNDATION TRUST | D18: RTXBU | E18: Furness General Hospital | F18: 19 | G18: 1 | H18: 0 | I18: 17 | J18: 2 | K18: 0 | L18: 0 | M18: 0 | N18: 0
A19: QE1 | B19: RTX | C19: UNIVERSITY HOSPITALS OF MORECAMBE BAY NHS FOUNDATION TRUST | D19: RTX02 | E19: Royal Lancaster Infirmary | F19: 11 | G19: 1 | H19: 0 | I19: 9 | J19: 2 | K19: 0 | L19: 0 | M19: 0 | N19: 0
A20: QE1 | B20: RTX | C20: UNIVERSITY HOSPITALS OF MORECAMBE BAY NHS FOUNDATION TRUST | D20: RTXBW | E20: Westmorland General Hospital | F20: 0 | G20: NA | H20: NA | I20: 0 | J20: 0 | K20: 0 | L20: 0 | M20: 0 | N20: 0
A21: QF7 | B21: RFF | C21: BARNSLEY HOSPITAL NHS FOUNDATION TRUST | D21: RFFAA | E21: Barnsley Hospital NHS Foundation Trust HQ | F21: 19 | G21: 1 | H21: 0 | I21: 19 | J21: 0 | K21: 0 | L21: 0 | M21: 0 | N21: 0
A22: QF7 | B22: RP5 | C22: DONCASTER AND BASSETLAW TEACHING HOSPITALS NHS FOUNDATION TRUST | D22: RP5BA | E22: Bassetlaw Hospital | F22: 6 | G22: 0.6666666667 | H22: 0.1666666667 | I22: 4 | J22: 0 | K22: 1 | L22: 1 | M22: 0 | N22: 0
A23: QF7 | B23: RP5 | C23: DONCASTER AND BASSETLAW TEACHING HOSPITALS NHS FOUNDATION TRUST | D23: RP5DR | E23: Doncaster Royal Infirmary | F23: 12 | G23: 0.8333333333 | H23: 0.08333333333 | I23: 7 | J23: 3 | K23: 1 | L23: 0 | M23: 1 | N23: 0
A24: QF7 | B24: RP5 | C24: DONCASTER AND BASSETLAW TEACHING HOSPITALS NHS FOUNDATION TRUST | D24: RP5XXX | E24: Non-hospital site | F24: 0 | G24: NA | H24: NA | I24: 0 | J24: 0 | K24: 0 | L24: 0 | M24: 0 | N24: 0
A25: QF7 | B25: RHQ | C25: SHEFFIELD TEACHING HOSPITALS NHS FOUNDATION TRUST | D25: RHQHH | E25: Royal Hallamshire Hospital | F25: 39 | G25: 0.9230769231 | H25: 0.02564102564 | I25: 29 | J25: 7 | K25: 2 | L25: 0 | M25: 1 | N25: 0
A26: QF7 | B26: RFR | C26: THE ROTHERHAM NHS FOUNDATION TRUST | D26: RFRPA | E26: Rotherham District General Hospital | F26: 5 | G26: 1 | H26: 0 | I26: 5 | J26: 0 | K26: 0 | L26: 0 | M26: 0 | N26: 0
A27: QGH | B27: RWP | C27: WORCESTERSHIRE ACUTE HOSPITALS NHS TRUST | D27: RWP50 | E27: Worcestershire Royal Hospital | F27: 97 | G27: 0.9896907216 | H27: 0 | I27: 90 | J27: 6 | K27: 1 | L27: 0 | M27: 0 | N27: 0
A28: QGH | B28: RLQ | C28: WYE VALLEY NHS TRUST | D28: RLQ01 | E28: Hereford County Hospital | F28: 34 | G28: 0.9411764706 | H28: 0 | I28: 28 | J28: 4 | K28: 2 | L28: 0 | M28: 0 | N28: 0
A29: QH8 | B29: RAJ | C29: MID AND SOUTH ESSEX NHS FOUNDATION TRUST | D29: RAJ12 | E29: BASILDON HOSPITAL | F29: 56 | G29: 0.9107142857 | H29: 0.05357142857 | I29: 44 | J29: 7 | K29: 2 | L29: 0 | M29: 3 | N29: 0
A30: QH8 | B30: RAJ | C30: MID AND SOUTH ESSEX NHS FOUNDATION TRUST | D30: RAJ32 | E30: MID ESSEX HOSPITAL | F30: 59 | G30: 0.813559322 | H30: 0.1355932203 | I30: 41 | J30: 7 | K30: 3 | L30: 2 | M30: 6 | N30: 0
A31: QH8 | B31: RAJ | C31: MID AND SOUTH ESSEX NHS FOUNDATION TRUST | D31: RAJ01 | E31: Southend Hospital | F31: 67 | G31: 0.9402985075 | H31: 0.0447761194 | I31: 54 | J31: 9 | K31: 0 | L31: 1 | M31: 2 | N31: 1
A32: QHG | B32: RC9 | C32: BEDFORDSHIRE HOSPITALS NHS FOUNDATION TRUST | D32: RC979 | E32: BEDFORD HOSPITAL SOUTH WING | F32: 8 | G32: 1 | H32: 0 | I32: 8 | J32: 0 | K32: 0 | L32: 0 | M32: 0 | N32: 0
A33: QHG | B33: RC9 | C33: BEDFORDSHIRE HOSPITALS NHS FOUNDATION TRUST | D33: RC971 | E33: Luton and Dunstable Hospital | F33: 29 | G33: 1 | H33: 0 | I33: 22 | J33: 7 | K33: 0 | L33: 0 | M33: 0 | N33: 0
A34: QHG | B34: RD8 | C34: MILTON KEYNES UNIVERSITY HOSPITAL NHS FOUNDATION TRUST | D34: RD816 | E34: Milton Keynes Hospital | F34: 32 | G34: 0.9375 | H34: 0.03125 | I34: 25 | J34: 5 | K34: 1 | L34: 0 | M34: 1 | N34: 0
A35: QHL | B35: RQ3 | C35: BIRMINGHAM WOMEN'S AND CHILDREN'S NHS FOUNDATION TRUST | D35: RQ370 | E35: Birmingham Women's Hospital | F35: 16 | G35: 0.8125 | H35: 0.0625 | I35: 11 | J35: 2 | K35: 2 | L35: 1 | M35: 0 | N35: 0
A36: QHL | B36: RXK | C36: SANDWELL AND WEST BIRMINGHAM HOSPITALS NHS TRUST | D36: RXK02 | E36: City Hospital | F36: 1 | G36: * | H36: * | I36: * | J36: * | K36: * | L36: * | M36: * | N36: *
A37: QHL | B37: RXK | C37: SANDWELL AND WEST BIRMINGHAM HOSPITALS NHS TRUST | D37: I3W1A | E37: MIDLAND METROPOLITAN UNIVERSITY HOSPITAL | F37: 37 | G37: 0.7837837838 | H37: 0.1891891892 | I37: * | J37: * | K37: * | L37: * | M37: * | N37: *
A38: QHL | B38: RRK | C38: UNIVERSITY HOSPITALS BIRMINGHAM NHS FOUNDATION TRUST | D38: RRK98 | E38: Good Hope Hospital | F38: 33 | G38: 0.8484848485 | H38: 0.09090909091 | I38: 24 | J38: 4 | K38: 2 | L38: 2 | M38: 1 | N38: 0
A39: QHL | B39: RRK | C39: UNIVERSITY HOSPITALS BIRMINGHAM NHS FOUNDATION TRUST | D39: RRK97 | E39: Heartlands Hospital | F39: 43 | G39: 0.6976744186 | H39: 0.2093023256 | I39: 21 | J39: 9 | K39: 2 | L39: 5 | M39: 4 | N39: 2
A40: QHL | B40: RRK | C40: UNIVERSITY HOSPITALS BIRMINGHAM NHS FOUNDATION TRUST | D40: RRK99 | E40: Solihull Hospital | F40: 0 | G40: NA | H40: NA | I40: 0 | J40: 0 | K40: 0 | L40: 0 | M40: 0 | N40: 0
A41: QHM | B41: RXP | C41: COUNTY DURHAM AND DARLINGTON NHS FOUNDATION TRUST | D41: RXPDA | E41: Darlington Memorial Hospital | F41: 66 | G41: 0.9848484848 | H41: 0 | I41: 55 | J41: 10 | K41: 1 | L41: 0 | M41: 0 | N41: 0
A42: QHM | B42: RXP | C42: COUNTY DURHAM AND DARLINGTON NHS FOUNDATION TRUST | D42: RXPCP | E42: University Hospital Of North Durham | F42: 10 | G42: 0.9 | H42: 0.1 | I42: 5 | J42: 4 | K42: 0 | L42: 1 | M42: 0 | N42: 0
A43: QHM | B43: RR7 | C43: GATESHEAD HEALTH NHS FOUNDATION TRUST | D43: RR7EN | E43: Queen Elizabeth Hospital | F43: 13 | G43: 1 | H43: 0 | I43: 13 | J43: 0 | K43: 0 | L43: 0 | M43: 0 | N43: 0
A44: QHM | B44: RNN | C44: NORTH CUMBRIA INTEGRATED CARE NHS FOUNDATION TRUST | D44: RNN62 | E44: Cumberland Infirmary | F44: 8 | G44: 1 | H44: 0 | I44: 6 | J44: 2 | K44: 0 | L44: 0 | M44: 0 | N44: 0
A45: QHM | B45: RNN | C45: NORTH CUMBRIA INTEGRATED CARE NHS FOUNDATION TRUST | D45: RNNBX | E45: West Cumberland Hospital | F45: 9 | G45: 1 | H45: 0 | I45: 9 | J45: 0 | K45: 0 | L45: 0 | M45: 0 | N45: 0
A46: QHM | B46: RVW | C46: NORTH TEES AND HARTLEPOOL NHS FOUNDATION TRUST | D46: RVWAE | E46: University Hospital Of North Tees | F46: 1 | G46: * | H46: * | I46: * | J46: * | K46: * | L46: * | M46: * | N46: *
A47: QHM | B47: RTF | C47: NORTHUMBRIA HEALTHCARE NHS FOUNDATION TRUST | D47: RTFDJ | E47: Alnwick Infirmary | F47: 0 | G47: NA | H47: NA | I47: 0 | J47: 0 | K47: 0 | L47: 0 | M47: 0 | N47: 0
A48: QHM | B48: RTF | C48: NORTHUMBRIA HEALTHCARE NHS FOUNDATION TRUST | D48: RTFDH | E48: Berwick Infirmary | F48: 0 | G48: NA | H48: NA | I48: 0 | J48: 0 | K48: 0 | L48: 0 | M48: 0 | N48: 0
A49: QHM | B49: RTF | C49: NORTHUMBRIA HEALTHCARE NHS FOUNDATION TRUST | D49: RTFDR | E49: Hexham General Hospital | F49: 0 | G49: NA | H49: NA | I49: 0 | J49: 0 | K49: 0 | L49: 0 | M49: 0 | N49: 0
A50: QHM | B50: RTF | C50: NORTHUMBRIA HEALTHCARE NHS FOUNDATION TRUST | D50: RTFXXX | E50: Non-hospital site | F50: 0 | G50: NA | H50: NA | I50: 0 | J50: 0 | K50: 0 | L50: 0 | M50: 0 | N50: 0
A51: QHM | B51: RTF | C51: NORTHUMBRIA HEALTHCARE NHS FOUNDATION TRUST | D51: RTF86 | E51: The Northumbria | F51: 30 | G51: 1 | H51: 0 | I51: 27 | J51: 3 | K51: 0 | L51: 0 | M51: 0 | N51: 0
A52: QHM | B52: RTR | C52: SOUTH TEES HOSPITALS NHS FOUNDATION TRUST | D52: RTR45 | E52: Friarage Hospital Site | F52: 0 | G52: NA | H52: NA | I52: 0 | J52: 0 | K52: 0 | L52: 0 | M52: 0 | N52: 0
A53: QHM | B53: RTR | C53: SOUTH TEES HOSPITALS NHS FOUNDATION TRUST | D53: RTRAT | E53: The James Cook University Hospital | F53: 37 | G53: 0.9189189189 | H53: 0.02702702703 | I53: 30 | J53: 4 | K53: 2 | L53: 1 | M53: 0 | N53: 0
A54: QHM | B54: R0B | C54: SOUTH TYNESIDE AND SUNDERLAND NHS FOUNDATION TRUST | D54: R0B0Q | E54: South Tyneside District Hospital | F54: 2 | G54: * | H54: * | I54: * | J54: * | K54: * | L54: * | M54: * | N54: *
A55: QHM | B55: R0B | C55: SOUTH TYNESIDE AND SUNDERLAND NHS FOUNDATION TRUST | D55: R0B01 | E55: Sunderland Royal Hospital | F55: 1 | G55: * | H55: * | I55: * | J55: * | K55: * | L55: * | M55: * | N55: *
A56: QHM | B56: RTD | C56: THE NEWCASTLE UPON TYNE HOSPITALS NHS FOUNDATION TRUST | D56: RTD02 | E56: The Royal Victoria Infirmary | F56: 59 | G56: 0.7796610169 | H56: 0.08474576271 | I56: 35 | J56: 11 | K56: 8 | L56: 3 | M56: 2 | N56: 0
A57: QJ2 | B57: RFS | C57: CHESTERFIELD ROYAL HOSPITAL NHS FOUNDATION TRUST | D57: RFSDA | E57: Chesterfield Royal Hospital | F57: 68 | G57: 0.9705882353 | H57: 0.01470588235 | I57: 59 | J57: 7 | K57: 1 | L57: 1 | M57: 0 | N57: 0
A58: QJ2 | B58: RTG | C58: UNIVERSITY HOSPITALS OF DERBY AND BURTON NHS FOUNDATION TRUST | D58: RTG02 | E58: Queens Hospital, Burton Upon Trent | F58: 17 | G58: 1 | H58: 0 | I58: 14 | J58: 3 | K58: 0 | L58: 0 | M58: 0 | N58: 0
A59: QJ2 | B59: RTG | C59: UNIVERSITY HOSPITALS OF DERBY AND BURTON NHS FOUNDATION TRUST | D59: RTGFG | E59: Royal Derby Hospital | F59: 33 | G59: 0.9393939394 | H59: 0.06060606061 | I59: 23 | J59: 8 | K59: 0 | L59: 0 | M59: 2 | N59: 0
A60: QJG | B60: RDE | C60: EAST SUFFOLK AND NORTH ESSEX NHS FOUNDATION TRUST | D60: RDEE2 | E60: Clacton and District Hospital | F60: 0 | G60: NA | H60: NA | I60: 0 | J60: 0 | K60: 0 | L60: 0 | M60: 0 | N60: 0
A61: QJG | B61: RDE | C61: EAST SUFFOLK AND NORTH ESSEX NHS FOUNDATION TRUST | D61: RDEE4 | E61: Colchester General Hospital | F61: 2 | G61: * | H61: * | I61: * | J61: * | K61: * | L61: * | M61: * | N61: *
A62: QJG | B62: RDE | C62: EAST SUFFOLK AND NORTH ESSEX NHS FOUNDATION TRUST | D62: RDE03 | E62: Ipswich Hospital | F62: 7 | G62: 1 | H62: 0 | I62: * | J62: * | K62: * | L62: * | M62: * | N62: *
A63: QJG | B63: RDE | C63: EAST SUFFOLK AND NORTH ESSEX NHS FOUNDATION TRUST | D63: RDEXXX | E63: Non-hospital site | F63: 0 | G63: NA | H63: NA | I63: 0 | J63: 0 | K63: 0 | L63: 0 | M63: 0 | N63: 0
A64: QJG | B64: RGR | C64: WEST SUFFOLK NHS FOUNDATION TRUST | D64: RGR50 | E64: West Suffolk Hospital | F64: 6 | G64: 1 | H64: 0 | I64: 6 | J64: 0 | K64: 0 | L64: 0 | M64: 0 | N64: 0
A65: QJK | B65: RH8 | C65: ROYAL DEVON UNIVERSITY HEALTHCARE NHS FOUNDATION TRUST | D65: RH8XXX | E65: Non-hospital site | F65: 0 | G65: NA | H65: NA | I65: 0 | J65: 0 | K65: 0 | L65: 0 | M65: 0 | N65: 0
A66: QJK | B66: RH8 | C66: ROYAL DEVON UNIVERSITY HEALTHCARE NHS FOUNDATION TRUST | D66: RH880 | E66: North Devon District Hospital | F66: 3 | G66: * | H66: * | I66: * | J66: * | K66: * | L66: * | M66: * | N66: *
A67: QJK | B67: RH8 | C67: ROYAL DEVON UNIVERSITY HEALTHCARE NHS FOUNDATION TRUST | D67: RH801 | E67: Royal Devon and Exeter Hospital (Wonford) | F67: 3 | G67: * | H67: * | I67: * | J67: * | K67: * | L67: * | M67: * | N67: *
A68: QJK | B68: RH8 | C68: ROYAL DEVON UNIVERSITY HEALTHCARE NHS FOUNDATION TRUST | D68: RH853 | E68: Tiverton and District Hospital | F68: 0 | G68: NA | H68: NA | I68: 0 | J68: 0 | K68: 0 | L68: 0 | M68: 0 | N68: 0
A69: QJK | B69: RA9 | C69: TORBAY AND SOUTH DEVON NHS FOUNDATION TRUST | D69: RA901 | E69: Torbay Hospital | F69: 0 | G69: NA | H69: NA | I69: 0 | J69: 0 | K69: 0 | L69: 0 | M69: 0 | N69: 0
A70: QJK | B70: RK9 | C70: UNIVERSITY HOSPITALS PLYMOUTH NHS TRUST | D70: RK950 | E70: Derriford Hospital | F70: 13 | G70: 1 | H70: 0 | I70: * | J70: * | K70: * | L70: * | M70: * | N70: *
A71: QJK | B71: RK9 | C71: UNIVERSITY HOSPITALS PLYMOUTH NHS TRUST | D71: RK9XXX | E71: Non-hospital site | F71: 2 | G71: * | H71: * | I71: * | J71: * | K71: * | L71: * | M71: * | N71: *
A72: QJM | B72: RWD | C72: UNITED LINCOLNSHIRE TEACHING HOSPITALS NHS TRUST | D72: RWDLP | E72: Grantham and District Hospital | F72: 0 | G72: NA | H72: NA | I72: 0 | J72: 0 | K72: 0 | L72: 0 | M72: 0 | N72: 0
A73: QJM | B73: RWD | C73: UNITED LINCOLNSHIRE TEACHING HOSPITALS NHS TRUST | D73: RWDDA | E73: Lincoln County Hospital | F73: 0 | G73: NA | H73: NA | I73: 0 | J73: 0 | K73: 0 | L73: 0 | M73: 0 | N73: 0
A74: QJM | B74: RWD | C74: UNITED LINCOLNSHIRE TEACHING HOSPITALS NHS TRUST | D74: RWDLA | E74: Pilgrim Hospital | F74: 0 | G74: NA | H74: NA | I74: 0 | J74: 0 | K74: 0 | L74: 0 | M74: 0 | N74: 0
A75: QK1 | B75: RWE | C75: UNIVERSITY HOSPITALS OF LEICESTER NHS TRUST | D75: RWEAK | E75: Leicester General Hospital | F75: 32 | G75: 0.9375 | H75: 0 | I75: 25 | J75: 5 | K75: 2 | L75: 0 | M75: 0 | N75: 0
A76: QK1 | B76: RWE | C76: UNIVERSITY HOSPITALS OF LEICESTER NHS TRUST | D76: RWEAA | E76: Leicester Royal Infirmary | F76: 107 | G76: 0.9439252336 | H76: 0.01869158879 | I76: 75 | J76: 26 | K76: 4 | L76: 2 | M76: 0 | N76: 0
A77: QK1 | B77: RWE | C77: UNIVERSITY HOSPITALS OF LEICESTER NHS TRUST | D77: RWEXXX | E77: Non-hospital site | F77: 10 | G77: 0.9 | H77: 0 | I77: 9 | J77: 0 | K77: 0 | L77: 0 | M77: 0 | N77: 1
A78: QK1 | B78: RWE | C78: UNIVERSITY HOSPITALS OF LEICESTER NHS TRUST | D78: RWE10 | E78: St Mary's Hospital | F78: 0 | G78: NA | H78: NA | I78: 0 | J78: 0 | K78: 0 | L78: 0 | M78: 0 | N78: 0
A79: QKK | B79: RJ1 | C79: GUY'S AND ST THOMAS' NHS FOUNDATION TRUST | D79: RJ1XXX | E79: Non-hospital site | F79: 0 | G79: NA | H79: NA | I79: 0 | J79: 0 | K79: 0 | L79: 0 | M79: 0 | N79: 0
A80: QKK | B80: RJ1 | C80: GUY'S AND ST THOMAS' NHS FOUNDATION TRUST | D80: RJ122 | E80: St Thomas' Hospital | F80: 112 | G80: 0.9464285714 | H80: 0.008928571429 | I80: 72 | J80: 34 | K80: 5 | L80: 0 | M80: 1 | N80: 0
A81: QKK | B81: RJZ | C81: KING'S COLLEGE HOSPITAL NHS FOUNDATION TRUST | D81: RJZ01 | E81: King's College Hospital (Denmark Hill) | F81: 0 | G81: NA | H81: NA | I81: 0 | J81: 0 | K81: 0 | L81: 0 | M81: 0 | N81: 0
A82: QKK | B82: RJZ | C82: KING'S COLLEGE HOSPITAL NHS FOUNDATION TRUST | D82: RJZ30 | E82: Princess Royal University Hospital | F82: 98 | G82: 0.9795918367 | H82: 0.01020408163 | I82: 79 | J82: 17 | K82: 1 | L82: 0 | M82: 1 | N82: 0
A83: QKK | B83: RJ2 | C83: LEWISHAM AND GREENWICH NHS TRUST | D83: RJ231 | E83: Queen Elizabeth Hospital | F83: 46 | G83: 0.9347826087 | H83: 0.02173913043 | I83: 31 | J83: 12 | K83: 2 | L83: 1 | M83: 0 | N83: 0
A84: QKK | B84: RJ2 | C84: LEWISHAM AND GREENWICH NHS TRUST | D84: RJ224 | E84: University Hospital Lewisham | F84: 26 | G84: 1 | H84: 0 | I84: 13 | J84: 13 | K84: 0 | L84: 0 | M84: 0 | N84: 0
A85: QKS | B85: RN7 | C85: DARTFORD AND GRAVESHAM NHS TRUST | D85: RN707 | E85: Darent Valley Hospital | F85: 23 | G85: 1 | H85: 0 | I85: 23 | J85: 0 | K85: 0 | L85: 0 | M85: 0 | N85: 0
A86: QKS | B86: RVV | C86: EAST KENT HOSPITALS UNIVERSITY NHS FOUNDATION TRUST | D86: RVV09 | E86: Queen Elizabeth The Queen Mother Hospital | F86: 20 | G86: 1 | H86: 0 | I86: 18 | J86: 2 | K86: 0 | L86: 0 | M86: 0 | N86: 0
A87: QKS | B87: RVV | C87: EAST KENT HOSPITALS UNIVERSITY NHS FOUNDATION TRUST | D87: RVV01 | E87: William Harvey Hospital (Ashford) | F87: 25 | G87: 0.92 | H87: 0.08 | I87: 14 | J87: 9 | K87: 0 | L87: 2 | M87: 0 | N87: 0
A88: QKS | B88: RWF | C88: MAIDSTONE AND TUNBRIDGE WELLS NHS TRUST | D88: RWF08 | E88: Crowborough Birthing Centre | F88: 6 | G88: 1 | H88: 0 | I88: 4 | J88: 2 | K88: 0 | L88: 0 | M88: 0 | N88: 0
A89: QKS | B89: RWF | C89: MAIDSTONE AND TUNBRIDGE WELLS NHS TRUST | D89: RWF03 | E89: Maidstone District General Hospital | F89: 20 | G89: 1 | H89: 0 | I89: 18 | J89: 2 | K89: 0 | L89: 0 | M89: 0 | N89: 0
A90: QKS | B90: RWF | C90: MAIDSTONE AND TUNBRIDGE WELLS NHS TRUST | D90: RWFXXX | E90: Non-hospital site | F90: 3 | G90: * | H90: * | I90: * | J90: * | K90: * | L90: * | M90: * | N90: *
A91: QKS | B91: RWF | C91: MAIDSTONE AND TUNBRIDGE WELLS NHS TRUST | D91: RWFTW | E91: The Tunbridge Wells Hospital | F91: 4 | G91: * | H91: * | I91: * | J91: * | K91: * | L91: * | M91: * | N91: *
A92: QKS | B92: RPA | C92: MEDWAY NHS FOUNDATION TRUST | D92: RPA02 | E92: Medway Maritime Hospital | F92: 46 | G92: 0.9565217391 | H92: 0 | I92: 39 | J92: 5 | K92: 2 | L92: 0 | M92: 0 | N92: 0
A93: QM7 | B93: RWH | C93: EAST AND NORTH HERTFORDSHIRE NHS TRUST | D93: RWH01 | E93: Lister Hospital | F93: 14 | G93: 1 | H93: 0 | I93: * | J93: * | K93: * | L93: * | M93: * | N93: *
A94: QM7 | B94: RWH | C94: EAST AND NORTH HERTFORDSHIRE NHS TRUST | D94: RWHXXX | E94: Non-hospital site | F94: 0 | G94: NA | H94: NA | I94: 0 | J94: 0 | K94: 0 | L94: 0 | M94: 0 | N94: 0
A95: QM7 | B95: RQW | C95: THE PRINCESS ALEXANDRA HOSPITAL NHS TRUST | D95: RQWG0 | E95: Princess Alexandra Hospital | F95: 1 | G95: * | H95: * | I95: * | J95: * | K95: * | L95: * | M95: * | N95: *
A96: QM7 | B96: RWG | C96: WEST HERTFORDSHIRE TEACHING HOSPITALS NHS TRUST | D96: RWG02 | E96: Watford General Hospital | F96: 21 | G96: 0.9047619048 | H96: 0.09523809524 | I96: 16 | J96: 3 | K96: 0 | L96: 0 | M96: 2 | N96: 0
A97: QMF | B97: RF4 | C97: BARKING, HAVERING AND REDBRIDGE UNIVERSITY HOSPITALS NHS TRUST | D97: RF4QH | E97: Queen's Hospital | F97: 51 | G97: 0.9215686275 | H97: 0 | I97: 40 | J97: 7 | K97: 0 | L97: 0 | M97: 0 | N97: 4
A98: QMF | B98: R1H | C98: BARTS HEALTH NHS TRUST | D98: R1HNH | E98: Newham General Hospital | F98: 32 | G98: 0.96875 | H98: 0.03125 | I98: 23 | J98: 8 | K98: 0 | L98: 0 | M98: 1 | N98: 0
A99: QMF | B99: R1H | C99: BARTS HEALTH NHS TRUST | D99: R1H12 | E99: The Royal London Hospital | F99: 10 | G99: 0.8 | H99: 0 | I99: 5 | J99: 3 | K99: 0 | L99: 0 | M99: 0 | N99: 2
A100: QMF | B100: R1H | C100: BARTS HEALTH NHS TRUST | D100: R1HKH | E100: Whipps Cross University Hospital | F100: 19 | G100: 0.9473684211 | H100: 0.05263157895 | I100: 16 | J100: 2 | K100: 0 | L100: 1 | M100: 0 | N100: 0
A101: QMF | B101: RQX | C101: HOMERTON HEALTHCARE NHS FOUNDATION TRUST | D101: RQXM1 | E101: Homerton University Hospital | F101: 7 | G101: 0.8571428571 | H101: 0 | I101: 4 | J101: 2 | K101: 1 | L101: 0 | M101: 0 | N101: 0
A102: QMJ | B102: RAL | C102: ROYAL FREE LONDON NHS FOUNDATION TRUST | D102: RAL26 | E102: Barnet Hospital | F102: 25 | G102: 1 | H102: 0 | I102: 23 | J102: 2 | K102: 0 | L102: 0 | M102: 0 | N102: 0
A103: QMJ | B103: RAL | C103: ROYAL FREE LONDON NHS FOUNDATION TRUST | D103: E3M3C | E103: NORTH MIDDLESEX HOSPITAL DSU - ELECTIVE SURGICAL HUB | F103: 85 | G103: 0.9294117647 | H103: 0.04705882353 | I103: 62 | J103: 17 | K103: 2 | L103: 3 | M103: 1 | N103: 0
A104: QMJ | B104: RAL | C104: ROYAL FREE LONDON NHS FOUNDATION TRUST | D104: RAL01 | E104: Royal Free Hospital | F104: 5 | G104: 1 | H104: 0 | I104: 3 | J104: 2 | K104: 0 | L104: 0 | M104: 0 | N104: 0
A105: QMJ | B105: RRV | C105: UNIVERSITY COLLEGE LONDON HOSPITALS NHS FOUNDATION TRUST | D105: RRV11 | E105: University College Hospital Elizabeth Garrett Anderson Wing | F105: 1 | G105: * | H105: * | I105: * | J105: * | K105: * | L105: * | M105: * | N105: *
A106: QMJ | B106: RKE | C106: WHITTINGTON HEALTH NHS TRUST | D106: RKEXXX | E106: Non-hospital site | F106: 0 | G106: NA | H106: NA | I106: 0 | J106: 0 | K106: 0 | L106: 0 | M106: 0 | N106: 0
A107: QMJ | B107: RKE | C107: WHITTINGTON HEALTH NHS TRUST | D107: RKEQ4 | E107: The Whittington Hospital | F107: 4 | G107: * | H107: * | I107: * | J107: * | K107: * | L107: * | M107: * | N107: *
A108: QMM | B108: RGP | C108: JAMES PAGET UNIVERSITY HOSPITALS NHS FOUNDATION TRUST | D108: RGP75 | E108: James Paget University Hospital | F108: 21 | G108: 1 | H108: 0 | I108: 20 | J108: 1 | K108: 0 | L108: 0 | M108: 0 | N108: 0
A109: QMM | B109: RM1 | C109: NORFOLK AND NORWICH UNIVERSITY HOSPITALS NHS FOUNDATION TRUST | D109: RM102 | E109: Norfolk and Norwich University Hospital | F109: 2 | G109: * | H109: * | I109: * | J109: * | K109: * | L109: * | M109: * | N109: *
A110: QMM | B110: RCX | C110: THE QUEEN ELIZABETH HOSPITAL, KING'S LYNN, NHS FOUNDATION TRUST | D110: RCXXXX | E110: Non-hospital site | F110: 0 | G110: NA | H110: NA | I110: 0 | J110: 0 | K110: 0 | L110: 0 | M110: 0 | N110: 0
A111: QMM | B111: RCX | C111: THE QUEEN ELIZABETH HOSPITAL, KING'S LYNN, NHS FOUNDATION TRUST | D111: RCX70 | E111: The Queen Elizabeth Hospital | F111: 14 | G111: 1 | H111: 0 | I111: * | J111: * | K111: * | L111: * | M111: * | N111: *
A112: QNC | B112: RJE | C112: UNIVERSITY HOSPITALS OF NORTH MIDLANDS NHS TRUST | D112: RJE01 | E112: Royal Stoke University Hospital | F112: 37 | G112: 0.9459459459 | H112: 0.05405405405 | I112: 29 | J112: 6 | K112: 0 | L112: 0 | M112: 2 | N112: 0
A113: QNQ | B113: RDU | C113: FRIMLEY HEALTH NHS FOUNDATION TRUST | D113: RDU01 | E113: Frimley Park Hospital | F113: 5 | G113: 1 | H113: 0 | I113: 5 | J113: 0 | K113: 0 | L113: 0 | M113: 0 | N113: 0
A114: QNQ | B114: RDU | C114: FRIMLEY HEALTH NHS FOUNDATION TRUST | D114: RDU50 | E114: Wexham Park Hospital | F114: 86 | G114: 0.988372093 | H114: 0 | I114: 71 | J114: 14 | K114: 1 | L114: 0 | M114: 0 | N114: 0
A115: QNX | B115: RXC | C115: EAST SUSSEX HEALTHCARE NHS TRUST | D115: RXC01 | E115: Conquest Hospital | F115: 41 | G115: 0.9756097561 | H115: 0 | I115: * | J115: * | K115: * | L115: * | M115: * | N115: *
A116: QNX | B116: RXC | C116: EAST SUSSEX HEALTHCARE NHS TRUST | D116: RXC02 | E116: Eastbourne District General Hospital | F116: 0 | G116: NA | H116: NA | I116: 0 | J116: 0 | K116: 0 | L116: 0 | M116: 0 | N116: 0
A117: QNX | B117: RXC | C117: EAST SUSSEX HEALTHCARE NHS TRUST | D117: RXCXXX | E117: Non-hospital site | F117: 1 | G117: * | H117: * | I117: * | J117: * | K117: * | L117: * | M117: * | N117: *
A118: QNX | B118: RYR | C118: UNIVERSITY HOSPITALS SUSSEX NHS FOUNDATION TRUST | D118: N6J7V | E118: Princess Royal Hospital | F118: 28 | G118: 0.9285714286 | H118: 0 | I118: 24 | J118: 2 | K118: 2 | L118: 0 | M118: 0 | N118: 0
A119: QNX | B119: RYR | C119: UNIVERSITY HOSPITALS SUSSEX NHS FOUNDATION TRUST | D119: E0A3H | E119: Royal Sussex County Hospital | F119: 17 | G119: 0.9411764706 | H119: 0 | I119: 14 | J119: 2 | K119: 1 | L119: 0 | M119: 0 | N119: 0
A120: QNX | B120: RYR | C120: UNIVERSITY HOSPITALS SUSSEX NHS FOUNDATION TRUST | D120: RYR16 | E120: St Richard's Hospital | F120: 32 | G120: 0.96875 | H120: 0.03125 | I120: 28 | J120: 3 | K120: 0 | L120: 1 | M120: 0 | N120: 0
A121: QNX | B121: RYR | C121: UNIVERSITY HOSPITALS SUSSEX NHS FOUNDATION TRUST | D121: RYR18 | E121: Worthing Hospital | F121: 25 | G121: 0.92 | H121: 0.04 | I121: 21 | J121: 2 | K121: 1 | L121: 0 | M121: 1 | N121: 0
A122: QOC | B122: RXW | C122: THE SHREWSBURY AND TELFORD HOSPITAL NHS TRUST | D122: RXWAT | E122: The Princess Royal Hospital | F122: 17 | G122: 1 | H122: 0 | I122: 16 | J122: 1 | K122: 0 | L122: 0 | M122: 0 | N122: 0
A123: QOP | B123: RMC | C123: BOLTON NHS FOUNDATION TRUST | D123: RMC01 | E123: Royal Bolton Hospital | F123: 167 | G123: 0.8922155689 | H123: 0.07185628743 | I123: 133 | J123: 16 | K123: 3 | L123: 5 | M123: 7 | N123: 3
A124: QOP | B124: R0A | C124: MANCHESTER UNIVERSITY NHS FOUNDATION TRUST | D124: R0A05 | E124: St Mary's Hospital | F124: 100 | G124: 0.94 | H124: 0.05 | I124: 69 | J124: 25 | K124: 1 | L124: 2 | M124: 3 | N124: 0
A125: QOP | B125: RM3 | C125: NORTHERN CARE ALLIANCE NHS FOUNDATION TRUST | D125: RM317 | E125: Royal Oldham Hospital | F125: 136 | G125: 0.7941176471 | H125: 0.1911764706 | I125: 83 | J125: 25 | K125: 1 | L125: 6 | M125: 20 | N125: 1
A126: QOP | B126: RWJ | C126: STOCKPORT NHS FOUNDATION TRUST | D126: RWJXXX | E126: Non-hospital site | F126: 0 | G126: NA | H126: NA | I126: 0 | J126: 0 | K126: 0 | L126: 0 | M126: 0 | N126: 0
A127: QOP | B127: RWJ | C127: STOCKPORT NHS FOUNDATION TRUST | D127: RWJ09 | E127: Stepping Hill Hospital | F127: 6 | G127: 1 | H127: 0 | I127: 6 | J127: 0 | K127: 0 | L127: 0 | M127: 0 | N127: 0
A128: QOP | B128: RMP | C128: TAMESIDE AND GLOSSOP INTEGRATED CARE NHS FOUNDATION TRUST | D128: RMP01 | E128: Tameside General Hospital | F128: 13 | G128: 0.8461538462 | H128: 0.07692307692 | I128: 10 | J128: 1 | K128: 1 | L128: 1 | M128: 0 | N128: 0
A129: QOP | B129: RRF | C129: WRIGHTINGTON, WIGAN AND LEIGH NHS FOUNDATION TRUST | D129: RRF02 | E129: Royal Albert Edward Infirmary | F129: 19 | G129: 1 | H129: 0 | I129: 15 | J129: 4 | K129: 0 | L129: 0 | M129: 0 | N129: 0
A130: QOQ | B130: RCD | C130: HARROGATE AND DISTRICT NHS FOUNDATION TRUST | D130: RCD01 | E130: Harrogate District Hospital | F130: 2 | G130: * | H130: * | I130: * | J130: * | K130: * | L130: * | M130: * | N130: *
A131: QOQ | B131: RWA | C131: HULL UNIVERSITY TEACHING HOSPITALS NHS TRUST | D131: RWA01 | E131: Hull Royal Infirmary | F131: 12 | G131: 1 | H131: 0 | I131: * | J131: * | K131: * | L131: * | M131: * | N131: *
A132: QOQ | B132: RJL | C132: NORTHERN LINCOLNSHIRE AND GOOLE NHS FOUNDATION TRUST | D132: RJL30 | E132: Diana, Princess Of Wales Hospital | F132: 14 | G132: 1 | H132: 0 | I132: 12 | J132: 2 | K132: 0 | L132: 0 | M132: 0 | N132: 0
A133: QOQ | B133: RJL | C133: NORTHERN LINCOLNSHIRE AND GOOLE NHS FOUNDATION TRUST | D133: RJL32 | E133: Scunthorpe General Hospital | F133: 9 | G133: 0.8888888889 | H133: 0 | I133: 8 | J133: 0 | K133: 1 | L133: 0 | M133: 0 | N133: 0
A134: QOQ | B134: RCB | C134: YORK AND SCARBOROUGH TEACHING HOSPITALS NHS FOUNDATION TRUST | D134: RCBCA | E134: Scarborough General Hospital | F134: 0 | G134: NA | H134: NA | I134: 0 | J134: 0 | K134: 0 | L134: 0 | M134: 0 | N134: 0
A135: QOQ | B135: RCB | C135: YORK AND SCARBOROUGH TEACHING HOSPITALS NHS FOUNDATION TRUST | D135: RCB55 | E135: York Hospital | F135: 0 | G135: NA | H135: NA | I135: 0 | J135: 0 | K135: 0 | L135: 0 | M135: 0 | N135: 0
A136: QOX | B136: RN3 | C136: GREAT WESTERN HOSPITALS NHS FOUNDATION TRUST | D136: RN3XXX | E136: Non-hospital site | F136: 0 | G136: NA | H136: NA | I136: 0 | J136: 0 | K136: 0 | L136: 0 | M136: 0 | N136: 0
A137: QOX | B137: RN3 | C137: GREAT WESTERN HOSPITALS NHS FOUNDATION TRUST | D137: RN325 | E137: The Great Western Hospital | F137: 4 | G137: * | H137: * | I137: * | J137: * | K137: * | L137: * | M137: * | N137: *
A138: QOX | B138: RD1 | C138: ROYAL UNITED HOSPITALS BATH NHS FOUNDATION TRUST | D138: RD121 | E138: Frome Community Hospital | F138: 1 | G138: * | H138: * | I138: * | J138: * | K138: * | L138: * | M138: * | N138: *
A139: QOX | B139: RD1 | C139: ROYAL UNITED HOSPITALS BATH NHS FOUNDATION TRUST | D139: RD1XXX | E139: Non Hospital Site | F139: 1 | G139: * | H139: * | I139: * | J139: * | K139: * | L139: * | M139: * | N139: *
A140: QOX | B140: RD1 | C140: ROYAL UNITED HOSPITALS BATH NHS FOUNDATION TRUST | D140: RD130 | E140: Princess Anne Wing RUH | F140: 33 | G140: 0.9393939394 | H140: 0.0303030303 | I140: 26 | J140: 5 | K140: 1 | L140: 1 | M140: 0 | N140: 0
A141: QOX | B141: RNZ | C141: SALISBURY NHS FOUNDATION TRUST | D141: RNZXXX | E141: Non-hospital site | F141: 1 | G141: * | H141: * | I141: * | J141: * | K141: * | L141: * | M141: * | N141: *
A142: QOX | B142: RNZ | C142: SALISBURY NHS FOUNDATION TRUST | D142: RNZ02 | E142: Salisbury District Hospital | F142: 29 | G142: 0.9310344828 | H142: 0.03448275862 | I142: * | J142: * | K142: * | L142: * | M142: * | N142: *
A143: QPM | B143: RNQ | C143: KETTERING GENERAL HOSPITAL NHS FOUNDATION TRUST | D143: RNQ51 | E143: Kettering General Hospital | F143: 6 | G143: 0.6666666667 | H143: 0.1666666667 | I143: 3 | J143: 1 | K143: 1 | L143: 0 | M143: 1 | N143: 0
A144: QPM | B144: RNS | C144: NORTHAMPTON GENERAL HOSPITAL NHS TRUST | D144: RNS01 | E144: Northampton General Hospital (Acute) | F144: 45 | G144: 0.9555555556 | H144: 0.04444444444 | I144: 41 | J144: 2 | K144: 0 | L144: 0 | M144: 2 | N144: 0
A145: QR1 | B145: RTE | C145: GLOUCESTERSHIRE HOSPITALS NHS FOUNDATION TRUST | D145: RTE03 | E145: Gloucestershire Royal Hospital | F145: 66 | G145: 0.8787878788 | H145: 0.06060606061 | I145: * | J145: * | K145: * | L145: * | M145: * | N145: *
A146: QR1 | B146: RTE | C146: GLOUCESTERSHIRE HOSPITALS NHS FOUNDATION TRUST | D146: RTEXXX | E146: Non-hospital site | F146: 2 | G146: * | H146: * | I146: * | J146: * | K146: * | L146: * | M146: * | N146: *
A147: QRL | B147: RN5 | C147: HAMPSHIRE HOSPITALS NHS FOUNDATION TRUST | D147: RN542 | E147: Andover War Memorial Hospital | F147: 0 | G147: NA | H147: NA | I147: 0 | J147: 0 | K147: 0 | L147: 0 | M147: 0 | N147: 0
A148: QRL | B148: RN5 | C148: HAMPSHIRE HOSPITALS NHS FOUNDATION TRUST | D148: RN506 | E148: Basingstoke and North Hampshire Hospital | F148: 37 | G148: 0.972972973 | H148: 0 | I148: 34 | J148: 2 | K148: 1 | L148: 0 | M148: 0 | N148: 0
A149: QRL | B149: RN5 | C149: HAMPSHIRE HOSPITALS NHS FOUNDATION TRUST | D149: RN541 | E149: Royal Hampshire County Hospital | F149: 112 | G149: 0.9821428571 | H149: 0.008928571429 | I149: 101 | J149: 9 | K149: 0 | L149: 1 | M149: 0 | N149: 1
A150: QRL | B150: R1F | C150: ISLE OF WIGHT NHS TRUST | D150: R1F01 | E150: St Mary's Hospital | F150: 9 | G150: 1 | H150: 0 | I150: 9 | J150: 0 | K150: 0 | L150: 0 | M150: 0 | N150: 0
A151: QRL | B151: RHU | C151: PORTSMOUTH HOSPITALS UNIVERSITY NATIONAL HEALTH SERVICE TRUST | D151: RHU03 | E151: Queen Alexandra Hospital | F151: 36 | G151: 0.9722222222 | H151: 0.02777777778 | I151: 28 | J151: 7 | K151: 0 | L151: 1 | M151: 0 | N151: 0
A152: QRL | B152: RHM | C152: UNIVERSITY HOSPITAL SOUTHAMPTON NHS FOUNDATION TRUST | D152: RHM12 | E152: Princess Anne Hospital | F152: 115 | G152: 0.9565217391 | H152: 0.02608695652 | I152: 94 | J152: 16 | K152: 2 | L152: 1 | M152: 2 | N152: 0
A153: QRV | B153: RQM | C153: CHELSEA AND WESTMINSTER HOSPITAL NHS FOUNDATION TRUST | D153: RQM01 | E153: Chelsea and Westminster Hospital | F153: 47 | G153: 0.9787234043 | H153: 0 | I153: 43 | J153: 3 | K153: 1 | L153: 0 | M153: 0 | N153: 0
A154: QRV | B154: RQM | C154: CHELSEA AND WESTMINSTER HOSPITAL NHS FOUNDATION TRUST | D154: RQM91 | E154: West Middlesex University Hospital | F154: 23 | G154: 0.9130434783 | H154: 0.08695652174 | I154: 21 | J154: 0 | K154: 0 | L154: 2 | M154: 0 | N154: 0
A155: QRV | B155: RYJ | C155: IMPERIAL COLLEGE HEALTHCARE NHS TRUST | D155: RYJ04 | E155: Queen Charlotte's Hospital | F155: 53 | G155: 0.9056603774 | H155: 0.09433962264 | I155: 41 | J155: 7 | K155: 0 | L155: 1 | M155: 4 | N155: 0
A156: QRV | B156: RYJ | C156: IMPERIAL COLLEGE HEALTHCARE NHS TRUST | D156: RYJ01 | E156: St Mary's Hospital (HQ) | F156: 30 | G156: 0.9666666667 | H156: 0 | I156: 28 | J156: 1 | K156: 1 | L156: 0 | M156: 0 | N156: 0
A157: QRV | B157: R1K | C157: LONDON NORTH WEST UNIVERSITY HEALTHCARE NHS TRUST | D157: R1K01 | E157: Northwick Park Hospital | F157: 83 | G157: 0.9759036145 | H157: 0 | I157: 61 | J157: 20 | K157: 2 | L157: 0 | M157: 0 | N157: 0
A158: QRV | B158: RAS | C158: THE HILLINGDON HOSPITALS NHS FOUNDATION TRUST | D158: RAS01 | E158: Hillingdon Hospital | F158: 41 | G158: 0.9024390244 | H158: 0.07317073171 | I158: 31 | J158: 6 | K158: 1 | L158: 1 | M158: 2 | N158: 0
A159: QSL | B159: RH5 | C159: SOMERSET NHS FOUNDATION TRUST | D159: RH5K6 | E159: Bridgwater Hospital | F159: 0 | G159: NA | H159: NA | I159: 0 | J159: 0 | K159: 0 | L159: 0 | M159: 0 | N159: 0
A160: QSL | B160: RH5 | C160: SOMERSET NHS FOUNDATION TRUST | D160: RH5A8 | E160: MUSGROVE PARK HOSPITAL | F160: 1 | G160: * | H160: * | I160: * | J160: * | K160: * | L160: * | M160: * | N160: *
A161: QSL | B161: RH5 | C161: SOMERSET NHS FOUNDATION TRUST | D161: RH5XXXX | E161: Non-hospital site home/in-transit births | F161: 1 | G161: * | H161: * | I161: * | J161: * | K161: * | L161: * | M161: * | N161: *
A162: QSL | B162: RH5 | C162: SOMERSET NHS FOUNDATION TRUST | D162: RH5O4 | E162: Yeovil District Hospital | F162: 2 | G162: * | H162: * | I162: * | J162: * | K162: * | L162: * | M162: * | N162: *
A163: QT1 | B163: RX1 | C163: NOTTINGHAM UNIVERSITY HOSPITALS NHS TRUST | D163: RX1XXX | E163: Non-hospital site | F163: 0 | G163: NA | H163: NA | I163: 0 | J163: 0 | K163: 0 | L163: 0 | M163: 0 | N163: 0
A164: QT1 | B164: RX1 | C164: NOTTINGHAM UNIVERSITY HOSPITALS NHS TRUST | D164: RX1CC | E164: Nottingham University Hospitals NHS Trust - City Campus | F164: 2 | G164: * | H164: * | I164: * | J164: * | K164: * | L164: * | M164: * | N164: *
A165: QT1 | B165: RX1 | C165: NOTTINGHAM UNIVERSITY HOSPITALS NHS TRUST | D165: RX1RA | E165: Nottingham University Hospitals NHS Trust - Queen's Medical Centre Campus | F165: 1 | G165: * | H165: * | I165: * | J165: * | K165: * | L165: * | M165: * | N165: *
A166: QT1 | B166: RK5 | C166: SHERWOOD FOREST HOSPITALS NHS FOUNDATION TRUST | D166: RK5BC | E166: King's Mill Hospital | F166: 34 | G166: 0.9117647059 | H166: 0.08823529412 | I166: * | J166: * | K166: * | L166: * | M166: * | N166: *
A167: QT1 | B167: RK5 | C167: SHERWOOD FOREST HOSPITALS NHS FOUNDATION TRUST | D167: RK5XXX | E167: Non-hospital site | F167: 0 | G167: NA | H167: NA | I167: 0 | J167: 0 | K167: 0 | L167: 0 | M167: 0 | N167: 0
A168: QT6 | B168: REF | C168: ROYAL CORNWALL HOSPITALS NHS TRUST | D168: REFXXX | E168: Non-hospital site | F168: 0 | G168: NA | H168: NA | I168: 0 | J168: 0 | K168: 0 | L168: 0 | M168: 0 | N168: 0
A169: QT6 | B169: REF | C169: ROYAL CORNWALL HOSPITALS NHS TRUST | D169: REF12 | E169: Royal Cornwall Hospital (Treliske) | F169: 14 | G169: 1 | H169: 0 | I169: * | J169: * | K169: * | L169: * | M169: * | N169: *
A170: QU9 | B170: RXQ | C170: BUCKINGHAMSHIRE HEALTHCARE NHS TRUST | D170: RXQ02 | E170: Stoke Mandeville Hospital | F170: 23 | G170: 0.7826086957 | H170: 0.1304347826 | I170: 14 | J170: 4 | K170: 1 | L170: 2 | M170: 1 | N170: 1
A171: QU9 | B171: RTH | C171: OXFORD UNIVERSITY HOSPITALS NHS FOUNDATION TRUST | D171: RTH19 | E171: Chipping Norton Community Hospital | F171: 1 | G171: * | H171: * | I171: * | J171: * | K171: * | L171: * | M171: * | N171: *
A172: QU9 | B172: RTH | C172: OXFORD UNIVERSITY HOSPITALS NHS FOUNDATION TRUST | D172: RTH05 | E172: Horton General Hospital | F172: 1 | G172: * | H172: * | I172: * | J172: * | K172: * | L172: * | M172: * | N172: *
A173: QU9 | B173: RTH | C173: OXFORD UNIVERSITY HOSPITALS NHS FOUNDATION TRUST | D173: RTH08 | E173: John Radcliffe Hospital | F173: 27 | G173: 0.4814814815 | H173: 0.4444444444 | I173: 12 | J173: 1 | K173: 2 | L173: 5 | M173: 7 | N173: 0
A174: QU9 | B174: RTH | C174: OXFORD UNIVERSITY HOSPITALS NHS FOUNDATION TRUST | D174: RTH16 | E174: Wallingford Community Hospital | F174: 0 | G174: NA | H174: NA | I174: 0 | J174: 0 | K174: 0 | L174: 0 | M174: 0 | N174: 0
A175: QU9 | B175: RTH | C175: OXFORD UNIVERSITY HOSPITALS NHS FOUNDATION TRUST | D175: RTH21 | E175: Wantage Community Hospital | F175: 0 | G175: NA | H175: NA | I175: 0 | J175: 0 | K175: 0 | L175: 0 | M175: 0 | N175: 0
A176: QU9 | B176: RHW | C176: ROYAL BERKSHIRE NHS FOUNDATION TRUST | D176: RHW01 | E176: Royal Berkshire Hospital | F176: 6 | G176: 1 | H176: 0 | I176: 6 | J176: 0 | K176: 0 | L176: 0 | M176: 0 | N176: 0
A177: QUA | B177: RNA | C177: THE DUDLEY GROUP NHS FOUNDATION TRUST | D177: RNA01 | E177: Russells Hall Hospital | F177: 45 | G177: 0.9111111111 | H177: 0 | I177: 38 | J177: 3 | K177: 1 | L177: 0 | M177: 0 | N177: 3
A178: QUA | B178: RL4 | C178: THE ROYAL WOLVERHAMPTON NHS TRUST | D178: RL403 | E178: New Cross Hospital | F178: 42 | G178: 0.9523809524 | H178: 0.02380952381 | I178: 36 | J178: 4 | K178: 1 | L178: 0 | M178: 1 | N178: 0
A179: QUA | B179: RBK | C179: WALSALL HEALTHCARE NHS TRUST | D179: RBK02 | E179: Manor Hospital | F179: 52 | G179: 0.9038461538 | H179: 0.05769230769 | I179: 45 | J179: 2 | K179: 2 | L179: 1 | M179: 2 | N179: 0
A180: QUE | B180: RGT | C180: CAMBRIDGE UNIVERSITY HOSPITALS NHS FOUNDATION TRUST | D180: RGT32 | E180: Rosie Hospital | F180: 35 | G180: 0.8 | H180: 0.1142857143 | I180: 23 | J180: 5 | K180: 1 | L180: 3 | M180: 1 | N180: 2
A181: QUE | B181: RGN | C181: NORTH WEST ANGLIA NHS FOUNDATION TRUST | D181: RGN90 | E181: Hinchingbrooke Hospital | F181: 14 | G181: 1 | H181: 0 | I181: 14 | J181: 0 | K181: 0 | L181: 0 | M181: 0 | N181: 0
A182: QUE | B182: RGN | C182: NORTH WEST ANGLIA NHS FOUNDATION TRUST | D182: RGN80 | E182: Peterborough City Hospital | F182: 5 | G182: 0.8 | H182: 0.2 | I182: 4 | J182: 0 | K182: 0 | L182: 0 | M182: 1 | N182: 0
A183: QUY | B183: RVJ | C183: NORTH BRISTOL NHS TRUST | D183: RVJXXX | E183: Non-hospital site | F183: 1 | G183: * | H183: * | I183: * | J183: * | K183: * | L183: * | M183: * | N183: *
A184: QUY | B184: RVJ | C184: NORTH BRISTOL NHS TRUST | D184: RVJ01 | E184: Southmead Hospital | F184: 85 | G184: 0.9176470588 | H184: 0.07058823529 | I184: * | J184: * | K184: * | L184: * | M184: * | N184: *
A185: QUY | B185: RA7 | C185: UNIVERSITY HOSPITALS BRISTOL AND WESTON NHS FOUNDATION TRUST | D185: RA707 | E185: ST MICHAEL'S HOSPITAL | F185: 61 | G185: 0.9508196721 | H185: 0.01639344262 | I185: 52 | J185: 6 | K185: 1 | L185: 1 | M185: 0 | N185: 1
A186: QVV | B186: RBD | C186: DORSET COUNTY HOSPITAL NHS FOUNDATION TRUST | D186: RBD01 | E186: Dorset County Hospital | F186: 11 | G186: 0.9090909091 | H186: 0.09090909091 | I186: 8 | J186: 2 | K186: 0 | L186: 0 | M186: 1 | N186: 0
A187: QVV | B187: R0D | C187: UNIVERSITY HOSPITALS DORSET NHS FOUNDATION TRUST | D187: R0D01 | E187: Poole Hospital | F187: 13 | G187: 1 | H187: 0 | I187: 12 | J187: 1 | K187: 0 | L187: 0 | M187: 0 | N187: 0
A188: QVV | B188: R0D | C188: UNIVERSITY HOSPITALS DORSET NHS FOUNDATION TRUST | D188: R0D02 | E188: Royal Bournemouth Hospital | F188: 0 | G188: NA | H188: NA | I188: 0 | J188: 0 | K188: 0 | L188: 0 | M188: 0 | N188: 0
A189: QWE | B189: RJ6 | C189: CROYDON HEALTH SERVICES NHS TRUST | D189: RJ611 | E189: Croydon University Hospital | F189: 13 | G189: 0.7692307692 | H189: 0.2307692308 | I189: * | J189: * | K189: * | L189: * | M189: * | N189: *
A190: QWE | B190: RVR | C190: EPSOM AND ST HELIER UNIVERSITY HOSPITALS NHS TRUST | D190: RVR50 | E190: Epsom Hospital | F190: 1 | G190: * | H190: * | I190: * | J190: * | K190: * | L190: * | M190: * | N190: *
A191: QWE | B191: RVR | C191: EPSOM AND ST HELIER UNIVERSITY HOSPITALS NHS TRUST | D191: RVRXXX | E191: Non-hospital site | F191: 0 | G191: NA | H191: NA | I191: 0 | J191: 0 | K191: 0 | L191: 0 | M191: 0 | N191: 0
A192: QWE | B192: RVR | C192: EPSOM AND ST HELIER UNIVERSITY HOSPITALS NHS TRUST | D192: RVR05 | E192: St Helier Hospital | F192: 1 | G192: * | H192: * | I192: * | J192: * | K192: * | L192: * | M192: * | N192: *
A193: QWE | B193: RAX | C193: KINGSTON AND RICHMOND NHS FOUNDATION TRUST | D193: RAX01 | E193: Kingston Hospital | F193: 35 | G193: 1 | H193: 0 | I193: 34 | J193: 1 | K193: 0 | L193: 0 | M193: 0 | N193: 0
A194: QWE | B194: RJ7 | C194: ST GEORGE'S UNIVERSITY HOSPITALS NHS FOUNDATION TRUST | D194: RJ701 | E194: St George's Hospital (Tooting) | F194: 19 | G194: 0.8947368421 | H194: 0.1052631579 | I194: 16 | J194: 1 | K194: 0 | L194: 0 | M194: 2 | N194: 0
A195: QWO | B195: RCF | C195: AIREDALE NHS FOUNDATION TRUST | D195: RCF22 | E195: Airedale General Hospital | F195: 24 | G195: 1 | H195: 0 | I195: 23 | J195: 1 | K195: 0 | L195: 0 | M195: 0 | N195: 0
A196: QWO | B196: RAE | C196: BRADFORD TEACHING HOSPITALS NHS FOUNDATION TRUST | D196: RAE01 | E196: Bradford Royal Infirmary | F196: 76 | G196: 1 | H196: 0 | I196: 72 | J196: 4 | K196: 0 | L196: 0 | M196: 0 | N196: 0
A197: QWO | B197: RWY | C197: CALDERDALE AND HUDDERSFIELD NHS FOUNDATION TRUST | D197: RWY02 | E197: Calderdale Royal Hospital | F197: 9 | G197: 1 | H197: 0 | I197: 8 | J197: 1 | K197: 0 | L197: 0 | M197: 0 | N197: 0
A198: QWO | B198: RR8 | C198: LEEDS TEACHING HOSPITALS NHS TRUST | D198: RR801 | E198: Leeds General Infirmary | F198: 82 | G198: 0.9146341463 | H198: 0.06097560976 | I198: * | J198: * | K198: * | L198: * | M198: * | N198: *
A199: QWO | B199: RR8 | C199: LEEDS TEACHING HOSPITALS NHS TRUST | D199: RR8XXX | E199: Non-hospital site | F199: 1 | G199: * | H199: * | I199: * | J199: * | K199: * | L199: * | M199: * | N199: *
A200: QWO | B200: RR8 | C200: LEEDS TEACHING HOSPITALS NHS TRUST | D200: RR813 | E200: St James's University Hospital | F200: 87 | G200: 0.9885057471 | H200: 0.01149425287 | I200: 78 | J200: 8 | K200: 0 | L200: 0 | M200: 1 | N200: 0
A201: QWO | B201: RXF | C201: MID YORKSHIRE TEACHING NHS TRUST | D201: RXF10 | E201: Dewsbury and District Hospital | F201: 7 | G201: 0.8571428571 | H201: 0.1428571429 | I201: 5 | J201: 1 | K201: 0 | L201: 0 | M201: 1 | N201: 0
A202: QWO | B202: RXF | C202: MID YORKSHIRE TEACHING NHS TRUST | D202: RXFXXX | E202: Non-hospital site | F202: 5 | G202: 1 | H202: 0 | I202: 5 | J202: 0 | K202: 0 | L202: 0 | M202: 0 | N202: 0
A203: QWO | B203: RXF | C203: MID YORKSHIRE TEACHING NHS TRUST | D203: RXF05 | E203: Pinderfields General Hospital | F203: 45 | G203: 0.9333333333 | H203: 0.06666666667 | I203: 39 | J203: 3 | K203: 0 | L203: 2 | M203: 1 | N203: 0
A204: QWO | B204: RXF | C204: MID YORKSHIRE TEACHING NHS TRUST | D204: RXF03 | E204: Pontefract General Infirmary | F204: 0 | G204: NA | H204: NA | I204: 0 | J204: 0 | K204: 0 | L204: 0 | M204: 0 | N204: 0
A205: QWU | B205: RLT | C205: GEORGE ELIOT HOSPITAL NHS TRUST | D205: RLT01 | E205: George Eliot Hospital - Acute Services | F205: 19 | G205: 0.8947368421 | H205: 0.05263157895 | I205: 17 | J205: 0 | K205: 1 | L205: 1 | M205: 0 | N205: 0
A206: QWU | B206: RJC | C206: SOUTH WARWICKSHIRE UNIVERSITY NHS FOUNDATION TRUST | D206: RJC02 | E206: Warwick Hospital | F206: 0 | G206: NA | H206: NA | I206: 0 | J206: 0 | K206: 0 | L206: 0 | M206: 0 | N206: 0
A207: QWU | B207: RKB | C207: UNIVERSITY HOSPITALS COVENTRY AND WARWICKSHIRE NHS TRUST | D207: RKB03 | E207: Hospital Of St Cross | F207: 0 | G207: NA | H207: NA | I207: 0 | J207: 0 | K207: 0 | L207: 0 | M207: 0 | N207: 0
... 13 more rows

Sheet ICB Q3
B6: Sort data by:
A9: ICB Code | B9: ICB Name | C9: Total Responses | D9: Percentage Positive | E9: Percentage Negative | F9: Breakdown of Responses
F10: Very Good | G10: Good | H10: Neither Good nor Poor | I10: Poor | J10: Very Poor | K10: Don't Know
B11: England (including Independent Sector providers) | C11: 5415 | D11: 0.9216989843 | E11: 0.03988919668 | F11: 3907 | G11: 1084 | H11: 177 | I11: 106 | J11: 110 | K11: 31
B12: England (excluding Independent Sector providers) | C12: 5415 | D12: 0.9216989843 | E12: 0.03988919668 | F12: 3907 | G12: 1084 | H12: 177 | I12: 106 | J12: 110 | K12: 31
B13: Selection (excluding suppressed data) | C13: =SUBTOTAL(9,C14:C55) -> 5415 | D13: =IFERROR((F13+G13)/SUM(F13:K13), "-") -> 0.921710161 | E13: =IFERROR((I13+J13)/SUM(F13:K13), "-") -> 0.03979270775 | F13: =SUBTOTAL(9,F14:F55) -> 3900 | G13: 1080 | H13: 177 | I13: 105 | J13: 110 | K13: 31
A14: QE1 | B14: LANCASHIRE AND SOUTH CUMBRIA ICB | C14: 249 | D14: 0.8313253012 | E14: 0.0843373494 | F14: 159 | G14: 48 | H14: 20 | I14: 9 | J14: 12 | K14: 1
A15: QF7 | B15: SOUTH YORKSHIRE ICB | C15: 73 | D15: 0.8767123288 | E15: 0.02739726027 | F15: 51 | G15: 13 | H15: 7 | I15: 1 | J15: 1 | K15: 0
A16: QGH | B16: HEREFORDSHIRE AND WORCESTERSHIRE ICB | C16: 56 | D16: 0.9107142857 | E16: 0.03571428571 | F16: 36 | G16: 15 | H16: 3 | I16: 1 | J16: 1 | K16: 0
A17: QH8 | B17: MID AND SOUTH ESSEX ICB | C17: 64 | D17: 0.8125 | E17: 0.109375 | F17: 38 | G17: 14 | H17: 4 | I17: 5 | J17: 2 | K17: 1
A18: QHG | B18: BEDFORDSHIRE, LUTON AND MILTON KEYNES ICB | C18: 181 | D18: 0.9337016575 | E18: 0.03867403315 | F18: 126 | G18: 43 | H18: 5 | I18: 4 | J18: 3 | K18: 0
A19: QHL | B19: BIRMINGHAM AND SOLIHULL ICB | C19: 175 | D19: 0.9257142857 | E19: 0.03428571429 | F19: 123 | G19: 39 | H19: 6 | I19: 1 | J19: 5 | K19: 1
A20: QHM | B20: NORTH EAST AND NORTH CUMBRIA ICB | C20: 238 | D20: 0.9537815126 | E20: 0.004201680672 | F20: 179 | G20: 48 | H20: 10 | I20: 1 | J20: 0 | K20: 0
A21: QJ2 | B21: DERBY AND DERBYSHIRE ICB | C21: 91 | D21: 0.9340659341 | E21: 0.04395604396 | F21: 71 | G21: 14 | H21: 2 | I21: 3 | J21: 1 | K21: 0
A22: QJG | B22: SUFFOLK AND NORTH EAST ESSEX ICB | C22: 9 | D22: 0.8888888889 | E22: 0 | F22: 7 | G22: 1 | H22: 1 | I22: 0 | J22: 0 | K22: 0
A23: QJK | B23: DEVON ICB | C23: 35 | D23: 1 | E23: 0 | F23: 28 | G23: 7 | H23: 0 | I23: 0 | J23: 0 | K23: 0
A24: QJM | B24: LINCOLNSHIRE ICB | C24: 0 | D24: NA | E24: NA | F24: 0 | G24: 0 | H24: 0 | I24: 0 | J24: 0 | K24: 0
A25: QK1 | B25: LEICESTER, LEICESTERSHIRE AND RUTLAND ICB | C25: 118 | D25: 0.8474576271 | E25: 0.03389830508 | F25: 61 | G25: 39 | H25: 14 | I25: 3 | J25: 1 | K25: 0
A26: QKK | B26: SOUTH EAST LONDON ICB | C26: 167 | D26: 0.8862275449 | E26: 0.02994011976 | F26: 92 | G26: 56 | H26: 13 | I26: 5 | J26: 0 | K26: 1
A27: QKS | B27: KENT AND MEDWAY ICB | C27: 240 | D27: 0.9625 | E27: 0.01666666667 | F27: 194 | G27: 37 | H27: 5 | I27: 3 | J27: 1 | K27: 0
A28: QM7 | B28: HERTFORDSHIRE AND WEST ESSEX ICB | C28: 98 | D28: 0.9897959184 | E28: 0 | F28: 79 | G28: 18 | H28: 1 | I28: 0 | J28: 0 | K28: 0
A29: QMF | B29: NORTH EAST LONDON ICB | C29: 196 | D29: 0.8928571429 | E29: 0.07653061224 | F29: 135 | G29: 40 | H29: 6 | I29: 4 | J29: 11 | K29: 0
A30: QMJ | B30: NORTH CENTRAL LONDON ICB | C30: 307 | D30: 0.9315960912 | E30: 0.02280130293 | F30: 177 | G30: 109 | H30: 12 | I30: 2 | J30: 5 | K30: 2
A31: QMM | B31: NORFOLK AND WAVENEY ICB | C31: 17 | D31: 0.9411764706 | E31: 0.05882352941 | F31: 14 | G31: 2 | H31: 0 | I31: 0 | J31: 1 | K31: 0
A32: QNC | B32: STAFFORDSHIRE AND STOKE-ON-TRENT ICB | C32: 25 | D32: 1 | E32: 0 | F32: 19 | G32: 6 | H32: 0 | I32: 0 | J32: 0 | K32: 0
A33: QNQ | B33: FRIMLEY ICB | C33: 56 | D33: 0.9821428571 | E33: 0 | F33: 47 | G33: 8 | H33: 1 | I33: 0 | J33: 0 | K33: 0
A34: QNX | B34: SUSSEX ICB | C34: 91 | D34: 0.9230769231 | E34: 0.04395604396 | F34: 67 | G34: 17 | H34: 2 | I34: 0 | J34: 4 | K34: 1
A35: QOC | B35: SHROPSHIRE, TELFORD AND WREKIN ICB | C35: 5 | D35: 1 | E35: 0 | F35: * | G35: * | H35: * | I35: * | J35: * | K35: *
A36: QOP | B36: GREATER MANCHESTER ICB | C36: 371 | D36: 0.9380053908 | E36: 0.03773584906 | F36: 281 | G36: 67 | H36: 4 | I36: 6 | J36: 8 | K36: 5
A37: QOQ | B37: HUMBER AND NORTH YORKSHIRE ICB | C37: 176 | D37: 0.9829545455 | E37: 0.005681818182 | F37: 161 | G37: 12 | H37: 1 | I37: 1 | J37: 0 | K37: 1
A38: QOX | B38: BATH AND NORTH EAST SOMERSET, SWINDON AND WILTSHIRE ICB | C38: 132 | D38: 0.9242424242 | E38: 0.03787878788 | F38: 106 | G38: 16 | H38: 5 | I38: 5 | J38: 0 | K38: 0
A39: QPM | B39: NORTHAMPTONSHIRE ICB | C39: 170 | D39: 0.9705882353 | E39: 0.01176470588 | F39: 153 | G39: 12 | H39: 3 | I39: 0 | J39: 2 | K39: 0
A40: QR1 | B40: GLOUCESTERSHIRE ICB | C40: 63 | D40: 0.6666666667 | E40: 0.1904761905 | F40: 19 | G40: 23 | H40: 9 | I40: 5 | J40: 7 | K40: 0
A41: QRL | B41: HAMPSHIRE AND ISLE OF WIGHT ICB | C41: 379 | D41: 0.9498680739 | E41: 0.02110817942 | F41: 271 | G41: 89 | H41: 10 | I41: 5 | J41: 3 | K41: 1
A42: QRV | B42: NORTH WEST LONDON ICB | C42: 368 | D42: 0.9402173913 | E42: 0.04076086957 | F42: 271 | G42: 75 | H42: 6 | I42: 6 | J42: 9 | K42: 1
A43: QSL | B43: SOMERSET ICB | C43: 4 | D43: * | E43: * | F43: * | G43: * | H43: * | I43: * | J43: * | K43: *
A44: QT1 | B44: NOTTINGHAM AND NOTTINGHAMSHIRE ICB | C44: 43 | D44: 0.8604651163 | E44: 0.1162790698 | F44: 30 | G44: 7 | H44: 1 | I44: 4 | J44: 1 | K44: 0
A45: QT6 | B45: CORNWALL AND THE ISLES OF SCILLY ICB | C45: 3 | D45: * | E45: * | F45: * | G45: * | H45: * | I45: * | J45: * | K45: *
A46: QU9 | B46: BUCKINGHAMSHIRE, OXFORDSHIRE AND BERKSHIRE WEST ICB | C46: 118 | D46: 0.8898305085 | E46: 0.06779661017 | F46: 74 | G46: 31 | H46: 5 | I46: 3 | J46: 5 | K46: 0
A47: QUA | B47: BLACK COUNTRY ICB | C47: 142 | D47: 0.9014084507 | E47: 0.03521126761 | F47: 105 | G47: 23 | H47: 3 | I47: 2 | J47: 3 | K47: 6
A48: QUE | B48: CAMBRIDGESHIRE AND PETERBOROUGH ICB | C48: 185 | D48: 0.9405405405 | E48: 0.01081081081 | F48: 150 | G48: 24 | H48: 4 | I48: 2 | J48: 0 | K48: 5
A49: QUY | B49: BRISTOL, NORTH SOMERSET AND SOUTH GLOUCESTERSHIRE ICB | C49: 120 | D49: 0.9416666667 | E49: 0.05 | F49: 92 | G49: 21 | H49: 1 | I49: 2 | J49: 4 | K49: 0
A50: QVV | B50: DORSET ICB | C50: 21 | D50: 0.619047619 | E50: 0.1904761905 | F50: 9 | G50: 4 | H50: 3 | I50: 2 | J50: 2 | K50: 1
A51: QWE | B51: SOUTH WEST LONDON ICB | C51: 97 | D51: 0.9278350515 | E51: 0.0412371134 | F51: 75 | G51: 15 | H51: 3 | I51: 2 | J51: 2 | K51: 0
A52: QWO | B52: WEST YORKSHIRE ICB | C52: 241 | D52: 0.9253112033 | E52: 0.04979253112 | F52: 176 | G52: 47 | H52: 4 | I52: 8 | J52: 4 | K52: 2
A53: QWU | B53: COVENTRY AND WARWICKSHIRE ICB | C53: 31 | D53: 0.8064516129 | E53: 0.1935483871 | F53: 18 | G53: 7 | H53: 0 | I53: 0 | J53: 6 | K53: 0
A54: QXU | B54: SURREY HEARTLANDS ICB | C54: 29 | D54: 0.8965517241 | E54: 0.1034482759 | F54: 23 | G54: 3 | H54: 0 | I54: 3 | J54: 0 | K54: 0
A55: QYG | B55: CHESHIRE AND MERSEYSIDE ICB | C55: 231 | D55: 0.9220779221 | E55: 0.05627705628 | F55: 183 | G55: 30 | H55: 3 | I55: 7 | J55: 6 | K55: 2

Sheet Trusts Q3
B6: Sort data by:
A9: ICB Code | B9: Trust Code | C9: Trust Name | D9: Total Responses | E9: Percentage Positive | F9: Percentage Negative | G9: Breakdown of Responses | M9: Mode of Collection
G10: Very Good | H10: Good | I10: Neither Good nor Poor | J10: Poor | K10: Very Poor | L10: Don't Know | M10: Mode SMS | N10: Mode Electronic Discharge | O10: Mode Electronic Home | P10: Mode Paper Discharge | Q10: Mode Paper Home | R10: Mode Telephone | S10: Mode Online | T10: Mode Other
C11: England (including Independent Sector providers) | D11: 5415 | E11: 0.9216989843 | F11: 0.03988919668 | G11: 3907 | H11: 1084 | I11: 177 | J11: 106 | K11: 110 | L11: 31 | M11: 1166 | N11: 1128 | O11: 60 | P11: 1948 | Q11: 153 | R11: 0 | S11: 959 | T11: 1
C12: England (excluding Independent Sector providers) | D12: 5415 | E12: 0.9216989843 | F12: 0.03988919668 | G12: 3907 | H12: 1084 | I12: 177 | J12: 106 | K12: 110 | L12: 31 | M12: 1166 | N12: 1128 | O12: 60 | P12: 1948 | Q12: 153 | R12: 0 | S12: 959 | T12: 1
C13: Selection (excluding suppressed data) | D13: =SUBTOTAL(9,D14:D299) -> 5415 | E13: =IFERROR((G13+H13)/SUM(G13:L13), "-") -> 0.9207671445 | F13: =IFERROR((J13+K13)/SUM(G13:L13), "-") -> 0.04010073615 | G13: =SUBTOTAL(9,G14:G299) -> 3723 | H13: 1030 | I13: 171 | J13: 104 | K13: 103 | L13: 31 | M13: 1152 | N13: 1098 | O13: 0 | P13: 1815 | Q13: 153 | R13: 0 | S13: 943 | T13: =SUBTOTAL(9,T14:T299) -> 1
A14: QE1 | B14: RXN | C14: LANCASHIRE TEACHING HOSPITALS NHS FOUNDATION TRUST | D14: 14 | E14: 0.8571428571 | F14: 0 | G14: 6 | H14: 6 | I14: 2 | J14: 0 | K14: 0 | L14: 0 | M14: 14 | N14: 0 | O14: 0 | P14: 0 | Q14: 0 | R14: 0 | S14: 0 | T14: 0
A15: QE1 | B15: RTX | C15: UNIVERSITY HOSPITALS OF MORECAMBE BAY NHS FOUNDATION TRUST | D15: 38 | E15: 0.9736842105 | F15: 0.02631578947 | G15: 30 | H15: 7 | I15: 0 | J15: 0 | K15: 1 | L15: 0 | M15: 34 | N15: 0 | O15: 0 | P15: 0 | Q15: 0 | R15: 0 | S15: 4 | T15: 0
A16: QE1 | B16: RXR | C16: EAST LANCASHIRE HOSPITALS NHS TRUST | D16: 72 | E16: 0.7777777778 | F16: 0.125 | G16: 43 | H16: 13 | I16: 6 | J16: 3 | K16: 6 | L16: 1 | M16: 52 | N16: 0 | O16: 0 | P16: 20 | Q16: 0 | R16: 0 | S16: 0 | T16: 0
A17: QE1 | B17: RXL | C17: BLACKPOOL TEACHING HOSPITALS NHS FOUNDATION TRUST | D17: 125 | E17: 0.816 | F17: 0.088 | G17: 80 | H17: 22 | I17: 12 | J17: 6 | K17: 5 | L17: 0 | M17: 27 | N17: 0 | O17: 0 | P17: 95 | Q17: 0 | R17: 0 | S17: 3 | T17: 0
A18: QF7 | B18: RFR | C18: THE ROTHERHAM NHS FOUNDATION TRUST | D18: 1 | E18: * | F18: * | G18: * | H18: * | I18: * | J18: * | K18: * | L18: * | M18: * | N18: * | O18: * | P18: * | Q18: * | R18: * | S18: * | T18: *
A19: QF7 | B19: RP5 | C19: DONCASTER AND BASSETLAW TEACHING HOSPITALS NHS FOUNDATION TRUST | D19: 3 | E19: * | F19: * | G19: * | H19: * | I19: * | J19: * | K19: * | L19: * | M19: * | N19: * | O19: * | P19: * | Q19: * | R19: * | S19: * | T19: *
A20: QF7 | B20: RFF | C20: BARNSLEY HOSPITAL NHS FOUNDATION TRUST | D20: 15 | E20: 0.9333333333 | F20: 0 | G20: 12 | H20: 2 | I20: 1 | J20: 0 | K20: 0 | L20: 0 | M20: 3 | N20: 11 | O20: 0 | P20: 0 | Q20: 0 | R20: 0 | S20: 1 | T20: 0
A21: QF7 | B21: RHQ | C21: SHEFFIELD TEACHING HOSPITALS NHS FOUNDATION TRUST | D21: 54 | E21: 0.8703703704 | F21: 0.03703703704 | G21: 37 | H21: 10 | I21: 5 | J21: 1 | K21: 1 | L21: 0 | M21: 18 | N21: 0 | O21: 0 | P21: 34 | Q21: 0 | R21: 0 | S21: 2 | T21: 0
A22: QGH | B22: RLQ | C22: WYE VALLEY NHS TRUST | D22: 12 | E22: 0.8333333333 | F22: 0.08333333333 | G22: 8 | H22: 2 | I22: 1 | J22: 0 | K22: 1 | L22: 0 | M22: 12 | N22: 0 | O22: 0 | P22: 0 | Q22: 0 | R22: 0 | S22: 0 | T22: 0
A23: QGH | B23: RWP | C23: WORCESTERSHIRE ACUTE HOSPITALS NHS TRUST | D23: 44 | E23: 0.9318181818 | F23: 0.02272727273 | G23: 28 | H23: 13 | I23: 2 | J23: 1 | K23: 0 | L23: 0 | M23: 0 | N23: 44 | O23: 0 | P23: 0 | Q23: 0 | R23: 0 | S23: 0 | T23: 0
A24: QH8 | B24: RAJ | C24: MID AND SOUTH ESSEX NHS FOUNDATION TRUST | D24: 64 | E24: 0.8125 | F24: 0.109375 | G24: 38 | H24: 14 | I24: 4 | J24: 5 | K24: 2 | L24: 1 | M24: 52 | N24: 0 | O24: 0 | P24: 0 | Q24: 0 | R24: 0 | S24: 12 | T24: 0
A25: QHG | B25: RD8 | C25: MILTON KEYNES UNIVERSITY HOSPITAL NHS FOUNDATION TRUST | D25: 34 | E25: 0.8235294118 | F25: 0.1176470588 | G25: 22 | H25: 6 | I25: 2 | J25: 2 | K25: 2 | L25: 0 | M25: 6 | N25: 0 | O25: 0 | P25: 18 | Q25: 0 | R25: 0 | S25: 10 | T25: 0
A26: QHG | B26: RC9 | C26: BEDFORDSHIRE HOSPITALS NHS FOUNDATION TRUST | D26: 147 | E26: 0.9591836735 | F26: 0.02040816327 | G26: 104 | H26: 37 | I26: 3 | J26: 2 | K26: 1 | L26: 0 | M26: 0 | N26: 147 | O26: 0 | P26: 0 | Q26: 0 | R26: 0 | S26: 0 | T26: 0
A27: QHL | B27: RXK | C27: SANDWELL AND WEST BIRMINGHAM HOSPITALS NHS TRUST | D27: 0 | E27: NA | F27: NA | G27: 0 | H27: 0 | I27: 0 | J27: 0 | K27: 0 | L27: 0 | M27: 0 | N27: 0 | O27: 0 | P27: 0 | Q27: 0 | R27: 0 | S27: 0 | T27: 0
A28: QHL | B28: RRK | C28: UNIVERSITY HOSPITALS BIRMINGHAM NHS FOUNDATION TRUST | D28: 32 | E28: 0.96875 | F28: 0.03125 | G28: 22 | H28: 9 | I28: 0 | J28: 0 | K28: 1 | L28: 0 | M28: 0 | N28: 32 | O28: 0 | P28: 0 | Q28: 0 | R28: 0 | S28: 0 | T28: 0
A29: QHL | B29: RQ3 | C29: BIRMINGHAM WOMEN'S AND CHILDREN'S NHS FOUNDATION TRUST | D29: 143 | E29: 0.9160839161 | F29: 0.03496503497 | G29: 101 | H29: 30 | I29: 6 | J29: 1 | K29: 4 | L29: 1 | M29: 0 | N29: 0 | O29: 0 | P29: 0 | Q29: 0 | R29: 0 | S29: 143 | T29: 0
A30: QHM | B30: RTF | C30: NORTHUMBRIA HEALTHCARE NHS FOUNDATION TRUST | D30: 0 | E30: NA | F30: NA | G30: 0 | H30: 0 | I30: 0 | J30: 0 | K30: 0 | L30: 0 | M30: 0 | N30: 0 | O30: 0 | P30: 0 | Q30: 0 | R30: 0 | S30: 0 | T30: 0
A31: QHM | B31: R0B | C31: SOUTH TYNESIDE AND SUNDERLAND NHS FOUNDATION TRUST | D31: 1 | E31: * | F31: * | G31: * | H31: * | I31: * | J31: * | K31: * | L31: * | M31: * | N31: * | O31: * | P31: * | Q31: * | R31: * | S31: * | T31: *
A32: QHM | B32: RVW | C32: NORTH TEES AND HARTLEPOOL NHS FOUNDATION TRUST | D32: 1 | E32: * | F32: * | G32: * | H32: * | I32: * | J32: * | K32: * | L32: * | M32: * | N32: * | O32: * | P32: * | Q32: * | R32: * | S32: * | T32: *
A33: QHM | B33: RR7 | C33: GATESHEAD HEALTH NHS FOUNDATION TRUST | D33: 13 | E33: 1 | F33: 0 | G33: 13 | H33: 0 | I33: 0 | J33: 0 | K33: 0 | L33: 0 | M33: 13 | N33: 0 | O33: 0 | P33: 0 | Q33: 0 | R33: 0 | S33: 0 | T33: 0
A34: QHM | B34: RNN | C34: NORTH CUMBRIA INTEGRATED CARE NHS FOUNDATION TRUST | D34: 17 | E34: 1 | F34: 0 | G34: 15 | H34: 2 | I34: 0 | J34: 0 | K34: 0 | L34: 0 | M34: 0 | N34: 0 | O34: 0 | P34: 16 | Q34: 0 | R34: 0 | S34: 0 | T34: 1
A35: QHM | B35: RTR | C35: SOUTH TEES HOSPITALS NHS FOUNDATION TRUST | D35: 17 | E35: 0.9411764706 | F35: 0.05882352941 | G35: 12 | H35: 4 | I35: 0 | J35: 1 | K35: 0 | L35: 0 | M35: 16 | N35: 1 | O35: 0 | P35: 0 | Q35: 0 | R35: 0 | S35: 0 | T35: 0
A36: QHM | B36: RTD | C36: THE NEWCASTLE UPON TYNE HOSPITALS NHS FOUNDATION TRUST | D36: 59 | E36: 0.8474576271 | F36: 0 | G36: 29 | H36: 21 | I36: 9 | J36: 0 | K36: 0 | L36: 0 | M36: 59 | N36: 0 | O36: 0 | P36: 0 | Q36: 0 | R36: 0 | S36: 0 | T36: 0
A37: QHM | B37: RXP | C37: COUNTY DURHAM AND DARLINGTON NHS FOUNDATION TRUST | D37: 130 | E37: 0.9923076923 | F37: 0 | G37: 108 | H37: 21 | I37: 1 | J37: 0 | K37: 0 | L37: 0 | M37: 0 | N37: 0 | O37: 0 | P37: 130 | Q37: 0 | R37: 0 | S37: 0 | T37: 0
A38: QJ2 | B38: RTG | C38: UNIVERSITY HOSPITALS OF DERBY AND BURTON NHS FOUNDATION TRUST | D38: 32 | E38: 0.875 | F38: 0.09375 | G38: 19 | H38: 9 | I38: 1 | J38: 2 | K38: 1 | L38: 0 | M38: 27 | N38: 0 | O38: 0 | P38: 5 | Q38: 0 | R38: 0 | S38: 0 | T38: 0
A39: QJ2 | B39: RFS | C39: CHESTERFIELD ROYAL HOSPITAL NHS FOUNDATION TRUST | D39: 59 | E39: 0.9661016949 | F39: 0.01694915254 | G39: 52 | H39: 5 | I39: 1 | J39: 1 | K39: 0 | L39: 0 | M39: 27 | N39: 0 | O39: 0 | P39: 32 | Q39: 0 | R39: 0 | S39: 0 | T39: 0
A40: QJG | B40: RDE | C40: EAST SUFFOLK AND NORTH ESSEX NHS FOUNDATION TRUST | D40: 4 | E40: * | F40: * | G40: * | H40: * | I40: * | J40: * | K40: * | L40: * | M40: * | N40: * | O40: * | P40: * | Q40: * | R40: * | S40: * | T40: *
A41: QJG | B41: RGR | C41: WEST SUFFOLK NHS FOUNDATION TRUST | D41: 5 | E41: 1 | F41: 0 | G41: * | H41: * | I41: * | J41: * | K41: * | L41: * | M41: * | N41: * | O41: * | P41: * | Q41: * | R41: * | S41: * | T41: *
A42: QJK | B42: RA9 | C42: TORBAY AND SOUTH DEVON NHS FOUNDATION TRUST | D42: 1 | E42: * | F42: * | G42: * | H42: * | I42: * | J42: * | K42: * | L42: * | M42: * | N42: * | O42: * | P42: * | Q42: * | R42: * | S42: * | T42: *
A43: QJK | B43: RK9 | C43: UNIVERSITY HOSPITALS PLYMOUTH NHS TRUST | D43: 8 | E43: 1 | F43: 0 | G43: * | H43: * | I43: * | J43: * | K43: * | L43: * | M43: * | N43: * | O43: * | P43: * | Q43: * | R43: * | S43: * | T43: *
A44: QJK | B44: RH8 | C44: ROYAL DEVON UNIVERSITY HEALTHCARE NHS FOUNDATION TRUST | D44: 26 | E44: 1 | F44: 0 | G44: 24 | H44: 2 | I44: 0 | J44: 0 | K44: 0 | L44: 0 | M44: 0 | N44: 0 | O44: 0 | P44: 26 | Q44: 0 | R44: 0 | S44: 0 | T44: 0
A45: QJM | B45: RWD | C45: UNITED LINCOLNSHIRE TEACHING HOSPITALS NHS TRUST | D45: 0 | E45: NA | F45: NA | G45: 0 | H45: 0 | I45: 0 | J45: 0 | K45: 0 | L45: 0 | M45: 0 | N45: 0 | O45: 0 | P45: 0 | Q45: 0 | R45: 0 | S45: 0 | T45: 0
A46: QK1 | B46: RWE | C46: UNIVERSITY HOSPITALS OF LEICESTER NHS TRUST | D46: 118 | E46: 0.8474576271 | F46: 0.03389830508 | G46: 61 | H46: 39 | I46: 14 | J46: 3 | K46: 1 | L46: 0 | M46: 0 | N46: 118 | O46: 0 | P46: 0 | Q46: 0 | R46: 0 | S46: 0 | T46: 0
A47: QKK | B47: RJ2 | C47: LEWISHAM AND GREENWICH NHS TRUST | D47: 63 | E47: 0.8888888889 | F47: 0.01587301587 | G47: 35 | H47: 21 | I47: 5 | J47: 1 | K47: 0 | L47: 1 | M47: 0 | N47: 0 | O47: 0 | P47: 8 | Q47: 0 | R47: 0 | S47: 55 | T47: 0
A48: QKK | B48: RJ1 | C48: GUY'S AND ST THOMAS' NHS FOUNDATION TRUST | D48: 104 | E48: 0.8846153846 | F48: 0.03846153846 | G48: 57 | H48: 35 | I48: 8 | J48: 4 | K48: 0 | L48: 0 | M48: 0 | N48: 0 | O48: 0 | P48: 101 | Q48: 0 | R48: 0 | S48: 3 | T48: 0
A49: QKS | B49: RVV | C49: EAST KENT HOSPITALS UNIVERSITY NHS FOUNDATION TRUST | D49: 28 | E49: 0.9285714286 | F49: 0.03571428571 | G49: 26 | H49: 0 | I49: 1 | J49: 1 | K49: 0 | L49: 0 | M49: 28 | N49: 0 | O49: 0 | P49: 0 | Q49: 0 | R49: 0 | S49: 0 | T49: 0
A50: QKS | B50: RPA | C50: MEDWAY NHS FOUNDATION TRUST | D50: 48 | E50: 0.9375 | F50: 0.04166666667 | G50: 37 | H50: 8 | I50: 1 | J50: 1 | K50: 1 | L50: 0 | M50: 0 | N50: 0 | O50: 0 | P50: 0 | Q50: 0 | R50: 0 | S50: 48 | T50: 0
A51: QKS | B51: RN7 | C51: DARTFORD AND GRAVESHAM NHS TRUST | D51: 73 | E51: 1 | F51: 0 | G51: 57 | H51: 16 | I51: 0 | J51: 0 | K51: 0 | L51: 0 | M51: 0 | N51: 60 | O51: 0 | P51: 0 | Q51: 0 | R51: 0 | S51: 13 | T51: 0
A52: QKS | B52: RWF | C52: MAIDSTONE AND TUNBRIDGE WELLS NHS TRUST | D52: 91 | E52: 0.956043956 | F52: 0.01098901099 | G52: 74 | H52: 13 | I52: 3 | J52: 1 | K52: 0 | L52: 0 | M52: 84 | N52: 0 | O52: 0 | P52: 0 | Q52: 0 | R52: 0 | S52: 7 | T52: 0
A53: QM7 | B53: RWG | C53: WEST HERTFORDSHIRE TEACHING HOSPITALS NHS TRUST | D53: 0 | E53: NA | F53: NA | G53: 0 | H53: 0 | I53: 0 | J53: 0 | K53: 0 | L53: 0 | M53: 0 | N53: 0 | O53: 0 | P53: 0 | Q53: 0 | R53: 0 | S53: 0 | T53: 0
A54: QM7 | B54: RQW | C54: THE PRINCESS ALEXANDRA HOSPITAL NHS TRUST | D54: 1 | E54: * | F54: * | G54: * | H54: * | I54: * | J54: * | K54: * | L54: * | M54: * | N54: * | O54: * | P54: * | Q54: * | R54: * | S54: * | T54: *
A55: QM7 | B55: RWH | C55: EAST AND NORTH HERTFORDSHIRE NHS TRUST | D55: 97 | E55: 0.9896907216 | F55: 0 | G55: * | H55: * | I55: * | J55: * | K55: * | L55: * | M55: * | N55: * | O55: * | P55: * | Q55: * | R55: * | S55: * | T55: *
A56: QMF | B56: RQX | C56: HOMERTON HEALTHCARE NHS FOUNDATION TRUST | D56: 2 | E56: * | F56: * | G56: * | H56: * | I56: * | J56: * | K56: * | L56: * | M56: * | N56: * | O56: * | P56: * | Q56: * | R56: * | S56: * | T56: *
A57: QMF | B57: RF4 | C57: BARKING, HAVERING AND REDBRIDGE UNIVERSITY HOSPITALS NHS TRUST | D57: 95 | E57: 0.9052631579 | F57: 0.07368421053 | G57: * | H57: * | I57: * | J57: * | K57: * | L57: * | M57: * | N57: * | O57: * | P57: * | Q57: * | R57: * | S57: * | T57: *
A58: QMF | B58: R1H | C58: BARTS HEALTH NHS TRUST | D58: 99 | E58: 0.8888888889 | F58: 0.08080808081 | G58: 72 | H58: 16 | I58: 3 | J58: 3 | K58: 5 | L58: 0 | M58: 0 | N58: 0 | O58: 0 | P58: 83 | Q58: 0 | R58: 0 | S58: 16 | T58: 0
A59: QMJ | B59: RRV | C59: UNIVERSITY COLLEGE LONDON HOSPITALS NHS FOUNDATION TRUST | D59: 0 | E59: NA | F59: NA | G59: 0 | H59: 0 | I59: 0 | J59: 0 | K59: 0 | L59: 0 | M59: 0 | N59: 0 | O59: 0 | P59: 0 | Q59: 0 | R59: 0 | S59: 0 | T59: 0
A60: QMJ | B60: RKE | C60: WHITTINGTON HEALTH NHS TRUST | D60: 52 | E60: 0.9423076923 | F60: 0.01923076923 | G60: 13 | H60: 36 | I60: 2 | J60: 0 | K60: 1 | L60: 0 | M60: 0 | N60: 0 | O60: 0 | P60: 6 | Q60: 0 | R60: 0 | S60: 46 | T60: 0
A61: QMJ | B61: RAL | C61: ROYAL FREE LONDON NHS FOUNDATION TRUST | D61: 255 | E61: 0.9294117647 | F61: 0.02352941176 | G61: 164 | H61: 73 | I61: 10 | J61: 2 | K61: 4 | L61: 2 | M61: 17 | N61: 172 | O61: 0 | P61: 0 | Q61: 0 | R61: 0 | S61: 66 | T61: 0
A62: QMM | B62: RM1 | C62: NORFOLK AND NORWICH UNIVERSITY HOSPITALS NHS FOUNDATION TRUST | D62: 1 | E62: * | F62: * | G62: * | H62: * | I62: * | J62: * | K62: * | L62: * | M62: * | N62: * | O62: * | P62: * | Q62: * | R62: * | S62: * | T62: *
A63: QMM | B63: RGP | C63: JAMES PAGET UNIVERSITY HOSPITALS NHS FOUNDATION TRUST | D63: 7 | E63: 0.8571428571 | F63: 0.1428571429 | G63: * | H63: * | I63: * | J63: * | K63: * | L63: * | M63: * | N63: * | O63: * | P63: * | Q63: * | R63: * | S63: * | T63: *
A64: QMM | B64: RCX | C64: THE QUEEN ELIZABETH HOSPITAL, KING'S LYNN, NHS FOUNDATION TRUST | D64: 9 | E64: 1 | F64: 0 | G64: 7 | H64: 2 | I64: 0 | J64: 0 | K64: 0 | L64: 0 | M64: 0 | N64: 0 | O64: 0 | P64: 9 | Q64: 0 | R64: 0 | S64: 0 | T64: 0
A65: QNC | B65: RJE | C65: UNIVERSITY HOSPITALS OF NORTH MIDLANDS NHS TRUST | D65: 25 | E65: 1 | F65: 0 | G65: 19 | H65: 6 | I65: 0 | J65: 0 | K65: 0 | L65: 0 | M65: 16 | N65: 0 | O65: 0 | P65: 8 | Q65: 0 | R65: 0 | S65: 1 | T65: 0
A66: QNQ | B66: RDU | C66: FRIMLEY HEALTH NHS FOUNDATION TRUST | D66: 56 | E66: 0.9821428571 | F66: 0 | G66: 47 | H66: 8 | I66: 1 | J66: 0 | K66: 0 | L66: 0 | M66: 0 | N66: 0 | O66: 0 | P66: 0 | Q66: 0 | R66: 0 | S66: 56 | T66: 0
A67: QNX | B67: RXC | C67: EAST SUSSEX HEALTHCARE NHS TRUST | D67: 0 | E67: NA | F67: NA | G67: 0 | H67: 0 | I67: 0 | J67: 0 | K67: 0 | L67: 0 | M67: 0 | N67: 0 | O67: 0 | P67: 0 | Q67: 0 | R67: 0 | S67: 0 | T67: 0
A68: QNX | B68: RYR | C68: UNIVERSITY HOSPITALS SUSSEX NHS FOUNDATION TRUST | D68: 91 | E68: 0.9230769231 | F68: 0.04395604396 | G68: 67 | H68: 17 | I68: 2 | J68: 0 | K68: 4 | L68: 1 | M68: 91 | N68: 0 | O68: 0 | P68: 0 | Q68: 0 | R68: 0 | S68: 0 | T68: 0
A69: QOC | B69: RXW | C69: THE SHREWSBURY AND TELFORD HOSPITAL NHS TRUST | D69: 5 | E69: 1 | F69: 0 | G69: * | H69: * | I69: * | J69: * | K69: * | L69: * | M69: * | N69: * | O69: * | P69: * | Q69: * | R69: * | S69: * | T69: *
A70: QOP | B70: RRF | C70: WRIGHTINGTON, WIGAN AND LEIGH NHS FOUNDATION TRUST | D70: 18 | E70: 0.8888888889 | F70: 0.1111111111 | G70: 13 | H70: 3 | I70: 0 | J70: 0 | K70: 2 | L70: 0 | M70: 0 | N70: 0 | O70: 0 | P70: 18 | Q70: 0 | R70: 0 | S70: 0 | T70: 0
A71: QOP | B71: RMP | C71: TAMESIDE AND GLOSSOP INTEGRATED CARE NHS FOUNDATION TRUST | D71: 33 | E71: 0.9090909091 | F71: 0.06060606061 | G71: 27 | H71: 3 | I71: 1 | J71: 1 | K71: 1 | L71: 0 | M71: 0 | N71: 12 | O71: 0 | P71: 21 | Q71: 0 | R71: 0 | S71: 0 | T71: 0
A72: QOP | B72: RMC | C72: BOLTON NHS FOUNDATION TRUST | D72: 34 | E72: 0.9117647059 | F72: 0.08823529412 | G72: 26 | H72: 5 | I72: 0 | J72: 0 | K72: 3 | L72: 0 | M72: 16 | N72: 2 | O72: 0 | P72: 16 | Q72: 0 | R72: 0 | S72: 0 | T72: 0
A73: QOP | B73: RWJ | C73: STOCKPORT NHS FOUNDATION TRUST | D73: 41 | E73: 0.8780487805 | F73: 0.07317073171 | G73: 31 | H73: 5 | I73: 0 | J73: 3 | K73: 0 | L73: 2 | M73: 0 | N73: 0 | O73: 0 | P73: 41 | Q73: 0 | R73: 0 | S73: 0 | T73: 0
A74: QOP | B74: R0A | C74: MANCHESTER UNIVERSITY NHS FOUNDATION TRUST | D74: 245 | E74: 0.9591836735 | F74: 0.01632653061 | G74: 184 | H74: 51 | I74: 3 | J74: 2 | K74: 2 | L74: 3 | M74: 0 | N74: 173 | O74: 0 | P74: 62 | Q74: 0 | R74: 0 | S74: 10 | T74: 0
A75: QOQ | B75: RCD | C75: HARROGATE AND DISTRICT NHS FOUNDATION TRUST | D75: 1 | E75: * | F75: * | G75: * | H75: * | I75: * | J75: * | K75: * | L75: * | M75: * | N75: * | O75: * | P75: * | Q75: * | R75: * | S75: * | T75: *
A76: QOQ | B76: RJL | C76: NORTHERN LINCOLNSHIRE AND GOOLE NHS FOUNDATION TRUST | D76: 13 | E76: 1 | F76: 0 | G76: * | H76: * | I76: * | J76: * | K76: * | L76: * | M76: * | N76: * | O76: * | P76: * | Q76: * | R76: * | S76: * | T76: *
A77: QOQ | B77: RWA | C77: HULL UNIVERSITY TEACHING HOSPITALS NHS TRUST | D77: 77 | E77: 0.961038961 | F77: 0.01298701299 | G77: 68 | H77: 6 | I77: 1 | J77: 1 | K77: 0 | L77: 1 | M77: 43 | N77: 0 | O77: 0 | P77: 34 | Q77: 0 | R77: 0 | S77: 0 | T77: 0
A78: QOQ | B78: RCB | C78: YORK AND SCARBOROUGH TEACHING HOSPITALS NHS FOUNDATION TRUST | D78: 85 | E78: 1 | F78: 0 | G78: 80 | H78: 5 | I78: 0 | J78: 0 | K78: 0 | L78: 0 | M78: 0 | N78: 0 | O78: 0 | P78: 85 | Q78: 0 | R78: 0 | S78: 0 | T78: 0
A79: QOX | B79: RNZ | C79: SALISBURY NHS FOUNDATION TRUST | D79: 7 | E79: 1 | F79: 0 | G79: 4 | H79: 3 | I79: 0 | J79: 0 | K79: 0 | L79: 0 | M79: 7 | N79: 0 | O79: 0 | P79: 0 | Q79: 0 | R79: 0 | S79: 0 | T79: 0
A80: QOX | B80: RD1 | C80: ROYAL UNITED HOSPITALS BATH NHS FOUNDATION TRUST | D80: 57 | E80: 0.9649122807 | F80: 0.0350877193 | G80: 48 | H80: 7 | I80: 0 | J80: 2 | K80: 0 | L80: 0 | M80: 26 | N80: 0 | O80: 0 | P80: 31 | Q80: 0 | R80: 0 | S80: 0 | T80: 0
A81: QOX | B81: RN3 | C81: GREAT WESTERN HOSPITALS NHS FOUNDATION TRUST | D81: 68 | E81: 0.8823529412 | F81: 0.04411764706 | G81: 54 | H81: 6 | I81: 5 | J81: 3 | K81: 0 | L81: 0 | M81: 0 | N81: 66 | O81: 0 | P81: 0 | Q81: 0 | R81: 0 | S81: 2 | T81: 0
A82: QPM | B82: RNQ | C82: KETTERING GENERAL HOSPITAL NHS FOUNDATION TRUST | D82: 76 | E82: 0.9868421053 | F82: 0 | G82: 67 | H82: 8 | I82: 1 | J82: 0 | K82: 0 | L82: 0 | M82: 0 | N82: 0 | O82: 0 | P82: 0 | Q82: 61 | R82: 0 | S82: 15 | T82: 0
A83: QPM | B83: RNS | C83: NORTHAMPTON GENERAL HOSPITAL NHS TRUST | D83: 94 | E83: 0.9574468085 | F83: 0.02127659574 | G83: 86 | H83: 4 | I83: 2 | J83: 0 | K83: 2 | L83: 0 | M83: 6 | N83: 0 | O83: 0 | P83: 87 | Q83: 0 | R83: 0 | S83: 1 | T83: 0
A84: QR1 | B84: RTE | C84: GLOUCESTERSHIRE HOSPITALS NHS FOUNDATION TRUST | D84: 63 | E84: 0.6666666667 | F84: 0.1904761905 | G84: 19 | H84: 23 | I84: 9 | J84: 5 | K84: 7 | L84: 0 | M84: 61 | N84: 2 | O84: 0 | P84: 0 | Q84: 0 | R84: 0 | S84: 0 | T84: 0
A85: QRL | B85: R1F | C85: ISLE OF WIGHT NHS TRUST | D85: 11 | E85: 1 | F85: 0 | G85: 11 | H85: 0 | I85: 0 | J85: 0 | K85: 0 | L85: 0 | M85: 0 | N85: 0 | O85: 0 | P85: 0 | Q85: 11 | R85: 0 | S85: 0 | T85: 0
A86: QRL | B86: RHU | C86: PORTSMOUTH HOSPITALS UNIVERSITY NATIONAL HEALTH SERVICE TRUST | D86: 83 | E86: 0.9397590361 | F86: 0.03614457831 | G86: 59 | H86: 19 | I86: 1 | J86: 1 | K86: 2 | L86: 1 | M86: 0 | N86: 0 | O86: 0 | P86: 0 | Q86: 0 | R86: 0 | S86: 83 | T86: 0
A87: QRL | B87: RHM | C87: UNIVERSITY HOSPITAL SOUTHAMPTON NHS FOUNDATION TRUST | D87: 110 | E87: 0.9090909091 | F87: 0.02727272727 | G87: 63 | H87: 37 | I87: 7 | J87: 2 | K87: 1 | L87: 0 | M87: 0 | N87: 0 | O87: 0 | P87: 0 | Q87: 0 | R87: 0 | S87: 110 | T87: 0
A88: QRL | B88: RN5 | C88: HAMPSHIRE HOSPITALS NHS FOUNDATION TRUST | D88: 175 | E88: 0.9771428571 | F88: 0.01142857143 | G88: 138 | H88: 33 | I88: 2 | J88: 2 | K88: 0 | L88: 0 | M88: 0 | N88: 0 | O88: 0 | P88: 169 | Q88: 0 | R88: 0 | S88: 6 | T88: 0
A89: QRV | B89: RYJ | C89: IMPERIAL COLLEGE HEALTHCARE NHS TRUST | D89: 52 | E89: 0.8653846154 | F89: 0.05769230769 | G89: 31 | H89: 14 | I89: 4 | J89: 0 | K89: 3 | L89: 0 | M89: 0 | N89: 27 | O89: 0 | P89: 4 | Q89: 0 | R89: 0 | S89: 21 | T89: 0
A90: QRV | B90: RQM | C90: CHELSEA AND WESTMINSTER HOSPITAL NHS FOUNDATION TRUST | D90: 53 | E90: 0.9056603774 | F90: 0.05660377358 | G90: 38 | H90: 10 | I90: 2 | J90: 0 | K90: 3 | L90: 0 | M90: 0 | N90: 0 | O90: 0 | P90: 0 | Q90: 0 | R90: 0 | S90: 53 | T90: 0
A91: QRV | B91: RAS | C91: THE HILLINGDON HOSPITALS NHS FOUNDATION TRUST | D91: 131 | E91: 0.9465648855 | F91: 0.04580152672 | G91: 100 | H91: 24 | I91: 0 | J91: 3 | K91: 3 | L91: 1 | M91: 0 | N91: 0 | O91: 0 | P91: 106 | Q91: 0 | R91: 0 | S91: 25 | T91: 0
A92: QRV | B92: R1K | C92: LONDON NORTH WEST UNIVERSITY HEALTHCARE NHS TRUST | D92: 132 | E92: 0.9772727273 | F92: 0.02272727273 | G92: 102 | H92: 27 | I92: 0 | J92: 3 | K92: 0 | L92: 0 | M92: 0 | N92: 0 | O92: 0 | P92: 132 | Q92: 0 | R92: 0 | S92: 0 | T92: 0
A93: QSL | B93: RH5 | C93: SOMERSET NHS FOUNDATION TRUST | D93: 4 | E93: * | F93: * | G93: * | H93: * | I93: * | J93: * | K93: * | L93: * | M93: * | N93: * | O93: * | P93: * | Q93: * | R93: * | S93: * | T93: *
A94: QT1 | B94: RK5 | C94: SHERWOOD FOREST HOSPITALS NHS FOUNDATION TRUST | D94: 5 | E94: 0.8 | F94: 0.2 | G94: 3 | H94: 1 | I94: 0 | J94: 1 | K94: 0 | L94: 0 | M94: 0 | N94: 0 | O94: 0 | P94: 0 | Q94: 0 | R94: 0 | S94: 5 | T94: 0
A95: QT1 | B95: RX1 | C95: NOTTINGHAM UNIVERSITY HOSPITALS NHS TRUST | D95: 38 | E95: 0.8684210526 | F95: 0.1052631579 | G95: 27 | H95: 6 | I95: 1 | J95: 3 | K95: 1 | L95: 0 | M95: 0 | N95: 19 | O95: 0 | P95: 16 | Q95: 0 | R95: 0 | S95: 3 | T95: 0
A96: QT6 | B96: REF | C96: ROYAL CORNWALL HOSPITALS NHS TRUST | D96: 3 | E96: * | F96: * | G96: * | H96: * | I96: * | J96: * | K96: * | L96: * | M96: * | N96: * | O96: * | P96: * | Q96: * | R96: * | S96: * | T96: *
A97: QU9 | B97: RTH | C97: OXFORD UNIVERSITY HOSPITALS NHS FOUNDATION TRUST | D97: 13 | E97: 0.2307692308 | F97: 0.6153846154 | G97: 2 | H97: 1 | I97: 2 | J97: 3 | K97: 5 | L97: 0 | M97: 0 | N97: 0 | O97: 0 | P97: 0 | Q97: 0 | R97: 0 | S97: 13 | T97: 0
A98: QU9 | B98: RXQ | C98: BUCKINGHAMSHIRE HEALTHCARE NHS TRUST | D98: 30 | E98: 0.9666666667 | F98: 0 | G98: 19 | H98: 10 | I98: 1 | J98: 0 | K98: 0 | L98: 0 | M98: 24 | N98: 0 | O98: 0 | P98: 0 | Q98: 0 | R98: 0 | S98: 6 | T98: 0
A99: QU9 | B99: RHW | C99: ROYAL BERKSHIRE NHS FOUNDATION TRUST | D99: 75 | E99: 0.9733333333 | F99: 0 | G99: 53 | H99: 20 | I99: 2 | J99: 0 | K99: 0 | L99: 0 | M99: 0 | N99: 0 | O99: 0 | P99: 0 | Q99: 75 | R99: 0 | S99: 0 | T99: 0
A100: QUA | B100: RL4 | C100: THE ROYAL WOLVERHAMPTON NHS TRUST | D100: 31 | E100: 0.935483871 | F100: 0.06451612903 | G100: 24 | H100: 5 | I100: 0 | J100: 1 | K100: 1 | L100: 0 | M100: 31 | N100: 0 | O100: 0 | P100: 0 | Q100: 0 | R100: 0 | S100: 0 | T100: 0
A101: QUA | B101: RNA | C101: THE DUDLEY GROUP NHS FOUNDATION TRUST | D101: 45 | E101: 0.8666666667 | F101: 0 | G101: 32 | H101: 7 | I101: 2 | J101: 0 | K101: 0 | L101: 4 | M101: 0 | N101: 0 | O101: 0 | P101: 44 | Q101: 0 | R101: 0 | S101: 1 | T101: 0
A102: QUA | B102: RBK | C102: WALSALL HEALTHCARE NHS TRUST | D102: 66 | E102: 0.9090909091 | F102: 0.04545454545 | G102: 49 | H102: 11 | I102: 1 | J102: 1 | K102: 2 | L102: 2 | M102: 12 | N102: 54 | O102: 0 | P102: 0 | Q102: 0 | R102: 0 | S102: 0 | T102: 0
A103: QUE | B103: RGT | C103: CAMBRIDGE UNIVERSITY HOSPITALS NHS FOUNDATION TRUST | D103: 28 | E103: 0.8928571429 | F103: 0.07142857143 | G103: 19 | H103: 6 | I103: 1 | J103: 2 | K103: 0 | L103: 0 | M103: 0 | N103: 22 | O103: 0 | P103: 3 | Q103: 0 | R103: 0 | S103: 3 | T103: 0
A104: QUE | B104: RGN | C104: NORTH WEST ANGLIA NHS FOUNDATION TRUST | D104: 157 | E104: 0.949044586 | F104: 0 | G104: 131 | H104: 18 | I104: 3 | J104: 0 | K104: 0 | L104: 5 | M104: 0 | N104: 0 | O104: 0 | P104: 155 | Q104: 0 | R104: 0 | S104: 2 | T104: 0
A105: QUY | B105: RA7 | C105: UNIVERSITY HOSPITALS BRISTOL AND WESTON NHS FOUNDATION TRUST | D105: 59 | E105: 0.9491525424 | F105: 0.03389830508 | G105: 46 | H105: 10 | I105: 1 | J105: 1 | K105: 1 | L105: 0 | M105: 1 | N105: 0 | O105: 0 | P105: 58 | Q105: 0 | R105: 0 | S105: 0 | T105: 0
A106: QUY | B106: RVJ | C106: NORTH BRISTOL NHS TRUST | D106: 61 | E106: 0.9344262295 | F106: 0.06557377049 | G106: 46 | H106: 11 | I106: 0 | J106: 1 | K106: 3 | L106: 0 | M106: 61 | N106: 0 | O106: 0 | P106: 0 | Q106: 0 | R106: 0 | S106: 0 | T106: 0
A107: QVV | B107: RBD | C107: DORSET COUNTY HOSPITAL NHS FOUNDATION TRUST | D107: 5 | E107: 1 | F107: 0 | G107: 3 | H107: 2 | I107: 0 | J107: 0 | K107: 0 | L107: 0 | M107: 0 | N107: 0 | O107: 0 | P107: 5 | Q107: 0 | R107: 0 | S107: 0 | T107: 0
A108: QVV | B108: R0D | C108: UNIVERSITY HOSPITALS DORSET NHS FOUNDATION TRUST | D108: 16 | E108: 0.5 | F108: 0.25 | G108: 6 | H108: 2 | I108: 3 | J108: 2 | K108: 2 | L108: 1 | M108: 0 | N108: 14 | O108: 0 | P108: 0 | Q108: 0 | R108: 0 | S108: 2 | T108: 0
A109: QWE | B109: RVR | C109: EPSOM AND ST HELIER UNIVERSITY HOSPITALS NHS TRUST | D109: 0 | E109: NA | F109: NA | G109: 0 | H109: 0 | I109: 0 | J109: 0 | K109: 0 | L109: 0 | M109: 0 | N109: 0 | O109: 0 | P109: 0 | Q109: 0 | R109: 0 | S109: 0 | T109: 0
A110: QWE | B110: RJ7 | C110: ST GEORGE'S UNIVERSITY HOSPITALS NHS FOUNDATION TRUST | D110: 30 | E110: 0.8333333333 | F110: 0.1 | G110: 22 | H110: 3 | I110: 2 | J110: 1 | K110: 2 | L110: 0 | M110: 0 | N110: 29 | O110: 0 | P110: 0 | Q110: 0 | R110: 0 | S110: 1 | T110: 0
A111: QWE | B111: RAX | C111: KINGSTON AND RICHMOND NHS FOUNDATION TRUST | D111: 67 | E111: 0.9701492537 | F111: 0.01492537313 | G111: 53 | H111: 12 | I111: 1 | J111: 1 | K111: 0 | L111: 0 | M111: 0 | N111: 63 | O111: 0 | P111: 0 | Q111: 0 | R111: 0 | S111: 4 | T111: 0
A112: QWO | B112: RAE | C112: BRADFORD TEACHING HOSPITALS NHS FOUNDATION TRUST | D112: 6 | E112: 0.3333333333 | F112: 0.3333333333 | G112: 2 | H112: 0 | I112: 2 | J112: 2 | K112: 0 | L112: 0 | M112: 0 | N112: 0 | O112: 0 | P112: 0 | Q112: 0 | R112: 0 | S112: 6 | T112: 0
A113: QWO | B113: RXF | C113: MID YORKSHIRE TEACHING NHS TRUST | D113: 42 | E113: 0.9523809524 | F113: 0.02380952381 | G113: 26 | H113: 14 | I113: 0 | J113: 0 | K113: 1 | L113: 1 | M113: 2 | N113: 0 | O113: 0 | P113: 39 | Q113: 0 | R113: 0 | S113: 1 | T113: 0
A114: QWO | B114: RWY | C114: CALDERDALE AND HUDDERSFIELD NHS FOUNDATION TRUST | D114: 77 | E114: 1 | F114: 0 | G114: 62 | H114: 15 | I114: 0 | J114: 0 | K114: 0 | L114: 0 | M114: 0 | N114: 0 | O114: 0 | P114: 0 | Q114: 0 | R114: 0 | S114: 77 | T114: 0
A115: QWO | B115: RR8 | C115: LEEDS TEACHING HOSPITALS NHS TRUST | D115: 116 | E115: 0.8965517241 | F115: 0.0775862069 | G115: 86 | H115: 18 | I115: 2 | J115: 6 | K115: 3 | L115: 1 | M115: 109 | N115: 4 | O115: 0 | P115: 3 | Q115: 0 | R115: 0 | S115: 0 | T115: 0
A116: QWU | B116: RJC | C116: SOUTH WARWICKSHIRE UNIVERSITY NHS FOUNDATION TRUST | D116: 0 | E116: NA | F116: NA | G116: 0 | H116: 0 | I116: 0 | J116: 0 | K116: 0 | L116: 0 | M116: 0 | N116: 0 | O116: 0 | P116: 0 | Q116: 0 | R116: 0 | S116: 0 | T116: 0
A117: QWU | B117: RLT | C117: GEORGE ELIOT HOSPITAL NHS TRUST | D117: 0 | E117: NA | F117: NA | G117: 0 | H117: 0 | I117: 0 | J117: 0 | K117: 0 | L117: 0 | M117: 0 | N117: 0 | O117: 0 | P117: 0 | Q117: 0 | R117: 0 | S117: 0 | T117: 0
A118: QWU | B118: RKB | C118: UNIVERSITY HOSPITALS COVENTRY AND WARWICKSHIRE NHS TRUST | D118: 31 | E118: 0.8064516129 | F118: 0.1935483871 | G118: 18 | H118: 7 | I118: 0 | J118: 0 | K118: 6 | L118: 0 | M118: 10 | N118: 15 | O118: 0 | P118: 0 | Q118: 0 | R118: 0 | S118: 6 | T118: 0
A119: QXU | B119: RTK | C119: ASHFORD AND ST PETER'S HOSPITALS NHS FOUNDATION TRUST | D119: 0 | E119: NA | F119: NA | G119: 0 | H119: 0 | I119: 0 | J119: 0 | K119: 0 | L119: 0 | M119: 0 | N119: 0 | O119: 0 | P119: 0 | Q119: 0 | R119: 0 | S119: 0 | T119: 0
A120: QXU | B120: RA2 | C120: ROYAL SURREY COUNTY HOSPITAL NHS FOUNDATION TRUST | D120: 6 | E120: 1 | F120: 0 | G120: 6 | H120: 0 | I120: 0 | J120: 0 | K120: 0 | L120: 0 | M120: 0 | N120: 0 | O120: 0 | P120: 6 | Q120: 0 | R120: 0 | S120: 0 | T120: 0
A121: QXU | B121: RTP | C121: SURREY AND SUSSEX HEALTHCARE NHS TRUST | D121: 23 | E121: 0.8695652174 | F121: 0.1304347826 | G121: 17 | H121: 3 | I121: 0 | J121: 3 | K121: 0 | L121: 0 | M121: 22 | N121: 0 | O121: 0 | P121: 0 | Q121: 0 | R121: 0 | S121: 1 | T121: 0
A122: QYG | B122: RJN | C122: EAST CHESHIRE NHS TRUST | D122: 10 | E122: 1 | F122: 0 | G122: 9 | H122: 1 | I122: 0 | J122: 0 | K122: 0 | L122: 0 | M122: 10 | N122: 0 | O122: 0 | P122: 0 | Q122: 0 | R122: 0 | S122: 0 | T122: 0
A123: QYG | B123: RBN | C123: MERSEY AND WEST LANCASHIRE TEACHING HOSPITALS NHS TRUST | D123: 21 | E123: 0.8095238095 | F123: 0.1428571429 | G123: 12 | H123: 5 | I123: 1 | J123: 1 | K123: 2 | L123: 0 | M123: 21 | N123: 0 | O123: 0 | P123: 0 | Q123: 0 | R123: 0 | S123: 0 | T123: 0
A124: QYG | B124: REP | C124: LIVERPOOL WOMEN'S NHS FOUNDATION TRUST | D124: 41 | E124: 0.9024390244 | F124: 0.0243902439 | G124: 28 | H124: 9 | I124: 2 | J124: 0 | K124: 1 | L124: 1 | M124: 41 | N124: 0 | O124: 0 | P124: 0 | Q124: 0 | R124: 0 | S124: 0 | T124: 0
A125: QYG | B125: RBL | C125: WIRRAL UNIVERSITY TEACHING HOSPITAL NHS FOUNDATION TRUST | D125: 47 | E125: 0.9787234043 | F125: 0.02127659574 | G125: 42 | H125: 4 | I125: 0 | J125: 1 | K125: 0 | L125: 0 | M125: 0 | N125: 11 | O125: 0 | P125: 36 | Q125: 0 | R125: 0 | S125: 0 | T125: 0
A126: QYG | B126: RBT | C126: MID CHESHIRE HOSPITALS NHS FOUNDATION TRUST | D126: 48 | E126: 0.9583333333 | F126: 0.04166666667 | G126: 41 | H126: 5 | I126: 0 | J126: 0 | K126: 2 | L126: 0 | M126: 42 | N126: 0 | O126: 0 | P126: 0 | Q126: 6 | R126: 0 | S126: 0 | T126: 0
A127: QYG | B127: RJR | C127: COUNTESS OF CHESTER HOSPITAL NHS FOUNDATION TRUST | D127: 64 | E127: 0.890625 | F127: 0.09375 | G127: 51 | H127: 6 | I127: 0 | J127: 5 | K127: 1 | L127: 1 | M127: 11 | N127: 0 | O127: 0 | P127: 53 | Q127: 0 | R127: 0 | S127: 0 | T127: 0

Sheet Sites Q3
B6: Sort data by:
A9: ICB Code | B9: Trust Code | C9: Trust Name | D9: Site Code | E9: Site Name | F9: Total Responses | G9: Percentage Positive | H9: Percentage Negative | I9: Breakdown of Responses
I10: Very Good | J10: Good | K10: Neither Good nor Poor | L10: Poor | M10: Very Poor | N10: Don't Know
E11: England (including Independent Sector providers) | F11: 5415 | G11: 0.9216989843 | H11: 0.03988919668 | I11: 3907 | J11: 1084 | K11: 177 | L11: 106 | M11: 110 | N11: 31
E12: England (excluding Independent Sector providers) | F12: 5415 | G12: 0.9216989843 | H12: 0.03988919668 | I12: 3907 | J12: 1084 | K12: 177 | L12: 106 | M12: 110 | N12: 31
E13: Selection (excluding suppressed data) | F13: =SUBTOTAL(9,F14:F298) -> 5415 | G13: =IFERROR((I13+J13)/SUM(I13:N13), "-") -> 0.9209423039 | H13: =IFERROR((L13+M13)/SUM(I13:N13), "-") -> 0.03992812937 | I13: =SUBTOTAL(9,I14:I298) -> 3607 | J13: 1006 | K13: 165 | L13: 98 | M13: 102 | N13: 31
A14: QE1 | B14: RXL | C14: BLACKPOOL TEACHING HOSPITALS NHS FOUNDATION TRUST | D14: RXL01 | E14: Blackpool Victoria Hospital | F14: 125 | G14: 0.816 | H14: 0.088 | I14: 80 | J14: 22 | K14: 12 | L14: 6 | M14: 5 | N14: 0
A15: QE1 | B15: RXR | C15: EAST LANCASHIRE HOSPITALS NHS TRUST | D15: RXR20 | E15: Royal Blackburn Hospital | F15: 72 | G15: 0.7777777778 | H15: 0.125 | I15: 43 | J15: 13 | K15: 6 | L15: 3 | M15: 6 | N15: 1
A16: QE1 | B16: RXN | C16: LANCASHIRE TEACHING HOSPITALS NHS FOUNDATION TRUST | D16: RXN01 | E16: Chorley and South Ribble Hospital | F16: 0 | G16: NA | H16: NA | I16: 0 | J16: 0 | K16: 0 | L16: 0 | M16: 0 | N16: 0
A17: QE1 | B17: RXN | C17: LANCASHIRE TEACHING HOSPITALS NHS FOUNDATION TRUST | D17: RXN02 | E17: Royal Preston Hospital | F17: 14 | G17: 0.8571428571 | H17: 0 | I17: 6 | J17: 6 | K17: 2 | L17: 0 | M17: 0 | N17: 0
A18: QE1 | B18: RTX | C18: UNIVERSITY HOSPITALS OF MORECAMBE BAY NHS FOUNDATION TRUST | D18: RTXBU | E18: Furness General Hospital | F18: 7 | G18: 1 | H18: 0 | I18: 6 | J18: 1 | K18: 0 | L18: 0 | M18: 0 | N18: 0
A19: QE1 | B19: RTX | C19: UNIVERSITY HOSPITALS OF MORECAMBE BAY NHS FOUNDATION TRUST | D19: RTX02 | E19: Royal Lancaster Infirmary | F19: 31 | G19: 0.9677419355 | H19: 0.03225806452 | I19: 24 | J19: 6 | K19: 0 | L19: 0 | M19: 1 | N19: 0
A20: QE1 | B20: RTX | C20: UNIVERSITY HOSPITALS OF MORECAMBE BAY NHS FOUNDATION TRUST | D20: RTXBW | E20: Westmorland General Hospital | F20: 0 | G20: NA | H20: NA | I20: 0 | J20: 0 | K20: 0 | L20: 0 | M20: 0 | N20: 0
A21: QF7 | B21: RFF | C21: BARNSLEY HOSPITAL NHS FOUNDATION TRUST | D21: RFFAA | E21: Barnsley Hospital NHS Foundation Trust HQ | F21: 15 | G21: 0.9333333333 | H21: 0 | I21: 12 | J21: 2 | K21: 1 | L21: 0 | M21: 0 | N21: 0
A22: QF7 | B22: RP5 | C22: DONCASTER AND BASSETLAW TEACHING HOSPITALS NHS FOUNDATION TRUST | D22: RP5BA | E22: Bassetlaw Hospital | F22: 1 | G22: * | H22: * | I22: * | J22: * | K22: * | L22: * | M22: * | N22: *
A23: QF7 | B23: RP5 | C23: DONCASTER AND BASSETLAW TEACHING HOSPITALS NHS FOUNDATION TRUST | D23: RP5DR | E23: Doncaster Royal Infirmary | F23: 2 | G23: * | H23: * | I23: * | J23: * | K23: * | L23: * | M23: * | N23: *
A24: QF7 | B24: RHQ | C24: SHEFFIELD TEACHING HOSPITALS NHS FOUNDATION TRUST | D24: RHQHH | E24: Royal Hallamshire Hospital | F24: 54 | G24: 0.8703703704 | H24: 0.03703703704 | I24: 37 | J24: 10 | K24: 5 | L24: 1 | M24: 1 | N24: 0
A25: QF7 | B25: RFR | C25: THE ROTHERHAM NHS FOUNDATION TRUST | D25: RFRPA | E25: Rotherham District General Hospital | F25: 1 | G25: * | H25: * | I25: * | J25: * | K25: * | L25: * | M25: * | N25: *
A26: QGH | B26: RWP | C26: WORCESTERSHIRE ACUTE HOSPITALS NHS TRUST | D26: RWP50 | E26: Worcestershire Royal Hospital | F26: 44 | G26: 0.9318181818 | H26: 0.02272727273 | I26: 28 | J26: 13 | K26: 2 | L26: 1 | M26: 0 | N26: 0
A27: QGH | B27: RLQ | C27: WYE VALLEY NHS TRUST | D27: RLQ01 | E27: Hereford County Hospital | F27: 12 | G27: 0.8333333333 | H27: 0.08333333333 | I27: 8 | J27: 2 | K27: 1 | L27: 0 | M27: 1 | N27: 0
A28: QH8 | B28: RAJ | C28: MID AND SOUTH ESSEX NHS FOUNDATION TRUST | D28: RAJ12 | E28: BASILDON HOSPITAL | F28: 19 | G28: 0.7368421053 | H28: 0.1578947368 | I28: 9 | J28: 5 | K28: 2 | L28: 2 | M28: 1 | N28: 0
A29: QH8 | B29: RAJ | C29: MID AND SOUTH ESSEX NHS FOUNDATION TRUST | D29: RAJ32 | E29: MID ESSEX HOSPITAL | F29: 13 | G29: 0.6923076923 | H29: 0.2307692308 | I29: 5 | J29: 4 | K29: 0 | L29: 3 | M29: 0 | N29: 1
A30: QH8 | B30: RAJ | C30: MID AND SOUTH ESSEX NHS FOUNDATION TRUST | D30: RAJ01 | E30: Southend Hospital | F30: 32 | G30: 0.90625 | H30: 0.03125 | I30: 24 | J30: 5 | K30: 2 | L30: 0 | M30: 1 | N30: 0
A31: QHG | B31: RC9 | C31: BEDFORDSHIRE HOSPITALS NHS FOUNDATION TRUST | D31: RC979 | E31: BEDFORD HOSPITAL SOUTH WING | F31: 32 | G31: 0.96875 | H31: 0.03125 | I31: 21 | J31: 10 | K31: 0 | L31: 0 | M31: 1 | N31: 0
A32: QHG | B32: RC9 | C32: BEDFORDSHIRE HOSPITALS NHS FOUNDATION TRUST | D32: RC971 | E32: Luton and Dunstable Hospital | F32: 115 | G32: 0.9565217391 | H32: 0.01739130435 | I32: 83 | J32: 27 | K32: 3 | L32: 2 | M32: 0 | N32: 0
A33: QHG | B33: RD8 | C33: MILTON KEYNES UNIVERSITY HOSPITAL NHS FOUNDATION TRUST | D33: RD816 | E33: Milton Keynes Hospital | F33: 34 | G33: 0.8235294118 | H33: 0.1176470588 | I33: 22 | J33: 6 | K33: 2 | L33: 2 | M33: 2 | N33: 0
A34: QHL | B34: RQ3 | C34: BIRMINGHAM WOMEN'S AND CHILDREN'S NHS FOUNDATION TRUST | D34: RQ370 | E34: Birmingham Women's Hospital | F34: 143 | G34: 0.9160839161 | H34: 0.03496503497 | I34: 101 | J34: 30 | K34: 6 | L34: 1 | M34: 4 | N34: 1
A35: QHL | B35: RXK | C35: SANDWELL AND WEST BIRMINGHAM HOSPITALS NHS TRUST | D35: RXKTC | E35: Birmingham Treatment Centre | F35: 0 | G35: NA | H35: NA | I35: 0 | J35: 0 | K35: 0 | L35: 0 | M35: 0 | N35: 0
A36: QHL | B36: RRK | C36: UNIVERSITY HOSPITALS BIRMINGHAM NHS FOUNDATION TRUST | D36: RRK98 | E36: Good Hope Hospital | F36: 9 | G36: 1 | H36: 0 | I36: 8 | J36: 1 | K36: 0 | L36: 0 | M36: 0 | N36: 0
A37: QHL | B37: RRK | C37: UNIVERSITY HOSPITALS BIRMINGHAM NHS FOUNDATION TRUST | D37: RRK97 | E37: Heartlands Hospital | F37: 23 | G37: 0.9565217391 | H37: 0.04347826087 | I37: 14 | J37: 8 | K37: 0 | L37: 0 | M37: 1 | N37: 0
A38: QHL | B38: RRK | C38: UNIVERSITY HOSPITALS BIRMINGHAM NHS FOUNDATION TRUST | D38: RRK99 | E38: Solihull Hospital | F38: 0 | G38: NA | H38: NA | I38: 0 | J38: 0 | K38: 0 | L38: 0 | M38: 0 | N38: 0
A39: QHM | B39: RXP | C39: COUNTY DURHAM AND DARLINGTON NHS FOUNDATION TRUST | D39: RXPDA | E39: Darlington Memorial Hospital | F39: 98 | G39: 0.9897959184 | H39: 0 | I39: 81 | J39: 16 | K39: 1 | L39: 0 | M39: 0 | N39: 0
A40: QHM | B40: RXP | C40: COUNTY DURHAM AND DARLINGTON NHS FOUNDATION TRUST | D40: RXPCP | E40: University Hospital Of North Durham | F40: 32 | G40: 1 | H40: 0 | I40: 27 | J40: 5 | K40: 0 | L40: 0 | M40: 0 | N40: 0
A41: QHM | B41: RR7 | C41: GATESHEAD HEALTH NHS FOUNDATION TRUST | D41: RR7EN | E41: Queen Elizabeth Hospital | F41: 13 | G41: 1 | H41: 0 | I41: 13 | J41: 0 | K41: 0 | L41: 0 | M41: 0 | N41: 0
A42: QHM | B42: RNN | C42: NORTH CUMBRIA INTEGRATED CARE NHS FOUNDATION TRUST | D42: RNN62 | E42: Cumberland Infirmary | F42: 8 | G42: 1 | H42: 0 | I42: 6 | J42: 2 | K42: 0 | L42: 0 | M42: 0 | N42: 0
A43: QHM | B43: RNN | C43: NORTH CUMBRIA INTEGRATED CARE NHS FOUNDATION TRUST | D43: RNNBX | E43: West Cumberland Hospital | F43: 9 | G43: 1 | H43: 0 | I43: 9 | J43: 0 | K43: 0 | L43: 0 | M43: 0 | N43: 0
A44: QHM | B44: RVW | C44: NORTH TEES AND HARTLEPOOL NHS FOUNDATION TRUST | D44: RVWAE | E44: University Hospital Of North Tees | F44: 1 | G44: * | H44: * | I44: * | J44: * | K44: * | L44: * | M44: * | N44: *
A45: QHM | B45: RTF | C45: NORTHUMBRIA HEALTHCARE NHS FOUNDATION TRUST | D45: RTFDJ | E45: Alnwick Infirmary | F45: 0 | G45: NA | H45: NA | I45: 0 | J45: 0 | K45: 0 | L45: 0 | M45: 0 | N45: 0
A46: QHM | B46: RTF | C46: NORTHUMBRIA HEALTHCARE NHS FOUNDATION TRUST | D46: RTFDH | E46: Berwick Infirmary | F46: 0 | G46: NA | H46: NA | I46: 0 | J46: 0 | K46: 0 | L46: 0 | M46: 0 | N46: 0
A47: QHM | B47: RTF | C47: NORTHUMBRIA HEALTHCARE NHS FOUNDATION TRUST | D47: RTFDR | E47: Hexham General Hospital | F47: 0 | G47: NA | H47: NA | I47: 0 | J47: 0 | K47: 0 | L47: 0 | M47: 0 | N47: 0
A48: QHM | B48: RTF | C48: NORTHUMBRIA HEALTHCARE NHS FOUNDATION TRUST | D48: RTFXXX | E48: Non-hospital site | F48: 0 | G48: NA | H48: NA | I48: 0 | J48: 0 | K48: 0 | L48: 0 | M48: 0 | N48: 0
A49: QHM | B49: RTF | C49: NORTHUMBRIA HEALTHCARE NHS FOUNDATION TRUST | D49: RTF86 | E49: The Northumbria | F49: 0 | G49: NA | H49: NA | I49: 0 | J49: 0 | K49: 0 | L49: 0 | M49: 0 | N49: 0
A50: QHM | B50: RTR | C50: SOUTH TEES HOSPITALS NHS FOUNDATION TRUST | D50: RTR45 | E50: Friarage Hospital Site | F50: 0 | G50: NA | H50: NA | I50: 0 | J50: 0 | K50: 0 | L50: 0 | M50: 0 | N50: 0
A51: QHM | B51: RTR | C51: SOUTH TEES HOSPITALS NHS FOUNDATION TRUST | D51: RTRAT | E51: The James Cook University Hospital | F51: 17 | G51: 0.9411764706 | H51: 0.05882352941 | I51: 12 | J51: 4 | K51: 0 | L51: 1 | M51: 0 | N51: 0
A52: QHM | B52: R0B | C52: SOUTH TYNESIDE AND SUNDERLAND NHS FOUNDATION TRUST | D52: R0B01 | E52: Sunderland Royal Hospital | F52: 1 | G52: * | H52: * | I52: * | J52: * | K52: * | L52: * | M52: * | N52: *
A53: QHM | B53: RTD | C53: THE NEWCASTLE UPON TYNE HOSPITALS NHS FOUNDATION TRUST | D53: RTD02 | E53: The Royal Victoria Infirmary | F53: 59 | G53: 0.8474576271 | H53: 0 | I53: 29 | J53: 21 | K53: 9 | L53: 0 | M53: 0 | N53: 0
A54: QJ2 | B54: RFS | C54: CHESTERFIELD ROYAL HOSPITAL NHS FOUNDATION TRUST | D54: RFSDA | E54: Chesterfield Royal Hospital | F54: 59 | G54: 0.9661016949 | H54: 0.01694915254 | I54: 52 | J54: 5 | K54: 1 | L54: 1 | M54: 0 | N54: 0
A55: QJ2 | B55: RTG | C55: UNIVERSITY HOSPITALS OF DERBY AND BURTON NHS FOUNDATION TRUST | D55: RTG02 | E55: Queens Hospital, Burton Upon Trent | F55: 14 | G55: 0.8571428571 | H55: 0.1428571429 | I55: 8 | J55: 4 | K55: 0 | L55: 1 | M55: 1 | N55: 0
A56: QJ2 | B56: RTG | C56: UNIVERSITY HOSPITALS OF DERBY AND BURTON NHS FOUNDATION TRUST | D56: RTGFG | E56: Royal Derby Hospital | F56: 18 | G56: 0.8888888889 | H56: 0.05555555556 | I56: 11 | J56: 5 | K56: 1 | L56: 1 | M56: 0 | N56: 0
A57: QJG | B57: RDE | C57: EAST SUFFOLK AND NORTH ESSEX NHS FOUNDATION TRUST | D57: RDEE4 | E57: Colchester General Hospital | F57: 2 | G57: * | H57: * | I57: * | J57: * | K57: * | L57: * | M57: * | N57: *
A58: QJG | B58: RDE | C58: EAST SUFFOLK AND NORTH ESSEX NHS FOUNDATION TRUST | D58: RDE03 | E58: Ipswich Hospital | F58: 2 | G58: * | H58: * | I58: * | J58: * | K58: * | L58: * | M58: * | N58: *
A59: QJG | B59: RGR | C59: WEST SUFFOLK NHS FOUNDATION TRUST | D59: RGR50 | E59: West Suffolk Hospital | F59: 5 | G59: 1 | H59: 0 | I59: * | J59: * | K59: * | L59: * | M59: * | N59: *
A60: QJK | B60: RH8 | C60: ROYAL DEVON UNIVERSITY HEALTHCARE NHS FOUNDATION TRUST | D60: RH880 | E60: North Devon District Hospital | F60: 26 | G60: 1 | H60: 0 | I60: 24 | J60: 2 | K60: 0 | L60: 0 | M60: 0 | N60: 0
A61: QJK | B61: RH8 | C61: ROYAL DEVON UNIVERSITY HEALTHCARE NHS FOUNDATION TRUST | D61: RH801 | E61: Royal Devon and Exeter Hospital (Wonford) | F61: 0 | G61: NA | H61: NA | I61: 0 | J61: 0 | K61: 0 | L61: 0 | M61: 0 | N61: 0
A62: QJK | B62: RA9 | C62: TORBAY AND SOUTH DEVON NHS FOUNDATION TRUST | D62: RA901 | E62: Torbay Hospital | F62: 1 | G62: * | H62: * | I62: * | J62: * | K62: * | L62: * | M62: * | N62: *
A63: QJK | B63: RK9 | C63: UNIVERSITY HOSPITALS PLYMOUTH NHS TRUST | D63: RK950 | E63: Derriford Hospital | F63: 8 | G63: 1 | H63: 0 | I63: * | J63: * | K63: * | L63: * | M63: * | N63: *
A64: QJM | B64: RWD | C64: UNITED LINCOLNSHIRE TEACHING HOSPITALS NHS TRUST | D64: RWDLP | E64: Grantham and District Hospital | F64: 0 | G64: NA | H64: NA | I64: 0 | J64: 0 | K64: 0 | L64: 0 | M64: 0 | N64: 0
A65: QJM | B65: RWD | C65: UNITED LINCOLNSHIRE TEACHING HOSPITALS NHS TRUST | D65: RWDDA | E65: Lincoln County Hospital | F65: 0 | G65: NA | H65: NA | I65: 0 | J65: 0 | K65: 0 | L65: 0 | M65: 0 | N65: 0
A66: QJM | B66: RWD | C66: UNITED LINCOLNSHIRE TEACHING HOSPITALS NHS TRUST | D66: RWDLA | E66: Pilgrim Hospital | F66: 0 | G66: NA | H66: NA | I66: 0 | J66: 0 | K66: 0 | L66: 0 | M66: 0 | N66: 0
A67: QK1 | B67: RWE | C67: UNIVERSITY HOSPITALS OF LEICESTER NHS TRUST | D67: RWEAK | E67: Leicester General Hospital | F67: 22 | G67: 0.8181818182 | H67: 0.09090909091 | I67: * | J67: * | K67: * | L67: * | M67: * | N67: *
A68: QK1 | B68: RWE | C68: UNIVERSITY HOSPITALS OF LEICESTER NHS TRUST | D68: RWEAA | E68: Leicester Royal Infirmary | F68: 94 | G68: 0.8510638298 | H68: 0.02127659574 | I68: 46 | J68: 34 | K68: 12 | L68: 1 | M68: 1 | N68: 0
A69: QK1 | B69: RWE | C69: UNIVERSITY HOSPITALS OF LEICESTER NHS TRUST | D69: RWE10 | E69: St Mary's Hospital | F69: 2 | G69: * | H69: * | I69: * | J69: * | K69: * | L69: * | M69: * | N69: *
A70: QKK | B70: RJ1 | C70: GUY'S AND ST THOMAS' NHS FOUNDATION TRUST | D70: RJ122 | E70: St Thomas' Hospital | F70: 104 | G70: 0.8846153846 | H70: 0.03846153846 | I70: 57 | J70: 35 | K70: 8 | L70: 4 | M70: 0 | N70: 0
A71: QKK | B71: RJ2 | C71: LEWISHAM AND GREENWICH NHS TRUST | D71: RJ231 | E71: Queen Elizabeth Hospital | F71: 42 | G71: 0.9047619048 | H71: 0.02380952381 | I71: 25 | J71: 13 | K71: 2 | L71: 1 | M71: 0 | N71: 1
A72: QKK | B72: RJ2 | C72: LEWISHAM AND GREENWICH NHS TRUST | D72: RJ224 | E72: University Hospital Lewisham | F72: 21 | G72: 0.8571428571 | H72: 0 | I72: 10 | J72: 8 | K72: 3 | L72: 0 | M72: 0 | N72: 0
A73: QKS | B73: RN7 | C73: DARTFORD AND GRAVESHAM NHS TRUST | D73: RN707 | E73: Darent Valley Hospital | F73: 73 | G73: 1 | H73: 0 | I73: 57 | J73: 16 | K73: 0 | L73: 0 | M73: 0 | N73: 0
A74: QKS | B74: RVV | C74: EAST KENT HOSPITALS UNIVERSITY NHS FOUNDATION TRUST | D74: RVV09 | E74: Queen Elizabeth The Queen Mother Hospital | F74: 14 | G74: 0.9285714286 | H74: 0 | I74: 13 | J74: 0 | K74: 1 | L74: 0 | M74: 0 | N74: 0
A75: QKS | B75: RVV | C75: EAST KENT HOSPITALS UNIVERSITY NHS FOUNDATION TRUST | D75: RVV01 | E75: William Harvey Hospital (Ashford) | F75: 14 | G75: 0.9285714286 | H75: 0.07142857143 | I75: 13 | J75: 0 | K75: 0 | L75: 1 | M75: 0 | N75: 0
A76: QKS | B76: RWF | C76: MAIDSTONE AND TUNBRIDGE WELLS NHS TRUST | D76: RWF08 | E76: Crowborough Birthing Centre | F76: 1 | G76: * | H76: * | I76: * | J76: * | K76: * | L76: * | M76: * | N76: *
A77: QKS | B77: RWF | C77: MAIDSTONE AND TUNBRIDGE WELLS NHS TRUST | D77: RWFTW | E77: The Tunbridge Wells Hospital | F77: 90 | G77: 0.9555555556 | H77: 0.01111111111 | I77: * | J77: * | K77: * | L77: * | M77: * | N77: *
A78: QKS | B78: RPA | C78: MEDWAY NHS FOUNDATION TRUST | D78: RPA02 | E78: Medway Maritime Hospital | F78: 48 | G78: 0.9375 | H78: 0.04166666667 | I78: 37 | J78: 8 | K78: 1 | L78: 1 | M78: 1 | N78: 0
A79: QM7 | B79: RWH | C79: EAST AND NORTH HERTFORDSHIRE NHS TRUST | D79: RWH01 | E79: Lister Hospital | F79: 97 | G79: 0.9896907216 | H79: 0 | I79: * | J79: * | K79: * | L79: * | M79: * | N79: *
A80: QM7 | B80: RQW | C80: THE PRINCESS ALEXANDRA HOSPITAL NHS TRUST | D80: RQWG0 | E80: Princess Alexandra Hospital | F80: 1 | G80: * | H80: * | I80: * | J80: * | K80: * | L80: * | M80: * | N80: *
A81: QM7 | B81: RWG | C81: WEST HERTFORDSHIRE TEACHING HOSPITALS NHS TRUST | D81: RWG02 | E81: Watford General Hospital | F81: 0 | G81: NA | H81: NA | I81: 0 | J81: 0 | K81: 0 | L81: 0 | M81: 0 | N81: 0
A82: QMF | B82: RF4 | C82: BARKING, HAVERING AND REDBRIDGE UNIVERSITY HOSPITALS NHS TRUST | D82: RF4QH | E82: Queen's Hospital | F82: 95 | G82: 0.9052631579 | H82: 0.07368421053 | I82: * | J82: * | K82: * | L82: * | M82: * | N82: *
A83: QMF | B83: R1H | C83: BARTS HEALTH NHS TRUST | D83: R1HNH | E83: Newham General Hospital | F83: 48 | G83: 0.9375 | H83: 0.0625 | I83: 39 | J83: 6 | K83: 0 | L83: 0 | M83: 3 | N83: 0
A84: QMF | B84: R1H | C84: BARTS HEALTH NHS TRUST | D84: R1H12 | E84: The Royal London Hospital | F84: 36 | G84: 0.7777777778 | H84: 0.1388888889 | I84: 23 | J84: 5 | K84: 3 | L84: 3 | M84: 2 | N84: 0
A85: QMF | B85: R1H | C85: BARTS HEALTH NHS TRUST | D85: R1HKH | E85: Whipps Cross University Hospital | F85: 15 | G85: 1 | H85: 0 | I85: 10 | J85: 5 | K85: 0 | L85: 0 | M85: 0 | N85: 0
A86: QMF | B86: RQX | C86: HOMERTON HEALTHCARE NHS FOUNDATION TRUST | D86: RQXM1 | E86: Homerton University Hospital | F86: 2 | G86: * | H86: * | I86: * | J86: * | K86: * | L86: * | M86: * | N86: *
A87: QMJ | B87: RAL | C87: ROYAL FREE LONDON NHS FOUNDATION TRUST | D87: RAL26 | E87: Barnet Hospital | F87: 126 | G87: 0.9365079365 | H87: 0.01587301587 | I87: 97 | J87: 21 | K87: 6 | L87: 0 | M87: 2 | N87: 0
A88: QMJ | B88: RAL | C88: ROYAL FREE LONDON NHS FOUNDATION TRUST | D88: E3M3C | E88: NORTH MIDDLESEX HOSPITAL DSU - ELECTIVE SURGICAL HUB | F88: 83 | G88: 0.8795180723 | H88: 0.04819277108 | I88: 60 | J88: 13 | K88: 4 | L88: 2 | M88: 2 | N88: 2
A89: QMJ | B89: RAL | C89: ROYAL FREE LONDON NHS FOUNDATION TRUST | D89: RAL01 | E89: Royal Free Hospital | F89: 46 | G89: 1 | H89: 0 | I89: 7 | J89: 39 | K89: 0 | L89: 0 | M89: 0 | N89: 0
A90: QMJ | B90: RRV | C90: UNIVERSITY COLLEGE LONDON HOSPITALS NHS FOUNDATION TRUST | D90: RRV11 | E90: University College Hospital Elizabeth Garrett Anderson Wing | F90: 0 | G90: NA | H90: NA | I90: 0 | J90: 0 | K90: 0 | L90: 0 | M90: 0 | N90: 0
A91: QMJ | B91: RKE | C91: WHITTINGTON HEALTH NHS TRUST | D91: RKEXXX | E91: Non-hospital site | F91: 0 | G91: NA | H91: NA | I91: 0 | J91: 0 | K91: 0 | L91: 0 | M91: 0 | N91: 0
A92: QMJ | B92: RKE | C92: WHITTINGTON HEALTH NHS TRUST | D92: RKEQ4 | E92: The Whittington Hospital | F92: 52 | G92: 0.9423076923 | H92: 0.01923076923 | I92: 13 | J92: 36 | K92: 2 | L92: 0 | M92: 1 | N92: 0
A93: QMM | B93: RGP | C93: JAMES PAGET UNIVERSITY HOSPITALS NHS FOUNDATION TRUST | D93: RGP75 | E93: James Paget University Hospital | F93: 7 | G93: 0.8571428571 | H93: 0.1428571429 | I93: * | J93: * | K93: * | L93: * | M93: * | N93: *
A94: QMM | B94: RM1 | C94: NORFOLK AND NORWICH UNIVERSITY HOSPITALS NHS FOUNDATION TRUST | D94: RM102 | E94: Norfolk and Norwich University Hospital | F94: 1 | G94: * | H94: * | I94: * | J94: * | K94: * | L94: * | M94: * | N94: *
A95: QMM | B95: RCX | C95: THE QUEEN ELIZABETH HOSPITAL, KING'S LYNN, NHS FOUNDATION TRUST | D95: RCX70 | E95: The Queen Elizabeth Hospital | F95: 9 | G95: 1 | H95: 0 | I95: 7 | J95: 2 | K95: 0 | L95: 0 | M95: 0 | N95: 0
A96: QNC | B96: RJE | C96: UNIVERSITY HOSPITALS OF NORTH MIDLANDS NHS TRUST | D96: RJE01 | E96: Royal Stoke University Hospital | F96: 25 | G96: 1 | H96: 0 | I96: 19 | J96: 6 | K96: 0 | L96: 0 | M96: 0 | N96: 0
A97: QNQ | B97: RDU | C97: FRIMLEY HEALTH NHS FOUNDATION TRUST | D97: RDU01 | E97: Frimley Park Hospital | F97: 29 | G97: 1 | H97: 0 | I97: 26 | J97: 3 | K97: 0 | L97: 0 | M97: 0 | N97: 0
A98: QNQ | B98: RDU | C98: FRIMLEY HEALTH NHS FOUNDATION TRUST | D98: RDU50 | E98: Wexham Park Hospital | F98: 27 | G98: 0.962962963 | H98: 0 | I98: 21 | J98: 5 | K98: 1 | L98: 0 | M98: 0 | N98: 0
A99: QNX | B99: RXC | C99: EAST SUSSEX HEALTHCARE NHS TRUST | D99: RXC01 | E99: Conquest Hospital | F99: 0 | G99: NA | H99: NA | I99: 0 | J99: 0 | K99: 0 | L99: 0 | M99: 0 | N99: 0
A100: QNX | B100: RXC | C100: EAST SUSSEX HEALTHCARE NHS TRUST | D100: RXC02 | E100: Eastbourne District General Hospital | F100: 0 | G100: NA | H100: NA | I100: 0 | J100: 0 | K100: 0 | L100: 0 | M100: 0 | N100: 0
A101: QNX | B101: RYR | C101: UNIVERSITY HOSPITALS SUSSEX NHS FOUNDATION TRUST | D101: N6J7V | E101: Princess Royal Hospital | F101: 23 | G101: 1 | H101: 0 | I101: 21 | J101: 2 | K101: 0 | L101: 0 | M101: 0 | N101: 0
A102: QNX | B102: RYR | C102: UNIVERSITY HOSPITALS SUSSEX NHS FOUNDATION TRUST | D102: E0A3H | E102: Royal Sussex County Hospital | F102: 29 | G102: 0.8620689655 | H102: 0.1379310345 | I102: 17 | J102: 8 | K102: 0 | L102: 0 | M102: 4 | N102: 0
A103: QNX | B103: RYR | C103: UNIVERSITY HOSPITALS SUSSEX NHS FOUNDATION TRUST | D103: RYR16 | E103: St Richard's Hospital | F103: 19 | G103: 0.8947368421 | H103: 0 | I103: 14 | J103: 3 | K103: 2 | L103: 0 | M103: 0 | N103: 0
A104: QNX | B104: RYR | C104: UNIVERSITY HOSPITALS SUSSEX NHS FOUNDATION TRUST | D104: RYR18 | E104: Worthing Hospital | F104: 20 | G104: 0.95 | H104: 0 | I104: 15 | J104: 4 | K104: 0 | L104: 0 | M104: 0 | N104: 1
A105: QOC | B105: RXW | C105: THE SHREWSBURY AND TELFORD HOSPITAL NHS TRUST | D105: RXWMB | E105: Bridgnorth Hospital (Maternity) | F105: 5 | G105: 1 | H105: 0 | I105: * | J105: * | K105: * | L105: * | M105: * | N105: *
A106: QOP | B106: RMC | C106: BOLTON NHS FOUNDATION TRUST | D106: RMC01 | E106: Royal Bolton Hospital | F106: 34 | G106: 0.9117647059 | H106: 0.08823529412 | I106: 26 | J106: 5 | K106: 0 | L106: 0 | M106: 3 | N106: 0
A107: QOP | B107: R0A | C107: MANCHESTER UNIVERSITY NHS FOUNDATION TRUST | D107: R0A05 | E107: St Mary's Hospital | F107: 245 | G107: 0.9591836735 | H107: 0.01632653061 | I107: 184 | J107: 51 | K107: 3 | L107: 2 | M107: 2 | N107: 3
A108: QOP | B108: RWJ | C108: STOCKPORT NHS FOUNDATION TRUST | D108: RWJ09 | E108: Stepping Hill Hospital | F108: 41 | G108: 0.8780487805 | H108: 0.07317073171 | I108: 31 | J108: 5 | K108: 0 | L108: 3 | M108: 0 | N108: 2
A109: QOP | B109: RMP | C109: TAMESIDE AND GLOSSOP INTEGRATED CARE NHS FOUNDATION TRUST | D109: RMP01 | E109: Tameside General Hospital | F109: 33 | G109: 0.9090909091 | H109: 0.06060606061 | I109: 27 | J109: 3 | K109: 1 | L109: 1 | M109: 1 | N109: 0
A110: QOP | B110: RRF | C110: WRIGHTINGTON, WIGAN AND LEIGH NHS FOUNDATION TRUST | D110: RRF02 | E110: Royal Albert Edward Infirmary | F110: 18 | G110: 0.8888888889 | H110: 0.1111111111 | I110: 13 | J110: 3 | K110: 0 | L110: 0 | M110: 2 | N110: 0
A111: QOQ | B111: RCD | C111: HARROGATE AND DISTRICT NHS FOUNDATION TRUST | D111: RCD01 | E111: Harrogate District Hospital | F111: 1 | G111: * | H111: * | I111: * | J111: * | K111: * | L111: * | M111: * | N111: *
A112: QOQ | B112: RWA | C112: HULL UNIVERSITY TEACHING HOSPITALS NHS TRUST | D112: RWA01 | E112: Hull Royal Infirmary | F112: 77 | G112: 0.961038961 | H112: 0.01298701299 | I112: 68 | J112: 6 | K112: 1 | L112: 1 | M112: 0 | N112: 1
A113: QOQ | B113: RJL | C113: NORTHERN LINCOLNSHIRE AND GOOLE NHS FOUNDATION TRUST | D113: RJL32 | E113: Scunthorpe General Hospital | F113: 13 | G113: 1 | H113: 0 | I113: * | J113: * | K113: * | L113: * | M113: * | N113: *
A114: QOQ | B114: RCB | C114: YORK AND SCARBOROUGH TEACHING HOSPITALS NHS FOUNDATION TRUST | D114: RCB55 | E114: York Hospital | F114: 85 | G114: 1 | H114: 0 | I114: 80 | J114: 5 | K114: 0 | L114: 0 | M114: 0 | N114: 0
A115: QOX | B115: RN3 | C115: GREAT WESTERN HOSPITALS NHS FOUNDATION TRUST | D115: RN325 | E115: The Great Western Hospital | F115: 68 | G115: 0.8823529412 | H115: 0.04411764706 | I115: 54 | J115: 6 | K115: 5 | L115: 3 | M115: 0 | N115: 0
A116: QOX | B116: RD1 | C116: ROYAL UNITED HOSPITALS BATH NHS FOUNDATION TRUST | D116: RD130 | E116: Princess Anne Wing RUH | F116: 57 | G116: 0.9649122807 | H116: 0.0350877193 | I116: 48 | J116: 7 | K116: 0 | L116: 2 | M116: 0 | N116: 0
A117: QOX | B117: RNZ | C117: SALISBURY NHS FOUNDATION TRUST | D117: RNZ02 | E117: Salisbury District Hospital | F117: 7 | G117: 1 | H117: 0 | I117: 4 | J117: 3 | K117: 0 | L117: 0 | M117: 0 | N117: 0
A118: QPM | B118: RNQ | C118: KETTERING GENERAL HOSPITAL NHS FOUNDATION TRUST | D118: RNQ51 | E118: Kettering General Hospital | F118: 76 | G118: 0.9868421053 | H118: 0 | I118: 67 | J118: 8 | K118: 1 | L118: 0 | M118: 0 | N118: 0
A119: QPM | B119: RNS | C119: NORTHAMPTON GENERAL HOSPITAL NHS TRUST | D119: RNS01 | E119: Northampton General Hospital (Acute) | F119: 94 | G119: 0.9574468085 | H119: 0.02127659574 | I119: 86 | J119: 4 | K119: 2 | L119: 0 | M119: 2 | N119: 0
A120: QR1 | B120: RTE | C120: GLOUCESTERSHIRE HOSPITALS NHS FOUNDATION TRUST | D120: RTE03 | E120: Gloucestershire Royal Hospital | F120: 63 | G120: 0.6666666667 | H120: 0.1904761905 | I120: 19 | J120: 23 | K120: 9 | L120: 5 | M120: 7 | N120: 0
A121: QRL | B121: RN5 | C121: HAMPSHIRE HOSPITALS NHS FOUNDATION TRUST | D121: RN506 | E121: Basingstoke and North Hampshire Hospital | F121: 64 | G121: 0.984375 | H121: 0 | I121: 51 | J121: 12 | K121: 1 | L121: 0 | M121: 0 | N121: 0
A122: QRL | B122: RN5 | C122: HAMPSHIRE HOSPITALS NHS FOUNDATION TRUST | D122: RN541 | E122: Royal Hampshire County Hospital | F122: 111 | G122: 0.972972973 | H122: 0.01801801802 | I122: 87 | J122: 21 | K122: 1 | L122: 2 | M122: 0 | N122: 0
A123: QRL | B123: R1F | C123: ISLE OF WIGHT NHS TRUST | D123: R1F01 | E123: St Mary's Hospital | F123: 11 | G123: 1 | H123: 0 | I123: 11 | J123: 0 | K123: 0 | L123: 0 | M123: 0 | N123: 0
A124: QRL | B124: RHU | C124: PORTSMOUTH HOSPITALS UNIVERSITY NATIONAL HEALTH SERVICE TRUST | D124: RHU03 | E124: Queen Alexandra Hospital | F124: 83 | G124: 0.9397590361 | H124: 0.03614457831 | I124: 59 | J124: 19 | K124: 1 | L124: 1 | M124: 2 | N124: 1
A125: QRL | B125: RHM | C125: UNIVERSITY HOSPITAL SOUTHAMPTON NHS FOUNDATION TRUST | D125: RHM12 | E125: Princess Anne Hospital | F125: 110 | G125: 0.9090909091 | H125: 0.02727272727 | I125: 63 | J125: 37 | K125: 7 | L125: 2 | M125: 1 | N125: 0
A126: QRV | B126: RQM | C126: CHELSEA AND WESTMINSTER HOSPITAL NHS FOUNDATION TRUST | D126: RQM01 | E126: Chelsea and Westminster Hospital | F126: 25 | G126: 0.88 | H126: 0.12 | I126: 19 | J126: 3 | K126: 0 | L126: 0 | M126: 3 | N126: 0
A127: QRV | B127: RQM | C127: CHELSEA AND WESTMINSTER HOSPITAL NHS FOUNDATION TRUST | D127: RQM91 | E127: West Middlesex University Hospital | F127: 28 | G127: 0.9285714286 | H127: 0 | I127: 19 | J127: 7 | K127: 2 | L127: 0 | M127: 0 | N127: 0
A128: QRV | B128: RYJ | C128: IMPERIAL COLLEGE HEALTHCARE NHS TRUST | D128: RYJ04 | E128: Queen Charlotte's Hospital | F128: 47 | G128: 0.8723404255 | H128: 0.06382978723 | I128: 28 | J128: 13 | K128: 3 | L128: 0 | M128: 3 | N128: 0
A129: QRV | B129: RYJ | C129: IMPERIAL COLLEGE HEALTHCARE NHS TRUST | D129: RYJ01 | E129: St Mary's Hospital (HQ) | F129: 5 | G129: 0.8 | H129: 0 | I129: 3 | J129: 1 | K129: 1 | L129: 0 | M129: 0 | N129: 0
A130: QRV | B130: R1K | C130: LONDON NORTH WEST UNIVERSITY HEALTHCARE NHS TRUST | D130: R1K01 | E130: Northwick Park Hospital | F130: 132 | G130: 0.9772727273 | H130: 0.02272727273 | I130: 102 | J130: 27 | K130: 0 | L130: 3 | M130: 0 | N130: 0
A131: QRV | B131: RAS | C131: THE HILLINGDON HOSPITALS NHS FOUNDATION TRUST | D131: RAS01 | E131: Hillingdon Hospital | F131: 131 | G131: 0.9465648855 | H131: 0.04580152672 | I131: 100 | J131: 24 | K131: 0 | L131: 3 | M131: 3 | N131: 1
A132: QSL | B132: RH5 | C132: SOMERSET NHS FOUNDATION TRUST | D132: RH5K6 | E132: Bridgwater Hospital | F132: 0 | G132: NA | H132: NA | I132: 0 | J132: 0 | K132: 0 | L132: 0 | M132: 0 | N132: 0
A133: QSL | B133: RH5 | C133: SOMERSET NHS FOUNDATION TRUST | D133: RH5A8 | E133: MUSGROVE PARK HOSPITAL | F133: 0 | G133: NA | H133: NA | I133: 0 | J133: 0 | K133: 0 | L133: 0 | M133: 0 | N133: 0
A134: QSL | B134: RH5 | C134: SOMERSET NHS FOUNDATION TRUST | D134: RH5XXXX | E134: Non-hospital site home/in-transit births | F134: 0 | G134: NA | H134: NA | I134: 0 | J134: 0 | K134: 0 | L134: 0 | M134: 0 | N134: 0
A135: QSL | B135: RH5 | C135: SOMERSET NHS FOUNDATION TRUST | D135: RH5O4 | E135: Yeovil District Hospital | F135: 4 | G135: * | H135: * | I135: * | J135: * | K135: * | L135: * | M135: * | N135: *
A136: QT1 | B136: RX1 | C136: NOTTINGHAM UNIVERSITY HOSPITALS NHS TRUST | D136: RX1CC | E136: Nottingham University Hospitals NHS Trust - City Campus | F136: 1 | G136: * | H136: * | I136: * | J136: * | K136: * | L136: * | M136: * | N136: *
A137: QT1 | B137: RX1 | C137: NOTTINGHAM UNIVERSITY HOSPITALS NHS TRUST | D137: RX1RA | E137: Nottingham University Hospitals NHS Trust - Queen's Medical Centre Campus | F137: 37 | G137: 0.8648648649 | H137: 0.1081081081 | I137: * | J137: * | K137: * | L137: * | M137: * | N137: *
A138: QT1 | B138: RK5 | C138: SHERWOOD FOREST HOSPITALS NHS FOUNDATION TRUST | D138: RK5BC | E138: King's Mill Hospital | F138: 5 | G138: 0.8 | H138: 0.2 | I138: 3 | J138: 1 | K138: 0 | L138: 1 | M138: 0 | N138: 0
A139: QT6 | B139: REF | C139: ROYAL CORNWALL HOSPITALS NHS TRUST | D139: REF12 | E139: Royal Cornwall Hospital (Treliske) | F139: 3 | G139: * | H139: * | I139: * | J139: * | K139: * | L139: * | M139: * | N139: *
A140: QU9 | B140: RXQ | C140: BUCKINGHAMSHIRE HEALTHCARE NHS TRUST | D140: RXQ02 | E140: Stoke Mandeville Hospital | F140: 30 | G140: 0.9666666667 | H140: 0 | I140: 19 | J140: 10 | K140: 1 | L140: 0 | M140: 0 | N140: 0
A141: QU9 | B141: RTH | C141: OXFORD UNIVERSITY HOSPITALS NHS FOUNDATION TRUST | D141: RTH19 | E141: Chipping Norton Community Hospital | F141: 0 | G141: NA | H141: NA | I141: 0 | J141: 0 | K141: 0 | L141: 0 | M141: 0 | N141: 0
A142: QU9 | B142: RTH | C142: OXFORD UNIVERSITY HOSPITALS NHS FOUNDATION TRUST | D142: RTH05 | E142: Horton General Hospital | F142: 0 | G142: NA | H142: NA | I142: 0 | J142: 0 | K142: 0 | L142: 0 | M142: 0 | N142: 0
A143: QU9 | B143: RTH | C143: OXFORD UNIVERSITY HOSPITALS NHS FOUNDATION TRUST | D143: RTH08 | E143: John Radcliffe Hospital | F143: 13 | G143: 0.2307692308 | H143: 0.6153846154 | I143: 2 | J143: 1 | K143: 2 | L143: 3 | M143: 5 | N143: 0
A144: QU9 | B144: RTH | C144: OXFORD UNIVERSITY HOSPITALS NHS FOUNDATION TRUST | D144: RTH16 | E144: Wallingford Community Hospital | F144: 0 | G144: NA | H144: NA | I144: 0 | J144: 0 | K144: 0 | L144: 0 | M144: 0 | N144: 0
A145: QU9 | B145: RTH | C145: OXFORD UNIVERSITY HOSPITALS NHS FOUNDATION TRUST | D145: RTH21 | E145: Wantage Community Hospital | F145: 0 | G145: NA | H145: NA | I145: 0 | J145: 0 | K145: 0 | L145: 0 | M145: 0 | N145: 0
A146: QU9 | B146: RHW | C146: ROYAL BERKSHIRE NHS FOUNDATION TRUST | D146: RHW01 | E146: Royal Berkshire Hospital | F146: 75 | G146: 0.9733333333 | H146: 0 | I146: 53 | J146: 20 | K146: 2 | L146: 0 | M146: 0 | N146: 0
A147: QUA | B147: RNA | C147: THE DUDLEY GROUP NHS FOUNDATION TRUST | D147: RNA01 | E147: Russells Hall Hospital | F147: 45 | G147: 0.8666666667 | H147: 0 | I147: 32 | J147: 7 | K147: 2 | L147: 0 | M147: 0 | N147: 4
A148: QUA | B148: RL4 | C148: THE ROYAL WOLVERHAMPTON NHS TRUST | D148: RL403 | E148: New Cross Hospital | F148: 31 | G148: 0.935483871 | H148: 0.06451612903 | I148: 24 | J148: 5 | K148: 0 | L148: 1 | M148: 1 | N148: 0
A149: QUA | B149: RBK | C149: WALSALL HEALTHCARE NHS TRUST | D149: RBK02 | E149: Manor Hospital | F149: 66 | G149: 0.9090909091 | H149: 0.04545454545 | I149: 49 | J149: 11 | K149: 1 | L149: 1 | M149: 2 | N149: 2
A150: QUE | B150: RGT | C150: CAMBRIDGE UNIVERSITY HOSPITALS NHS FOUNDATION TRUST | D150: RGT32 | E150: Rosie Hospital | F150: 28 | G150: 0.8928571429 | H150: 0.07142857143 | I150: 19 | J150: 6 | K150: 1 | L150: 2 | M150: 0 | N150: 0
A151: QUE | B151: RGN | C151: NORTH WEST ANGLIA NHS FOUNDATION TRUST | D151: RGN90 | E151: Hinchingbrooke Hospital | F151: 59 | G151: 0.9491525424 | H151: 0 | I151: 47 | J151: 9 | K151: 3 | L151: 0 | M151: 0 | N151: 0
A152: QUE | B152: RGN | C152: NORTH WEST ANGLIA NHS FOUNDATION TRUST | D152: RGN80 | E152: Peterborough City Hospital | F152: 98 | G152: 0.9489795918 | H152: 0 | I152: 84 | J152: 9 | K152: 0 | L152: 0 | M152: 0 | N152: 5
A153: QUY | B153: RVJ | C153: NORTH BRISTOL NHS TRUST | D153: RVJ01 | E153: Southmead Hospital | F153: 61 | G153: 0.9344262295 | H153: 0.06557377049 | I153: 46 | J153: 11 | K153: 0 | L153: 1 | M153: 3 | N153: 0
A154: QUY | B154: RA7 | C154: UNIVERSITY HOSPITALS BRISTOL AND WESTON NHS FOUNDATION TRUST | D154: RA707 | E154: ST MICHAEL'S HOSPITAL | F154: 59 | G154: 0.9491525424 | H154: 0.03389830508 | I154: 46 | J154: 10 | K154: 1 | L154: 1 | M154: 1 | N154: 0
A155: QVV | B155: RBD | C155: DORSET COUNTY HOSPITAL NHS FOUNDATION TRUST | D155: RBD01 | E155: Dorset County Hospital | F155: 5 | G155: 1 | H155: 0 | I155: 3 | J155: 2 | K155: 0 | L155: 0 | M155: 0 | N155: 0
A156: QVV | B156: R0D | C156: UNIVERSITY HOSPITALS DORSET NHS FOUNDATION TRUST | D156: R0D01 | E156: Poole Hospital | F156: 16 | G156: 0.5 | H156: 0.25 | I156: 6 | J156: 2 | K156: 3 | L156: 2 | M156: 2 | N156: 1
A157: QVV | B157: R0D | C157: UNIVERSITY HOSPITALS DORSET NHS FOUNDATION TRUST | D157: R0D02 | E157: Royal Bournemouth Hospital | F157: 0 | G157: NA | H157: NA | I157: 0 | J157: 0 | K157: 0 | L157: 0 | M157: 0 | N157: 0
A158: QWE | B158: RVR | C158: EPSOM AND ST HELIER UNIVERSITY HOSPITALS NHS TRUST | D158: RVR50 | E158: Epsom Hospital | F158: 0 | G158: NA | H158: NA | I158: 0 | J158: 0 | K158: 0 | L158: 0 | M158: 0 | N158: 0
A159: QWE | B159: RVR | C159: EPSOM AND ST HELIER UNIVERSITY HOSPITALS NHS TRUST | D159: RVR05 | E159: St Helier Hospital | F159: 0 | G159: NA | H159: NA | I159: 0 | J159: 0 | K159: 0 | L159: 0 | M159: 0 | N159: 0
A160: QWE | B160: RAX | C160: KINGSTON AND RICHMOND NHS FOUNDATION TRUST | D160: RAX01 | E160: Kingston Hospital | F160: 67 | G160: 0.9701492537 | H160: 0.01492537313 | I160: 53 | J160: 12 | K160: 1 | L160: 1 | M160: 0 | N160: 0
A161: QWE | B161: RJ7 | C161: ST GEORGE'S UNIVERSITY HOSPITALS NHS FOUNDATION TRUST | D161: RJ701 | E161: St George's Hospital (Tooting) | F161: 30 | G161: 0.8333333333 | H161: 0.1 | I161: 22 | J161: 3 | K161: 2 | L161: 1 | M161: 2 | N161: 0
A162: QWO | B162: RAE | C162: BRADFORD TEACHING HOSPITALS NHS FOUNDATION TRUST | D162: RAE01 | E162: Bradford Royal Infirmary | F162: 6 | G162: 0.3333333333 | H162: 0.3333333333 | I162: 2 | J162: 0 | K162: 2 | L162: 2 | M162: 0 | N162: 0
A163: QWO | B163: RWY | C163: CALDERDALE AND HUDDERSFIELD NHS FOUNDATION TRUST | D163: RWY02 | E163: Calderdale Royal Hospital | F163: 77 | G163: 1 | H163: 0 | I163: 62 | J163: 15 | K163: 0 | L163: 0 | M163: 0 | N163: 0
A164: QWO | B164: RR8 | C164: LEEDS TEACHING HOSPITALS NHS TRUST | D164: RR801 | E164: Leeds General Infirmary | F164: 53 | G164: 0.8867924528 | H164: 0.09433962264 | I164: 41 | J164: 6 | K164: 1 | L164: 4 | M164: 1 | N164: 0
A165: QWO | B165: RR8 | C165: LEEDS TEACHING HOSPITALS NHS TRUST | D165: RR813 | E165: St James's University Hospital | F165: 63 | G165: 0.9047619048 | H165: 0.06349206349 | I165: 45 | J165: 12 | K165: 1 | L165: 2 | M165: 2 | N165: 1
A166: QWO | B166: RXF | C166: MID YORKSHIRE TEACHING NHS TRUST | D166: RXF05 | E166: Pinderfields General Hospital | F166: 42 | G166: 0.9523809524 | H166: 0.02380952381 | I166: 26 | J166: 14 | K166: 0 | L166: 0 | M166: 1 | N166: 1
A167: QWU | B167: RLT | C167: GEORGE ELIOT HOSPITAL NHS TRUST | D167: RLT01 | E167: George Eliot Hospital - Acute Services | F167: 0 | G167: NA | H167: NA | I167: 0 | J167: 0 | K167: 0 | L167: 0 | M167: 0 | N167: 0
A168: QWU | B168: RJC | C168: SOUTH WARWICKSHIRE UNIVERSITY NHS FOUNDATION TRUST | D168: RJC02 | E168: Warwick Hospital | F168: 0 | G168: NA | H168: NA | I168: 0 | J168: 0 | K168: 0 | L168: 0 | M168: 0 | N168: 0
A169: QWU | B169: RKB | C169: UNIVERSITY HOSPITALS COVENTRY AND WARWICKSHIRE NHS TRUST | D169: RKB01 | E169: University Hospital (Coventry) | F169: 31 | G169: 0.8064516129 | H169: 0.1935483871 | I169: 18 | J169: 7 | K169: 0 | L169: 0 | M169: 6 | N169: 0
A170: QXU | B170: RTK | C170: ASHFORD AND ST PETER'S HOSPITALS NHS FOUNDATION TRUST | D170: RTK02 | E170: Ashford Hospital | F170: 0 | G170: NA | H170: NA | I170: 0 | J170: 0 | K170: 0 | L170: 0 | M170: 0 | N170: 0
A171: QXU | B171: RA2 | C171: ROYAL SURREY COUNTY HOSPITAL NHS FOUNDATION TRUST | D171: RA201 | E171: Royal Surrey County Hospital | F171: 6 | G171: 1 | H171: 0 | I171: 6 | J171: 0 | K171: 0 | L171: 0 | M171: 0 | N171: 0
A172: QXU | B172: RTP | C172: SURREY AND SUSSEX HEALTHCARE NHS TRUST | D172: RTP04 | E172: East Surrey Hospital | F172: 23 | G172: 0.8695652174 | H172: 0.1304347826 | I172: 17 | J172: 3 | K172: 0 | L172: 3 | M172: 0 | N172: 0
A173: QYG | B173: RJR | C173: COUNTESS OF CHESTER HOSPITAL NHS FOUNDATION TRUST | D173: RJR05 | E173: Countess Of Chester Hospital | F173: 64 | G173: 0.890625 | H173: 0.09375 | I173: 51 | J173: 6 | K173: 0 | L173: 5 | M173: 1 | N173: 1
A174: QYG | B174: RJN | C174: EAST CHESHIRE NHS TRUST | D174: RJN71 | E174: Macclesfield District General Hospital | F174: 10 | G174: 1 | H174: 0 | I174: 9 | J174: 1 | K174: 0 | L174: 0 | M174: 0 | N174: 0
A175: QYG | B175: REP | C175: LIVERPOOL WOMEN'S NHS FOUNDATION TRUST | D175: REP01 | E175: Liverpool Womens Hospital | F175: 41 | G175: 0.9024390244 | H175: 0.0243902439 | I175: 28 | J175: 9 | K175: 2 | L175: 0 | M175: 1 | N175: 1
A176: QYG | B176: RBN | C176: MERSEY AND WEST LANCASHIRE TEACHING HOSPITALS NHS TRUST | D176: RBN52 | E176: Ormskirk and District General Hospital | F176: 11 | G176: 0.7272727273 | H176: 0.1818181818 | I176: 6 | J176: 2 | K176: 1 | L176: 0 | M176: 2 | N176: 0
A177: QYG | B177: RBN | C177: MERSEY AND WEST LANCASHIRE TEACHING HOSPITALS NHS TRUST | D177: RBN01 | E177: Whiston Hospital | F177: 10 | G177: 0.9 | H177: 0.1 | I177: 6 | J177: 3 | K177: 0 | L177: 1 | M177: 0 | N177: 0
A178: QYG | B178: RBT | C178: MID CHESHIRE HOSPITALS NHS FOUNDATION TRUST | D178: RBT20 | E178: Leighton Hospital | F178: 48 | G178: 0.9583333333 | H178: 0.04166666667 | I178: 41 | J178: 5 | K178: 0 | L178: 0 | M178: 2 | N178: 0
A179: QYG | B179: RBL | C179: WIRRAL UNIVERSITY TEACHING HOSPITAL NHS FOUNDATION TRUST | D179: RBL14 | E179: Arrowe Park Hospital | F179: 47 | G179: 0.9787234043 | H179: 0.02127659574 | I179: 42 | J179: 4 | K179: 0 | L179: 1 | M179: 0 | N179: 0

Sheet ICB Q4
B6: Sort data by:
A9: ICB Code | B9: ICB Name | C9: Total Responses | D9: Percentage Positive | E9: Percentage Negative | F9: Breakdown of Responses
F10: Very Good | G10: Good | H10: Neither Good nor Poor | I10: Poor | J10: Very Poor | K10: Don't Know
B11: England (including Independent Sector providers) | C11: 1504 | D11: 0.9335106383 | E11: 0.03390957447 | F11: 1200 | G11: 204 | H11: 42 | I11: 23 | J11: 28 | K11: 7
B12: England (excluding Independent Sector providers) | C12: 1504 | D12: 0.9335106383 | E12: 0.03390957447 | F12: 1200 | G12: 204 | H12: 42 | I12: 23 | J12: 28 | K12: 7
B13: Selection (excluding suppressed data) | C13: =SUBTOTAL(9,C14:C55) -> 1504 | D13: =IFERROR((F13+G13)/SUM(F13:K13), "-") -> 0.9337792642 | E13: =IFERROR((I13+J13)/SUM(F13:K13), "-") -> 0.03411371237 | F13: =SUBTOTAL(9,F14:F55) -> 1194 | G13: 202 | H13: 41 | I13: 23 | J13: 28 | K13: 7
A14: QE1 | B14: LANCASHIRE AND SOUTH CUMBRIA ICB | C14: 82 | D14: 0.8292682927 | E14: 0.07317073171 | F14: 50 | G14: 18 | H14: 6 | I14: 3 | J14: 3 | K14: 2
A15: QF7 | B15: SOUTH YORKSHIRE ICB | C15: 26 | D15: 0.8461538462 | E15: 0.1153846154 | F15: 17 | G15: 5 | H15: 1 | I15: 2 | J15: 1 | K15: 0
A16: QGH | B16: HEREFORDSHIRE AND WORCESTERSHIRE ICB | C16: 5 | D16: 1 | E16: 0 | F16: * | G16: * | H16: * | I16: * | J16: * | K16: *
A17: QH8 | B17: MID AND SOUTH ESSEX ICB | C17: 0 | D17: NA | E17: NA | F17: 0 | G17: 0 | H17: 0 | I17: 0 | J17: 0 | K17: 0
A18: QHG | B18: BEDFORDSHIRE, LUTON AND MILTON KEYNES ICB | C18: 53 | D18: 1 | E18: 0 | F18: 45 | G18: 8 | H18: 0 | I18: 0 | J18: 0 | K18: 0
A19: QHL | B19: BIRMINGHAM AND SOLIHULL ICB | C19: 27 | D19: 0.962962963 | E19: 0 | F19: 21 | G19: 5 | H19: 1 | I19: 0 | J19: 0 | K19: 0
A20: QHM | B20: NORTH EAST AND NORTH CUMBRIA ICB | C20: 101 | D20: 0.8613861386 | E20: 0.08910891089 | F20: 62 | G20: 25 | H20: 5 | I20: 6 | J20: 3 | K20: 0
A21: QJ2 | B21: DERBY AND DERBYSHIRE ICB | C21: 0 | D21: NA | E21: NA | F21: 0 | G21: 0 | H21: 0 | I21: 0 | J21: 0 | K21: 0
A22: QJG | B22: SUFFOLK AND NORTH EAST ESSEX ICB | C22: 35 | D22: 0.8285714286 | E22: 0.05714285714 | F22: 23 | G22: 6 | H22: 4 | I22: 2 | J22: 0 | K22: 0
A23: QJK | B23: DEVON ICB | C23: 6 | D23: 0.6666666667 | E23: 0.3333333333 | F23: 3 | G23: 1 | H23: 0 | I23: 2 | J23: 0 | K23: 0
A24: QJM | B24: LINCOLNSHIRE ICB | C24: 0 | D24: NA | E24: NA | F24: 0 | G24: 0 | H24: 0 | I24: 0 | J24: 0 | K24: 0
A25: QK1 | B25: LEICESTER, LEICESTERSHIRE AND RUTLAND ICB | C25: 82 | D25: 0.987804878 | E25: 0 | F25: 74 | G25: 7 | H25: 1 | I25: 0 | J25: 0 | K25: 0
A26: QKK | B26: SOUTH EAST LONDON ICB | C26: 6 | D26: 1 | E26: 0 | F26: 5 | G26: 1 | H26: 0 | I26: 0 | J26: 0 | K26: 0
A27: QKS | B27: KENT AND MEDWAY ICB | C27: 31 | D27: 0.9677419355 | E27: 0.03225806452 | F27: 29 | G27: 1 | H27: 0 | I27: 0 | J27: 1 | K27: 0
A28: QM7 | B28: HERTFORDSHIRE AND WEST ESSEX ICB | C28: 47 | D28: 0.9574468085 | E28: 0.04255319149 | F28: 42 | G28: 3 | H28: 0 | I28: 1 | J28: 1 | K28: 0
A29: QMF | B29: NORTH EAST LONDON ICB | C29: 27 | D29: 0.962962963 | E29: 0 | F29: 18 | G29: 8 | H29: 1 | I29: 0 | J29: 0 | K29: 0
A30: QMJ | B30: NORTH CENTRAL LONDON ICB | C30: 25 | D30: 0.96 | E30: 0.04 | F30: 24 | G30: 0 | H30: 0 | I30: 1 | J30: 0 | K30: 0
A31: QMM | B31: NORFOLK AND WAVENEY ICB | C31: 13 | D31: 1 | E31: 0 | F31: 12 | G31: 1 | H31: 0 | I31: 0 | J31: 0 | K31: 0
A32: QNC | B32: STAFFORDSHIRE AND STOKE-ON-TRENT ICB | C32: 0 | D32: NA | E32: NA | F32: 0 | G32: 0 | H32: 0 | I32: 0 | J32: 0 | K32: 0
A33: QNQ | B33: FRIMLEY ICB | C33: 20 | D33: 1 | E33: 0 | F33: 19 | G33: 1 | H33: 0 | I33: 0 | J33: 0 | K33: 0
A34: QNX | B34: SUSSEX ICB | C34: 19 | D34: 0.8947368421 | E34: 0.05263157895 | F34: 15 | G34: 2 | H34: 1 | I34: 0 | J34: 1 | K34: 0
A35: QOC | B35: SHROPSHIRE, TELFORD AND WREKIN ICB | C35: 24 | D35: 1 | E35: 0 | F35: 19 | G35: 5 | H35: 0 | I35: 0 | J35: 0 | K35: 0
A36: QOP | B36: GREATER MANCHESTER ICB | C36: 102 | D36: 0.9607843137 | E36: 0.03921568627 | F36: 97 | G36: 1 | H36: 0 | I36: 1 | J36: 3 | K36: 0
A37: QOQ | B37: HUMBER AND NORTH YORKSHIRE ICB | C37: 4 | D37: * | E37: * | F37: * | G37: * | H37: * | I37: * | J37: * | K37: *
A38: QOX | B38: BATH AND NORTH EAST SOMERSET, SWINDON AND WILTSHIRE ICB | C38: 52 | D38: 0.8846153846 | E38: 0.05769230769 | F38: 42 | G38: 4 | H38: 3 | I38: 0 | J38: 3 | K38: 0
A39: QPM | B39: NORTHAMPTONSHIRE ICB | C39: 98 | D39: 0.9693877551 | E39: 0 | F39: 81 | G39: 14 | H39: 3 | I39: 0 | J39: 0 | K39: 0
A40: QR1 | B40: GLOUCESTERSHIRE ICB | C40: 0 | D40: NA | E40: NA | F40: 0 | G40: 0 | H40: 0 | I40: 0 | J40: 0 | K40: 0
A41: QRL | B41: HAMPSHIRE AND ISLE OF WIGHT ICB | C41: 122 | D41: 0.9098360656 | E41: 0.01639344262 | F41: 78 | G41: 33 | H41: 5 | I41: 0 | J41: 2 | K41: 4
A42: QRV | B42: NORTH WEST LONDON ICB | C42: 63 | D42: 0.9365079365 | E42: 0.01587301587 | F42: 53 | G42: 6 | H42: 3 | I42: 1 | J42: 0 | K42: 0
A43: QSL | B43: SOMERSET ICB | C43: 0 | D43: NA | E43: NA | F43: 0 | G43: 0 | H43: 0 | I43: 0 | J43: 0 | K43: 0
A44: QT1 | B44: NOTTINGHAM AND NOTTINGHAMSHIRE ICB | C44: 14 | D44: 0.9285714286 | E44: 0.07142857143 | F44: 11 | G44: 2 | H44: 0 | I44: 1 | J44: 0 | K44: 0
A45: QT6 | B45: CORNWALL AND THE ISLES OF SCILLY ICB | C45: 0 | D45: NA | E45: NA | F45: 0 | G45: 0 | H45: 0 | I45: 0 | J45: 0 | K45: 0
A46: QU9 | B46: BUCKINGHAMSHIRE, OXFORDSHIRE AND BERKSHIRE WEST ICB | C46: 14 | D46: 0.9285714286 | E46: 0 | F46: 12 | G46: 1 | H46: 1 | I46: 0 | J46: 0 | K46: 0
A47: QUA | B47: BLACK COUNTRY ICB | C47: 65 | D47: 0.9230769231 | E47: 0.06153846154 | F47: 52 | G47: 8 | H47: 1 | I47: 0 | J47: 4 | K47: 0
A48: QUE | B48: CAMBRIDGESHIRE AND PETERBOROUGH ICB | C48: 30 | D48: 1 | E48: 0 | F48: 27 | G48: 3 | H48: 0 | I48: 0 | J48: 0 | K48: 0
A49: QUY | B49: BRISTOL, NORTH SOMERSET AND SOUTH GLOUCESTERSHIRE ICB | C49: 75 | D49: 1 | E49: 0 | F49: 68 | G49: 7 | H49: 0 | I49: 0 | J49: 0 | K49: 0
A50: QVV | B50: DORSET ICB | C50: 6 | D50: 0.8333333333 | E50: 0 | F50: 4 | G50: 1 | H50: 1 | I50: 0 | J50: 0 | K50: 0
A51: QWE | B51: SOUTH WEST LONDON ICB | C51: 20 | D51: 1 | E51: 0 | F51: 18 | G51: 2 | H51: 0 | I51: 0 | J51: 0 | K51: 0
A52: QWO | B52: WEST YORKSHIRE ICB | C52: 72 | D52: 0.9444444444 | E52: 0.04166666667 | F52: 62 | G52: 6 | H52: 1 | I52: 1 | J52: 2 | K52: 0
A53: QWU | B53: COVENTRY AND WARWICKSHIRE ICB | C53: 34 | D53: 0.8529411765 | E53: 0.05882352941 | F53: 23 | G53: 6 | H53: 3 | I53: 1 | J53: 1 | K53: 0
A54: QXU | B54: SURREY HEARTLANDS ICB | C54: 38 | D54: 0.9736842105 | E54: 0 | F54: 35 | G54: 2 | H54: 0 | I54: 0 | J54: 0 | K54: 1
A55: QYG | B55: CHESHIRE AND MERSEYSIDE ICB | C55: 66 | D55: 0.9393939394 | E55: 0.06060606061 | F55: 53 | G55: 9 | H55: 0 | I55: 1 | J55: 3 | K55: 0

Sheet Trusts Q4
B6: Sort data by:
A9: ICB Code | B9: Trust Code | C9: Trust Name | D9: Total Responses | E9: Percentage Positive | F9: Percentage Negative | G9: Breakdown of Responses | M9: Mode of Collection
G10: Very Good | H10: Good | I10: Neither Good nor Poor | J10: Poor | K10: Very Poor | L10: Don't Know | M10: Mode SMS | N10: Mode Electronic Discharge | O10: Mode Electronic Home | P10: Mode Paper Discharge | Q10: Mode Paper Home | R10: Mode Telephone | S10: Mode Online | T10: Mode Other
C11: England (including Independent Sector providers) | D11: 1504 | E11: 0.9335106383 | F11: 0.03390957447 | G11: 1200 | H11: 204 | I11: 42 | J11: 23 | K11: 28 | L11: 7 | M11: 593 | N11: 60 | O11: 26 | P11: 294 | Q11: 150 | R11: 0 | S11: 381 | T11: 0
C12: England (excluding Independent Sector providers) | D12: 1504 | E12: 0.9335106383 | F12: 0.03390957447 | G12: 1200 | H12: 204 | I12: 42 | J12: 23 | K12: 28 | L12: 7 | M12: 593 | N12: 60 | O12: 26 | P12: 294 | Q12: 150 | R12: 0 | S12: 381 | T12: 0
C13: Selection (excluding suppressed data) | D13: =SUBTOTAL(9,D14:D299) -> 1504 | E13: =IFERROR((G13+H13)/SUM(G13:L13), "-") -> 0.9341057205 | F13: =IFERROR((J13+K13)/SUM(G13:L13), "-") -> 0.0340333092 | G13: =SUBTOTAL(9,G14:G299) -> 1100 | H13: 190 | I13: 38 | J13: 22 | K13: 25 | L13: 6 | M13: 548 | N13: 56 | O13: 26 | P13: 284 | Q13: 148 | R13: 0 | S13: 319 | T13: =SUBTOTAL(9,T14:T299) -> 0
A14: QE1 | B14: RTX | C14: UNIVERSITY HOSPITALS OF MORECAMBE BAY NHS FOUNDATION TRUST | D14: 1 | E14: * | F14: * | G14: * | H14: * | I14: * | J14: * | K14: * | L14: * | M14: * | N14: * | O14: * | P14: * | Q14: * | R14: * | S14: * | T14: *
A15: QE1 | B15: RXL | C15: BLACKPOOL TEACHING HOSPITALS NHS FOUNDATION TRUST | D15: 17 | E15: 0.7647058824 | F15: 0.1176470588 | G15: * | H15: * | I15: * | J15: * | K15: * | L15: * | M15: * | N15: * | O15: * | P15: * | Q15: * | R15: * | S15: * | T15: *
A16: QE1 | B16: RXN | C16: LANCASHIRE TEACHING HOSPITALS NHS FOUNDATION TRUST | D16: 17 | E16: 0.8823529412 | F16: 0.1176470588 | G16: 9 | H16: 6 | I16: 0 | J16: 0 | K16: 2 | L16: 0 | M16: 17 | N16: 0 | O16: 0 | P16: 0 | Q16: 0 | R16: 0 | S16: 0 | T16: 0
A17: QE1 | B17: RXR | C17: EAST LANCASHIRE HOSPITALS NHS TRUST | D17: 47 | E17: 0.829787234 | F17: 0.04255319149 | G17: 31 | H17: 8 | I17: 5 | J17: 2 | K17: 0 | L17: 1 | M17: 46 | N17: 0 | O17: 0 | P17: 1 | Q17: 0 | R17: 0 | S17: 0 | T17: 0
A18: QF7 | B18: RP5 | C18: DONCASTER AND BASSETLAW TEACHING HOSPITALS NHS FOUNDATION TRUST | D18: 0 | E18: NA | F18: NA | G18: 0 | H18: 0 | I18: 0 | J18: 0 | K18: 0 | L18: 0 | M18: 0 | N18: 0 | O18: 0 | P18: 0 | Q18: 0 | R18: 0 | S18: 0 | T18: 0
A19: QF7 | B19: RFR | C19: THE ROTHERHAM NHS FOUNDATION TRUST | D19: 1 | E19: * | F19: * | G19: * | H19: * | I19: * | J19: * | K19: * | L19: * | M19: * | N19: * | O19: * | P19: * | Q19: * | R19: * | S19: * | T19: *
A20: QF7 | B20: RFF | C20: BARNSLEY HOSPITAL NHS FOUNDATION TRUST | D20: 4 | E20: * | F20: * | G20: * | H20: * | I20: * | J20: * | K20: * | L20: * | M20: * | N20: * | O20: * | P20: * | Q20: * | R20: * | S20: * | T20: *
A21: QF7 | B21: RHQ | C21: SHEFFIELD TEACHING HOSPITALS NHS FOUNDATION TRUST | D21: 21 | E21: 0.8095238095 | F21: 0.1428571429 | G21: 12 | H21: 5 | I21: 1 | J21: 2 | K21: 1 | L21: 0 | M21: 18 | N21: 0 | O21: 0 | P21: 3 | Q21: 0 | R21: 0 | S21: 0 | T21: 0
A22: QGH | B22: RLQ | C22: WYE VALLEY NHS TRUST | D22: 0 | E22: NA | F22: NA | G22: 0 | H22: 0 | I22: 0 | J22: 0 | K22: 0 | L22: 0 | M22: 0 | N22: 0 | O22: 0 | P22: 0 | Q22: 0 | R22: 0 | S22: 0 | T22: 0
A23: QGH | B23: RWP | C23: WORCESTERSHIRE ACUTE HOSPITALS NHS TRUST | D23: 5 | E23: 1 | F23: 0 | G23: * | H23: * | I23: * | J23: * | K23: * | L23: * | M23: * | N23: * | O23: * | P23: * | Q23: * | R23: * | S23: * | T23: *
A24: QH8 | B24: RAJ | C24: MID AND SOUTH ESSEX NHS FOUNDATION TRUST | D24: 0 | E24: NA | F24: NA | G24: 0 | H24: 0 | I24: 0 | J24: 0 | K24: 0 | L24: 0 | M24: 0 | N24: 0 | O24: 0 | P24: 0 | Q24: 0 | R24: 0 | S24: 0 | T24: 0
A25: QHG | B25: RC9 | C25: BEDFORDSHIRE HOSPITALS NHS FOUNDATION TRUST | D25: 11 | E25: 1 | F25: 0 | G25: 10 | H25: 1 | I25: 0 | J25: 0 | K25: 0 | L25: 0 | M25: 0 | N25: 6 | O25: 0 | P25: 0 | Q25: 0 | R25: 0 | S25: 5 | T25: 0
A26: QHG | B26: RD8 | C26: MILTON KEYNES UNIVERSITY HOSPITAL NHS FOUNDATION TRUST | D26: 42 | E26: 1 | F26: 0 | G26: 35 | H26: 7 | I26: 0 | J26: 0 | K26: 0 | L26: 0 | M26: 35 | N26: 0 | O26: 0 | P26: 0 | Q26: 0 | R26: 0 | S26: 7 | T26: 0
A27: QHL | B27: RXK | C27: SANDWELL AND WEST BIRMINGHAM HOSPITALS NHS TRUST | D27: 0 | E27: NA | F27: NA | G27: 0 | H27: 0 | I27: 0 | J27: 0 | K27: 0 | L27: 0 | M27: 0 | N27: 0 | O27: 0 | P27: 0 | Q27: 0 | R27: 0 | S27: 0 | T27: 0
A28: QHL | B28: RRK | C28: UNIVERSITY HOSPITALS BIRMINGHAM NHS FOUNDATION TRUST | D28: 2 | E28: * | F28: * | G28: * | H28: * | I28: * | J28: * | K28: * | L28: * | M28: * | N28: * | O28: * | P28: * | Q28: * | R28: * | S28: * | T28: *
A29: QHL | B29: RQ3 | C29: BIRMINGHAM WOMEN'S AND CHILDREN'S NHS FOUNDATION TRUST | D29: 25 | E29: 0.96 | F29: 0 | G29: * | H29: * | I29: * | J29: * | K29: * | L29: * | M29: * | N29: * | O29: * | P29: * | Q29: * | R29: * | S29: * | T29: *
A30: QHM | B30: RXP | C30: COUNTY DURHAM AND DARLINGTON NHS FOUNDATION TRUST | D30: 0 | E30: NA | F30: NA | G30: 0 | H30: 0 | I30: 0 | J30: 0 | K30: 0 | L30: 0 | M30: 0 | N30: 0 | O30: 0 | P30: 0 | Q30: 0 | R30: 0 | S30: 0 | T30: 0
A31: QHM | B31: R0B | C31: SOUTH TYNESIDE AND SUNDERLAND NHS FOUNDATION TRUST | D31: 1 | E31: * | F31: * | G31: * | H31: * | I31: * | J31: * | K31: * | L31: * | M31: * | N31: * | O31: * | P31: * | Q31: * | R31: * | S31: * | T31: *
A32: QHM | B32: RNN | C32: NORTH CUMBRIA INTEGRATED CARE NHS FOUNDATION TRUST | D32: 1 | E32: * | F32: * | G32: * | H32: * | I32: * | J32: * | K32: * | L32: * | M32: * | N32: * | O32: * | P32: * | Q32: * | R32: * | S32: * | T32: *
A33: QHM | B33: RR7 | C33: GATESHEAD HEALTH NHS FOUNDATION TRUST | D33: 1 | E33: * | F33: * | G33: * | H33: * | I33: * | J33: * | K33: * | L33: * | M33: * | N33: * | O33: * | P33: * | Q33: * | R33: * | S33: * | T33: *
A34: QHM | B34: RTF | C34: NORTHUMBRIA HEALTHCARE NHS FOUNDATION TRUST | D34: 9 | E34: 0.7777777778 | F34: 0.2222222222 | G34: 4 | H34: 3 | I34: 0 | J34: 1 | K34: 1 | L34: 0 | M34: 9 | N34: 0 | O34: 0 | P34: 0 | Q34: 0 | R34: 0 | S34: 0 | T34: 0
A35: QHM | B35: RVW | C35: NORTH TEES AND HARTLEPOOL NHS FOUNDATION TRUST | D35: 12 | E35: 1 | F35: 0 | G35: 11 | H35: 1 | I35: 0 | J35: 0 | K35: 0 | L35: 0 | M35: 0 | N35: 0 | O35: 0 | P35: 12 | Q35: 0 | R35: 0 | S35: 0 | T35: 0
A36: QHM | B36: RTR | C36: SOUTH TEES HOSPITALS NHS FOUNDATION TRUST | D36: 18 | E36: 0.9444444444 | F36: 0.05555555556 | G36: 10 | H36: 7 | I36: 0 | J36: 1 | K36: 0 | L36: 0 | M36: 18 | N36: 0 | O36: 0 | P36: 0 | Q36: 0 | R36: 0 | S36: 0 | T36: 0
A37: QHM | B37: RTD | C37: THE NEWCASTLE UPON TYNE HOSPITALS NHS FOUNDATION TRUST | D37: 59 | E37: 0.813559322 | F37: 0.1016949153 | G37: 34 | H37: 14 | I37: 5 | J37: 4 | K37: 2 | L37: 0 | M37: 59 | N37: 0 | O37: 0 | P37: 0 | Q37: 0 | R37: 0 | S37: 0 | T37: 0
A38: QJ2 | B38: RFS | C38: CHESTERFIELD ROYAL HOSPITAL NHS FOUNDATION TRUST | D38: 0 | E38: NA | F38: NA | G38: 0 | H38: 0 | I38: 0 | J38: 0 | K38: 0 | L38: 0 | M38: 0 | N38: 0 | O38: 0 | P38: 0 | Q38: 0 | R38: 0 | S38: 0 | T38: 0
A39: QJ2 | B39: RTG | C39: UNIVERSITY HOSPITALS OF DERBY AND BURTON NHS FOUNDATION TRUST | D39: 0 | E39: NA | F39: NA | G39: 0 | H39: 0 | I39: 0 | J39: 0 | K39: 0 | L39: 0 | M39: 0 | N39: 0 | O39: 0 | P39: 0 | Q39: 0 | R39: 0 | S39: 0 | T39: 0
A40: QJG | B40: RDE | C40: EAST SUFFOLK AND NORTH ESSEX NHS FOUNDATION TRUST | D40: 14 | E40: 1 | F40: 0 | G40: 13 | H40: 1 | I40: 0 | J40: 0 | K40: 0 | L40: 0 | M40: 0 | N40: 0 | O40: 0 | P40: 0 | Q40: 0 | R40: 0 | S40: 14 | T40: 0
A41: QJG | B41: RGR | C41: WEST SUFFOLK NHS FOUNDATION TRUST | D41: 21 | E41: 0.7142857143 | F41: 0.09523809524 | G41: 10 | H41: 5 | I41: 4 | J41: 2 | K41: 0 | L41: 0 | M41: 0 | N41: 0 | O41: 0 | P41: 0 | Q41: 0 | R41: 0 | S41: 21 | T41: 0
A42: QJK | B42: RA9 | C42: TORBAY AND SOUTH DEVON NHS FOUNDATION TRUST | D42: 0 | E42: NA | F42: NA | G42: 0 | H42: 0 | I42: 0 | J42: 0 | K42: 0 | L42: 0 | M42: 0 | N42: 0 | O42: 0 | P42: 0 | Q42: 0 | R42: 0 | S42: 0 | T42: 0
A43: QJK | B43: RH8 | C43: ROYAL DEVON UNIVERSITY HEALTHCARE NHS FOUNDATION TRUST | D43: 0 | E43: NA | F43: NA | G43: 0 | H43: 0 | I43: 0 | J43: 0 | K43: 0 | L43: 0 | M43: 0 | N43: 0 | O43: 0 | P43: 0 | Q43: 0 | R43: 0 | S43: 0 | T43: 0
A44: QJK | B44: RK9 | C44: UNIVERSITY HOSPITALS PLYMOUTH NHS TRUST | D44: 6 | E44: 0.6666666667 | F44: 0.3333333333 | G44: 3 | H44: 1 | I44: 0 | J44: 2 | K44: 0 | L44: 0 | M44: 0 | N44: 0 | O44: 0 | P44: 1 | Q44: 0 | R44: 0 | S44: 5 | T44: 0
A45: QJM | B45: RWD | C45: UNITED LINCOLNSHIRE TEACHING HOSPITALS NHS TRUST | D45: 0 | E45: NA | F45: NA | G45: 0 | H45: 0 | I45: 0 | J45: 0 | K45: 0 | L45: 0 | M45: 0 | N45: 0 | O45: 0 | P45: 0 | Q45: 0 | R45: 0 | S45: 0 | T45: 0
A46: QK1 | B46: RWE | C46: UNIVERSITY HOSPITALS OF LEICESTER NHS TRUST | D46: 82 | E46: 0.987804878 | F46: 0 | G46: 74 | H46: 7 | I46: 1 | J46: 0 | K46: 0 | L46: 0 | M46: 33 | N46: 1 | O46: 0 | P46: 48 | Q46: 0 | R46: 0 | S46: 0 | T46: 0
A47: QKK | B47: RJZ | C47: KING'S COLLEGE HOSPITAL NHS FOUNDATION TRUST | D47: 0 | E47: NA | F47: NA | G47: 0 | H47: 0 | I47: 0 | J47: 0 | K47: 0 | L47: 0 | M47: 0 | N47: 0 | O47: 0 | P47: 0 | Q47: 0 | R47: 0 | S47: 0 | T47: 0
A48: QKK | B48: RJ1 | C48: GUY'S AND ST THOMAS' NHS FOUNDATION TRUST | D48: 2 | E48: * | F48: * | G48: * | H48: * | I48: * | J48: * | K48: * | L48: * | M48: * | N48: * | O48: * | P48: * | Q48: * | R48: * | S48: * | T48: *
A49: QKK | B49: RJ2 | C49: LEWISHAM AND GREENWICH NHS TRUST | D49: 4 | E49: * | F49: * | G49: * | H49: * | I49: * | J49: * | K49: * | L49: * | M49: * | N49: * | O49: * | P49: * | Q49: * | R49: * | S49: * | T49: *
A50: QKS | B50: RVV | C50: EAST KENT HOSPITALS UNIVERSITY NHS FOUNDATION TRUST | D50: 0 | E50: NA | F50: NA | G50: 0 | H50: 0 | I50: 0 | J50: 0 | K50: 0 | L50: 0 | M50: 0 | N50: 0 | O50: 0 | P50: 0 | Q50: 0 | R50: 0 | S50: 0 | T50: 0
A51: QKS | B51: RWF | C51: MAIDSTONE AND TUNBRIDGE WELLS NHS TRUST | D51: 3 | E51: * | F51: * | G51: * | H51: * | I51: * | J51: * | K51: * | L51: * | M51: * | N51: * | O51: * | P51: * | Q51: * | R51: * | S51: * | T51: *
A52: QKS | B52: RN7 | C52: DARTFORD AND GRAVESHAM NHS TRUST | D52: 9 | E52: 1 | F52: 0 | G52: * | H52: * | I52: * | J52: * | K52: * | L52: * | M52: * | N52: * | O52: * | P52: * | Q52: * | R52: * | S52: * | T52: *
A53: QKS | B53: RPA | C53: MEDWAY NHS FOUNDATION TRUST | D53: 19 | E53: 0.9473684211 | F53: 0.05263157895 | G53: 17 | H53: 1 | I53: 0 | J53: 0 | K53: 1 | L53: 0 | M53: 0 | N53: 0 | O53: 0 | P53: 0 | Q53: 0 | R53: 0 | S53: 19 | T53: 0
A54: QM7 | B54: RQW | C54: THE PRINCESS ALEXANDRA HOSPITAL NHS TRUST | D54: 0 | E54: NA | F54: NA | G54: 0 | H54: 0 | I54: 0 | J54: 0 | K54: 0 | L54: 0 | M54: 0 | N54: 0 | O54: 0 | P54: 0 | Q54: 0 | R54: 0 | S54: 0 | T54: 0
A55: QM7 | B55: RWG | C55: WEST HERTFORDSHIRE TEACHING HOSPITALS NHS TRUST | D55: 0 | E55: NA | F55: NA | G55: 0 | H55: 0 | I55: 0 | J55: 0 | K55: 0 | L55: 0 | M55: 0 | N55: 0 | O55: 0 | P55: 0 | Q55: 0 | R55: 0 | S55: 0 | T55: 0
A56: QM7 | B56: RWH | C56: EAST AND NORTH HERTFORDSHIRE NHS TRUST | D56: 47 | E56: 0.9574468085 | F56: 0.04255319149 | G56: 42 | H56: 3 | I56: 0 | J56: 1 | K56: 1 | L56: 0 | M56: 2 | N56: 13 | O56: 26 | P56: 0 | Q56: 0 | R56: 0 | S56: 6 | T56: 0
A57: QMF | B57: RQX | C57: HOMERTON HEALTHCARE NHS FOUNDATION TRUST | D57: 5 | E57: 0.8 | F57: 0 | G57: 3 | H57: 1 | I57: 1 | J57: 0 | K57: 0 | L57: 0 | M57: 5 | N57: 0 | O57: 0 | P57: 0 | Q57: 0 | R57: 0 | S57: 0 | T57: 0
A58: QMF | B58: R1H | C58: BARTS HEALTH NHS TRUST | D58: 10 | E58: 1 | F58: 0 | G58: 5 | H58: 5 | I58: 0 | J58: 0 | K58: 0 | L58: 0 | M58: 0 | N58: 0 | O58: 0 | P58: 0 | Q58: 0 | R58: 0 | S58: 10 | T58: 0
A59: QMF | B59: RF4 | C59: BARKING, HAVERING AND REDBRIDGE UNIVERSITY HOSPITALS NHS TRUST | D59: 12 | E59: 1 | F59: 0 | G59: 10 | H59: 2 | I59: 0 | J59: 0 | K59: 0 | L59: 0 | M59: 0 | N59: 0 | O59: 0 | P59: 12 | Q59: 0 | R59: 0 | S59: 0 | T59: 0
A60: QMJ | B60: RRV | C60: UNIVERSITY COLLEGE LONDON HOSPITALS NHS FOUNDATION TRUST | D60: 0 | E60: NA | F60: NA | G60: 0 | H60: 0 | I60: 0 | J60: 0 | K60: 0 | L60: 0 | M60: 0 | N60: 0 | O60: 0 | P60: 0 | Q60: 0 | R60: 0 | S60: 0 | T60: 0
A61: QMJ | B61: RKE | C61: WHITTINGTON HEALTH NHS TRUST | D61: 7 | E61: 0.8571428571 | F61: 0.1428571429 | G61: 6 | H61: 0 | I61: 0 | J61: 1 | K61: 0 | L61: 0 | M61: 0 | N61: 0 | O61: 0 | P61: 6 | Q61: 0 | R61: 0 | S61: 1 | T61: 0
A62: QMJ | B62: RAL | C62: ROYAL FREE LONDON NHS FOUNDATION TRUST | D62: 18 | E62: 1 | F62: 0 | G62: 18 | H62: 0 | I62: 0 | J62: 0 | K62: 0 | L62: 0 | M62: 0 | N62: 18 | O62: 0 | P62: 0 | Q62: 0 | R62: 0 | S62: 0 | T62: 0
A63: QMM | B63: RGP | C63: JAMES PAGET UNIVERSITY HOSPITALS NHS FOUNDATION TRUST | D63: 0 | E63: NA | F63: NA | G63: 0 | H63: 0 | I63: 0 | J63: 0 | K63: 0 | L63: 0 | M63: 0 | N63: 0 | O63: 0 | P63: 0 | Q63: 0 | R63: 0 | S63: 0 | T63: 0
A64: QMM | B64: RM1 | C64: NORFOLK AND NORWICH UNIVERSITY HOSPITALS NHS FOUNDATION TRUST | D64: 0 | E64: NA | F64: NA | G64: 0 | H64: 0 | I64: 0 | J64: 0 | K64: 0 | L64: 0 | M64: 0 | N64: 0 | O64: 0 | P64: 0 | Q64: 0 | R64: 0 | S64: 0 | T64: 0
A65: QMM | B65: RCX | C65: THE QUEEN ELIZABETH HOSPITAL, KING'S LYNN, NHS FOUNDATION TRUST | D65: 13 | E65: 1 | F65: 0 | G65: 12 | H65: 1 | I65: 0 | J65: 0 | K65: 0 | L65: 0 | M65: 0 | N65: 0 | O65: 0 | P65: 13 | Q65: 0 | R65: 0 | S65: 0 | T65: 0
A66: QNC | B66: RJE | C66: UNIVERSITY HOSPITALS OF NORTH MIDLANDS NHS TRUST | D66: 0 | E66: NA | F66: NA | G66: 0 | H66: 0 | I66: 0 | J66: 0 | K66: 0 | L66: 0 | M66: 0 | N66: 0 | O66: 0 | P66: 0 | Q66: 0 | R66: 0 | S66: 0 | T66: 0
A67: QNQ | B67: RDU | C67: FRIMLEY HEALTH NHS FOUNDATION TRUST | D67: 20 | E67: 1 | F67: 0 | G67: 19 | H67: 1 | I67: 0 | J67: 0 | K67: 0 | L67: 0 | M67: 0 | N67: 0 | O67: 0 | P67: 9 | Q67: 0 | R67: 0 | S67: 11 | T67: 0
A68: QNX | B68: RXC | C68: EAST SUSSEX HEALTHCARE NHS TRUST | D68: 0 | E68: NA | F68: NA | G68: 0 | H68: 0 | I68: 0 | J68: 0 | K68: 0 | L68: 0 | M68: 0 | N68: 0 | O68: 0 | P68: 0 | Q68: 0 | R68: 0 | S68: 0 | T68: 0
A69: QNX | B69: RYR | C69: UNIVERSITY HOSPITALS SUSSEX NHS FOUNDATION TRUST | D69: 19 | E69: 0.8947368421 | F69: 0.05263157895 | G69: 15 | H69: 2 | I69: 1 | J69: 0 | K69: 1 | L69: 0 | M69: 19 | N69: 0 | O69: 0 | P69: 0 | Q69: 0 | R69: 0 | S69: 0 | T69: 0
A70: QOC | B70: RXW | C70: THE SHREWSBURY AND TELFORD HOSPITAL NHS TRUST | D70: 24 | E70: 1 | F70: 0 | G70: 19 | H70: 5 | I70: 0 | J70: 0 | K70: 0 | L70: 0 | M70: 0 | N70: 0 | O70: 0 | P70: 0 | Q70: 24 | R70: 0 | S70: 0 | T70: 0
A71: QOP | B71: RM3 | C71: NORTHERN CARE ALLIANCE NHS FOUNDATION TRUST | D71: 0 | E71: NA | F71: NA | G71: 0 | H71: 0 | I71: 0 | J71: 0 | K71: 0 | L71: 0 | M71: 0 | N71: 0 | O71: 0 | P71: 0 | Q71: 0 | R71: 0 | S71: 0 | T71: 0
A72: QOP | B72: RMP | C72: TAMESIDE AND GLOSSOP INTEGRATED CARE NHS FOUNDATION TRUST | D72: 0 | E72: NA | F72: NA | G72: 0 | H72: 0 | I72: 0 | J72: 0 | K72: 0 | L72: 0 | M72: 0 | N72: 0 | O72: 0 | P72: 0 | Q72: 0 | R72: 0 | S72: 0 | T72: 0
A73: QOP | B73: RWJ | C73: STOCKPORT NHS FOUNDATION TRUST | D73: 1 | E73: * | F73: * | G73: * | H73: * | I73: * | J73: * | K73: * | L73: * | M73: * | N73: * | O73: * | P73: * | Q73: * | R73: * | S73: * | T73: *
A74: QOP | B74: R0A | C74: MANCHESTER UNIVERSITY NHS FOUNDATION TRUST | D74: 6 | E74: 1 | F74: 0 | G74: * | H74: * | I74: * | J74: * | K74: * | L74: * | M74: * | N74: * | O74: * | P74: * | Q74: * | R74: * | S74: * | T74: *
A75: QOP | B75: RRF | C75: WRIGHTINGTON, WIGAN AND LEIGH NHS FOUNDATION TRUST | D75: 8 | E75: 1 | F75: 0 | G75: 8 | H75: 0 | I75: 0 | J75: 0 | K75: 0 | L75: 0 | M75: 0 | N75: 0 | O75: 0 | P75: 8 | Q75: 0 | R75: 0 | S75: 0 | T75: 0
A76: QOP | B76: RMC | C76: BOLTON NHS FOUNDATION TRUST | D76: 87 | E76: 0.9540229885 | F76: 0.04597701149 | G76: 82 | H76: 1 | I76: 0 | J76: 1 | K76: 3 | L76: 0 | M76: 44 | N76: 0 | O76: 0 | P76: 43 | Q76: 0 | R76: 0 | S76: 0 | T76: 0
A77: QOQ | B77: RCB | C77: YORK AND SCARBOROUGH TEACHING HOSPITALS NHS FOUNDATION TRUST | D77: 0 | E77: NA | F77: NA | G77: 0 | H77: 0 | I77: 0 | J77: 0 | K77: 0 | L77: 0 | M77: 0 | N77: 0 | O77: 0 | P77: 0 | Q77: 0 | R77: 0 | S77: 0 | T77: 0
A78: QOQ | B78: RCD | C78: HARROGATE AND DISTRICT NHS FOUNDATION TRUST | D78: 0 | E78: NA | F78: NA | G78: 0 | H78: 0 | I78: 0 | J78: 0 | K78: 0 | L78: 0 | M78: 0 | N78: 0 | O78: 0 | P78: 0 | Q78: 0 | R78: 0 | S78: 0 | T78: 0
A79: QOQ | B79: RWA | C79: HULL UNIVERSITY TEACHING HOSPITALS NHS TRUST | D79: 0 | E79: NA | F79: NA | G79: 0 | H79: 0 | I79: 0 | J79: 0 | K79: 0 | L79: 0 | M79: 0 | N79: 0 | O79: 0 | P79: 0 | Q79: 0 | R79: 0 | S79: 0 | T79: 0
A80: QOQ | B80: RJL | C80: NORTHERN LINCOLNSHIRE AND GOOLE NHS FOUNDATION TRUST | D80: 4 | E80: * | F80: * | G80: * | H80: * | I80: * | J80: * | K80: * | L80: * | M80: * | N80: * | O80: * | P80: * | Q80: * | R80: * | S80: * | T80: *
A81: QOX | B81: RNZ | C81: SALISBURY NHS FOUNDATION TRUST | D81: 3 | E81: * | F81: * | G81: * | H81: * | I81: * | J81: * | K81: * | L81: * | M81: * | N81: * | O81: * | P81: * | Q81: * | R81: * | S81: * | T81: *
A82: QOX | B82: RD1 | C82: ROYAL UNITED HOSPITALS BATH NHS FOUNDATION TRUST | D82: 20 | E82: 0.85 | F82: 0.1 | G82: * | H82: * | I82: * | J82: * | K82: * | L82: * | M82: * | N82: * | O82: * | P82: * | Q82: * | R82: * | S82: * | T82: *
A83: QOX | B83: RN3 | C83: GREAT WESTERN HOSPITALS NHS FOUNDATION TRUST | D83: 29 | E83: 0.8965517241 | F83: 0.03448275862 | G83: 23 | H83: 3 | I83: 2 | J83: 0 | K83: 1 | L83: 0 | M83: 27 | N83: 1 | O83: 0 | P83: 0 | Q83: 0 | R83: 0 | S83: 1 | T83: 0
A84: QPM | B84: RNS | C84: NORTHAMPTON GENERAL HOSPITAL NHS TRUST | D84: 9 | E84: 1 | F84: 0 | G84: 8 | H84: 1 | I84: 0 | J84: 0 | K84: 0 | L84: 0 | M84: 0 | N84: 0 | O84: 0 | P84: 4 | Q84: 0 | R84: 0 | S84: 5 | T84: 0
A85: QPM | B85: RNQ | C85: KETTERING GENERAL HOSPITAL NHS FOUNDATION TRUST | D85: 89 | E85: 0.9662921348 | F85: 0 | G85: 73 | H85: 13 | I85: 3 | J85: 0 | K85: 0 | L85: 0 | M85: 0 | N85: 0 | O85: 0 | P85: 0 | Q85: 83 | R85: 0 | S85: 6 | T85: 0
A86: QR1 | B86: RTE | C86: GLOUCESTERSHIRE HOSPITALS NHS FOUNDATION TRUST | D86: 0 | E86: NA | F86: NA | G86: 0 | H86: 0 | I86: 0 | J86: 0 | K86: 0 | L86: 0 | M86: 0 | N86: 0 | O86: 0 | P86: 0 | Q86: 0 | R86: 0 | S86: 0 | T86: 0
A87: QRL | B87: R1F | C87: ISLE OF WIGHT NHS TRUST | D87: 0 | E87: NA | F87: NA | G87: 0 | H87: 0 | I87: 0 | J87: 0 | K87: 0 | L87: 0 | M87: 0 | N87: 0 | O87: 0 | P87: 0 | Q87: 0 | R87: 0 | S87: 0 | T87: 0
A88: QRL | B88: RHU | C88: PORTSMOUTH HOSPITALS UNIVERSITY NATIONAL HEALTH SERVICE TRUST | D88: 0 | E88: NA | F88: NA | G88: 0 | H88: 0 | I88: 0 | J88: 0 | K88: 0 | L88: 0 | M88: 0 | N88: 0 | O88: 0 | P88: 0 | Q88: 0 | R88: 0 | S88: 0 | T88: 0
A89: QRL | B89: RN5 | C89: HAMPSHIRE HOSPITALS NHS FOUNDATION TRUST | D89: 17 | E89: 1 | F89: 0 | G89: 17 | H89: 0 | I89: 0 | J89: 0 | K89: 0 | L89: 0 | M89: 0 | N89: 0 | O89: 0 | P89: 7 | Q89: 0 | R89: 0 | S89: 10 | T89: 0
A90: QRL | B90: RHM | C90: UNIVERSITY HOSPITAL SOUTHAMPTON NHS FOUNDATION TRUST | D90: 105 | E90: 0.8952380952 | F90: 0.01904761905 | G90: 61 | H90: 33 | I90: 5 | J90: 0 | K90: 2 | L90: 4 | M90: 0 | N90: 0 | O90: 0 | P90: 0 | Q90: 0 | R90: 0 | S90: 105 | T90: 0
A91: QRV | B91: R1K | C91: LONDON NORTH WEST UNIVERSITY HEALTHCARE NHS TRUST | D91: 0 | E91: NA | F91: NA | G91: 0 | H91: 0 | I91: 0 | J91: 0 | K91: 0 | L91: 0 | M91: 0 | N91: 0 | O91: 0 | P91: 0 | Q91: 0 | R91: 0 | S91: 0 | T91: 0
A92: QRV | B92: RAS | C92: THE HILLINGDON HOSPITALS NHS FOUNDATION TRUST | D92: 0 | E92: NA | F92: NA | G92: 0 | H92: 0 | I92: 0 | J92: 0 | K92: 0 | L92: 0 | M92: 0 | N92: 0 | O92: 0 | P92: 0 | Q92: 0 | R92: 0 | S92: 0 | T92: 0
A93: QRV | B93: RQM | C93: CHELSEA AND WESTMINSTER HOSPITAL NHS FOUNDATION TRUST | D93: 7 | E93: 1 | F93: 0 | G93: 7 | H93: 0 | I93: 0 | J93: 0 | K93: 0 | L93: 0 | M93: 0 | N93: 0 | O93: 0 | P93: 0 | Q93: 0 | R93: 0 | S93: 7 | T93: 0
A94: QRV | B94: RYJ | C94: IMPERIAL COLLEGE HEALTHCARE NHS TRUST | D94: 56 | E94: 0.9285714286 | F94: 0.01785714286 | G94: 46 | H94: 6 | I94: 3 | J94: 1 | K94: 0 | L94: 0 | M94: 0 | N94: 0 | O94: 0 | P94: 0 | Q94: 3 | R94: 0 | S94: 53 | T94: 0
A95: QSL | B95: RH5 | C95: SOMERSET NHS FOUNDATION TRUST | D95: 0 | E95: NA | F95: NA | G95: 0 | H95: 0 | I95: 0 | J95: 0 | K95: 0 | L95: 0 | M95: 0 | N95: 0 | O95: 0 | P95: 0 | Q95: 0 | R95: 0 | S95: 0 | T95: 0
A96: QT1 | B96: RK5 | C96: SHERWOOD FOREST HOSPITALS NHS FOUNDATION TRUST | D96: 6 | E96: 0.8333333333 | F96: 0.1666666667 | G96: 4 | H96: 1 | I96: 0 | J96: 1 | K96: 0 | L96: 0 | M96: 0 | N96: 0 | O96: 0 | P96: 0 | Q96: 0 | R96: 0 | S96: 6 | T96: 0
A97: QT1 | B97: RX1 | C97: NOTTINGHAM UNIVERSITY HOSPITALS NHS TRUST | D97: 8 | E97: 1 | F97: 0 | G97: 7 | H97: 1 | I97: 0 | J97: 0 | K97: 0 | L97: 0 | M97: 0 | N97: 0 | O97: 0 | P97: 7 | Q97: 0 | R97: 0 | S97: 1 | T97: 0
A98: QT6 | B98: REF | C98: ROYAL CORNWALL HOSPITALS NHS TRUST | D98: 0 | E98: NA | F98: NA | G98: 0 | H98: 0 | I98: 0 | J98: 0 | K98: 0 | L98: 0 | M98: 0 | N98: 0 | O98: 0 | P98: 0 | Q98: 0 | R98: 0 | S98: 0 | T98: 0
A99: QU9 | B99: RHW | C99: ROYAL BERKSHIRE NHS FOUNDATION TRUST | D99: 1 | E99: * | F99: * | G99: * | H99: * | I99: * | J99: * | K99: * | L99: * | M99: * | N99: * | O99: * | P99: * | Q99: * | R99: * | S99: * | T99: *
A100: QU9 | B100: RTH | C100: OXFORD UNIVERSITY HOSPITALS NHS FOUNDATION TRUST | D100: 2 | E100: * | F100: * | G100: * | H100: * | I100: * | J100: * | K100: * | L100: * | M100: * | N100: * | O100: * | P100: * | Q100: * | R100: * | S100: * | T100: *
A101: QU9 | B101: RXQ | C101: BUCKINGHAMSHIRE HEALTHCARE NHS TRUST | D101: 11 | E101: 0.9090909091 | F101: 0 | G101: 9 | H101: 1 | I101: 1 | J101: 0 | K101: 0 | L101: 0 | M101: 11 | N101: 0 | O101: 0 | P101: 0 | Q101: 0 | R101: 0 | S101: 0 | T101: 0
A102: QUA | B102: RNA | C102: THE DUDLEY GROUP NHS FOUNDATION TRUST | D102: 0 | E102: NA | F102: NA | G102: 0 | H102: 0 | I102: 0 | J102: 0 | K102: 0 | L102: 0 | M102: 0 | N102: 0 | O102: 0 | P102: 0 | Q102: 0 | R102: 0 | S102: 0 | T102: 0
A103: QUA | B103: RBK | C103: WALSALL HEALTHCARE NHS TRUST | D103: 23 | E103: 0.8695652174 | F103: 0.1304347826 | G103: 16 | H103: 4 | I103: 0 | J103: 0 | K103: 3 | L103: 0 | M103: 7 | N103: 16 | O103: 0 | P103: 0 | Q103: 0 | R103: 0 | S103: 0 | T103: 0
A104: QUA | B104: RL4 | C104: THE ROYAL WOLVERHAMPTON NHS TRUST | D104: 42 | E104: 0.9523809524 | F104: 0.02380952381 | G104: 36 | H104: 4 | I104: 1 | J104: 0 | K104: 1 | L104: 0 | M104: 42 | N104: 0 | O104: 0 | P104: 0 | Q104: 0 | R104: 0 | S104: 0 | T104: 0
A105: QUE | B105: RGT | C105: CAMBRIDGE UNIVERSITY HOSPITALS NHS FOUNDATION TRUST | D105: 0 | E105: NA | F105: NA | G105: 0 | H105: 0 | I105: 0 | J105: 0 | K105: 0 | L105: 0 | M105: 0 | N105: 0 | O105: 0 | P105: 0 | Q105: 0 | R105: 0 | S105: 0 | T105: 0
A106: QUE | B106: RGN | C106: NORTH WEST ANGLIA NHS FOUNDATION TRUST | D106: 30 | E106: 1 | F106: 0 | G106: 27 | H106: 3 | I106: 0 | J106: 0 | K106: 0 | L106: 0 | M106: 0 | N106: 0 | O106: 0 | P106: 29 | Q106: 0 | R106: 0 | S106: 1 | T106: 0
A107: QUY | B107: RA7 | C107: UNIVERSITY HOSPITALS BRISTOL AND WESTON NHS FOUNDATION TRUST | D107: 27 | E107: 1 | F107: 0 | G107: 26 | H107: 1 | I107: 0 | J107: 0 | K107: 0 | L107: 0 | M107: 0 | N107: 0 | O107: 0 | P107: 27 | Q107: 0 | R107: 0 | S107: 0 | T107: 0
A108: QUY | B108: RVJ | C108: NORTH BRISTOL NHS TRUST | D108: 48 | E108: 1 | F108: 0 | G108: 42 | H108: 6 | I108: 0 | J108: 0 | K108: 0 | L108: 0 | M108: 48 | N108: 0 | O108: 0 | P108: 0 | Q108: 0 | R108: 0 | S108: 0 | T108: 0
A109: QVV | B109: R0D | C109: UNIVERSITY HOSPITALS DORSET NHS FOUNDATION TRUST | D109: 0 | E109: NA | F109: NA | G109: 0 | H109: 0 | I109: 0 | J109: 0 | K109: 0 | L109: 0 | M109: 0 | N109: 0 | O109: 0 | P109: 0 | Q109: 0 | R109: 0 | S109: 0 | T109: 0
A110: QVV | B110: RBD | C110: DORSET COUNTY HOSPITAL NHS FOUNDATION TRUST | D110: 6 | E110: 0.8333333333 | F110: 0 | G110: 4 | H110: 1 | I110: 1 | J110: 0 | K110: 0 | L110: 0 | M110: 0 | N110: 0 | O110: 0 | P110: 6 | Q110: 0 | R110: 0 | S110: 0 | T110: 0
A111: QWE | B111: RJ6 | C111: CROYDON HEALTH SERVICES NHS TRUST | D111: 0 | E111: NA | F111: NA | G111: 0 | H111: 0 | I111: 0 | J111: 0 | K111: 0 | L111: 0 | M111: 0 | N111: 0 | O111: 0 | P111: 0 | Q111: 0 | R111: 0 | S111: 0 | T111: 0
A112: QWE | B112: RJ7 | C112: ST GEORGE'S UNIVERSITY HOSPITALS NHS FOUNDATION TRUST | D112: 0 | E112: NA | F112: NA | G112: 0 | H112: 0 | I112: 0 | J112: 0 | K112: 0 | L112: 0 | M112: 0 | N112: 0 | O112: 0 | P112: 0 | Q112: 0 | R112: 0 | S112: 0 | T112: 0
A113: QWE | B113: RVR | C113: EPSOM AND ST HELIER UNIVERSITY HOSPITALS NHS TRUST | D113: 0 | E113: NA | F113: NA | G113: 0 | H113: 0 | I113: 0 | J113: 0 | K113: 0 | L113: 0 | M113: 0 | N113: 0 | O113: 0 | P113: 0 | Q113: 0 | R113: 0 | S113: 0 | T113: 0
A114: QWE | B114: RAX | C114: KINGSTON AND RICHMOND NHS FOUNDATION TRUST | D114: 20 | E114: 1 | F114: 0 | G114: 18 | H114: 2 | I114: 0 | J114: 0 | K114: 0 | L114: 0 | M114: 0 | N114: 0 | O114: 0 | P114: 0 | Q114: 0 | R114: 0 | S114: 20 | T114: 0
A115: QWO | B115: RAE | C115: BRADFORD TEACHING HOSPITALS NHS FOUNDATION TRUST | D115: 0 | E115: NA | F115: NA | G115: 0 | H115: 0 | I115: 0 | J115: 0 | K115: 0 | L115: 0 | M115: 0 | N115: 0 | O115: 0 | P115: 0 | Q115: 0 | R115: 0 | S115: 0 | T115: 0
A116: QWO | B116: RCF | C116: AIREDALE NHS FOUNDATION TRUST | D116: 0 | E116: NA | F116: NA | G116: 0 | H116: 0 | I116: 0 | J116: 0 | K116: 0 | L116: 0 | M116: 0 | N116: 0 | O116: 0 | P116: 0 | Q116: 0 | R116: 0 | S116: 0 | T116: 0
A117: QWO | B117: RWY | C117: CALDERDALE AND HUDDERSFIELD NHS FOUNDATION TRUST | D117: 5 | E117: 0.8 | F117: 0.2 | G117: 3 | H117: 1 | I117: 0 | J117: 0 | K117: 1 | L117: 0 | M117: 0 | N117: 0 | O117: 0 | P117: 0 | Q117: 0 | R117: 0 | S117: 5 | T117: 0
A118: QWO | B118: RR8 | C118: LEEDS TEACHING HOSPITALS NHS TRUST | D118: 28 | E118: 0.8928571429 | F118: 0.07142857143 | G118: 24 | H118: 1 | I118: 1 | J118: 1 | K118: 1 | L118: 0 | M118: 28 | N118: 0 | O118: 0 | P118: 0 | Q118: 0 | R118: 0 | S118: 0 | T118: 0
A119: QWO | B119: RXF | C119: MID YORKSHIRE TEACHING NHS TRUST | D119: 39 | E119: 1 | F119: 0 | G119: 35 | H119: 4 | I119: 0 | J119: 0 | K119: 0 | L119: 0 | M119: 1 | N119: 0 | O119: 0 | P119: 38 | Q119: 0 | R119: 0 | S119: 0 | T119: 0
A120: QWU | B120: RJC | C120: SOUTH WARWICKSHIRE UNIVERSITY NHS FOUNDATION TRUST | D120: 0 | E120: NA | F120: NA | G120: 0 | H120: 0 | I120: 0 | J120: 0 | K120: 0 | L120: 0 | M120: 0 | N120: 0 | O120: 0 | P120: 0 | Q120: 0 | R120: 0 | S120: 0 | T120: 0
A121: QWU | B121: RLT | C121: GEORGE ELIOT HOSPITAL NHS TRUST | D121: 0 | E121: NA | F121: NA | G121: 0 | H121: 0 | I121: 0 | J121: 0 | K121: 0 | L121: 0 | M121: 0 | N121: 0 | O121: 0 | P121: 0 | Q121: 0 | R121: 0 | S121: 0 | T121: 0
A122: QWU | B122: RKB | C122: UNIVERSITY HOSPITALS COVENTRY AND WARWICKSHIRE NHS TRUST | D122: 34 | E122: 0.8529411765 | F122: 0.05882352941 | G122: 23 | H122: 6 | I122: 3 | J122: 1 | K122: 1 | L122: 0 | M122: 33 | N122: 1 | O122: 0 | P122: 0 | Q122: 0 | R122: 0 | S122: 0 | T122: 0
A123: QXU | B123: RTK | C123: ASHFORD AND ST PETER'S HOSPITALS NHS FOUNDATION TRUST | D123: 0 | E123: NA | F123: NA | G123: 0 | H123: 0 | I123: 0 | J123: 0 | K123: 0 | L123: 0 | M123: 0 | N123: 0 | O123: 0 | P123: 0 | Q123: 0 | R123: 0 | S123: 0 | T123: 0
A124: QXU | B124: RTP | C124: SURREY AND SUSSEX HEALTHCARE NHS TRUST | D124: 0 | E124: NA | F124: NA | G124: 0 | H124: 0 | I124: 0 | J124: 0 | K124: 0 | L124: 0 | M124: 0 | N124: 0 | O124: 0 | P124: 0 | Q124: 0 | R124: 0 | S124: 0 | T124: 0
A125: QXU | B125: RA2 | C125: ROYAL SURREY COUNTY HOSPITAL NHS FOUNDATION TRUST | D125: 38 | E125: 0.9736842105 | F125: 0 | G125: 35 | H125: 2 | I125: 0 | J125: 0 | K125: 0 | L125: 1 | M125: 0 | N125: 0 | O125: 0 | P125: 0 | Q125: 38 | R125: 0 | S125: 0 | T125: 0
A126: QYG | B126: RBT | C126: MID CHESHIRE HOSPITALS NHS FOUNDATION TRUST | D126: 0 | E126: NA | F126: NA | G126: 0 | H126: 0 | I126: 0 | J126: 0 | K126: 0 | L126: 0 | M126: 0 | N126: 0 | O126: 0 | P126: 0 | Q126: 0 | R126: 0 | S126: 0 | T126: 0
A127: QYG | B127: RWW | C127: WARRINGTON AND HALTON TEACHING HOSPITALS NHS FOUNDATION TRUST | D127: 0 | E127: NA | F127: NA | G127: 0 | H127: 0 | I127: 0 | J127: 0 | K127: 0 | L127: 0 | M127: 0 | N127: 0 | O127: 0 | P127: 0 | Q127: 0 | R127: 0 | S127: 0 | T127: 0
A128: QYG | B128: RBN | C128: MERSEY AND WEST LANCASHIRE TEACHING HOSPITALS NHS TRUST | D128: 4 | E128: * | F128: * | G128: * | H128: * | I128: * | J128: * | K128: * | L128: * | M128: * | N128: * | O128: * | P128: * | Q128: * | R128: * | S128: * | T128: *
A129: QYG | B129: RJR | C129: COUNTESS OF CHESTER HOSPITAL NHS FOUNDATION TRUST | D129: 6 | E129: 1 | F129: 0 | G129: * | H129: * | I129: * | J129: * | K129: * | L129: * | M129: * | N129: * | O129: * | P129: * | Q129: * | R129: * | S129: * | T129: *
A130: QYG | B130: RBL | C130: WIRRAL UNIVERSITY TEACHING HOSPITAL NHS FOUNDATION TRUST | D130: 10 | E130: 1 | F130: 0 | G130: 10 | H130: 0 | I130: 0 | J130: 0 | K130: 0 | L130: 0 | M130: 0 | N130: 0 | O130: 0 | P130: 10 | Q130: 0 | R130: 0 | S130: 0 | T130: 0
A131: QYG | B131: RJN | C131: EAST CHESHIRE NHS TRUST | D131: 14 | E131: 0.8571428571 | F131: 0.1428571429 | G131: 9 | H131: 3 | I131: 0 | J131: 0 | K131: 2 | L131: 0 | M131: 14 | N131: 0 | O131: 0 | P131: 0 | Q131: 0 | R131: 0 | S131: 0 | T131: 0
A132: QYG | B132: REP | C132: LIVERPOOL WOMEN'S NHS FOUNDATION TRUST | D132: 32 | E132: 0.9375 | F132: 0.0625 | G132: 25 | H132: 5 | I132: 0 | J132: 1 | K132: 1 | L132: 0 | M132: 32 | N132: 0 | O132: 0 | P132: 0 | Q132: 0 | R132: 0 | S132: 0 | T132: 0

Sheet BSQ1 (hidden)
B1: Sort | C1: ICB | D1: ICB | E1: Trusts | F1: Trusts | G1: Sites | H1: Sites | J1: Sort ranges: | K1: Sort range… | L1: Sort range… | M1: Sort range… | N1: Reference Region List: | O1: Code… | P1: Name… | Q1: Linked Region List: | R1: Code… | S1: Name… | T1: Reference Lists: | U1: Code… | V1: Code… | W1: Name… | X1: Code… | Y1: Name… | Z1: Trusts Linked Lists: | AA1: Code… | AB1: Name… | AC1: Site Linked Lists: | AD1: Code… | AE1: Name… | AF1: Code… | AG1: Name…
A2: ICB | B2: 1 | C2: 1 | D2: 1 | E2: - | F2: - | G2: - | H2: - | K2: ICB Code | L2: ICB Code | M2: ICB Code | O2: QE1 | P2: LANCASHIRE AND SOUTH CUMBRIA ICB | R2: QE1 | S2: LANCASHIRE AND SOUTH CUMBRIA ICB | U2: QE1 | V2: RXL | W2: BLACKPOOL TEACHING HOSPITALS NHS FOUNDATION TRUST | X2: RXL01 | Y2: Blackpool Victoria Hospital | AA2: R0A | AB2: ASHFORD AND ST PETER'S HOSPITALS NHS FOUNDATION TRUST | AD2: R0A | AE2: ASHFORD AND ST PETER'S HOSPITALS NHS FOUNDATION TRUST | AF2: E3M3C | AG2: Alexandra Hospital
A3: Trusts | B3: 1 | C3: 1 | D3: 1 | E3: 1 | F3: 1 | G3: - | H3: - | K3: ICB Name | L3: Trust Code | M3: Trust Code | O3: QF7 | P3: SOUTH YORKSHIRE ICB | R3: QF7 | S3: SOUTH YORKSHIRE ICB | U3: QE1 | V3: RXR | W3: EAST LANCASHIRE HOSPITALS NHS TRUST | X3: RXR20 | Y3: Royal Blackburn Hospital | AA3: R0B | AB3: BARKING, HAVERING AND REDBRIDGE UNIVERSITY HOSPITALS NHS TRUST | AD3: R0B | AE3: BARKING, HAVERING AND REDBRIDGE UNIVERSITY HOSPITALS NHS TRUST | AF3: R0A05 | AG3: Andover War Memorial Hospital
A4: Sites | B4: 1 | C4: 1 | D4: 1 | E4: 1 | F4: 1 | G4: 1 | H4: 1 | K4: Total Responses | L4: Trust Name | M4: Trust Name | O4: QGH | P4: HEREFORDSHIRE AND WORCESTERSHIRE ICB | R4: QGH | S4: HEREFORDSHIRE AND WORCESTERSHIRE ICB | U4: QE1 | V4: RXN | W4: LANCASHIRE TEACHING HOSPITALS NHS FOUNDATION TRUST | X4: RXN01 | Y4: Chorley and South Ribble Hospital | AA4: R0D | AB4: BARNSLEY HOSPITAL NHS FOUNDATION TRUST | AD4: R0D | AE4: BARNSLEY HOSPITAL NHS FOUNDATION TRUST | AF4: R0B01 | AG4: Arrowe Park Hospital
K5: Percentage Positive | L5: Total Responses | M5: Site Code | O5: QH8 | P5: MID AND SOUTH ESSEX ICB | R5: QH8 | S5: MID AND SOUTH ESSEX ICB | U5: QE1 | V5: RXN | W5: LANCASHIRE TEACHING HOSPITALS NHS FOUNDATION TRUST | X5: RXN02 | Y5: Royal Preston Hospital | AA5: R1F | AB5: BARTS HEALTH NHS TRUST | AD5: R1F | AE5: BARTS HEALTH NHS TRUST | AF5: R0B0Q | AG5: Ashford Hospital
K6: Percentage Negative | L6: Percentage Positive | M6: Site Name | O6: QHG | P6: BEDFORDSHIRE, LUTON AND MILTON KEYNES ICB | R6: QHG | S6: BEDFORDSHIRE, LUTON AND MILTON KEYNES ICB | U6: QE1 | V6: RTX | W6: UNIVERSITY HOSPITALS OF MORECAMBE BAY NHS FOUNDATION TRUST | X6: RTXBU | Y6: Furness General Hospital | AA6: R1H | AB6: BEDFORDSHIRE HOSPITALS NHS FOUNDATION TRUST | AD6: R1H | AE6: BEDFORDSHIRE HOSPITALS NHS FOUNDATION TRUST | AF6: R0BXXX | AG6: Barnet Hospital
K7: Very Good | L7: Percentage Negative | M7: Total Responses | O7: QHL | P7: BIRMINGHAM AND SOLIHULL ICB | R7: QHL | S7: BIRMINGHAM AND SOLIHULL ICB | U7: QE1 | V7: RTX | W7: UNIVERSITY HOSPITALS OF MORECAMBE BAY NHS FOUNDATION TRUST | X7: RTX02 | Y7: Royal Lancaster Infirmary | AA7: R1K | AB7: BIRMINGHAM WOMEN'S AND CHILDREN'S NHS FOUNDATION TRUST | AD7: R1K | AE7: BIRMINGHAM WOMEN'S AND CHILDREN'S NHS FOUNDATION TRUST | AF7: R0D01 | AG7: Barnsley Hospital NHS Foundation Trust HQ
K8: Good | L8: Very Good | M8: Percentage Positive | O8: QHM | P8: NORTH EAST AND NORTH CUMBRIA ICB | R8: QHM | S8: NORTH EAST AND NORTH CUMBRIA ICB | U8: QE1 | V8: RTX | W8: UNIVERSITY HOSPITALS OF MORECAMBE BAY NHS FOUNDATION TRUST | X8: RTXBW | Y8: Westmorland General Hospital | AA8: RA2 | AB8: BLACKPOOL TEACHING HOSPITALS NHS FOUNDATION TRUST | AD8: RA2 | AE8: BLACKPOOL TEACHING HOSPITALS NHS FOUNDATION TRUST | AF8: R0D02 | AG8: BASILDON HOSPITAL
K9: Neither Good nor Poor | L9: Good | M9: Percentage Negative | O9: QJ2 | P9: DERBY AND DERBYSHIRE ICB | R9: QJ2 | S9: DERBY AND DERBYSHIRE ICB | U9: QF7 | V9: RFF | W9: BARNSLEY HOSPITAL NHS FOUNDATION TRUST | X9: RFFAA | Y9: Barnsley Hospital NHS Foundation Trust HQ | AA9: RA7 | AB9: BOLTON NHS FOUNDATION TRUST | AD9: RA7 | AE9: BOLTON NHS FOUNDATION TRUST | AF9: R1F01 | AG9: Basingstoke and North Hampshire Hospital
K10: Poor | L10: Neither Good nor Poor | M10: Very Good | O10: QJG | P10: SUFFOLK AND NORTH EAST ESSEX ICB | R10: QJG | S10: SUFFOLK AND NORTH EAST ESSEX ICB | U10: QF7 | V10: RP5 | W10: DONCASTER AND BASSETLAW TEACHING HOSPITALS NHS FOUNDATION TRUST | X10: RP5BA | Y10: Bassetlaw Hospital | AA10: RA9 | AB10: BRADFORD TEACHING HOSPITALS NHS FOUNDATION TRUST | AD10: RA9 | AE10: BRADFORD TEACHING HOSPITALS NHS FOUNDATION TRUST | AF10: R1H12 | AG10: Bassetlaw Hospital
K11: Very Poor | L11: Poor | M11: Good | O11: QJK | P11: DEVON ICB | R11: QJK | S11: DEVON ICB | U11: QF7 | V11: RP5 | W11: DONCASTER AND BASSETLAW TEACHING HOSPITALS NHS FOUNDATION TRUST | X11: RP5DR | Y11: Doncaster Royal Infirmary | AA11: RAE | AB11: BUCKINGHAMSHIRE HEALTHCARE NHS TRUST | AD11: RAE | AE11: BUCKINGHAMSHIRE HEALTHCARE NHS TRUST | AF11: R1HKH | AG11: BEDFORD HOSPITAL SOUTH WING
K12: Don't Know | L12: Very Poor | M12: Neither Good nor Poor | O12: QJM | P12: LINCOLNSHIRE ICB | R12: QJM | S12: LINCOLNSHIRE ICB | U12: QF7 | V12: RP5 | W12: DONCASTER AND BASSETLAW TEACHING HOSPITALS NHS FOUNDATION TRUST | X12: RP5XXX | Y12: Non-hospital site | AA12: RAJ | AB12: CALDERDALE AND HUDDERSFIELD NHS FOUNDATION TRUST | AD12: RAJ | AE12: CALDERDALE AND HUDDERSFIELD NHS FOUNDATION TRUST | AF12: R1HNH | AG12: Birmingham Women's Hospital
L13: Don't Know | M13: Poor | O13: QK1 | P13: LEICESTER, LEICESTERSHIRE AND RUTLAND ICB | R13: QK1 | S13: LEICESTER, LEICESTERSHIRE AND RUTLAND ICB | U13: QF7 | V13: RHQ | W13: SHEFFIELD TEACHING HOSPITALS NHS FOUNDATION TRUST | X13: RHQHH | Y13: Royal Hallamshire Hospital | AA13: RAL | AB13: CAMBRIDGE UNIVERSITY HOSPITALS NHS FOUNDATION TRUST | AD13: RAL | AE13: CAMBRIDGE UNIVERSITY HOSPITALS NHS FOUNDATION TRUST | AF13: R1K01 | AG13: Blackpool Victoria Hospital
L14: Mode SMS | M14: Very Poor | O14: QKK | P14: SOUTH EAST LONDON ICB | R14: QKK | S14: SOUTH EAST LONDON ICB | U14: QF7 | V14: RFR | W14: THE ROTHERHAM NHS FOUNDATION TRUST | X14: RFRPA | Y14: Rotherham District General Hospital | AA14: RAS | AB14: CHELSEA AND WESTMINSTER HOSPITAL NHS FOUNDATION TRUST | AD14: RAS | AE14: CHELSEA AND WESTMINSTER HOSPITAL NHS FOUNDATION TRUST | AF14: RA201 | AG14: Bradford Royal Infirmary
L15: Mode Electronic Discharge | M15: Don't Know | O15: QKS | P15: KENT AND MEDWAY ICB | R15: QKS | S15: KENT AND MEDWAY ICB | U15: QGH | V15: RWP | W15: WORCESTERSHIRE ACUTE HOSPITALS NHS TRUST | X15: RWP01 | Y15: Alexandra Hospital | AA15: RAX | AB15: CHESTERFIELD ROYAL HOSPITAL NHS FOUNDATION TRUST | AD15: RAX | AE15: CHESTERFIELD ROYAL HOSPITAL NHS FOUNDATION TRUST | AF15: RA707 | AG15: Bridgwater Hospital
L16: Mode Electronic Home | O16: QM7 | P16: HERTFORDSHIRE AND WEST ESSEX ICB | R16: QM7 | S16: HERTFORDSHIRE AND WEST ESSEX ICB | U16: QGH | V16: RWP | W16: WORCESTERSHIRE ACUTE HOSPITALS NHS TRUST | X16: RWP31 | Y16: Kidderminster Hospital | AA16: RBD | AB16: COUNTESS OF CHESTER HOSPITAL NHS FOUNDATION TRUST | AD16: RBD | AE16: COUNTESS OF CHESTER HOSPITAL NHS FOUNDATION TRUST | AF16: RA901 | AG16: Buckland Hospital
L17: Mode Paper Discharge | O17: QMF | P17: NORTH EAST LONDON ICB | R17: QMF | S17: NORTH EAST LONDON ICB | U17: QGH | V17: RWP | W17: WORCESTERSHIRE ACUTE HOSPITALS NHS TRUST | X17: RWP50 | Y17: Worcestershire Royal Hospital | AA17: RBK | AB17: COUNTY DURHAM AND DARLINGTON NHS FOUNDATION TRUST | AD17: RBK | AE17: COUNTY DURHAM AND DARLINGTON NHS FOUNDATION TRUST | AF17: RAE01 | AG17: Calderdale Royal Hospital
L18: Mode Paper Home | O18: QMJ | P18: NORTH CENTRAL LONDON ICB | R18: QMJ | S18: NORTH CENTRAL LONDON ICB | U18: QGH | V18: RLQ | W18: WYE VALLEY NHS TRUST | X18: RLQ01 | Y18: Hereford County Hospital | AA18: RBL | AB18: DARTFORD AND GRAVESHAM NHS TRUST | AD18: RBL | AE18: DARTFORD AND GRAVESHAM NHS TRUST | AF18: RAJ01 | AG18: Chase Farm Hospital
L19: Mode Telephone | O19: QMM | P19: NORFOLK AND WAVENEY ICB | R19: QMM | S19: NORFOLK AND WAVENEY ICB | U19: QH8 | V19: RAJ | W19: MID AND SOUTH ESSEX NHS FOUNDATION TRUST | X19: RAJ12 | Y19: BASILDON HOSPITAL | AA19: RBN | AB19: DONCASTER AND BASSETLAW TEACHING HOSPITALS NHS FOUNDATION TRUST | AD19: RBN | AE19: DONCASTER AND BASSETLAW TEACHING HOSPITALS NHS FOUNDATION TRUST | AF19: RAJ12 | AG19: Chelsea and Westminster Hospital
L20: Mode Online | O20: QNC | P20: STAFFORDSHIRE AND STOKE-ON-TRENT ICB | R20: QNC | S20: STAFFORDSHIRE AND STOKE-ON-TRENT ICB | U20: QH8 | V20: RAJ | W20: MID AND SOUTH ESSEX NHS FOUNDATION TRUST | X20: RAJ32 | Y20: MID ESSEX HOSPITAL | AA20: RBT | AB20: DORSET COUNTY HOSPITAL NHS FOUNDATION TRUST | AD20: RBT | AE20: DORSET COUNTY HOSPITAL NHS FOUNDATION TRUST | AF20: RAJ32 | AG20: Chesterfield Royal Hospital
L21: Mode Other | O21: QNQ | P21: FRIMLEY ICB | R21: QNQ | S21: FRIMLEY ICB | U21: QH8 | V21: RAJ | W21: MID AND SOUTH ESSEX NHS FOUNDATION TRUST | X21: RAJ01 | Y21: Southend Hospital | AA21: RC9 | AB21: EAST AND NORTH HERTFORDSHIRE NHS TRUST | AD21: RC9 | AE21: EAST AND NORTH HERTFORDSHIRE NHS TRUST | AF21: RAL01 | AG21: Chippenham Community Hospital
O22: QNX | P22: SUSSEX ICB | R22: QNX | S22: SUSSEX ICB | U22: QHG | V22: RC9 | W22: BEDFORDSHIRE HOSPITALS NHS FOUNDATION TRUST | X22: RC979 | Y22: BEDFORD HOSPITAL SOUTH WING | AA22: RCD | AB22: EAST CHESHIRE NHS TRUST | AD22: RCD | AE22: EAST CHESHIRE NHS TRUST | AF22: RAL22 | AG22: Chorley and South Ribble Hospital
O23: QOC | P23: SHROPSHIRE, TELFORD AND WREKIN ICB | R23: QOC | S23: SHROPSHIRE, TELFORD AND WREKIN ICB | U23: QHG | V23: RC9 | W23: BEDFORDSHIRE HOSPITALS NHS FOUNDATION TRUST | X23: RC971 | Y23: Luton and Dunstable Hospital | AA23: RCX | AB23: EAST KENT HOSPITALS UNIVERSITY NHS FOUNDATION TRUST | AD23: RCX | AE23: EAST KENT HOSPITALS UNIVERSITY NHS FOUNDATION TRUST | AF23: RAL26 | AG23: City Hospital
O24: QOP | P24: GREATER MANCHESTER ICB | R24: QOP | S24: GREATER MANCHESTER ICB | U24: QHG | V24: RD8 | W24: MILTON KEYNES UNIVERSITY HOSPITAL NHS FOUNDATION TRUST | X24: RD816 | Y24: Milton Keynes Hospital | AA24: RD1 | AB24: EAST LANCASHIRE HOSPITALS NHS TRUST | AD24: RD1 | AE24: EAST LANCASHIRE HOSPITALS NHS TRUST | AF24: RALC7 | AG24: Colchester General Hospital
O25: QOQ | P25: HUMBER AND NORTH YORKSHIRE ICB | R25: QOQ | S25: HUMBER AND NORTH YORKSHIRE ICB | U25: QHL | V25: RQ3 | W25: BIRMINGHAM WOMEN'S AND CHILDREN'S NHS FOUNDATION TRUST | X25: RQ370 | Y25: Birmingham Women's Hospital | AA25: RD8 | AB25: EAST SUFFOLK AND NORTH ESSEX NHS FOUNDATION TRUST | AD25: RD8 | AE25: EAST SUFFOLK AND NORTH ESSEX NHS FOUNDATION TRUST | AF25: RAS01 | AG25: Countess Of Chester Hospital
O26: QOX | P26: BATH AND NORTH EAST SOMERSET, SWINDON AND WILTSHIRE ICB | R26: QOX | S26: BATH AND NORTH EAST SOMERSET, SWINDON AND WILTSHIRE ICB | U26: QHL | V26: RXK | W26: SANDWELL AND WEST BIRMINGHAM HOSPITALS NHS TRUST | X26: RXK02 | Y26: City Hospital | AA26: RDE | AB26: EPSOM AND ST HELIER UNIVERSITY HOSPITALS NHS TRUST | AD26: RDE | AE26: EPSOM AND ST HELIER UNIVERSITY HOSPITALS NHS TRUST | AF26: RAX01 | AG26: Cumberland Infirmary
O27: QPM | P27: NORTHAMPTONSHIRE ICB | R27: QPM | S27: NORTHAMPTONSHIRE ICB | U27: QHL | V27: RXK | W27: SANDWELL AND WEST BIRMINGHAM HOSPITALS NHS TRUST | X27: RXK01 | Y27: Sandwell General Hospital | AA27: RDU | AB27: FRIMLEY HEALTH NHS FOUNDATION TRUST | AD27: RDU | AE27: FRIMLEY HEALTH NHS FOUNDATION TRUST | AF27: RBD01 | AG27: Darent Valley Hospital
O28: QR1 | P28: GLOUCESTERSHIRE ICB | R28: QR1 | S28: GLOUCESTERSHIRE ICB | U28: QHL | V28: RRK | W28: UNIVERSITY HOSPITALS BIRMINGHAM NHS FOUNDATION TRUST | X28: RRK98 | Y28: Good Hope Hospital | AA28: REF | AB28: GATESHEAD HEALTH NHS FOUNDATION TRUST | AD28: REF | AE28: GATESHEAD HEALTH NHS FOUNDATION TRUST | AF28: RBK02 | AG28: Dewsbury and District Hospital
O29: QRL | P29: HAMPSHIRE AND ISLE OF WIGHT ICB | R29: QRL | S29: HAMPSHIRE AND ISLE OF WIGHT ICB | U29: QHL | V29: RRK | W29: UNIVERSITY HOSPITALS BIRMINGHAM NHS FOUNDATION TRUST | X29: RRK97 | Y29: Heartlands Hospital | AA29: REP | AB29: GEORGE ELIOT HOSPITAL NHS TRUST | AD29: REP | AE29: GEORGE ELIOT HOSPITAL NHS TRUST | AF29: RBL14 | AG29: Diana, Princess Of Wales Hospital
O30: QRV | P30: NORTH WEST LONDON ICB | R30: QRV | S30: NORTH WEST LONDON ICB | U30: QHL | V30: RRK | W30: UNIVERSITY HOSPITALS BIRMINGHAM NHS FOUNDATION TRUST | X30: RRK99 | Y30: Solihull Hospital | AA30: RF4 | AB30: GREAT WESTERN HOSPITALS NHS FOUNDATION TRUST | AD30: RF4 | AE30: GREAT WESTERN HOSPITALS NHS FOUNDATION TRUST | AF30: RBN01 | AG30: Doncaster Royal Infirmary
O31: QSL | P31: SOMERSET ICB | R31: QSL | S31: SOMERSET ICB | U31: QHM | V31: RXP | W31: COUNTY DURHAM AND DARLINGTON NHS FOUNDATION TRUST | X31: RXPCP | Y31: University Hospital Of North Durham | AA31: RFF | AB31: GUY'S AND ST THOMAS' NHS FOUNDATION TRUST | AD31: RFF | AE31: GUY'S AND ST THOMAS' NHS FOUNDATION TRUST | AF31: RBN52 | AG31: Dorset County Hospital
O32: QT1 | P32: NOTTINGHAM AND NOTTINGHAMSHIRE ICB | R32: QT1 | S32: NOTTINGHAM AND NOTTINGHAMSHIRE ICB | U32: QHM | V32: RR7 | W32: GATESHEAD HEALTH NHS FOUNDATION TRUST | X32: RR7EN | Y32: Queen Elizabeth Hospital | AA32: RFR | AB32: HAMPSHIRE HOSPITALS NHS FOUNDATION TRUST | AD32: RFR | AE32: HAMPSHIRE HOSPITALS NHS FOUNDATION TRUST | AF32: RBT20 | AG32: East Surrey Hospital
O33: QT6 | P33: CORNWALL AND THE ISLES OF SCILLY ICB | R33: QT6 | S33: CORNWALL AND THE ISLES OF SCILLY ICB | U33: QHM | V33: RNN | W33: NORTH CUMBRIA INTEGRATED CARE NHS FOUNDATION TRUST | X33: RNN62 | Y33: Cumberland Infirmary | AA33: RFS | AB33: HARROGATE AND DISTRICT NHS FOUNDATION TRUST | AD33: RFS | AE33: HARROGATE AND DISTRICT NHS FOUNDATION TRUST | AF33: RC971 | AG33: Epsom Hospital
O34: QU9 | P34: BUCKINGHAMSHIRE, OXFORDSHIRE AND BERKSHIRE WEST ICB | R34: QU9 | S34: BUCKINGHAMSHIRE, OXFORDSHIRE AND BERKSHIRE WEST ICB | U34: QHM | V34: RVW | W34: NORTH TEES AND HARTLEPOOL NHS FOUNDATION TRUST | X34: RVWXXX | Y34: Non-hospital site | AA34: RGN | AB34: HOMERTON HEALTHCARE NHS FOUNDATION TRUST | AD34: RGN | AE34: HOMERTON HEALTHCARE NHS FOUNDATION TRUST | AF34: RC979 | AG34: Finchley Memorial Hospital
O35: QUA | P35: BLACK COUNTRY ICB | R35: QUA | S35: BLACK COUNTRY ICB | U35: QHM | V35: RVW | W35: NORTH TEES AND HARTLEPOOL NHS FOUNDATION TRUST | X35: RVWAE | Y35: University Hospital Of North Tees | AA35: RGP | AB35: HULL UNIVERSITY TEACHING HOSPITALS NHS TRUST | AD35: RGP | AE35: HULL UNIVERSITY TEACHING HOSPITALS NHS TRUST | AF35: RCD01 | AG35: Friarage Hospital Site
O36: QUE | P36: CAMBRIDGESHIRE AND PETERBOROUGH ICB | R36: QUE | S36: CAMBRIDGESHIRE AND PETERBOROUGH ICB | U36: QHM | V36: RTF | W36: NORTHUMBRIA HEALTHCARE NHS FOUNDATION TRUST | X36: RTFXXX | Y36: Non-hospital site | AA36: RGR | AB36: IMPERIAL COLLEGE HEALTHCARE NHS TRUST | AD36: RGR | AE36: IMPERIAL COLLEGE HEALTHCARE NHS TRUST | AF36: RCX66 | AG36: Frimley Park Hospital
O37: QUY | P37: BRISTOL, NORTH SOMERSET AND SOUTH GLOUCESTERSHIRE ICB | R37: QUY | S37: BRISTOL, NORTH SOMERSET AND SOUTH GLOUCESTERSHIRE ICB | U37: QHM | V37: RTR | W37: SOUTH TEES HOSPITALS NHS FOUNDATION TRUST | X37: RTR45 | Y37: Friarage Hospital Site | AA37: RGT | AB37: ISLE OF WIGHT NHS TRUST | AD37: RGT | AE37: ISLE OF WIGHT NHS TRUST | AF37: RCX70 | AG37: Frome Community Hospital
O38: QVV | P38: DORSET ICB | R38: QVV | S38: DORSET ICB | U38: QHM | V38: RTR | W38: SOUTH TEES HOSPITALS NHS FOUNDATION TRUST | X38: RTRAT | Y38: The James Cook University Hospital | AA38: RH5 | AB38: JAMES PAGET UNIVERSITY HOSPITALS NHS FOUNDATION TRUST | AD38: RH5 | AE38: JAMES PAGET UNIVERSITY HOSPITALS NHS FOUNDATION TRUST | AF38: RCXXXX | AG38: Furness General Hospital
O39: QWE | P39: SOUTH WEST LONDON ICB | R39: QWE | S39: SOUTH WEST LONDON ICB | U39: QHM | V39: R0B | W39: SOUTH TYNESIDE AND SUNDERLAND NHS FOUNDATION TRUST | X39: R0BXXX | Y39: Non-hospital site | AA39: RH8 | AB39: KETTERING GENERAL HOSPITAL NHS FOUNDATION TRUST | AD39: RH8 | AE39: KETTERING GENERAL HOSPITAL NHS FOUNDATION TRUST | AF39: RD102 | AG39: George Eliot Hospital - Acute Services
O40: QWO | P40: WEST YORKSHIRE ICB | R40: QWO | S40: WEST YORKSHIRE ICB | U40: QHM | V40: R0B | W40: SOUTH TYNESIDE AND SUNDERLAND NHS FOUNDATION TRUST | X40: R0B0Q | Y40: South Tyneside District Hospital | AA40: RHM | AB40: KINGSTON AND RICHMOND NHS FOUNDATION TRUST | AD40: RHM | AE40: KINGSTON AND RICHMOND NHS FOUNDATION TRUST | AF40: RD108 | AG40: Good Hope Hospital
O41: QWU | P41: COVENTRY AND WARWICKSHIRE ICB | R41: QWU | S41: COVENTRY AND WARWICKSHIRE ICB | U41: QHM | V41: R0B | W41: SOUTH TYNESIDE AND SUNDERLAND NHS FOUNDATION TRUST | X41: R0B01 | Y41: Sunderland Royal Hospital | AA41: RHQ | AB41: LANCASHIRE TEACHING HOSPITALS NHS FOUNDATION TRUST | AD41: RHQ | AE41: LANCASHIRE TEACHING HOSPITALS NHS FOUNDATION TRUST | AF41: RD121 | AG41: Goole and District Hospital (Acute)
O42: QXU | P42: SURREY HEARTLANDS ICB | R42: QXU | S42: SURREY HEARTLANDS ICB | U42: QHM | V42: RTD | W42: THE NEWCASTLE UPON TYNE HOSPITALS NHS FOUNDATION TRUST | X42: RTD02 | Y42: The Royal Victoria Infirmary | AA42: RHU | AB42: LEEDS TEACHING HOSPITALS NHS TRUST | AD42: RHU | AE42: LEEDS TEACHING HOSPITALS NHS TRUST | AF42: RD129 | AG42: Grantham and District Hospital
O43: QYG | P43: CHESHIRE AND MERSEYSIDE ICB | R43: QYG | S43: CHESHIRE AND MERSEYSIDE ICB | U43: QJ2 | V43: RFS | W43: CHESTERFIELD ROYAL HOSPITAL NHS FOUNDATION TRUST | X43: RFSDA | Y43: Chesterfield Royal Hospital | AA43: RHW | AB43: LEWISHAM AND GREENWICH NHS TRUST | AD43: RHW | AE43: LEWISHAM AND GREENWICH NHS TRUST | AF43: RD816 | AG43: Harrogate District Hospital
U44: QJ2 | V44: RTG | W44: UNIVERSITY HOSPITALS OF DERBY AND BURTON NHS FOUNDATION TRUST | X44: RTG02 | Y44: Queens Hospital, Burton Upon Trent | AA44: RJ1 | AB44: LIVERPOOL WOMEN'S NHS FOUNDATION TRUST | AD44: RJ1 | AE44: LIVERPOOL WOMEN'S NHS FOUNDATION TRUST | AF44: RDE03 | AG44: Heartlands Hospital
U45: QJ2 | V45: RTG | W45: UNIVERSITY HOSPITALS OF DERBY AND BURTON NHS FOUNDATION TRUST | X45: RTGFG | Y45: Royal Derby Hospital | AA45: RJ2 | AB45: LONDON NORTH WEST UNIVERSITY HEALTHCARE NHS TRUST | AD45: RJ2 | AE45: LONDON NORTH WEST UNIVERSITY HEALTHCARE NHS TRUST | AF45: RDEE4 | AG45: Hereford County Hospital
U46: QJG | V46: RDE | W46: EAST SUFFOLK AND NORTH ESSEX NHS FOUNDATION TRUST | X46: RDEE4 | Y46: Colchester General Hospital | AA46: RJ7 | AB46: MAIDSTONE AND TUNBRIDGE WELLS NHS TRUST | AD46: RJ7 | AE46: MAIDSTONE AND TUNBRIDGE WELLS NHS TRUST | AF46: RDU01 | AG46: Hertford County Hospital
U47: QJG | V47: RDE | W47: EAST SUFFOLK AND NORTH ESSEX NHS FOUNDATION TRUST | X47: RDE03 | Y47: Ipswich Hospital | AA47: RJC | AB47: MANCHESTER UNIVERSITY NHS FOUNDATION TRUST | AD47: RJC | AE47: MANCHESTER UNIVERSITY NHS FOUNDATION TRUST | AF47: REF12 | AG47: Hillingdon Hospital
U48: QJG | V48: RGR | W48: WEST SUFFOLK NHS FOUNDATION TRUST | X48: RGR50 | Y48: West Suffolk Hospital | AA48: RJE | AB48: MEDWAY NHS FOUNDATION TRUST | AD48: RJE | AE48: MEDWAY NHS FOUNDATION TRUST | AF48: REFXXX | AG48: Hinchingbrooke Hospital
U49: QJK | V49: RH8 | W49: ROYAL DEVON UNIVERSITY HEALTHCARE NHS FOUNDATION TRUST | X49: RH880 | Y49: North Devon District Hospital | AA49: RJL | AB49: MERSEY AND WEST LANCASHIRE TEACHING HOSPITALS NHS TRUST | AD49: RJL | AE49: MERSEY AND WEST LANCASHIRE TEACHING HOSPITALS NHS TRUST | AF49: REP01 | AG49: Homerton University Hospital
U50: QJK | V50: RH8 | W50: ROYAL DEVON UNIVERSITY HEALTHCARE NHS FOUNDATION TRUST | X50: RH801 | Y50: Royal Devon and Exeter Hospital (Wonford) | AA50: RJN | AB50: MID AND SOUTH ESSEX NHS FOUNDATION TRUST | AD50: RJN | AE50: MID AND SOUTH ESSEX NHS FOUNDATION TRUST | AF50: RF4XXX | AG50: Hospital Of St Cross
U51: QJK | V51: RA9 | W51: TORBAY AND SOUTH DEVON NHS FOUNDATION TRUST | X51: RA901 | Y51: Torbay Hospital | AA51: RJR | AB51: MID CHESHIRE HOSPITALS NHS FOUNDATION TRUST | AD51: RJR | AE51: MID CHESHIRE HOSPITALS NHS FOUNDATION TRUST | AF51: RFFAA | AG51: Huddersfield Royal Infirmary
U52: QJK | V52: RK9 | W52: UNIVERSITY HOSPITALS PLYMOUTH NHS TRUST | X52: RK9XXX | Y52: Non-hospital site | AA52: RK5 | AB52: MID YORKSHIRE TEACHING NHS TRUST | AD52: RK5 | AE52: MID YORKSHIRE TEACHING NHS TRUST | AF52: RFRPA | AG52: Hull Royal Infirmary
U53: QJM | V53: RWD | W53: UNITED LINCOLNSHIRE TEACHING HOSPITALS NHS TRUST | X53: RWDLP | Y53: Grantham and District Hospital | AA53: RK9 | AB53: MILTON KEYNES UNIVERSITY HOSPITAL NHS FOUNDATION TRUST | AD53: RK9 | AE53: MILTON KEYNES UNIVERSITY HOSPITAL NHS FOUNDATION TRUST | AF53: RFSDA | AG53: Ipswich Hospital
U54: QJM | V54: RWD | W54: UNITED LINCOLNSHIRE TEACHING HOSPITALS NHS TRUST | X54: RWDDA | Y54: Lincoln County Hospital | AA54: RKB | AB54: NORFOLK AND NORWICH UNIVERSITY HOSPITALS NHS FOUNDATION TRUST | AD54: RKB | AE54: NORFOLK AND NORWICH UNIVERSITY HOSPITALS NHS FOUNDATION TRUST | AF54: RGN80 | AG54: James Paget University Hospital
U55: QJM | V55: RWD | W55: UNITED LINCOLNSHIRE TEACHING HOSPITALS NHS TRUST | X55: RWDLA | Y55: Pilgrim Hospital | AA55: RKE | AB55: NORTH BRISTOL NHS TRUST | AD55: RKE | AE55: NORTH BRISTOL NHS TRUST | AF55: RGN90 | AG55: John Radcliffe Hospital
U56: QK1 | V56: RWE | W56: UNIVERSITY HOSPITALS OF LEICESTER NHS TRUST | X56: RWEAK | Y56: Leicester General Hospital | AA56: RL4 | AB56: NORTH CUMBRIA INTEGRATED CARE NHS FOUNDATION TRUST | AD56: RL4 | AE56: NORTH CUMBRIA INTEGRATED CARE NHS FOUNDATION TRUST | AF56: RGP75 | AG56: Kent and Canterbury Hospital
U57: QK1 | V57: RWE | W57: UNIVERSITY HOSPITALS OF LEICESTER NHS TRUST | X57: RWEAA | Y57: Leicester Royal Infirmary | AA57: RLQ | AB57: NORTH TEES AND HARTLEPOOL NHS FOUNDATION TRUST | AD57: RLQ | AE57: NORTH TEES AND HARTLEPOOL NHS FOUNDATION TRUST | AF57: RGR50 | AG57: Kettering General Hospital
U58: QK1 | V58: RWE | W58: UNIVERSITY HOSPITALS OF LEICESTER NHS TRUST | X58: RWEXXX | Y58: Non-hospital site | AA58: RLT | AB58: NORTH WEST ANGLIA NHS FOUNDATION TRUST | AD58: RLT | AE58: NORTH WEST ANGLIA NHS FOUNDATION TRUST | AF58: RGT32 | AG58: Kidderminster Hospital
U59: QK1 | V59: RWE | W59: UNIVERSITY HOSPITALS OF LEICESTER NHS TRUST | X59: RWE10 | Y59: St Mary's Hospital | AA59: RM1 | AB59: NORTHAMPTON GENERAL HOSPITAL NHS TRUST | AD59: RM1 | AE59: NORTHAMPTON GENERAL HOSPITAL NHS TRUST | AF59: RH5A8 | AG59: King's Mill Hospital
U60: QKK | V60: RJ1 | W60: GUY'S AND ST THOMAS' NHS FOUNDATION TRUST | X60: RJ122 | Y60: St Thomas' Hospital | AA60: RMC | AB60: NORTHERN LINCOLNSHIRE AND GOOLE NHS FOUNDATION TRUST | AD60: RMC | AE60: NORTHERN LINCOLNSHIRE AND GOOLE NHS FOUNDATION TRUST | AF60: RH5K6 | AG60: Kingston Hospital
U61: QKK | V61: RJ2 | W61: LEWISHAM AND GREENWICH NHS TRUST | X61: RJ2XXX | Y61: Non-hospital site | AA61: RMP | AB61: NORTHUMBRIA HEALTHCARE NHS FOUNDATION TRUST | AD61: RMP | AE61: NORTHUMBRIA HEALTHCARE NHS FOUNDATION TRUST | AF61: RH5O4 | AG61: Leeds General Infirmary
U62: QKK | V62: RJ2 | W62: LEWISHAM AND GREENWICH NHS TRUST | X62: RJ231 | Y62: Queen Elizabeth Hospital | AA62: RN3 | AB62: NOTTINGHAM UNIVERSITY HOSPITALS NHS TRUST | AD62: RN3 | AE62: NOTTINGHAM UNIVERSITY HOSPITALS NHS TRUST | AF62: RH5XXXX | AG62: Leicester General Hospital
U63: QKK | V63: RJ2 | W63: LEWISHAM AND GREENWICH NHS TRUST | X63: RJ224 | Y63: University Hospital Lewisham | AA63: RN5 | AB63: OXFORD UNIVERSITY HOSPITALS NHS FOUNDATION TRUST | AD63: RN5 | AE63: OXFORD UNIVERSITY HOSPITALS NHS FOUNDATION TRUST | AF63: RH801 | AG63: Leicester Royal Infirmary
U64: QKS | V64: RN7 | W64: DARTFORD AND GRAVESHAM NHS TRUST | X64: RN707 | Y64: Darent Valley Hospital | AA64: RN7 | AB64: PORTSMOUTH HOSPITALS UNIVERSITY NATIONAL HEALTH SERVICE TRUST | AD64: RN7 | AE64: PORTSMOUTH HOSPITALS UNIVERSITY NATIONAL HEALTH SERVICE TRUST | AF64: RH880 | AG64: Leighton Hospital
U65: QKS | V65: RVV | W65: EAST KENT HOSPITALS UNIVERSITY NHS FOUNDATION TRUST | X65: RVV02 | Y65: Buckland Hospital | AA65: RNA | AB65: ROYAL BERKSHIRE NHS FOUNDATION TRUST | AD65: RNA | AE65: ROYAL BERKSHIRE NHS FOUNDATION TRUST | AF65: RHM12 | AG65: Lincoln County Hospital
U66: QKS | V66: RVV | W66: EAST KENT HOSPITALS UNIVERSITY NHS FOUNDATION TRUST | X66: RVVKC | Y66: Kent and Canterbury Hospital | AA66: RNN | AB66: ROYAL CORNWALL HOSPITALS NHS TRUST | AD66: RNN | AE66: ROYAL CORNWALL HOSPITALS NHS TRUST | AF66: RHQHH | AG66: Lister Hospital
U67: QKS | V67: RVV | W67: EAST KENT HOSPITALS UNIVERSITY NHS FOUNDATION TRUST | X67: RVVXXX | Y67: Non-hospital site | AA67: RNQ | AB67: ROYAL DEVON UNIVERSITY HEALTHCARE NHS FOUNDATION TRUST | AD67: RNQ | AE67: ROYAL DEVON UNIVERSITY HEALTHCARE NHS FOUNDATION TRUST | AF67: RHU03 | AG67: Liverpool Womens Hospital
U68: QKS | V68: RVV | W68: EAST KENT HOSPITALS UNIVERSITY NHS FOUNDATION TRUST | X68: RVV09 | Y68: Queen Elizabeth The Queen Mother Hospital | AA68: RNS | AB68: ROYAL FREE LONDON NHS FOUNDATION TRUST | AD68: RNS | AE68: ROYAL FREE LONDON NHS FOUNDATION TRUST | AF68: RHW01 | AG68: Luton and Dunstable Hospital
U69: QKS | V69: RVV | W69: EAST KENT HOSPITALS UNIVERSITY NHS FOUNDATION TRUST | X69: RVV01 | Y69: William Harvey Hospital (Ashford) | AA69: RNZ | AB69: ROYAL SURREY COUNTY HOSPITAL NHS FOUNDATION TRUST | AD69: RNZ | AE69: ROYAL SURREY COUNTY HOSPITAL NHS FOUNDATION TRUST | AF69: RJ122 | AG69: Macclesfield District General Hospital
U70: QKS | V70: RWF | W70: MAIDSTONE AND TUNBRIDGE WELLS NHS TRUST | X70: RWF03 | Y70: Maidstone District General Hospital | AA70: RP5 | AB70: ROYAL UNITED HOSPITALS BATH NHS FOUNDATION TRUST | AD70: RP5 | AE70: ROYAL UNITED HOSPITALS BATH NHS FOUNDATION TRUST | AF70: RJ224 | AG70: Maidstone District General Hospital
U71: QKS | V71: RWF | W71: MAIDSTONE AND TUNBRIDGE WELLS NHS TRUST | X71: RWFXXX | Y71: Non-hospital site | AA71: RPA | AB71: SALISBURY NHS FOUNDATION TRUST | AD71: RPA | AE71: SALISBURY NHS FOUNDATION TRUST | AF71: RJ231 | AG71: Manor Hospital
U72: QKS | V72: RWF | W72: MAIDSTONE AND TUNBRIDGE WELLS NHS TRUST | X72: RWFTW | Y72: The Tunbridge Wells Hospital | AA72: RQ3 | AB72: SANDWELL AND WEST BIRMINGHAM HOSPITALS NHS TRUST | AD72: RQ3 | AE72: SANDWELL AND WEST BIRMINGHAM HOSPITALS NHS TRUST | AF72: RJ2XXX | AG72: Medway Maritime Hospital
U73: QKS | V73: RPA | W73: MEDWAY NHS FOUNDATION TRUST | X73: RPA02 | Y73: Medway Maritime Hospital | AA73: RQM | AB73: SHEFFIELD TEACHING HOSPITALS NHS FOUNDATION TRUST | AD73: RQM | AE73: SHEFFIELD TEACHING HOSPITALS NHS FOUNDATION TRUST | AF73: RJ701 | AG73: MID ESSEX HOSPITAL
U74: QM7 | V74: RWH | W74: EAST AND NORTH HERTFORDSHIRE NHS TRUST | X74: RWH23 | Y74: Hertford County Hospital | AA74: RQW | AB74: SHERWOOD FOREST HOSPITALS NHS FOUNDATION TRUST | AD74: RQW | AE74: SHERWOOD FOREST HOSPITALS NHS FOUNDATION TRUST | AF74: RJC02 | AG74: Milton Keynes Hospital
U75: QM7 | V75: RWH | W75: EAST AND NORTH HERTFORDSHIRE NHS TRUST | X75: RWH01 | Y75: Lister Hospital | AA75: RQX | AB75: SOMERSET NHS FOUNDATION TRUST | AD75: RQX | AE75: SOMERSET NHS FOUNDATION TRUST | AF75: RJCXXX | AG75: MUSGROVE PARK HOSPITAL
U76: QM7 | V76: RWH | W76: EAST AND NORTH HERTFORDSHIRE NHS TRUST | X76: RWHXXX | Y76: Non-hospital site | AA76: RR7 | AB76: SOUTH TEES HOSPITALS NHS FOUNDATION TRUST | AD76: RR7 | AE76: SOUTH TEES HOSPITALS NHS FOUNDATION TRUST | AF76: RJE01 | AG76: New Cross Hospital
U77: QM7 | V77: RWH | W77: EAST AND NORTH HERTFORDSHIRE NHS TRUST | X77: RWH20 | Y77: Queen Elizabeth I I Hospital | AA77: RR8 | AB77: SOUTH TYNESIDE AND SUNDERLAND NHS FOUNDATION TRUST | AD77: RR8 | AE77: SOUTH TYNESIDE AND SUNDERLAND NHS FOUNDATION TRUST | AF77: RJEXXX | AG77: Newham General Hospital
U78: QM7 | V78: RQW | W78: THE PRINCESS ALEXANDRA HOSPITAL NHS TRUST | X78: RQWG0 | Y78: Princess Alexandra Hospital | AA78: RRF | AB78: SOUTH WARWICKSHIRE UNIVERSITY NHS FOUNDATION TRUST | AD78: RRF | AE78: SOUTH WARWICKSHIRE UNIVERSITY NHS FOUNDATION TRUST | AF78: RJL30 | AG78: Non-hospital site
U79: QM7 | V79: RWG | W79: WEST HERTFORDSHIRE TEACHING HOSPITALS NHS TRUST | X79: RWG02 | Y79: Watford General Hospital | AA79: RRK | AB79: ST GEORGE'S UNIVERSITY HOSPITALS NHS FOUNDATION TRUST | AD79: RRK | AE79: ST GEORGE'S UNIVERSITY HOSPITALS NHS FOUNDATION TRUST | AF79: RJL31 | AG79: Non-hospital site
